{"text_format":"1","workbook":"xlsx","n_sheets":15,"sheets":["1. Info","2021 List","Sheet1","2. Table of Contents","3. RRR Data","4. UTRs and Sub-Transmission","5. Historical Wholesale","6. Current Wholesale","7. Forecast Wholesale","8. RTSR Rates to Forecast","9. LV Rates","RateClasses","DELETE 3. Rate Classes","2 1 5 TotalConsumptionData_Dist","hidden1"],"not_rendered":{"charts":0,"images":2,"macros":1,"external_links":9,"defined_names":142,"comments":0,"pivot_tables":0},"unopened":[],"bounds":{"document_bytes":16777216,"sheet_cells":100000,"rows_first":2000,"rows_last":500,"rows_between":2000,"halvings":0,"cell_chars":16384,"cell_head_chars":4096},"cells_cut":0,"cells_raw":0,"read":"whole","date_system":"1900"}

{"sheet":"1. Info","index":0,"n_rows":73,"n_cols":29,"rows_kept":73,"cut":false,"hidden":false,"merged":[[22,3,22,4],[18,3,18,4],[1,2,1,9],[2,2,2,9],[3,2,3,9],[4,2,4,9],[14,3,14,4]]}
[null,null,null,null,null,null,null,null,null,null,null,null,null,null,null,null,null,null,null,null,null,null,null,null,null,null,null,"Alectra Utilities Corporation-Brampton Rate Zone","2021 RTSR Workform \nfor Electricity Distributors\n"]
[null,null,null,null,null,null,null,null,null,null,null,null,null,null,null,null,null,null,null,null,null,null,null,null,null,null,null,"Alectra Utilities Corporation-Enersource Rate Zone","v 1.0\n"]
[null,null,null,null,null,null,null,null,null,null,null,null,null,null,null,null,null,null,null,null,null,null,null,null,null,null,null,"Alectra Utilities Corporation-Horizon Utilities Rate Zone"]
[null,null,null,null,null,null,null,null,null,null,null,null,null,null,null,null,null,null,null,null,null,null,null,null,null,null,null,"Alectra Utilities Corporation-PowerStream Rate Zone"]
[null,null,null,null,null,null,null,null,null,null,null,null,null,null,null,null,null,null,null,null,null,null,null,null,null,null,null,"Alectra Utilities Corporation-Guelph Rate Zone"]
[null,null,null,null,null,null,null,null,null,null,null,null,null,null,null,null,null,null,null,null,null,null,null,null,null,null,null,"Algoma Power Inc."]
[null,null,null,null,null,null,null,null,null,null,null,null,null,null,null,null,null,null,null,null,null,null,null,null,null,null,null,"Atikokan Hydro Inc."]
[null,null,null,null,null,null,null,null,null,null,null,null,null,null,null,null,null,null,null,null,null,null,null,null,null,null,null,"Bluewater Power Distribution Corporation"]
[null,null,null,null,null,null,null,null,null,null,null,null,null,null,null,null,null,null,null,null,null,null,null,null,null,null,null,"Brantford Power Inc."]
[null,null,null,null,null,null,null,null,null,null,null,null,null,null,null,null,null,null,null,null,null,null,null,null,null,null,null,"Burlington Hydro Inc."]
[null,null,null,null,null,null,null,null,null,null,null,null,null,null,null,null,null,null,null,null,null,null,null,null,null,null,null,"Canadian Niagara Power Inc."]
[null,null,null,null,null,null,null,null,null,null,null,null,null,null,null,null,null,null,null,null,null,null,null,null,null,null,null,"Centre Wellington Hydro Ltd."]
["Drop-down lists are shaded blue; Input cells are shaded green.",null,null,null,null,null,null,null,null,null,null,null,null,null,null,null,null,null,null,null,null,null,null,null,null,null,null,"Chapleau Public Utilities Corporation"]
[null,null,null,null,null,null,null,null,null,null,null,null,null,null,null,null,null,null,null,null,null,null,null,null,null,null,null,"Cooperative Hydro Embrun Inc."]
[null,null,"Utility Name   ","PUC Distribution Inc.",null,null,null,null,null,null,null,null,null,null,null,null,null,null,null,null,null,null,null,null,null,null,null,"E.L.K. Energy Inc."]
[null,null,null,null,null,null,null,null,null,null,null,null,null,null,null,null,null,null,null,null,null,null,null,null,null,null,null,"Elexicon Energy Inc.-Whitby Rate Zone"]
[null,null,"Assigned EB Number","EB-2022-0059",null,null,null,null,null,null,null,null,null,null,null,null,null,null,null,null,null,null,null,null,null,null,null,"Elexicon Energy Inc.-Veridian Rate Zone"]
[null,null,null,null,null,null,null,null,null,null,null,null,null,null,null,null,null,null,null,null,null,null,null,null,null,null,null,"Energy+ Inc."]
[null,null,"Name and Title of Contact","Tyler Kasubeck, Regulatory Financial Analyst",null,null,null,null,null,null,null,null,null,null,null,null,null,null,null,null,null,null,null,null,null,null,null,"Entegrus Powerlines Inc.-For Entegrus-Main Rate Zone"]
[null,null,null,null,null,null,null,null,null,null,null,null,null,null,null,null,null,null,null,null,null,null,null,null,null,null,null,"Entegrus Powerlines Inc.-For Former St. Thomas Energy Rate Zone"]
[null,null,"Phone Number","705-759-3009",null,null,null,null,null,null,null,null,null,null,null,null,null,null,null,null,null,null,null,null,null,null,null,"ENWIN Utilities Ltd."]
[null,null,null,null,null,null,null,null,null,null,null,null,null,null,null,null,null,null,null,null,null,null,null,null,null,null,null,"EPCOR Electricity Distribution Ontario Inc."]
[null,null,"Email Address","tyler.kasubeck@ssmpuc.com",null,null,null,null,null,null,null,null,null,null,null,null,null,null,null,null,null,null,null,null,null,null,null,"ERTH Power Corporation - ERTH Power Main Rate Zone"]
[null,null,null,null,null,null,null,null,null,null,null,null,null,null,null,null,null,null,null,null,null,null,null,null,null,null,null,"ERTH POWER CORPORATION – GODERICH RATE ZONE"]
[null,null,"Last COS Re-based Year",2018,null,null,null,null,null,null,null,null,null,null,null,null,null,null,null,null,null,null,null,null,null,null,null,"Essex Powerlines Corporation"]
[null,null,null,null,null,null,null,null,null,null,null,null,null,null,null,null,null,null,null,null,null,null,null,null,null,null,null,"Festival Hydro Inc."]
[null,null,null,null,null,null,null,null,null,null,null,null,null,null,null,null,null,null,null,null,null,null,null,null,null,null,null,"Fort Frances Power Corporation"]
[null,null,null,null,null,null,null,null,null,null,null,null,null,null,null,null,null,null,null,null,null,null,null,null,null,null,null,"Greater Sudbury Hydro Inc."]
[null,null,null,null,null,null,null,null,null,null,null,null,null,null,null,null,null,null,null,null,null,null,null,null,null,null,null,"Grimsby Power Incorporated"]
[null,null,null,null,null,null,null,null,null,null,null,null,null,null,null,null,null,null,null,null,null,null,null,null,null,null,null,"Halton Hills Hydro Inc."]
[null,null,null,null,null,null,null,null,null,null,null,null,null,null,null,null,null,null,null,null,null,null,null,null,null,null,null,"Hearst Power Distribution Co. Ltd."]
[null,null,null,null,null,null,null,null,null,null,null,null,null,null,null,null,null,null,null,null,null,null,null,null,null,null,null,"Hydro 2000 Inc."]
[null,null,null,null,null,null,null,null,null,null,null,null,null,null,null,null,null,null,null,null,null,null,null,null,null,null,null,"Hydro Hawkesbury Inc."]
[null,null,null,null,null,null,null,null,null,null,null,null,null,null,null,null,null,null,null,null,null,null,null,null,null,null,null,"Hydro One Networks Inc."]
[null,null,null,null,null,null,null,null,null,null,null,null,null,null,null,null,null,null,null,null,null,null,null,null,null,null,null,"Hydro One Networks Inc.-Former Haldimand County Hydro Inc. Service Area"]
[null,null,null,null,null,null,null,null,null,null,null,null,null,null,null,null,null,null,null,null,null,null,null,null,null,null,null,"Hydro One Networks Inc.-Former Norfolk Power Distribution Inc. Service Area"]
[null,null,null,null,null,null,null,null,null,null,null,null,null,null,null,null,null,null,null,null,null,null,null,null,null,null,null,"Hydro One Networks Inc.-Former Woodstock Hydro Services Inc. Service Area"]
[null,null,null,null,null,null,null,null,null,null,null,null,null,null,null,null,null,null,null,null,null,null,null,null,null,null,null,"Hydro One Remote Communites Inc."]
[null,null,null,null,null,null,null,null,null,null,null,null,null,null,null,null,null,null,null,null,null,null,null,null,null,null,null,"Hydro Ottawa Limited"]
[null,null,null,null,null,null,null,null,null,null,null,null,null,null,null,null,null,null,null,null,null,null,null,null,null,null,null,"InnPower Corporation"]
[null,null,null,null,null,null,null,null,null,null,null,null,null,null,null,null,null,null,null,null,null,null,null,null,null,null,null,"Kingston Hydro Corporation"]
[null,null,null,null,null,null,null,null,null,null,null,null,null,null,null,null,null,null,null,null,null,null,null,null,null,null,null,"Kitchener-Wilmot Hydro Inc."]
[null,null,null,null,null,null,null,null,null,null,null,null,null,null,null,null,null,null,null,null,null,null,null,null,null,null,null,"Lakefront Utilities Inc."]
[null,null,null,null,null,null,null,null,null,null,null,null,null,null,null,null,null,null,null,null,null,null,null,null,null,null,null,"Lakeland Power Distribution Ltd."]
[null,null,null,null,null,null,null,null,null,null,null,null,null,null,null,null,null,null,null,null,null,null,null,null,null,null,null,"Lakeland Power Distribution Ltd.-Parry Sound Service Area"]
[null,null,null,null,null,null,null,null,null,null,null,null,null,null,null,null,null,null,null,null,null,null,null,null,null,null,null,"London Hydro Inc."]
[null,null,null,null,null,null,null,null,null,null,null,null,null,null,null,null,null,null,null,null,null,null,null,null,null,null,null,"Milton Hydro Distribution Inc."]
[null,null,null,null,null,null,null,null,null,null,null,null,null,null,null,null,null,null,null,null,null,null,null,null,null,null,null,"Newmarket-Tay Power Distribution Ltd.-For Former Midland Power Utility Rate Zone"]
[null,null,null,null,null,null,null,null,null,null,null,null,null,null,null,null,null,null,null,null,null,null,null,null,null,null,null,"Newmarket-Tay Power Distribution Ltd.-For Newmarket-Tay Power Main Rate Zone"]
[null,null,null,null,null,null,null,null,null,null,null,null,null,null,null,null,null,null,null,null,null,null,null,null,null,null,null,"Niagara Peninsula Energy Inc."]
[null,null,null,null,null,null,null,null,null,null,null,null,null,null,null,null,null,null,null,null,null,null,null,null,null,null,null,"Niagara-on-the-Lake Hydro Inc."]
[null,null,null,null,null,null,null,null,null,null,null,null,null,null,null,null,null,null,null,null,null,null,null,null,null,null,null,"North Bay Hydro Distribution Limited - Espanola service territory"]
[null,null,null,null,null,null,null,null,null,null,null,null,null,null,null,null,null,null,null,null,null,null,null,null,null,null,null,"North Bay Hydro Distribution Limited - North Bay service territory"]
[null,null,null,null,null,null,null,null,null,null,null,null,null,null,null,null,null,null,null,null,null,null,null,null,null,null,null,"Northern Ontario Wires Inc."]
[null,null,null,null,null,null,null,null,null,null,null,null,null,null,null,null,null,null,null,null,null,null,null,null,null,null,null,"Oakville Hydro Electricity Distribution Inc."]
[null,null,null,null,null,null,null,null,null,null,null,null,null,null,null,null,null,null,null,null,null,null,null,null,null,null,null,"Orangeville Hydro Limited"]
[null,null,null,null,null,null,null,null,null,null,null,null,null,null,null,null,null,null,null,null,null,null,null,null,null,null,null,"Orillia Power Distribution Corporation"]
[null,null,null,null,null,null,null,null,null,null,null,null,null,null,null,null,null,null,null,null,null,null,null,null,null,null,null,"Oshawa PUC Networks Inc."]
[null,null,null,null,null,null,null,null,null,null,null,null,null,null,null,null,null,null,null,null,null,null,null,null,null,null,null,"Ottawa River Power Corporation"]
[null,null,null,null,null,null,null,null,null,null,null,null,null,null,null,null,null,null,null,null,null,null,null,null,null,null,null,"Peterborough Distribution Incorporated"]
[null,null,null,null,null,null,null,null,null,null,null,null,null,null,null,null,null,null,null,null,null,null,null,null,null,null,null,"PUC Distribution Inc."]
[null,null,null,null,null,null,null,null,null,null,null,null,null,null,null,null,null,null,null,null,null,null,null,null,null,null,null,"Renfrew Hydro Inc."]
[null,null,null,null,null,null,null,null,null,null,null,null,null,null,null,null,null,null,null,null,null,null,null,null,null,null,null,"Rideau St. Lawrence Distribution Inc."]
[null,null,null,null,null,null,null,null,null,null,null,null,null,null,null,null,null,null,null,null,null,null,null,null,null,null,null,"Sioux Lookout Hydro Inc."]
[null,null,null,null,null,null,null,null,null,null,null,null,null,null,null,null,null,null,null,null,null,null,null,null,null,null,null,"Synergy North Corporation-Kenora Rate Zone"]
[null,null,null,null,null,null,null,null,null,null,null,null,null,null,null,null,null,null,null,null,null,null,null,null,null,null,null,"Synergy North Corporation-Thunder Bay Rate Zone "]
[null,null,null,null,null,null,null,null,null,null,null,null,null,null,null,null,null,null,null,null,null,null,null,null,null,null,null,"Tillsonburg Hydro Inc."]
[null,null,null,null,null,null,null,null,null,null,null,null,null,null,null,null,null,null,null,null,null,null,null,null,null,null,null,"Toronto Hydro-Electric System Limited"]
[null,null,null,null,null,null,null,null,null,null,null,null,null,null,null,null,null,null,null,null,null,null,null,null,null,null,null,"Wasaga Distribution Inc."]
[null,null,null,null,null,null,null,null,null,null,null,null,null,null,null,null,null,null,null,null,null,null,null,null,null,null,null,"Waterloo North Hydro Inc."]
[null,null,null,null,null,null,null,null,null,null,null,null,null,null,null,null,null,null,null,null,null,null,null,null,null,null,null,"Welland Hydro-Electric System Corp."]
[null,null,null,null,null,null,null,null,null,null,null,null,null,null,null,null,null,null,null,null,null,null,null,null,null,null,null,"Wellington North Power Inc."]
[null,null,null,null,null,null,null,null,null,null,null,null,null,null,null,null,null,null,null,null,null,null,null,null,null,null,null,"Westario Power Inc."]

{"sheet":"2021 List","index":1,"n_rows":73,"n_cols":2,"rows_kept":73,"cut":false,"hidden":true,"merged":[]}
["Alectra Utilities Corporation-Brampton Rate Zone","HHPNS717"]
["Alectra Utilities Corporation-Enersource Rate Zone","HHPNS717"]
["Alectra Utilities Corporation-Horizon Utilities Rate Zone","HHPNS717"]
["Alectra Utilities Corporation-PowerStream Rate Zone","HHPNS717"]
["Alectra Utilities Corporation-Guelph Rate Zone","HHPNS717"]
["Algoma Power Inc.","WKBSV849"]
["Atikokan Hydro Inc.","NJYBW716"]
["Bluewater Power Distribution Corporation","GQQHM388"]
["Brantford Power Inc.","SFXZP935"]
["Burlington Hydro Inc.","OARZC118"]
["Canadian Niagara Power Inc.","HJHBH994"]
["Centre Wellington Hydro Ltd.","KQEEH473"]
["Chapleau Public Utilities Corporation","CPEFQ593"]
["Cooperative Hydro Embrun Inc.","QXHJU641"]
["E.L.K. Energy Inc.","AVXSO594"]
["Elexicon Energy Inc.-Whitby Rate Zone","JMNNR431"]
["Elexicon Energy Inc.-Veridian Rate Zone","JMNNR431"]
["Energy+ Inc.","JKBZG525"]
["Entegrus Powerlines Inc.-For Entegrus-Main Rate Zone","YEOQG654"]
["Entegrus Powerlines Inc.-For Former St. Thomas Energy Rate Zone","YEOQG654"]
["ENWIN Utilities Ltd.","PTLUC812"]
["EPCOR Electricity Distribution Ontario Inc.","ADICB565"]
["ERTH Power Corporation - ERTH Power Main Rate Zone","LRECV427"]
["ERTH POWER CORPORATION – GODERICH RATE ZONE","KTCNY552"]
["Espanola Regional Hydro Distribution Corporation","YEPCI143"]
["Essex Powerlines Corporation","GRHTW113"]
["Festival Hydro Inc.","GMGHU415"]
["Fort Frances Power Corporation","YTPWF351"]
["Greater Sudbury Hydro Inc.","YCYKQ642"]
["Grimsby Power Incorporated","ADZFM459"]
["Halton Hills Hydro Inc.","RVWKN794"]
["Hearst Power Distribution Co. Ltd.","KESKM585"]
["Hydro 2000 Inc.","MQFNL784"]
["Hydro Hawkesbury Inc.","FNDHH648"]
["Hydro One Networks Inc.","PTREM828"]
["Hydro One Networks Inc.-Former Haldimand County Hydro Inc. Service Area","PTREM828"]
["Hydro One Networks Inc.-Former Norfolk Power Distribution Inc. Service Area","PTREM828"]
["Hydro One Networks Inc.-Former Woodstock Hydro Services Inc. Service Area","PTREM828"]
["Hydro One Remote Communites Inc.","UBBYF452"]
["Hydro Ottawa Limited","NSBED625"]
["InnPower Corporation","TXKTT167"]
["Kingston Hydro Corporation","ZHKLA874"]
["Kitchener-Wilmot Hydro Inc.","YLJHT264"]
["Lakefront Utilities Inc.","YLCEC559"]
["Lakeland Power Distribution Ltd.","NHKJF259"]
["Lakeland Power Distribution Ltd.-Parry Sound Service Area","NHKJF259"]
["London Hydro Inc.","SLRXO177"]
["Milton Hydro Distribution Inc.","UIFEM157"]
["Newmarket-Tay Power Distribution Ltd.-For Former Midland Power Utility Rate Zone","RUZIU984"]
["Newmarket-Tay Power Distribution Ltd.-For Newmarket-Tay Power Main Rate Zone","RUZIU984"]
["Niagara Peninsula Energy Inc.","KSUYD122"]
["Niagara-on-the-Lake Hydro Inc.","QHCKN852"]
["North Bay Hydro Distribution Limited","FUIJX538"]
["Northern Ontario Wires Inc.","PWKJP953"]
["Oakville Hydro Electricity Distribution Inc.","JEGGW178"]
["Orangeville Hydro Limited","TVKSH414"]
["Orillia Power Distribution Corporation","DUISI693"]
["Oshawa PUC Networks Inc.","PQZCY963"]
["Ottawa River Power Corporation","GTLBW445"]
["Peterborough Distribution Incorporated","XCFPH269"]
["PUC Distribution Inc.","MLWYG784"]
["Renfrew Hydro Inc.","QDKIF127"]
["Rideau St. Lawrence Distribution Inc.","AMZEN437"]
["Sioux Lookout Hydro Inc.","ACEVX242"]
["Synergy North Corporation-Kenora Rate Zone","DSPWZ318"]
["Synergy North Corporation-Thunder Bay Rate Zone ","DSPWZ318"]
["Tillsonburg Hydro Inc.","OLIUU862"]
["Toronto Hydro-Electric System Limited","NIOJF461"]
["Wasaga Distribution Inc.","ZYZFO848"]
["Waterloo North Hydro Inc.","ASEGZ471"]
["Welland Hydro-Electric System Corp.","IOKHC383"]
["Wellington North Power Inc.","SKVKJ649"]
["Westario Power Inc.","TPFNQ593"]

{"sheet":"Sheet1","index":2,"n_rows":11,"n_cols":2,"rows_kept":11,"cut":false,"hidden":true,"merged":[]}
[]
[]
[]
[]
["2. Table of Contents","X"]
["3. RRR Data","X"]
["4. UTRs and Sub-Transmission","X"]
["5. Historical Wholesale","X"]
["6. Current Wholesale","X"]
["7. Forecast Wholesale","X"]
["8. RTSR Rates to Forecast","X"]

{"sheet":"2. Table of Contents","index":3,"n_rows":26,"n_cols":9,"rows_kept":26,"cut":false,"hidden":false,"merged":[]}
[]
[]
[]
[]
[]
[]
[]
[]
[]
[]
[]
[]
[]
[]
[]
[]
[]
[]
[]
[null,null,null,"1. Info",null,null,null,null,"5. Historical Wholesale"]
[]
[null,null,null,"2. Table of Contents",null,null,null,null,"6. Current Wholesale"]
[]
[null,null,null,"3. RRR Data",null,null,null,null,"7. Forecast Wholesale"]
[]
[null,null,null,"4. UTRs and Sub-Transmission",null,null,null,null,"8. RTSR Rates to Forecast"]

{"sheet":"3. RRR Data","index":4,"n_rows":23,"n_cols":52,"rows_kept":23,"cut":false,"hidden":false,"merged":[[12,1,12,8]]}
[null,null,null,null,null,null,null,null,null,null,null,null,null,null,null,null,null,null,null,null,null,null,null,null,null,null,null,null,null,null,null,null,null,null,null,null,null,null,null,null,null,null,null,null,null,null,null,null,null,null,null,1]
[]
[]
[]
[]
[]
[]
[]
[]
[]
[]
[]
[]
[]
[null,"Rate Class","Rate Description","Unit","Rate","Non-Loss Adjusted Metered kWh","Non-Loss Adjusted Metered kW","Applicable \nLoss Factor\neg: (1.0325)","Loss Adjusted Billed kWh"]
[]
[null,"RESIDENTIAL SERVICE CLASSIFICATION","Retail Transmission Rate - Network Service Rate","$/kWh",8.6E-3,292492184.38,0,1.0481,{"$f":"F17*H17","v":306561058.44867802}]
[null,"GENERAL SERVICE LESS THAN 50 KW SERVICE CLASSIFICATION","Retail Transmission Rate - Network Service Rate","$/kWh",8.0000000000000002E-3,88569433.439999998,0,1.0481,92829623.188464001]
[null,"GENERAL SERVICE 50 to 4,999 kW SERVICE CLASSIFICATION","Retail Transmission Rate - Network Service Rate","$/kW",3.2330000000000001,87886230.275351346,214683,1.0481,92113557.951595753,"For this line item, please ensure that the consumption and demand values have been adjusted to account for non-interval/interval customers."]
[null,"GENERAL SERVICE 50 to 4,999 kW SERVICE CLASSIFICATION","Retail Transmission Rate - Network Service Rate - Interval Metered","$/kW",4.0669000000000004,131829140.72464864,322024,1.0481,138170122.39350423,"For this line item, please ensure that the consumption and demand values have been adjusted to account for non-interval/interval customers."]
[null,"UNMETERED SCATTERED LOAD SERVICE CLASSIFICATION","Retail Transmission Rate - Network Service Rate","$/kWh",8.0000000000000002E-3,877917.99,0,1.0481,920145.84531900007]
[null,"SENTINEL LIGHTING SERVICE CLASSIFICATION","Retail Transmission Rate - Network Service Rate","$/kW",2.4510999999999998,203610.79,596.41,1.0481,213404.468999]
[null,"STREET LIGHTING SERVICE CLASSIFICATION","Retail Transmission Rate - Network Service Rate","$/kW",2.4390999999999998,2459994.48,7201.8,1.0481,2578320.2144880001]

{"sheet":"4. UTRs and Sub-Transmission","index":5,"n_rows":76,"n_cols":12,"rows_kept":76,"cut":false,"hidden":false,"merged":[[72,8,72,9],[73,4,73,6],[73,8,73,9],[75,8,75,9],[75,4,75,6],[74,8,74,9],[74,4,74,6],[72,4,72,6],[68,4,68,6],[68,8,68,9],[70,4,70,6],[70,8,70,9],[66,4,66,6],[62,4,62,6],[62,7,62,9],[64,4,64,6],[64,8,64,9],[66,8,66,9],[38,8,38,9],[39,4,39,6],[40,4,40,6],[40,8,40,9],[43,4,43,6],[43,8,43,9],[38,4,38,6],[34,8,34,9],[35,4,35,6],[36,4,36,6],[36,8,36,9],[37,4,37,6],[34,4,34,6],[19,4,19,6],[28,4,28,6],[28,8,28,9],[32,4,32,6],[32,8,32,9],[47,4,47,6],[47,7,47,9],[49,4,49,6],[49,8,49,9],[51,4,51,6],[51,8,51,9],[53,4,53,6],[53,8,53,9],[55,4,55,6],[55,8,55,9],[58,4,58,6],[58,8,58,9]]}
[]
[]
[]
[]
[]
[]
[]
[]
[]
[]
[]
[]
[]
[]
[]
[]
[]
[null,"Uniform Transmission Rates","Unit",null,"2021\nJan to Jun",null,"2021\nJul to Dec",null,"2022\nJan to Mar","2022\nApr to Dec",null,2023]
[]
[null,"Rate Description",null,null,"Rate",null,null,null,"Rate","Rate",null,"Rate"]
[]
[null,"Network Service Rate","kW",null,4.67,null,4.9000000000000004,null,5.13,5.46,null,{"$f":"J22","v":5.46}]
[]
[null,"Line Connection Service Rate","kW",null,0.77,null,0.81,null,0.88,0.88,null,{"$f":"J24","v":0.88}]
[]
[null,"Transformation Connection Service Rate","kW",null,2.5299999999999998,null,2.65,null,2.81,2.81,null,{"$f":"J26","v":2.81}]
[]
[]
[null,"Hydro One Sub-Transmission Rates","Unit",null,2021,null,null,null,2022,null,null,2023]
[]
[]
[]
[null,"Rate Description",null,null,"Rate",null,null,null,"Rate",null,null,"Rate"]
[]
[null,"Network Service Rate","kW",null,3.4777999999999998,null,null,null,4.3472999999999997,null,null,{"$f":"I35","v":4.3472999999999997}]
[]
[null,"Line Connection Service Rate","kW",null,0.81279999999999997,0.80449999999999999,null,null,0.67879999999999996,null,null,{"$f":"I37","v":0.67879999999999996}]
[]
[null,"Transformation Connection Service Rate","kW",null,2.0457999999999998,2.0194000000000001,null,null,2.3267000000000002,null,null,{"$f":"I39","v":2.3267000000000002}]
[]
[null,"Both Line and Transformation Connection Service Rate","kW",null,2.8586,{"$f":"SUM(F37,F39)","v":2.8239000000000001},null,null,3.0055000000000001,null,null,{"$f":"L37+L39","v":3.0055000000000001}]
[]
[]
[null,"If needed, add extra host here. (I)","Unit",null,2021,null,null,null,2022,null,null,2023]
[]
[]
[]
[null,"Rate Description",null,null,"Rate",null,null,"Rate",null,null,null,"Rate"]
[]
[null,"Network Service Rate","kW"]
[]
[null,"Line Connection Service Rate","kW"]
[]
[null,"Transformation Connection Service Rate","kW"]
[]
[null,"Both Line and Transformation Connection Service Rate","kW",null,{"$f":"E54+E52","v":0},null,null,{"$f":"H54+H52","v":0},{"$f":"J54+J52","v":0},null,null,{"$f":"L54+L52","v":0}]
[]
[]
[null,"If needed, add extra host here. (II)","Unit",null,2021,null,null,null,2022,null,null,2023]
[]
[]
[]
[null,"Rate Description",null,null,"Rate",null,null,"Rate",null,null,null,"Rate"]
[]
[null,"Network Service Rate","kW"]
[]
[null,"Line Connection Service Rate","kW"]
[]
[null,"Transformation Connection Service Rate","kW"]
[]
[null,"Both Line and Transformation Connection Service Rate","kW",null,{"$f":"E69+E67","v":0},null,null,{"$f":"H69+H67","v":0},{"$f":"J69+J67","v":0},null,null,{"$f":"L69+L67","v":0}]
[]
[null,null,null,null,"Historical 2021",null,null,null,"Current 2022",null,null,"Forecast 2023"]
[null,"Low Voltage Switchgear Credit (if applicable, enter as a negative value)","$"]
[null,null,null,null,"Historical 2021",null,null,null,"Current 2022",null,null,"Forecast 2023"]
[null,"Low Voltage Switchgear Credit (if applicable, enter as a negative value)","$"]

{"sheet":"5. Historical Wholesale","index":6,"n_rows":117,"n_cols":16,"rows_kept":117,"cut":false,"hidden":false,"merged":[[95,7,95,9],[95,11,95,13],[96,7,96,9],[96,11,96,13],[20,3,20,5],[20,7,20,9],[20,11,20,13],[96,3,96,5],[38,3,38,5],[38,7,38,9],[38,11,38,13],[95,3,95,5],[57,3,57,5],[57,7,57,9],[57,11,57,13],[76,3,76,5],[76,7,76,9],[76,11,76,13]]}
[]
[]
[]
[]
[]
[]
[]
[]
[]
[]
[]
[]
[]
[]
[]
[]
[]
[]
[]
[]
[null,"IESO",null,"Network",null,null,null,"Line Connection",null,null,null,"Transformation Connection",null,null,null,"Total Connection"]
[null,"Month",null,"Units Billed","Rate","Amount",null,"Units Billed","Rate","Amount",null,"Units Billed","Rate","Amount",null,"Amount"]
[]
[null,"January",null,107975,{"$f":"IF(D24<>0,F24/D24,0)","v":4.67},504243.25,null,null,{"$f":"IF(H24<>0,J24/H24,0)","v":0},null,null,null,{"$f":"IF(L24<>0,N24/L24,0)","v":0},null,null,{"$f":"J24+N24","v":0}]
[null,"February",null,108561,4.67,506979.87,null,null,0,null,null,null,0,null,null,0]
[null,"March",null,105073,4.67,490690.91,null,null,0,null,null,null,0,null,null,0]
[null,"April",null,87429,4.67,408293.43,null,null,0,null,null,null,0,null,null,0]
[null,"May",null,64144,4.67,299552.48,null,null,0,null,null,null,0,null,null,0]
[null,"June",null,72483,4.67,338495.61,null,null,0,null,null,null,0,null,null,0]
[null,"July",null,69448.999999999985,4.9000000000000004,340300.1,null,null,0,null,null,null,0,null,null,0]
[null,"August",null,74031.999999999985,4.9000000000000012,362756.8,null,null,0,null,null,null,0,null,null,0]
[null,"September",null,68321,4.9000000000000004,334772.90000000002,null,null,0,null,null,null,0,null,null,0]
[null,"October",null,73308.999999999985,4.9000000000000004,359214.1,null,null,0,null,null,null,0,null,null,0]
[null,"November",null,95200,4.9000000000000004,466480,null,null,0,null,null,null,0,null,null,0]
[null,"December",null,106596,4.9000000000000004,522320.4,null,null,0,null,null,null,0,null,null,0]
[]
[null,"Total",null,{"$f":"SUM(D24:D35)","v":1032572},{"$f":"IF(D37<>0,F37/D37,0)","v":4.778455981762046},{"$f":"SUM(F24:F35)","v":4934099.8499999996},null,{"$f":"SUM(H24:H35)","v":0},{"$f":"IF(H37<>0,J37/H37,0)","v":0},{"$f":"SUM(J24:J35)","v":0},null,{"$f":"SUM(L24:L35)","v":0},{"$f":"IF(L37<>0,N37/L37,0)","v":0},{"$f":"SUM(N24:N35)","v":0},null,{"$f":"SUM(P24:P35)","v":0}]
[]
[null,"Hydro One",null,"Network",null,null,null,"Line Connection",null,null,null,"Transformation Connection",null,null,null,"Total Connection"]
[]
[null,"Month",null,"Units Billed","Rate","Amount",null,"Units Billed","Rate","Amount",null,"Units Billed","Rate","Amount",null,"Amount"]
[]
[null,"January",null,null,{"$f":"ROUND(IF(D43<>0,F43/D43,0),4)","v":0},null,null,null,{"$f":"ROUND(IF(H43<>0,J43/H43,0),4)","v":0},null,null,null,{"$f":"ROUND(IF(L43<>0,N43/L43,0),4)","v":0},null,null,{"$f":"J43+N43","v":0}]
[null,"February",null,null,{"$f":"ROUND(IF(D44<>0,F44/D44,0),4)","v":0},null,null,null,{"$f":"ROUND(IF(H44<>0,J44/H44,0),4)","v":0},null,null,null,{"$f":"ROUND(IF(L44<>0,N44/L44,0),4)","v":0},null,null,0]
[null,"March",null,null,0,null,null,null,0,null,null,null,0,null,null,0]
[null,"April",null,null,0,null,null,null,0,null,null,null,0,null,null,0]
[null,"May",null,null,0,null,null,null,0,null,null,null,0,null,null,0]
[null,"June",null,null,0,null,null,null,0,null,null,null,0,null,null,0]
[null,"July",null,null,0,null,null,null,0,null,null,null,0,null,null,0]
[null,"August",null,null,0,null,null,null,0,null,null,null,0,null,null,0]
[null,"September",null,null,0,null,null,null,0,null,null,null,0,null,null,0]
[null,"October",null,null,0,null,null,null,0,null,null,null,0,null,null,0]
[null,"November",null,null,0,null,null,null,0,null,null,null,0,null,null,0]
[null,"December",null,null,0,null,null,null,0,null,null,null,0,null,null,0]
[]
[null,"Total",null,{"$f":"SUM(D43:D54)","v":0},{"$f":"IF(D56<>0,F56/D56,0)","v":0},{"$f":"SUM(F43:F54)","v":0},null,{"$f":"SUM(H43:H54)","v":0},{"$f":"IF(H56<>0,J56/H56,0)","v":0},{"$f":"SUM(J43:J54)","v":0},null,{"$f":"SUM(L43:L54)","v":0},{"$f":"IF(L56<>0,N56/L56,0)","v":0},{"$f":"SUM(N43:N54)","v":0},null,{"$f":"SUM(P43:P54)","v":0}]
[]
[null,"Add Extra Host Here (I)",null,"Network",null,null,null,"Line Connection",null,null,null,"Transformation Connection",null,null,null,"Total Connection"]
[null,"(if needed)"]
[null,"Month",null,"Units Billed","Rate","Amount",null,"Units Billed","Rate","Amount",null,"Units Billed","Rate","Amount",null,"Amount"]
[]
[null,"January",null,null,{"$f":"IF(D62<>0,F62/D62,0)","v":0},null,null,null,{"$f":"IF(H62<>0,J62/H62,0)","v":0},null,null,null,{"$f":"IF(L62<>0,N62/L62,0)","v":0},null,null,{"$f":"J62+N62","v":0}]
[null,"February",null,null,0,null,null,null,0,null,null,null,0,null,null,0]
[null,"March",null,null,0,null,null,null,0,null,null,null,0,null,null,0]
[null,"April",null,null,0,null,null,null,0,null,null,null,0,null,null,0]
[null,"May",null,null,0,null,null,null,0,null,null,null,0,null,null,0]
[null,"June",null,null,0,null,null,null,0,null,null,null,0,null,null,0]
[null,"July",null,null,0,null,null,null,0,null,null,null,0,null,null,0]
[null,"August",null,null,0,null,null,null,0,null,null,null,0,null,null,0]
[null,"September",null,null,0,null,null,null,0,null,null,null,0,null,null,0]
[null,"October",null,null,0,null,null,null,0,null,null,null,0,null,null,0]
[null,"November",null,null,0,null,null,null,0,null,null,null,0,null,null,0]
[null,"December",null,null,0,null,null,null,0,null,null,null,0,null,null,0]
[]
[null,"Total",null,{"$f":"SUM(D62:D73)","v":0},{"$f":"IF(D75<>0,F75/D75,0)","v":0},{"$f":"SUM(F62:F73)","v":0},null,{"$f":"SUM(H62:H73)","v":0},{"$f":"IF(H75<>0,J75/H75,0)","v":0},{"$f":"SUM(J62:J73)","v":0},null,{"$f":"SUM(L62:L73)","v":0},{"$f":"IF(L75<>0,N75/L75,0)","v":0},{"$f":"SUM(N62:N73)","v":0},null,{"$f":"SUM(P62:P73)","v":0}]
[]
[null,"Add Extra Host Here (II)",null,"Network",null,null,null,"Line Connection",null,null,null,"Transformation Connection",null,null,null,"Total Connection"]
[null,"(if needed)"]
[null,"Month",null,"Units Billed","Rate","Amount",null,"Units Billed","Rate","Amount",null,"Units Billed","Rate","Amount",null,"Amount"]
[]
[null,"January",null,null,{"$f":"IF(D81<>0,F81/D81,0)","v":0},null,null,null,{"$f":"IF(H81<>0,J81/H81,0)","v":0},null,null,null,{"$f":"IF(L81<>0,N81/L81,0)","v":0},null,null,{"$f":"J81+N81","v":0}]
[null,"February",null,null,0,null,null,null,0,null,null,null,0,null,null,0]
[null,"March",null,null,0,null,null,null,0,null,null,null,0,null,null,0]
[null,"April",null,null,0,null,null,null,0,null,null,null,0,null,null,0]
[null,"May",null,null,0,null,null,null,0,null,null,null,0,null,null,0]
[null,"June",null,null,0,null,null,null,0,null,null,null,0,null,null,0]
[null,"July",null,null,0,null,null,null,0,null,null,null,0,null,null,0]
[null,"August",null,null,0,null,null,null,0,null,null,null,0,null,null,0]
[null,"September",null,null,0,null,null,null,0,null,null,null,0,null,null,0]
[null,"October",null,null,0,null,null,null,0,null,null,null,0,null,null,0]
[null,"November",null,null,0,null,null,null,0,null,null,null,0,null,null,0]
[null,"December",null,null,0,null,null,null,0,null,null,null,0,null,null,0]
[]
[null,"Total",null,{"$f":"SUM(D81:D92)","v":0},{"$f":"IF(D94<>0,F94/D94,0)","v":0},{"$f":"SUM(F81:F92)","v":0},null,{"$f":"SUM(H81:H92)","v":0},{"$f":"IF(H94<>0,J94/H94,0)","v":0},{"$f":"SUM(J81:J92)","v":0},null,{"$f":"SUM(L81:L92)","v":0},{"$f":"IF(L94<>0,N94/L94,0)","v":0},{"$f":"SUM(N81:N92)","v":0},null,{"$f":"SUM(P81:P92)","v":0}]
[]
[null,"Total",null,"Network",null,null,null,"Line Connection",null,null,null,"Transformation Connection",null,null,null,"Total Connection"]
[]
[null,"Month",null,"Units Billed","Rate","Amount",null,"Units Billed","Rate","Amount",null,"Units Billed","Rate","Amount",null,"Amount"]
[]
[null,"January",null,{"$f":"D24+D43+D62+D81","v":107975},{"$f":"IF(D100<>0,F100/D100,0)","v":4.67},{"$f":"F24+F43+F62+F81","v":504243.25},null,{"$f":"H24+H43+H62+H81","v":0},{"$f":"IF(H100<>0,J100/H100,0)","v":0},{"$f":"J24+J43+J62+J81","v":0},null,{"$f":"L24+L43+L62+L81","v":0},{"$f":"IF(L100<>0,N100/L100,0)","v":0},{"$f":"N24+N43+N62+N81","v":0},null,{"$f":"J100+N100","v":0}]
[null,"February",null,{"$f":"D25+D44+D63+D82","v":108561},4.67,{"$f":"F25+F44+F63+F82","v":506979.87},null,{"$f":"H25+H44+H63+H82","v":0},0,{"$f":"J25+J44+J63+J82","v":0},null,{"$f":"L25+L44+L63+L82","v":0},0,{"$f":"N25+N44+N63+N82","v":0},null,0]
[null,"March",null,105073,4.67,490690.91,null,0,0,0,null,0,0,0,null,0]
[null,"April",null,87429,4.67,408293.43,null,0,0,0,null,0,0,0,null,0]
[null,"May",null,64144,4.67,299552.48,null,0,0,0,null,0,0,0,null,0]
[null,"June",null,72483,4.67,338495.61,null,0,0,0,null,0,0,0,null,0]
[null,"July",null,69448.999999999985,4.9000000000000004,340300.1,null,0,0,0,null,0,0,0,null,0]
[null,"August",null,74031.999999999985,4.9000000000000012,362756.8,null,0,0,0,null,0,0,0,null,0]
[null,"September",null,68321,4.9000000000000004,334772.90000000002,null,0,0,0,null,0,0,0,null,0]
[null,"October",null,73308.999999999985,4.9000000000000004,359214.1,null,0,0,0,null,0,0,0,null,0]
[null,"November",null,95200,4.9000000000000004,466480,null,0,0,0,null,0,0,0,null,0]
[null,"December",null,106596,4.9000000000000004,522320.4,null,0,0,0,null,0,0,0,null,0]
[]
[null,"Total",null,{"$f":"SUM(D100:D111)","v":1032572},{"$f":"IF(D113<>0,F113/D113,0)","v":4.778455981762046},{"$f":"SUM(F100:F111)","v":4934099.8499999996},null,{"$f":"SUM(H100:H111)","v":0},{"$f":"IF(H113<>0,J113/H113,0)","v":0},{"$f":"SUM(J100:J111)","v":0},null,{"$f":"SUM(L100:L111)","v":0},{"$f":"IF(L113<>0,N113/L113,0)","v":0},{"$f":"SUM(N100:N111)","v":0},null,{"$f":"SUM(P100:P111)","v":0}]
[]
[null,null,null,null,null,null,null,null,null,null,null,null,null,"Low Voltage Switchgear Credit (if applicable)",null,{"$f":"'4. UTRs and Sub-Transmission'!E76","v":0}]
[]
[null,null,null,null,null,null,null,null,null,null,null,null,null,"Total including deduction for Low Voltage Switchgear Credit",null,{"$f":"P113+P115","v":0}]

{"sheet":"6. Current Wholesale","index":7,"n_rows":117,"n_cols":16,"rows_kept":117,"cut":false,"hidden":false,"merged":[[12,1,12,11],[19,3,19,5],[19,7,19,9],[19,11,19,13],[38,3,38,5],[38,7,38,9],[38,11,38,13],[96,7,96,9],[96,11,96,13],[20,3,20,5],[20,7,20,9],[20,11,20,13],[96,3,96,5],[95,3,95,5],[95,7,95,9],[95,11,95,13],[57,3,57,5],[57,7,57,9],[57,11,57,13],[76,3,76,5],[76,7,76,9],[76,11,76,13]]}
[]
[]
[]
[]
[]
[]
[]
[]
[]
[]
[]
[]
[null,"The purpose of this sheet is to calculate the expected billing when current 2022 Uniform Transmission Rates and Hydro One Sub-transmission Rates are applied against historical 2021 transmission units."]
[]
[]
[]
[]
[]
[]
[null,"IESO",null,"Network",null,null,null,"Line Connection",null,null,null,"Transformation Connection",null,null,null,"Total Connection"]
[]
[null,"Month",null,"Units Billed","Rate","Amount",null,"Units Billed","Rate","Amount",null,"Units Billed","Rate","Amount",null,"Amount"]
[]
[null,"January",null,{"$f":"'5. Historical Wholesale'!D24","v":107975},{"$f":"'4. UTRs and Sub-Transmission'!I22","v":5.13},{"$f":"D24*E24","v":553911.75},null,{"$f":"'5. Historical Wholesale'!H24","v":0},{"$f":"'4. UTRs and Sub-Transmission'!I24","v":0.88},{"$f":"H24*I24","v":0},null,{"$f":"'5. Historical Wholesale'!L24","v":0},{"$f":"'4. UTRs and Sub-Transmission'!I26","v":2.81},{"$f":"L24*M24","v":0},null,{"$f":"J24+N24","v":0}]
[null,"February",null,{"$f":"'5. Historical Wholesale'!D25","v":108561},{"$f":"E24","v":5.13},{"$f":"D25*E25","v":556917.92999999993},null,{"$f":"'5. Historical Wholesale'!H25","v":0},{"$f":"I24","v":0.88},{"$f":"H25*I25","v":0},null,{"$f":"'5. Historical Wholesale'!L25","v":0},{"$f":"M24","v":2.81},{"$f":"L25*M25","v":0},null,0]
[null,"March",null,{"$f":"'5. Historical Wholesale'!D26","v":105073},{"$f":"E25","v":5.13},539024.49,null,{"$f":"'5. Historical Wholesale'!H26","v":0},{"$f":"I25","v":0.88},0,null,{"$f":"'5. Historical Wholesale'!L26","v":0},{"$f":"M25","v":2.81},0,null,0]
[null,"April",null,{"$f":"'5. Historical Wholesale'!D27","v":87429},{"$f":"'4. UTRs and Sub-Transmission'!J22","v":5.46},477362.34,null,{"$f":"'5. Historical Wholesale'!H27","v":0},{"$f":"'4. UTRs and Sub-Transmission'!J24","v":0.88},0,null,{"$f":"'5. Historical Wholesale'!L27","v":0},{"$f":"'4. UTRs and Sub-Transmission'!I26","v":2.81},0,null,0]
[null,"May",null,{"$f":"'5. Historical Wholesale'!D28","v":64144},5.46,350226.24,null,{"$f":"'5. Historical Wholesale'!H28","v":0},0.88,0,null,{"$f":"'5. Historical Wholesale'!L28","v":0},{"$f":"M27","v":2.81},0,null,0]
[null,"June",null,{"$f":"'5. Historical Wholesale'!D29","v":72483},5.46,395757.18,null,{"$f":"'5. Historical Wholesale'!H29","v":0},0.88,0,null,{"$f":"'5. Historical Wholesale'!L29","v":0},2.81,0,null,0]
[null,"July",null,{"$f":"'5. Historical Wholesale'!D30","v":69448.999999999985},5.46,379191.53999999992,null,{"$f":"'5. Historical Wholesale'!H30","v":0},0.88,0,null,{"$f":"'5. Historical Wholesale'!L30","v":0},2.81,0,null,0]
[null,"August",null,{"$f":"'5. Historical Wholesale'!D31","v":74031.999999999985},5.46,404214.71999999991,null,{"$f":"'5. Historical Wholesale'!H31","v":0},0.88,0,null,{"$f":"'5. Historical Wholesale'!L31","v":0},2.81,0,null,0]
[null,"September",null,{"$f":"'5. Historical Wholesale'!D32","v":68321},5.46,373032.66,null,{"$f":"'5. Historical Wholesale'!H32","v":0},0.88,0,null,{"$f":"'5. Historical Wholesale'!L32","v":0},2.81,0,null,0]
[null,"October",null,{"$f":"'5. Historical Wholesale'!D33","v":73308.999999999985},5.46,400267.1399999999,null,{"$f":"'5. Historical Wholesale'!H33","v":0},0.88,0,null,{"$f":"'5. Historical Wholesale'!L33","v":0},2.81,0,null,0]
[null,"November",null,{"$f":"'5. Historical Wholesale'!D34","v":95200},5.46,519792,null,{"$f":"'5. Historical Wholesale'!H34","v":0},0.88,0,null,{"$f":"'5. Historical Wholesale'!L34","v":0},2.81,0,null,0]
[null,"December",null,{"$f":"'5. Historical Wholesale'!D35","v":106596},5.46,582014.16,null,{"$f":"'5. Historical Wholesale'!H35","v":0},0.88,0,null,{"$f":"'5. Historical Wholesale'!L35","v":0},2.81,0,null,0]
[]
[null,"Total",null,{"$f":"SUM(D24:D35)","v":1032572},{"$f":"IF(D37<>0,F37/D37,0)","v":5.3572168817283448},{"$f":"SUM(F24:F35)","v":5531712.1500000004},null,{"$f":"SUM(H24:H35)","v":0},{"$f":"IF(H37<>0,J37/H37,0)","v":0},{"$f":"SUM(J24:J35)","v":0},null,{"$f":"SUM(L24:L35)","v":0},{"$f":"IF(L37<>0,N37/L37,0)","v":0},{"$f":"SUM(N24:N35)","v":0},null,{"$f":"SUM(P24:P35)","v":0}]
[]
[null,"Hydro One",null,"Network",null,null,null,"Line Connection",null,null,null,"Transformation Connection",null,null,null,"Total Connection"]
[]
[null,"Month",null,"Units Billed","Rate","Amount",null,"Units Billed","Rate","Amount",null,"Units Billed","Rate","Amount",null,"Amount"]
[]
[null,"January",null,{"$f":"'5. Historical Wholesale'!D43","v":0},{"$f":"'4. UTRs and Sub-Transmission'!I35","v":4.3472999999999997},{"$f":"D43*E43","v":0},null,{"$f":"'5. Historical Wholesale'!H43","v":0},{"$f":"'4. UTRs and Sub-Transmission'!I37","v":0.67879999999999996},{"$f":"H43*I43","v":0},null,{"$f":"'5. Historical Wholesale'!L43","v":0},{"$f":"'4. UTRs and Sub-Transmission'!I39","v":2.3267000000000002},{"$f":"L43*M43","v":0},null,{"$f":"J43+N43","v":0}]
[null,"February",null,{"$f":"'5. Historical Wholesale'!D44","v":0},{"$f":"E43","v":4.3472999999999997},{"$f":"D44*E44","v":0},null,{"$f":"'5. Historical Wholesale'!H44","v":0},{"$f":"I43","v":0.67879999999999996},{"$f":"H44*I44","v":0},null,{"$f":"'5. Historical Wholesale'!L44","v":0},{"$f":"M43","v":2.3267000000000002},{"$f":"L44*M44","v":0},null,0]
[null,"March",null,{"$f":"'5. Historical Wholesale'!D45","v":0},4.3472999999999997,0,null,{"$f":"'5. Historical Wholesale'!H45","v":0},0.67879999999999996,0,null,{"$f":"'5. Historical Wholesale'!L45","v":0},{"$f":"M44","v":2.3267000000000002},0,null,0]
[null,"April",null,{"$f":"'5. Historical Wholesale'!D46","v":0},4.3472999999999997,0,null,{"$f":"'5. Historical Wholesale'!H46","v":0},0.67879999999999996,0,null,{"$f":"'5. Historical Wholesale'!L46","v":0},{"$f":"M45","v":2.3267000000000002},0,null,0]
[null,"May",null,{"$f":"'5. Historical Wholesale'!D47","v":0},4.3472999999999997,0,null,{"$f":"'5. Historical Wholesale'!H47","v":0},0.67879999999999996,0,null,{"$f":"'5. Historical Wholesale'!L47","v":0},2.3267000000000002,0,null,0]
[null,"June",null,{"$f":"'5. Historical Wholesale'!D48","v":0},4.3472999999999997,0,null,{"$f":"'5. Historical Wholesale'!H48","v":0},0.67879999999999996,0,null,{"$f":"'5. Historical Wholesale'!L48","v":0},2.3267000000000002,0,null,0]
[null,"July",null,{"$f":"'5. Historical Wholesale'!D49","v":0},4.3472999999999997,0,null,{"$f":"'5. Historical Wholesale'!H49","v":0},0.67879999999999996,0,null,{"$f":"'5. Historical Wholesale'!L49","v":0},2.3267000000000002,0,null,0]
[null,"August",null,{"$f":"'5. Historical Wholesale'!D50","v":0},4.3472999999999997,0,null,{"$f":"'5. Historical Wholesale'!H50","v":0},0.67879999999999996,0,null,{"$f":"'5. Historical Wholesale'!L50","v":0},2.3267000000000002,0,null,0]
[null,"September",null,{"$f":"'5. Historical Wholesale'!D51","v":0},4.3472999999999997,0,null,{"$f":"'5. Historical Wholesale'!H51","v":0},0.67879999999999996,0,null,{"$f":"'5. Historical Wholesale'!L51","v":0},2.3267000000000002,0,null,0]
[null,"October",null,{"$f":"'5. Historical Wholesale'!D52","v":0},4.3472999999999997,0,null,{"$f":"'5. Historical Wholesale'!H52","v":0},0.67879999999999996,0,null,{"$f":"'5. Historical Wholesale'!L52","v":0},2.3267000000000002,0,null,0]
[null,"November",null,{"$f":"'5. Historical Wholesale'!D53","v":0},4.3472999999999997,0,null,{"$f":"'5. Historical Wholesale'!H53","v":0},0.67879999999999996,0,null,{"$f":"'5. Historical Wholesale'!L53","v":0},2.3267000000000002,0,null,0]
[null,"December",null,{"$f":"'5. Historical Wholesale'!D54","v":0},4.3472999999999997,0,null,{"$f":"'5. Historical Wholesale'!H54","v":0},0.67879999999999996,0,null,{"$f":"'5. Historical Wholesale'!L54","v":0},2.3267000000000002,0,null,0]
[]
[null,"Total",null,{"$f":"SUM(D43:D54)","v":0},{"$f":"IF(D56<>0,F56/D56,0)","v":0},{"$f":"SUM(F43:F54)","v":0},null,{"$f":"SUM(H43:H54)","v":0},{"$f":"IF(H56<>0,J56/H56,0)","v":0},{"$f":"SUM(J43:J54)","v":0},null,{"$f":"SUM(L43:L54)","v":0},{"$f":"IF(L56<>0,N56/L56,0)","v":0},{"$f":"SUM(N43:N54)","v":0},null,{"$f":"SUM(P43:P54)","v":0}]
[]
[null,{"$f":"'5. Historical Wholesale'!B58","v":"Add Extra Host Here (I)"},null,"Network",null,null,null,"Line Connection",null,null,null,"Transformation Connection",null,null,null,"Total Connection"]
[]
[null,"Month",null,"Units Billed","Rate","Amount",null,"Units Billed","Rate","Amount",null,"Units Billed","Rate","Amount",null,"Amount"]
[]
[null,"January",null,{"$f":"'5. Historical Wholesale'!D62","v":0},{"$f":"'4. UTRs and Sub-Transmission'!H52","v":0},{"$f":"D62*E62","v":0},null,{"$f":"'5. Historical Wholesale'!H62","v":0},{"$f":"'4. UTRs and Sub-Transmission'!H54","v":0},{"$f":"H62*I62","v":0},null,{"$f":"'5. Historical Wholesale'!L62","v":0},{"$f":"'4. UTRs and Sub-Transmission'!H56","v":0},{"$f":"L62*M62","v":0},null,{"$f":"J62+N62","v":0}]
[null,"February",null,{"$f":"'5. Historical Wholesale'!D63","v":0},{"$f":"E62","v":0},{"$f":"D63*E63","v":0},null,{"$f":"'5. Historical Wholesale'!H63","v":0},{"$f":"I62","v":0},{"$f":"H63*I63","v":0},null,{"$f":"'5. Historical Wholesale'!L63","v":0},{"$f":"M62","v":0},{"$f":"L63*M63","v":0},null,0]
[null,"March",null,{"$f":"'5. Historical Wholesale'!D64","v":0},{"$f":"E63","v":0},0,null,{"$f":"'5. Historical Wholesale'!H64","v":0},{"$f":"I63","v":0},0,null,{"$f":"'5. Historical Wholesale'!L64","v":0},{"$f":"M63","v":0},0,null,0]
[null,"April",null,{"$f":"'5. Historical Wholesale'!D65","v":0},0,0,null,{"$f":"'5. Historical Wholesale'!H65","v":0},0,0,null,{"$f":"'5. Historical Wholesale'!L65","v":0},{"$f":"M64","v":0},0,null,0]
[null,"May",null,{"$f":"'5. Historical Wholesale'!D66","v":0},0,0,null,{"$f":"'5. Historical Wholesale'!H66","v":0},0,0,null,{"$f":"'5. Historical Wholesale'!L66","v":0},0,0,null,0]
[null,"June",null,{"$f":"'5. Historical Wholesale'!D67","v":0},0,0,null,{"$f":"'5. Historical Wholesale'!H67","v":0},0,0,null,{"$f":"'5. Historical Wholesale'!L67","v":0},0,0,null,0]
[null,"July",null,{"$f":"'5. Historical Wholesale'!D68","v":0},0,0,null,{"$f":"'5. Historical Wholesale'!H68","v":0},0,0,null,{"$f":"'5. Historical Wholesale'!L68","v":0},0,0,null,0]
[null,"August",null,{"$f":"'5. Historical Wholesale'!D69","v":0},0,0,null,{"$f":"'5. Historical Wholesale'!H69","v":0},0,0,null,{"$f":"'5. Historical Wholesale'!L69","v":0},0,0,null,0]
[null,"September",null,{"$f":"'5. Historical Wholesale'!D70","v":0},0,0,null,{"$f":"'5. Historical Wholesale'!H70","v":0},0,0,null,{"$f":"'5. Historical Wholesale'!L70","v":0},0,0,null,0]
[null,"October",null,{"$f":"'5. Historical Wholesale'!D71","v":0},0,0,null,{"$f":"'5. Historical Wholesale'!H71","v":0},0,0,null,{"$f":"'5. Historical Wholesale'!L71","v":0},0,0,null,0]
[null,"November",null,{"$f":"'5. Historical Wholesale'!D72","v":0},0,0,null,{"$f":"'5. Historical Wholesale'!H72","v":0},0,0,null,{"$f":"'5. Historical Wholesale'!L72","v":0},0,0,null,0]
[null,"December",null,{"$f":"'5. Historical Wholesale'!D73","v":0},0,0,null,{"$f":"'5. Historical Wholesale'!H73","v":0},0,0,null,{"$f":"'5. Historical Wholesale'!L73","v":0},0,0,null,0]
[]
[null,"Total",null,{"$f":"SUM(D62:D73)","v":0},{"$f":"IF(D75<>0,F75/D75,0)","v":0},{"$f":"SUM(F62:F73)","v":0},null,{"$f":"SUM(H62:H73)","v":0},{"$f":"IF(H75<>0,J75/H75,0)","v":0},{"$f":"SUM(J62:J73)","v":0},null,{"$f":"SUM(L62:L73)","v":0},{"$f":"IF(L75<>0,N75/L75,0)","v":0},{"$f":"SUM(N62:N73)","v":0},null,{"$f":"SUM(P62:P73)","v":0}]
[]
[null,{"$f":"'5. Historical Wholesale'!B77","v":"Add Extra Host Here (II)"},null,"Network",null,null,null,"Line Connection",null,null,null,"Transformation Connection",null,null,null,"Total Connection"]
[]
[null,"Month",null,"Units Billed","Rate","Amount",null,"Units Billed","Rate","Amount",null,"Units Billed","Rate","Amount",null,"Amount"]
[]
[null,"January",null,{"$f":"'5. Historical Wholesale'!D81","v":0},{"$f":"'4. UTRs and Sub-Transmission'!H67","v":0},{"$f":"D81*E81","v":0},null,{"$f":"'5. Historical Wholesale'!H81","v":0},{"$f":"'4. UTRs and Sub-Transmission'!H69","v":0},{"$f":"H81*I81","v":0},null,{"$f":"'5. Historical Wholesale'!L81","v":0},{"$f":"'4. UTRs and Sub-Transmission'!H71","v":0},{"$f":"L81*M81","v":0},null,{"$f":"J81+N81","v":0}]
[null,"February",null,{"$f":"'5. Historical Wholesale'!D82","v":0},{"$f":"E81","v":0},{"$f":"D82*E82","v":0},null,{"$f":"'5. Historical Wholesale'!H82","v":0},{"$f":"I81","v":0},{"$f":"H82*I82","v":0},null,{"$f":"'5. Historical Wholesale'!L82","v":0},{"$f":"M81","v":0},{"$f":"L82*M82","v":0},null,0]
[null,"March",null,{"$f":"'5. Historical Wholesale'!D83","v":0},{"$f":"E82","v":0},0,null,{"$f":"'5. Historical Wholesale'!H83","v":0},{"$f":"I82","v":0},0,null,{"$f":"'5. Historical Wholesale'!L83","v":0},{"$f":"M82","v":0},0,null,0]
[null,"April",null,{"$f":"'5. Historical Wholesale'!D84","v":0},0,0,null,{"$f":"'5. Historical Wholesale'!H84","v":0},0,0,null,{"$f":"'5. Historical Wholesale'!L84","v":0},{"$f":"M83","v":0},0,null,0]
[null,"May",null,{"$f":"'5. Historical Wholesale'!D85","v":0},0,0,null,{"$f":"'5. Historical Wholesale'!H85","v":0},0,0,null,{"$f":"'5. Historical Wholesale'!L85","v":0},0,0,null,0]
[null,"June",null,{"$f":"'5. Historical Wholesale'!D86","v":0},0,0,null,{"$f":"'5. Historical Wholesale'!H86","v":0},0,0,null,{"$f":"'5. Historical Wholesale'!L86","v":0},0,0,null,0]
[null,"July",null,{"$f":"'5. Historical Wholesale'!D87","v":0},0,0,null,{"$f":"'5. Historical Wholesale'!H87","v":0},0,0,null,{"$f":"'5. Historical Wholesale'!L87","v":0},0,0,null,0]
[null,"August",null,{"$f":"'5. Historical Wholesale'!D88","v":0},0,0,null,{"$f":"'5. Historical Wholesale'!H88","v":0},0,0,null,{"$f":"'5. Historical Wholesale'!L88","v":0},0,0,null,0]
[null,"September",null,{"$f":"'5. Historical Wholesale'!D89","v":0},0,0,null,{"$f":"'5. Historical Wholesale'!H89","v":0},0,0,null,{"$f":"'5. Historical Wholesale'!L89","v":0},0,0,null,0]
[null,"October",null,{"$f":"'5. Historical Wholesale'!D90","v":0},0,0,null,{"$f":"'5. Historical Wholesale'!H90","v":0},0,0,null,{"$f":"'5. Historical Wholesale'!L90","v":0},0,0,null,0]
[null,"November",null,{"$f":"'5. Historical Wholesale'!D91","v":0},0,0,null,{"$f":"'5. Historical Wholesale'!H91","v":0},0,0,null,{"$f":"'5. Historical Wholesale'!L91","v":0},0,0,null,0]
[null,"December",null,{"$f":"'5. Historical Wholesale'!D92","v":0},0,0,null,{"$f":"'5. Historical Wholesale'!H92","v":0},0,0,null,{"$f":"'5. Historical Wholesale'!L92","v":0},0,0,null,0]
[]
[null,"Total",null,{"$f":"SUM(D81:D92)","v":0},{"$f":"IF(D94<>0,F94/D94,0)","v":0},{"$f":"SUM(F81:F92)","v":0},null,{"$f":"SUM(H81:H92)","v":0},{"$f":"IF(H94<>0,J94/H94,0)","v":0},{"$f":"SUM(J81:J92)","v":0},null,{"$f":"SUM(L81:L92)","v":0},{"$f":"IF(L94<>0,N94/L94,0)","v":0},{"$f":"SUM(N81:N92)","v":0},null,{"$f":"SUM(P81:P92)","v":0}]
[]
[null,"Total",null,"Network",null,null,null,"Line Connection",null,null,null,"Transformation Connection",null,null,null,"Total Connection"]
[]
[null,"Month",null,"Units Billed","Rate","Amount",null,"Units Billed","Rate","Amount",null,"Units Billed","Rate","Amount",null,"Amount"]
[]
[null,"January",null,{"$f":"D24+D43+D62+D81","v":107975},{"$f":"IF(D100<>0,F100/D100,0)","v":5.13},{"$f":"F24+F43+F62+F81","v":553911.75},null,{"$f":"H24+H43+H62+H81","v":0},{"$f":"IF(H100<>0,J100/H100,0)","v":0},{"$f":"J24+J43+J62+J81","v":0},null,{"$f":"L24+L43+L62+L81","v":0},{"$f":"IF(L100<>0,N100/L100,0)","v":0},{"$f":"N24+N43+N62+N81","v":0},null,{"$f":"J100+N100","v":0}]
[null,"February",null,{"$f":"D25+D44+D63+D82","v":108561},5.129999999999999,{"$f":"F25+F44+F63+F82","v":556917.92999999993},null,{"$f":"H25+H44+H63+H82","v":0},0,{"$f":"J25+J44+J63+J82","v":0},null,{"$f":"L25+L44+L63+L82","v":0},0,{"$f":"N25+N44+N63+N82","v":0},null,0]
[null,"March",null,105073,5.13,539024.49,null,0,0,0,null,0,0,0,null,0]
[null,"April",null,87429,5.46,477362.34,null,0,0,0,null,0,0,0,null,0]
[null,"May",null,64144,5.46,350226.24,null,0,0,0,null,0,0,0,null,0]
[null,"June",null,72483,5.46,395757.18,null,0,0,0,null,0,0,0,null,0]
[null,"July",null,69448.999999999985,5.46,379191.53999999992,null,0,0,0,null,0,0,0,null,0]
[null,"August",null,74031.999999999985,5.46,404214.71999999991,null,0,0,0,null,0,0,0,null,0]
[null,"September",null,68321,5.46,373032.66,null,0,0,0,null,0,0,0,null,0]
[null,"October",null,73308.999999999985,5.46,400267.1399999999,null,0,0,0,null,0,0,0,null,0]
[null,"November",null,95200,5.46,519792,null,0,0,0,null,0,0,0,null,0]
[null,"December",null,106596,5.46,582014.16,null,0,0,0,null,0,0,0,null,0]
[]
[null,"Total",null,{"$f":"SUM(D100:D111)","v":1032572},{"$f":"IF(D113<>0,F113/D113,0)","v":5.3572168817283448},{"$f":"SUM(F100:F111)","v":5531712.1500000004},null,{"$f":"SUM(H100:H111)","v":0},{"$f":"IF(H113<>0,J113/H113,0)","v":0},{"$f":"SUM(J100:J111)","v":0},null,{"$f":"SUM(L100:L111)","v":0},{"$f":"IF(L113<>0,N113/L113,0)","v":0},{"$f":"SUM(N100:N111)","v":0},null,{"$f":"SUM(P100:P111)","v":0}]
[]
[null,null,null,null,null,null,null,null,null,null,null,null,null,"Low Voltage Switchgear Credit (if applicable)",null,{"$f":"'4. UTRs and Sub-Transmission'!J76","v":0}]
[]
[null,null,null,null,null,null,null,null,null,null,null,null,null,"Total including deduction for Low Voltage Switchgear Credit",null,{"$f":"P113+P115","v":0}]

{"sheet":"7. Forecast Wholesale","index":8,"n_rows":117,"n_cols":16,"rows_kept":117,"cut":false,"hidden":false,"merged":[[12,1,12,12],[19,3,19,5],[19,7,19,9],[19,11,19,13],[38,3,38,5],[38,7,38,9],[38,11,38,13],[96,7,96,9],[96,11,96,13],[20,3,20,5],[20,7,20,9],[20,11,20,13],[96,3,96,5],[95,3,95,5],[95,7,95,9],[95,11,95,13],[57,3,57,5],[57,7,57,9],[57,11,57,13],[76,3,76,5],[76,7,76,9],[76,11,76,13]]}
[]
[]
[]
[]
[]
[]
[]
[]
[]
[]
[]
[]
[null,"The purpose of this sheet is to calculate the expected billing when forecasted 2023 Uniform Transmission Rates and Hydro One Sub-transmission Rates are applied against historical 2021 transmission units."]
[]
[]
[]
[]
[]
[]
[null,"IESO",null,"Network",null,null,null,"Line Connection",null,null,null,"Transformation Connection",null,null,null,"Total Connection"]
[]
[null,"Month",null,"Units Billed","Rate","Amount",null,"Units Billed","Rate","Amount",null,"Units Billed","Rate","Amount",null,"Amount"]
[]
[null,"January",null,{"$f":"'5. Historical Wholesale'!D24","v":107975},{"$f":"'4. UTRs and Sub-Transmission'!L22","v":5.46},{"$f":"D24*E24","v":589543.5},null,{"$f":"'5. Historical Wholesale'!H24","v":0},{"$f":"'4. UTRs and Sub-Transmission'!L24","v":0.88},{"$f":"H24*I24","v":0},null,{"$f":"'5. Historical Wholesale'!L24","v":0},{"$f":"'4. UTRs and Sub-Transmission'!L26","v":2.81},{"$f":"L24*M24","v":0},null,{"$f":"J24+N24","v":0}]
[null,"February",null,{"$f":"'5. Historical Wholesale'!D25","v":108561},{"$f":"E24","v":5.46},592743.05999999994,null,{"$f":"'5. Historical Wholesale'!H25","v":0},{"$f":"I24","v":0.88},0,null,{"$f":"'5. Historical Wholesale'!L25","v":0},{"$f":"M24","v":2.81},0,null,0]
[null,"March",null,{"$f":"'5. Historical Wholesale'!D26","v":105073},5.46,573698.57999999996,null,{"$f":"'5. Historical Wholesale'!H26","v":0},0.88,0,null,{"$f":"'5. Historical Wholesale'!L26","v":0},2.81,0,null,0]
[null,"April",null,{"$f":"'5. Historical Wholesale'!D27","v":87429},5.46,477362.34,null,{"$f":"'5. Historical Wholesale'!H27","v":0},0.88,0,null,{"$f":"'5. Historical Wholesale'!L27","v":0},2.81,0,null,0]
[null,"May",null,{"$f":"'5. Historical Wholesale'!D28","v":64144},5.46,350226.24,null,{"$f":"'5. Historical Wholesale'!H28","v":0},0.88,0,null,{"$f":"'5. Historical Wholesale'!L28","v":0},2.81,0,null,0]
[null,"June",null,{"$f":"'5. Historical Wholesale'!D29","v":72483},5.46,395757.18,null,{"$f":"'5. Historical Wholesale'!H29","v":0},0.88,0,null,{"$f":"'5. Historical Wholesale'!L29","v":0},2.81,0,null,0]
[null,"July",null,{"$f":"'5. Historical Wholesale'!D30","v":69448.999999999985},5.46,379191.53999999992,null,{"$f":"'5. Historical Wholesale'!H30","v":0},0.88,0,null,{"$f":"'5. Historical Wholesale'!L30","v":0},2.81,0,null,0]
[null,"August",null,{"$f":"'5. Historical Wholesale'!D31","v":74031.999999999985},5.46,404214.71999999991,null,{"$f":"'5. Historical Wholesale'!H31","v":0},0.88,0,null,{"$f":"'5. Historical Wholesale'!L31","v":0},2.81,0,null,0]
[null,"September",null,{"$f":"'5. Historical Wholesale'!D32","v":68321},5.46,373032.66,null,{"$f":"'5. Historical Wholesale'!H32","v":0},0.88,0,null,{"$f":"'5. Historical Wholesale'!L32","v":0},2.81,0,null,0]
[null,"October",null,{"$f":"'5. Historical Wholesale'!D33","v":73308.999999999985},5.46,400267.1399999999,null,{"$f":"'5. Historical Wholesale'!H33","v":0},0.88,0,null,{"$f":"'5. Historical Wholesale'!L33","v":0},2.81,0,null,0]
[null,"November",null,{"$f":"'5. Historical Wholesale'!D34","v":95200},5.46,519792,null,{"$f":"'5. Historical Wholesale'!H34","v":0},0.88,0,null,{"$f":"'5. Historical Wholesale'!L34","v":0},2.81,0,null,0]
[null,"December",null,{"$f":"'5. Historical Wholesale'!D35","v":106596},5.46,582014.16,null,{"$f":"'5. Historical Wholesale'!H35","v":0},0.88,0,null,{"$f":"'5. Historical Wholesale'!L35","v":0},2.81,0,null,0]
[]
[null,"Total",null,{"$f":"SUM(D24:D35)","v":1032572},{"$f":"IF(D37<>0,F37/D37,0)","v":5.46},{"$f":"SUM(F24:F35)","v":5637843.1200000001},null,{"$f":"SUM(H24:H35)","v":0},{"$f":"IF(H37<>0,J37/H37,0)","v":0},{"$f":"SUM(J24:J35)","v":0},null,{"$f":"SUM(L24:L35)","v":0},{"$f":"IF(L37<>0,N37/L37,0)","v":0},{"$f":"SUM(N24:N35)","v":0},null,{"$f":"SUM(P24:P35)","v":0}]
[]
[null,"Hydro One",null,"Network",null,null,null,"Line Connection",null,null,null,"Transformation Connection",null,null,null,"Total Connection"]
[]
[null,"Month",null,"Units Billed","Rate","Amount",null,"Units Billed","Rate","Amount",null,"Units Billed","Rate","Amount",null,"Amount"]
[]
[null,"January",null,{"$f":"'5. Historical Wholesale'!D43","v":0},{"$f":"'4. UTRs and Sub-Transmission'!L37","v":0.67879999999999996},{"$f":"D43*E43","v":0},null,{"$f":"'5. Historical Wholesale'!H43","v":0},{"$f":"'4. UTRs and Sub-Transmission'!L39","v":2.3267000000000002},{"$f":"H43*I43","v":0},null,{"$f":"'5. Historical Wholesale'!L43","v":0},{"$f":"'4. UTRs and Sub-Transmission'!L41","v":3.0055000000000001},{"$f":"L43*M43","v":0},null,{"$f":"J43+N43","v":0}]
[null,"February",null,{"$f":"'5. Historical Wholesale'!D44","v":0},{"$f":"E43","v":0.67879999999999996},0,null,{"$f":"'5. Historical Wholesale'!H44","v":0},{"$f":"I43","v":2.3267000000000002},0,null,{"$f":"'5. Historical Wholesale'!L44","v":0},{"$f":"M43","v":3.0055000000000001},0,null,0]
[null,"March",null,{"$f":"'5. Historical Wholesale'!D45","v":0},0.67879999999999996,0,null,{"$f":"'5. Historical Wholesale'!H45","v":0},2.3267000000000002,0,null,{"$f":"'5. Historical Wholesale'!L45","v":0},3.0055000000000001,0,null,0]
[null,"April",null,{"$f":"'5. Historical Wholesale'!D46","v":0},0.67879999999999996,0,null,{"$f":"'5. Historical Wholesale'!H46","v":0},2.3267000000000002,0,null,{"$f":"'5. Historical Wholesale'!L46","v":0},3.0055000000000001,0,null,0]
[null,"May",null,{"$f":"'5. Historical Wholesale'!D47","v":0},0.67879999999999996,0,null,{"$f":"'5. Historical Wholesale'!H47","v":0},2.3267000000000002,0,null,{"$f":"'5. Historical Wholesale'!L47","v":0},3.0055000000000001,0,null,0]
[null,"June",null,{"$f":"'5. Historical Wholesale'!D48","v":0},0.67879999999999996,0,null,{"$f":"'5. Historical Wholesale'!H48","v":0},2.3267000000000002,0,null,{"$f":"'5. Historical Wholesale'!L48","v":0},3.0055000000000001,0,null,0]
[null,"July",null,{"$f":"'5. Historical Wholesale'!D49","v":0},0.67879999999999996,0,null,{"$f":"'5. Historical Wholesale'!H49","v":0},2.3267000000000002,0,null,{"$f":"'5. Historical Wholesale'!L49","v":0},3.0055000000000001,0,null,0]
[null,"August",null,{"$f":"'5. Historical Wholesale'!D50","v":0},0.67879999999999996,0,null,{"$f":"'5. Historical Wholesale'!H50","v":0},2.3267000000000002,0,null,{"$f":"'5. Historical Wholesale'!L50","v":0},3.0055000000000001,0,null,0]
[null,"September",null,{"$f":"'5. Historical Wholesale'!D51","v":0},0.67879999999999996,0,null,{"$f":"'5. Historical Wholesale'!H51","v":0},2.3267000000000002,0,null,{"$f":"'5. Historical Wholesale'!L51","v":0},3.0055000000000001,0,null,0]
[null,"October",null,{"$f":"'5. Historical Wholesale'!D52","v":0},0.67879999999999996,0,null,{"$f":"'5. Historical Wholesale'!H52","v":0},2.3267000000000002,0,null,{"$f":"'5. Historical Wholesale'!L52","v":0},3.0055000000000001,0,null,0]
[null,"November",null,{"$f":"'5. Historical Wholesale'!D53","v":0},0.67879999999999996,0,null,{"$f":"'5. Historical Wholesale'!H53","v":0},2.3267000000000002,0,null,{"$f":"'5. Historical Wholesale'!L53","v":0},3.0055000000000001,0,null,0]
[null,"December",null,{"$f":"'5. Historical Wholesale'!D54","v":0},0.67879999999999996,0,null,{"$f":"'5. Historical Wholesale'!H54","v":0},2.3267000000000002,0,null,{"$f":"'5. Historical Wholesale'!L54","v":0},3.0055000000000001,0,null,0]
[]
[null,"Total",null,{"$f":"SUM(D43:D54)","v":0},{"$f":"IF(D56<>0,F56/D56,0)","v":0},{"$f":"SUM(F43:F54)","v":0},null,{"$f":"SUM(H43:H54)","v":0},{"$f":"IF(H56<>0,J56/H56,0)","v":0},{"$f":"SUM(J43:J54)","v":0},null,{"$f":"SUM(L43:L54)","v":0},{"$f":"IF(L56<>0,N56/L56,0)","v":0},{"$f":"SUM(N43:N54)","v":0},null,{"$f":"SUM(P43:P54)","v":0}]
[]
[null,{"$f":"'5. Historical Wholesale'!B58","v":"Add Extra Host Here (I)"},null,"Network",null,null,null,"Line Connection",null,null,null,"Transformation Connection",null,null,null,"Total Connection"]
[]
[null,"Month",null,"Units Billed","Rate","Amount",null,"Units Billed","Rate","Amount",null,"Units Billed","Rate","Amount",null,"Amount"]
[]
[null,"January",null,{"$f":"'5. Historical Wholesale'!D62","v":0},{"$f":"'4. UTRs and Sub-Transmission'!L52","v":0},{"$f":"D62*E62","v":0},null,{"$f":"'5. Historical Wholesale'!H62","v":0},{"$f":"'4. UTRs and Sub-Transmission'!L54","v":0},{"$f":"H62*I62","v":0},null,{"$f":"'5. Historical Wholesale'!L62","v":0},{"$f":"'4. UTRs and Sub-Transmission'!L56","v":0},{"$f":"L62*M62","v":0},null,{"$f":"J62+N62","v":0}]
[null,"February",null,{"$f":"'5. Historical Wholesale'!D63","v":0},{"$f":"E62","v":0},0,null,{"$f":"'5. Historical Wholesale'!H63","v":0},{"$f":"I62","v":0},0,null,{"$f":"'5. Historical Wholesale'!L63","v":0},{"$f":"M62","v":0},0,null,0]
[null,"March",null,{"$f":"'5. Historical Wholesale'!D64","v":0},0,0,null,{"$f":"'5. Historical Wholesale'!H64","v":0},0,0,null,{"$f":"'5. Historical Wholesale'!L64","v":0},0,0,null,0]
[null,"April",null,{"$f":"'5. Historical Wholesale'!D65","v":0},0,0,null,{"$f":"'5. Historical Wholesale'!H65","v":0},0,0,null,{"$f":"'5. Historical Wholesale'!L65","v":0},0,0,null,0]
[null,"May",null,{"$f":"'5. Historical Wholesale'!D66","v":0},0,0,null,{"$f":"'5. Historical Wholesale'!H66","v":0},0,0,null,{"$f":"'5. Historical Wholesale'!L66","v":0},0,0,null,0]
[null,"June",null,{"$f":"'5. Historical Wholesale'!D67","v":0},0,0,null,{"$f":"'5. Historical Wholesale'!H67","v":0},0,0,null,{"$f":"'5. Historical Wholesale'!L67","v":0},0,0,null,0]
[null,"July",null,{"$f":"'5. Historical Wholesale'!D68","v":0},0,0,null,{"$f":"'5. Historical Wholesale'!H68","v":0},0,0,null,{"$f":"'5. Historical Wholesale'!L68","v":0},0,0,null,0]
[null,"August",null,{"$f":"'5. Historical Wholesale'!D69","v":0},0,0,null,{"$f":"'5. Historical Wholesale'!H69","v":0},0,0,null,{"$f":"'5. Historical Wholesale'!L69","v":0},0,0,null,0]
[null,"September",null,{"$f":"'5. Historical Wholesale'!D70","v":0},0,0,null,{"$f":"'5. Historical Wholesale'!H70","v":0},0,0,null,{"$f":"'5. Historical Wholesale'!L70","v":0},0,0,null,0]
[null,"October",null,{"$f":"'5. Historical Wholesale'!D71","v":0},0,0,null,{"$f":"'5. Historical Wholesale'!H71","v":0},0,0,null,{"$f":"'5. Historical Wholesale'!L71","v":0},0,0,null,0]
[null,"November",null,{"$f":"'5. Historical Wholesale'!D72","v":0},0,0,null,{"$f":"'5. Historical Wholesale'!H72","v":0},0,0,null,{"$f":"'5. Historical Wholesale'!L72","v":0},0,0,null,0]
[null,"December",null,{"$f":"'5. Historical Wholesale'!D73","v":0},0,0,null,{"$f":"'5. Historical Wholesale'!H73","v":0},0,0,null,{"$f":"'5. Historical Wholesale'!L73","v":0},0,0,null,0]
[]
[null,"Total",null,{"$f":"SUM(D62:D73)","v":0},{"$f":"IF(D75<>0,F75/D75,0)","v":0},{"$f":"SUM(F62:F73)","v":0},null,{"$f":"SUM(H62:H73)","v":0},{"$f":"IF(H75<>0,J75/H75,0)","v":0},{"$f":"SUM(J62:J73)","v":0},null,{"$f":"SUM(L62:L73)","v":0},{"$f":"IF(L75<>0,N75/L75,0)","v":0},{"$f":"SUM(N62:N73)","v":0},null,{"$f":"SUM(P62:P73)","v":0}]
[]
[null,{"$f":"'5. Historical Wholesale'!B77","v":"Add Extra Host Here (II)"},null,"Network",null,null,null,"Line Connection",null,null,null,"Transformation Connection",null,null,null,"Total Connection"]
[]
[null,"Month",null,"Units Billed","Rate","Amount",null,"Units Billed","Rate","Amount",null,"Units Billed","Rate","Amount",null,"Amount"]
[]
[null,"January",null,{"$f":"'5. Historical Wholesale'!D81","v":0},{"$f":"'4. UTRs and Sub-Transmission'!L67","v":0},{"$f":"D81*E81","v":0},null,{"$f":"'5. Historical Wholesale'!H81","v":0},{"$f":"'4. UTRs and Sub-Transmission'!L69","v":0},{"$f":"H81*I81","v":0},null,{"$f":"'5. Historical Wholesale'!L81","v":0},{"$f":"'4. UTRs and Sub-Transmission'!L71","v":0},{"$f":"L81*M81","v":0},null,{"$f":"J81+N81","v":0}]
[null,"February",null,{"$f":"'5. Historical Wholesale'!D82","v":0},{"$f":"E81","v":0},0,null,{"$f":"'5. Historical Wholesale'!H82","v":0},{"$f":"I81","v":0},0,null,{"$f":"'5. Historical Wholesale'!L82","v":0},{"$f":"M81","v":0},0,null,0]
[null,"March",null,{"$f":"'5. Historical Wholesale'!D83","v":0},0,0,null,{"$f":"'5. Historical Wholesale'!H83","v":0},0,0,null,{"$f":"'5. Historical Wholesale'!L83","v":0},0,0,null,0]
[null,"April",null,{"$f":"'5. Historical Wholesale'!D84","v":0},0,0,null,{"$f":"'5. Historical Wholesale'!H84","v":0},0,0,null,{"$f":"'5. Historical Wholesale'!L84","v":0},0,0,null,0]
[null,"May",null,{"$f":"'5. Historical Wholesale'!D85","v":0},0,0,null,{"$f":"'5. Historical Wholesale'!H85","v":0},0,0,null,{"$f":"'5. Historical Wholesale'!L85","v":0},0,0,null,0]
[null,"June",null,{"$f":"'5. Historical Wholesale'!D86","v":0},0,0,null,{"$f":"'5. Historical Wholesale'!H86","v":0},0,0,null,{"$f":"'5. Historical Wholesale'!L86","v":0},0,0,null,0]
[null,"July",null,{"$f":"'5. Historical Wholesale'!D87","v":0},0,0,null,{"$f":"'5. Historical Wholesale'!H87","v":0},0,0,null,{"$f":"'5. Historical Wholesale'!L87","v":0},0,0,null,0]
[null,"August",null,{"$f":"'5. Historical Wholesale'!D88","v":0},0,0,null,{"$f":"'5. Historical Wholesale'!H88","v":0},0,0,null,{"$f":"'5. Historical Wholesale'!L88","v":0},0,0,null,0]
[null,"September",null,{"$f":"'5. Historical Wholesale'!D89","v":0},0,0,null,{"$f":"'5. Historical Wholesale'!H89","v":0},0,0,null,{"$f":"'5. Historical Wholesale'!L89","v":0},0,0,null,0]
[null,"October",null,{"$f":"'5. Historical Wholesale'!D90","v":0},0,0,null,{"$f":"'5. Historical Wholesale'!H90","v":0},0,0,null,{"$f":"'5. Historical Wholesale'!L90","v":0},0,0,null,0]
[null,"November",null,{"$f":"'5. Historical Wholesale'!D91","v":0},0,0,null,{"$f":"'5. Historical Wholesale'!H91","v":0},0,0,null,{"$f":"'5. Historical Wholesale'!L91","v":0},0,0,null,0]
[null,"December",null,{"$f":"'5. Historical Wholesale'!D92","v":0},0,0,null,{"$f":"'5. Historical Wholesale'!H92","v":0},0,0,null,{"$f":"'5. Historical Wholesale'!L92","v":0},0,0,null,0]
[]
[null,"Total",null,{"$f":"SUM(D81:D92)","v":0},{"$f":"IF(D94<>0,F94/D94,0)","v":0},{"$f":"SUM(F81:F92)","v":0},null,{"$f":"SUM(H81:H92)","v":0},{"$f":"IF(H94<>0,J94/H94,0)","v":0},{"$f":"SUM(J81:J92)","v":0},null,{"$f":"SUM(L81:L92)","v":0},{"$f":"IF(L94<>0,N94/L94,0)","v":0},{"$f":"SUM(N81:N92)","v":0},null,{"$f":"SUM(P81:P92)","v":0}]
[]
[null,"Total",null,"Network",null,null,null,"Line Connection",null,null,null,"Transformation Connection",null,null,null,"Total Connection"]
[]
[null,"Month",null,"Units Billed","Rate","Amount",null,"Units Billed","Rate","Amount",null,"Units Billed","Rate","Amount",null,"Amount"]
[]
[null,"January",null,{"$f":"D24+D43+D62+D81","v":107975},{"$f":"IF(D100<>0,F100/D100,0)","v":5.46},{"$f":"F24+F43+F62+F81","v":589543.5},null,{"$f":"H24+H43+H62+H81","v":0},{"$f":"IF(H100<>0,J100/H100,0)","v":0},{"$f":"J24+J43+J62+J81","v":0},null,{"$f":"L24+L43+L62+L81","v":0},{"$f":"IF(L100<>0,N100/L100,0)","v":0},{"$f":"N24+N43+N62+N81","v":0},null,{"$f":"J100+N100","v":0}]
[null,"February",null,{"$f":"D25+D44+D63+D82","v":108561},5.4599999999999991,592743.05999999994,null,{"$f":"H25+H44+H63+H82","v":0},0,{"$f":"J25+J44+J63+J82","v":0},null,{"$f":"L25+L44+L63+L82","v":0},0,{"$f":"N25+N44+N63+N82","v":0},null,0]
[null,"March",null,105073,5.46,573698.57999999996,null,{"$f":"H26+H45+H64+H83","v":0},0,{"$f":"J26+J45+J64+J83","v":0},null,{"$f":"L26+L45+L64+L83","v":0},0,{"$f":"N26+N45+N64+N83","v":0},null,0]
[null,"April",null,87429,5.46,477362.34,null,{"$f":"H27+H46+H65+H84","v":0},0,{"$f":"J27+J46+J65+J84","v":0},null,{"$f":"L27+L46+L65+L84","v":0},0,{"$f":"N27+N46+N65+N84","v":0},null,0]
[null,"May",null,64144,5.46,350226.24,null,{"$f":"H28+H47+H66+H85","v":0},0,{"$f":"J28+J47+J66+J85","v":0},null,{"$f":"L28+L47+L66+L85","v":0},0,{"$f":"N28+N47+N66+N85","v":0},null,0]
[null,"June",null,72483,5.46,395757.18,null,{"$f":"H29+H48+H67+H86","v":0},0,{"$f":"J29+J48+J67+J86","v":0},null,{"$f":"L29+L48+L67+L86","v":0},0,{"$f":"N29+N48+N67+N86","v":0},null,0]
[null,"July",null,69448.999999999985,5.46,379191.53999999992,null,{"$f":"H30+H49+H68+H87","v":0},0,{"$f":"J30+J49+J68+J87","v":0},null,{"$f":"L30+L49+L68+L87","v":0},0,{"$f":"N30+N49+N68+N87","v":0},null,0]
[null,"August",null,74031.999999999985,5.46,404214.71999999991,null,{"$f":"H31+H50+H69+H88","v":0},0,{"$f":"J31+J50+J69+J88","v":0},null,{"$f":"L31+L50+L69+L88","v":0},0,{"$f":"N31+N50+N69+N88","v":0},null,0]
[null,"September",null,68321,5.46,373032.66,null,{"$f":"H32+H51+H70+H89","v":0},0,{"$f":"J32+J51+J70+J89","v":0},null,{"$f":"L32+L51+L70+L89","v":0},0,{"$f":"N32+N51+N70+N89","v":0},null,0]
[null,"October",null,73308.999999999985,5.46,400267.1399999999,null,{"$f":"H33+H52+H71+H90","v":0},0,{"$f":"J33+J52+J71+J90","v":0},null,{"$f":"L33+L52+L71+L90","v":0},0,{"$f":"N33+N52+N71+N90","v":0},null,0]
[null,"November",null,95200,5.46,519792,null,{"$f":"H34+H53+H72+H91","v":0},0,{"$f":"J34+J53+J72+J91","v":0},null,{"$f":"L34+L53+L72+L91","v":0},0,{"$f":"N34+N53+N72+N91","v":0},null,0]
[null,"December",null,106596,5.46,582014.16,null,{"$f":"H35+H54+H73+H92","v":0},0,{"$f":"J35+J54+J73+J92","v":0},null,{"$f":"L35+L54+L73+L92","v":0},0,{"$f":"N35+N54+N73+N92","v":0},null,0]
[]
[null,"Total",null,{"$f":"SUM(D100:D111)","v":1032572},{"$f":"IF(D113<>0,F113/D113,0)","v":5.46},{"$f":"SUM(F100:F111)","v":5637843.1200000001},null,{"$f":"SUM(H100:H111)","v":0},{"$f":"IF(H113<>0,J113/H113,0)","v":0},{"$f":"SUM(J100:J111)","v":0},null,{"$f":"SUM(L100:L111)","v":0},{"$f":"IF(L113<>0,N113/L113,0)","v":0},{"$f":"SUM(N100:N111)","v":0},null,{"$f":"SUM(P100:P111)","v":0}]
[]
[null,null,null,null,null,null,null,null,null,null,null,null,null,"Low Voltage Switchgear Credit (if applicable)",null,{"$f":"'4. UTRs and Sub-Transmission'!L76","v":0}]
[]
[null,null,null,null,null,null,null,null,null,null,null,null,null,"Total including deduction for Low Voltage Switchgear Credit",null,{"$f":"P113+P115","v":0}]

{"sheet":"8. RTSR Rates to Forecast","index":9,"n_rows":56,"n_cols":11,"rows_kept":56,"cut":false,"hidden":false,"merged":[]}
[]
[]
[]
[]
[]
[]
[]
[]
[]
[]
[]
[]
["The purpose of this sheet is to re-align the current RTS Network Rates to recover current wholesale network costs."]
[]
["Rate Class","Rate Description","Unit","Current RTSR-Network","Loss Adjusted Billed kWh","Billed kW","Billed Amount","Billed Amount %","Current Wholesale Billing","Adjusted RTSR Network"]
[]
["RESIDENTIAL SERVICE CLASSIFICATION","Retail Transmission Rate - Network Service Rate","$/kWh",8.6E-3,306561058.44867802,0,{"$f":"ROUND(D17*E17, 2)","v":2636425.1},{"$f":"G17/5409160.58","v":0.4874000431320159},{"$f":"H17*total_current_wholesale_network","v":2696156.7405038965},{"$f":"IF(ISERROR(I17/E17), 0, I17/E17)","v":8.7948441793211825E-3}]
["GENERAL SERVICE LESS THAN 50 KW SERVICE CLASSIFICATION","Retail Transmission Rate - Network Service Rate","$/kWh",8.0000000000000002E-3,92829623.188464001,0,{"$f":"ROUND(D18*E18, 2)","v":742636.99},0.1372924650722793,759462.39714377804,{"$f":"IF(ISERROR(I18/E18), 0, I18/E18)","v":8.1812504571079307E-3}]
["GENERAL SERVICE 50 to 4,999 kW SERVICE CLASSIFICATION","Retail Transmission Rate - Network Service Rate","$/kW",3.2330000000000001,92113557.951595753,214683,{"$f":"ROUND(D19*F19, 2)","v":694070.14},0.128313835341897,709795.2019738711,{"$f":"IF(ISERROR(I19/F19), 0, I19/F19)","v":3.3062478257424721}]
["GENERAL SERVICE 50 to 4,999 kW SERVICE CLASSIFICATION","Retail Transmission Rate - Network Service Rate - Interval Metered","$/kW",4.0669000000000004,138170122.39350423,322024,{"$f":"ROUND(D20*F20, 2)","v":1309639.4099999999},0.24211509172833615,1339310.9946120016,{"$f":"IF(ISERROR(I20/F20), 0, I20/F20)","v":4.159040924316205},"For this line item, please ensure that the consumption and demand values have been adjusted to account for non-interval/interval customers."]
["UNMETERED SCATTERED LOAD SERVICE CLASSIFICATION","Retail Transmission Rate - Network Service Rate","$/kWh",8.0000000000000002E-3,920145.84531900007,0,{"$f":"ROUND(D21*E21, 2)","v":7361.17},1.3608710429521026E-3,7527.9468828813187,{"$f":"IF(ISERROR(I21/E21), 0, I21/E21)","v":8.1812540057402509E-3}]
["SENTINEL LIGHTING SERVICE CLASSIFICATION","Retail Transmission Rate - Network Service Rate","$/kW",2.4510999999999998,213404.468999,596.41,{"$f":"ROUND(D22*F22, 2)","v":1461.86},2.7025635094013049E-4,1494.980340110184,{"$f":"IF(ISERROR(I22/F22), 0, I22/F22)","v":2.5066319144718969}]
["STREET LIGHTING SERVICE CLASSIFICATION","Retail Transmission Rate - Network Service Rate","$/kW",2.4390999999999998,2578320.2144880001,7201.8,{"$f":"ROUND(D23*F23, 2)","v":17565.91},3.2474373315794594E-3,17963.888543461675,{"$f":"IF(ISERROR(I23/F23), 0, I23/F23)","v":2.4943609296928093}]
[]
["The purpose of this table is to re-align the current RTS Connection Rates to recover current wholesale connection costs."]
["Rate Class","Rate Description","Unit","Current RTSR-Connection","Loss Adjusted Billed kWh","Billed kW","Billed Amount","Billed Amount %","Current Wholesale Billing","Adjusted RTSR-Connection"]
[]
["RESIDENTIAL SERVICE CLASSIFICATION","Retail Transmission Rate - Network Service Rate","$/kWh",8.6E-3,306561058.44867802,0,{"$f":"ROUND(D28*E28, 2)","v":2636425.1},{"$f":"G28/5409160.58","v":0.4874000431320159},{"$f":"H28*Total_Current_Wholesale_Lineplus","v":0},{"$f":"IF(ISERROR(I28/E28), 0, I28/E28)","v":0}]
["GENERAL SERVICE LESS THAN 50 KW SERVICE CLASSIFICATION","Retail Transmission Rate - Network Service Rate","$/kWh",8.0000000000000002E-3,92829623.188464001,0,{"$f":"ROUND(D29*E29, 2)","v":742636.99},0.1372924650722793,0,{"$f":"IF(ISERROR(I29/E29), 0, I29/E29)","v":0}]
["GENERAL SERVICE 50 to 4,999 kW SERVICE CLASSIFICATION","Retail Transmission Rate - Network Service Rate","$/kW",3.2330000000000001,92113557.951595753,214683,{"$f":"ROUND(D30*F30, 2)","v":694070.14},0.128313835341897,0,{"$f":"IF(ISERROR(I30/F30), 0, I30/F30)","v":0}]
["GENERAL SERVICE 50 to 4,999 kW SERVICE CLASSIFICATION","Retail Transmission Rate - Network Service Rate - Interval Metered","$/kW",4.0669000000000004,138170122.39350423,322024,{"$f":"ROUND(D31*F31, 2)","v":1309639.4099999999},0.24211509172833615,0,{"$f":"IF(ISERROR(I31/F31), 0, I31/F31)","v":0},"For this line item, please ensure that the consumption and demand values have been adjusted to account for non-interval/interval customers."]
["UNMETERED SCATTERED LOAD SERVICE CLASSIFICATION","Retail Transmission Rate - Network Service Rate","$/kWh",8.0000000000000002E-3,920145.84531900007,0,{"$f":"ROUND(D32*E32, 2)","v":7361.17},1.3608710429521026E-3,0,{"$f":"IF(ISERROR(I32/E32), 0, I32/E32)","v":0}]
["SENTINEL LIGHTING SERVICE CLASSIFICATION","Retail Transmission Rate - Network Service Rate","$/kW",2.4510999999999998,213404.468999,596.41,{"$f":"ROUND(D33*F33, 2)","v":1461.86},2.7025635094013049E-4,0,{"$f":"IF(ISERROR(I33/F33), 0, I33/F33)","v":0}]
["STREET LIGHTING SERVICE CLASSIFICATION","Retail Transmission Rate - Network Service Rate","$/kW",2.4390999999999998,2578320.2144880001,7201.8,{"$f":"ROUND(D34*F34, 2)","v":17565.91},3.2474373315794594E-3,0,{"$f":"IF(ISERROR(I34/F34), 0, I34/F34)","v":0}]
[]
["The purpose of this table is to update the re-aligned RTS Network Rates to recover future wholesale network costs."]
["Rate Class","Rate Description","Unit","Adjusted RTSR-Network","Loss Adjusted Billed kWh","Billed kW","Billed Amount","Billed Amount %","Forecast Wholesale Billing","Proposed RTSR-Network"]
[]
["RESIDENTIAL SERVICE CLASSIFICATION","Retail Transmission Rate - Network Service Rate","$/kWh",8.7948441793211825E-3,306561058.44867802,0,{"$f":"IF(ISERROR(D39*E39), 0, ROUND(D39*E39, 2))","v":2696156.74},{"$f":"G39/5531712.15","v":0.4874000430409236},{"$f":"H39*forecast_wholesale_network","v":2747884.979345975},{"$f":"IF(ISERROR(I39/E39), 0, I39/E39)","v":8.9635813278156583E-3}]
["GENERAL SERVICE LESS THAN 50 KW SERVICE CLASSIFICATION","Retail Transmission Rate - Network Service Rate","$/kWh",8.1812504571079307E-3,92829623.188464001,0,{"$f":"IF(ISERROR(D40*E40), 0, ROUND(D40*E40, 2))","v":759462.40000000002},0.13729246558861527,774033.38254661136,{"$f":"IF(ISERROR(I40/E40), 0, I40/E40)","v":8.338215280430019E-3}]
["GENERAL SERVICE 50 to 4,999 kW SERVICE CLASSIFICATION","Retail Transmission Rate - Network Service Rate","$/kW",3.3062478257424721,92113557.951595753,214683,{"$f":"ROUND(D41*F41, 2)","v":709795.2},0.12831383498506876,723413.27177138522,{"$f":"IF(ISERROR(I41/F41), 0, I41/F41)","v":3.3696812126315789}]
["GENERAL SERVICE 50 to 4,999 kW SERVICE CLASSIFICATION","Retail Transmission Rate - Network Service Rate - Interval Metered","$/kW",4.159040924316205,138170122.39350423,322024,{"$f":"ROUND(D42*F42, 2)","v":1339310.99},0.2421150908945976,1365006.8994482816,{"$f":"IF(ISERROR(I42/F42), 0, I42/F42)","v":4.2388359235593667},"For this line item, please ensure that the consumption and demand values have been adjusted to account for non-interval/interval customers."]
["UNMETERED SCATTERED LOAD SERVICE CLASSIFICATION","Retail Transmission Rate - Network Service Rate","$/kWh",8.1812540057402509E-3,920145.84531900007,0,{"$f":"IF(ISERROR(D43*E43), 0, ROUND(D43*E43, 2))","v":7527.95},1.3608716064519011E-3,7672.3806236381988,{"$f":"IF(ISERROR(I43/E43), 0, I43/E43)","v":8.3382223184176908E-3}]
["SENTINEL LIGHTING SERVICE CLASSIFICATION","Retail Transmission Rate - Network Service Rate","$/kW",2.5066319144718969,213404.468999,596.41,{"$f":"ROUND(D44*F44, 2)","v":1494.98},2.7025628945642082E-4,1523.6625621486107,{"$f":"IF(ISERROR(I44/F44), 0, I44/F44)","v":2.5547233650485586}]
["STREET LIGHTING SERVICE CLASSIFICATION","Retail Transmission Rate - Network Service Rate","$/kW",2.4943609296928093,2578320.2144880001,7201.8,{"$f":"ROUND(D45*F45, 2)","v":17963.89},3.247437594886422E-3,18308.543701959763,{"$f":"IF(ISERROR(I45/F45), 0, I45/F45)","v":2.5422177375044797}]
[]
["The purpose of this table is to update the re-aligned RTS Connection Rates to recover future wholesale connection costs."]
["Rate Class","Rate Description","Unit","Adjusted RTSR-Connection","Loss Adjusted Billed kWh","Billed kW","Billed Amount","Billed Amount %","Forecast Wholesale Billing","Proposed RTSR-Connection"]
[]
["RESIDENTIAL SERVICE CLASSIFICATION","Retail Transmission Rate - Network Service Rate","$/kWh",0,306561058.44867802,0,{"$f":"ROUND(D50*E50, 2)","v":0},0,{"$f":"H50*forecast_wholesale_lineplus","v":0},{"$f":"IF(ISERROR(I50/E50), 0, I50/E50)","v":0},"Confirm that the correct value is shown in the highlighted cell"]
["GENERAL SERVICE LESS THAN 50 KW SERVICE CLASSIFICATION","Retail Transmission Rate - Network Service Rate","$/kWh",0,92829623.188464001,0,{"$f":"ROUND(D51*E51, 2)","v":0},0,0,{"$f":"IF(ISERROR(I51/E51), 0, I51/E51)","v":0},"Confirm that the correct value is shown in the highlighted cell"]
["GENERAL SERVICE 50 to 4,999 kW SERVICE CLASSIFICATION","Retail Transmission Rate - Network Service Rate","$/kW",0,92113557.951595753,214683,{"$f":"ROUND(D52*F52, 2)","v":0},0,0,{"$f":"IF(ISERROR(I52/F52), 0, I52/F52)","v":0},"Confirm that the correct value is shown in the highlighted cell"]
["GENERAL SERVICE 50 to 4,999 kW SERVICE CLASSIFICATION","Retail Transmission Rate - Network Service Rate - Interval Metered","$/kW",0,138170122.39350423,322024,{"$f":"ROUND(D53*F53, 2)","v":0},0,0,{"$f":"IF(ISERROR(I53/F53), 0, I53/F53)","v":0},"Confirm that the correct value is shown in the highlighted cell"]
["UNMETERED SCATTERED LOAD SERVICE CLASSIFICATION","Retail Transmission Rate - Network Service Rate","$/kWh",0,920145.84531900007,0,{"$f":"ROUND(D54*E54, 2)","v":0},0,0,{"$f":"IF(ISERROR(I54/E54), 0, I54/E54)","v":0},"Confirm that the correct value is shown in the highlighted cell"]
["SENTINEL LIGHTING SERVICE CLASSIFICATION","Retail Transmission Rate - Network Service Rate","$/kW",0,213404.468999,596.41,{"$f":"ROUND(D55*F55, 2)","v":0},0,0,{"$f":"IF(ISERROR(I55/F55), 0, I55/F55)","v":0},"Confirm that the correct value is shown in the highlighted cell"]
["STREET LIGHTING SERVICE CLASSIFICATION","Retail Transmission Rate - Network Service Rate","$/kW",0,2578320.2144880001,7201.8,{"$f":"ROUND(D56*F56, 2)","v":0},0,0,{"$f":"IF(ISERROR(I56/F56), 0, I56/F56)","v":0},"Confirm that the correct value is shown in the highlighted cell"]

{"sheet":"9. LV Rates","index":10,"n_rows":37,"n_cols":11,"rows_kept":37,"cut":false,"hidden":false,"merged":[[26,1,26,10],[27,1,27,10],[33,1,33,8],[34,1,34,8],[12,0,12,10]]}
[]
[]
[]
[]
[]
[]
[]
[]
[]
[]
[]
[]
["The purpose of this sheet is to calculate Low Voltage service rates based on a forecasted host distribution expense."]
[]
[null,"Low Voltage Charges"]
[]
[null,"Host I:"]
[null,null,2017,{"$f":"C18+1","v":2018},{"$f":"D18+1","v":2019},2020,2021,{"$f":"G18+1&\" Forecast\"","v":"2022 Forecast"},{"$f":"G18+2&\" Forecast\"","v":"2023 Forecast"},"      Forecast Methodology"]
[null,"Host Volume"]
[null,"Host Charges"]
[]
[null,"Host II:"]
[null,null,{"$f":"C18","v":2017},2018,2019,2020,2021,"2022 Forecast","2023 Forecast","      Forecast Methodology"]
[null,"Host Volume"]
[null,"Host Charges"]
[]
[null,"Instructions: The methodology of the test year forecast for host charges is at the distributor's discretion. Please provide a brief descriptor of the methodology used here, and a complete description with rationale in the filed evidence."]
[null,"                  Regardless of the methodology chosen, please ensure that the Host Charges for the test year is completed for each host distributor."]
[]
[null,"Low Voltage Rates"]
[]
[null,"Proposed Loss Factor"]
[]
[null,"Instructions: Please enter the rate class volumes consistent with the proposed load forecast, and proposed loss factor."]
[null,"                  If Low Voltage charges are applied based on volumes uplifted for losses, please select Loss Adjusted Volume in cell J34"]
[]
[null,"Rate Class","Unit",{"$f":"C18+6&\" Forecasted Volume\"","v":"2023 Forecasted Volume"},"RTSR Connection Rate","Loss Adjusted Volume","RTSR Connection Revenue","Allocation","Allocated Low Voltage Charges","Loss Adjusted Volume","Low Voltage Rates"]

{"sheet":"RateClasses","index":11,"n_rows":76,"n_cols":28,"rows_kept":76,"cut":false,"hidden":true,"merged":[]}
[]
["Alectra Utilities Corporation-Brampton Rate Zone","RESIDENTIAL SERVICE CLASSIFICATION~Retail Transmission Rate - Network Service Rate","RESIDENTIAL SERVICE CLASSIFICATION~Retail Transmission Rate - Line and Transformation Connection Service Rate","GENERAL SERVICE LESS THAN 50 KW SERVICE CLASSIFICATION~Retail Transmission Rate - Network Service Rate","GENERAL SERVICE LESS THAN 50 KW SERVICE CLASSIFICATION~Retail Transmission Rate - Line and Transformation Connection Service Rate","GENERAL SERVICE 50 TO 699 KW SERVICE CLASSIFICATION~Retail Transmission Rate - Network Service Rate","GENERAL SERVICE 50 TO 699 KW SERVICE CLASSIFICATION~Retail Transmission Rate - Line and Transformation Connection Service Rate","GENERAL SERVICE 700 TO 4,999 KW SERVICE CLASSIFICATION~Retail Transmission Rate - Network Service Rate","GENERAL SERVICE 700 TO 4,999 KW SERVICE CLASSIFICATION~Retail Transmission Rate - Line and Transformation Connection Service Rate","LARGE USE SERVICE CLASSIFICATION~Retail Transmission Rate - Network Service Rate","LARGE USE SERVICE CLASSIFICATION~Retail Transmission Rate - Line and Transformation Connection Service Rate","UNMETERED SCATTERED LOAD SERVICE CLASSIFICATION~Retail Transmission Rate - Network Service Rate","UNMETERED SCATTERED LOAD SERVICE CLASSIFICATION~Retail Transmission Rate - Line and Transformation Connection Service Rate","STREET LIGHTING SERVICE CLASSIFICATION~Retail Transmission Rate - Network Service Rate","STREET LIGHTING SERVICE CLASSIFICATION~Retail Transmission Rate - Line and Transformation Connection Service Rate","EMBEDDED DISTRIBUTOR SERVICE CLASSIFICATION~Retail Transmission Rate - Network Service Rate","EMBEDDED DISTRIBUTOR SERVICE CLASSIFICATION~Retail Transmission Rate - Line and Transformation Connection Service Rate","DISTRIBUTED GENERATION [DGEN] SERVICE CLASSIFICATION~Retail Transmission Rate - Network Service Rate","DISTRIBUTED GENERATION [DGEN] SERVICE CLASSIFICATION~Retail Transmission Rate - Line and Transformation Connection Service Rate"]
["Alectra Utilities Corporation-Enersource Rate Zone","RESIDENTIAL SERVICE CLASSIFICATION~Retail Transmission Rate - Network Service Rate","RESIDENTIAL SERVICE CLASSIFICATION~Retail Transmission Rate - Line and Transformation Connection Service Rate","GENERAL SERVICE LESS THAN 50 KW SERVICE CLASSIFICATION~Retail Transmission Rate - Network Service Rate","GENERAL SERVICE LESS THAN 50 KW SERVICE CLASSIFICATION~Retail Transmission Rate - Line and Transformation Connection Service Rate","GENERAL SERVICE 50 TO 499 KW SERVICE CLASSIFICATION~Retail Transmission Rate - Network Service Rate","GENERAL SERVICE 50 TO 499 KW SERVICE CLASSIFICATION~Retail Transmission Rate - Line and Transformation Connection Service Rate","GENERAL SERVICE 500 TO 4,999 KW SERVICE CLASSIFICATION~Retail Transmission Rate - Network Service Rate ","GENERAL SERVICE 500 TO 4,999 KW SERVICE CLASSIFICATION~Retail Transmission Rate - Line and Transformation Connection Service Rate ","LARGE USE SERVICE CLASSIFICATION~Retail Transmission Rate - Network Service Rate – Interval Metered","LARGE USE SERVICE CLASSIFICATION~Retail Transmission Rate - Line and Transformation Connection Service Rate – Interval Metered ","UNMETERED SCATTERED LOAD SERVICE CLASSIFICATION~Retail Transmission Rate - Network Service Rate","UNMETERED SCATTERED LOAD SERVICE CLASSIFICATION~Retail Transmission Rate - Line and Transformation Connection Service Rate","STREET LIGHTING SERVICE CLASSIFICATION~Retail Transmission Rate - Network Service Rate","STREET LIGHTING SERVICE CLASSIFICATION~Retail Transmission Rate - Line and Transformation Connection Service Rate"]
["Alectra Utilities Corporation-Horizon Utilities Rate Zone","RESIDENTIAL SERVICE CLASSIFICATION~Retail Transmission Rate - Network Service Rate","RESIDENTIAL SERVICE CLASSIFICATION~Retail Transmission Rate - Line and Transformation Connection Service Rate","GENERAL SERVICE LESS THAN 50 KW SERVICE CLASSIFICATION~Retail Transmission Rate - Network Service Rate","GENERAL SERVICE LESS THAN 50 KW SERVICE CLASSIFICATION~Retail Transmission Rate - Line and Transformation Connection Service Rate","GENERAL SERVICE 50 to 4,999 kW SERVICE CLASSIFICATION~Retail Transmission Rate - Network Service Rate","GENERAL SERVICE 50 to 4,999 kW SERVICE CLASSIFICATION~Retail Transmission Rate - Line and Transformation Connection Service Rate","LARGE USE SERVICE CLASSIFICATION~Retail Transmission Rate - Network Service Rate","LARGE USE SERVICE CLASSIFICATION~Retail Transmission Rate - Line and Transformation Connection Service Rate","LARGE USE WITH DEDICATED ASSETS SERVICE CLASSIFICATION~Retail Transmission Rate - Network Service Rate","LARGE USE WITH DEDICATED ASSETS SERVICE CLASSIFICATION~Retail Transmission Rate - Line and Transformation Connection Service Rate","UNMETERED SCATTERED LOAD SERVICE CLASSIFICATION~Retail Transmission Rate - Network Service Rate","UNMETERED SCATTERED LOAD SERVICE CLASSIFICATION~Retail Transmission Rate - Line and Transformation Connection Service Rate","SENTINEL LIGHTING SERVICE CLASSIFICATION~Retail Transmission Rate - Network Service Rate","SENTINEL LIGHTING SERVICE CLASSIFICATION~Retail Transmission Rate - Line and Transformation Connection Service Rate","STREET LIGHTING SERVICE CLASSIFICATION~Retail Transmission Rate - Network Service Rate","STREET LIGHTING SERVICE CLASSIFICATION~Retail Transmission Rate - Line and Transformation Connection Service Rate"]
["Alectra Utilities Corporation-PowerStream Rate Zone","RESIDENTIAL SERVICE CLASSIFICATION~Retail Transmission Rate - Network Service Rate","RESIDENTIAL SERVICE CLASSIFICATION~Retail Transmission Rate - Line and Transformation Connection Service Rate","GENERAL SERVICE LESS THAN 50 KW SERVICE CLASSIFICATION~Retail Transmission Rate - Network Service Rate","GENERAL SERVICE LESS THAN 50 KW SERVICE CLASSIFICATION~Retail Transmission Rate - Line and Transformation Connection Service Rate","GENERAL SERVICE 50 to 4,999 kW SERVICE CLASSIFICATION~Retail Transmission Rate - Network Service Rate","GENERAL SERVICE 50 to 4,999 kW SERVICE CLASSIFICATION~Retail Transmission Rate - Line and Transformation Connection Service Rate","GENERAL SERVICE 50 to 4,999 kW SERVICE CLASSIFICATION~Retail Transmission Rate - Network Service Rate – Interval Metered","GENERAL SERVICE 50 to 4,999 kW SERVICE CLASSIFICATION~Retail Transmission Rate - Line and Transformation Connection Service Rate – Interval Metered","LARGE USE SERVICE CLASSIFICATION~Retail Transmission Rate - Network Service Rate","LARGE USE SERVICE CLASSIFICATION~Retail Transmission Rate - Line and Transformation Connection Service Rate","UNMETERED SCATTERED LOAD SERVICE CLASSIFICATION~Retail Transmission Rate - Network Service Rate","UNMETERED SCATTERED LOAD SERVICE CLASSIFICATION~Retail Transmission Rate - Line and Transformation Connection Service Rate","SENTINEL LIGHTING SERVICE CLASSIFICATION~Retail Transmission Rate - Network Service Rate","SENTINEL LIGHTING SERVICE CLASSIFICATION~Retail Transmission Rate - Line and Transformation Connection Service Rate","STREET LIGHTING SERVICE CLASSIFICATION~Retail Transmission Rate - Network Service Rate","STREET LIGHTING SERVICE CLASSIFICATION~Retail Transmission Rate - Line and Transformation Connection Service Rate"]
["Algoma Power Inc.","RESIDENTIAL R1 SERVICE CLASSIFICATION~Retail Transmission Rate - Network Service Rate","RESIDENTIAL R1 SERVICE CLASSIFICATION~Retail Transmission Rate - Line and Transformation Connection Service Rate","RESIDENTIAL R2 SERVICE CLASSIFICATION~Retail Transmission Rate - Network Service Rate","RESIDENTIAL R2 SERVICE CLASSIFICATION~Retail Transmission Rate - Line and Transformation Connection Service Rate","SEASONAL CUSTOMERS SERVICE CLASSIFICATION~Retail Transmission Rate - Network Service Rate","SEASONAL CUSTOMERS SERVICE CLASSIFICATION~Retail Transmission Rate - Line and Transformation Connection Service Rate","STREET LIGHTING SERVICE CLASSIFICATION~Retail Transmission Rate - Network Service Rate","STREET LIGHTING SERVICE CLASSIFICATION~Retail Transmission Rate - Line and Transformation Connection Service Rate"]
["Centre Wellington Hydro Ltd.","RESIDENTIAL SERVICE CLASSIFICATION~Retail Transmission Rate - Network Service Rate","RESIDENTIAL SERVICE CLASSIFICATION~Retail Transmission Rate - Line and Transformation Connection Service Rate","GENERAL SERVICE LESS THAN 50 KW SERVICE CLASSIFICATION~Retail Transmission Rate - Network Service Rate","GENERAL SERVICE LESS THAN 50 KW SERVICE CLASSIFICATION~Retail Transmission Rate - Line and Transformation Connection Service Rate","GENERAL SERVICE 50 TO 2,999 KW SERVICE CLASSIFICATION~Retail Transmission Rate - Network Service Rate","GENERAL SERVICE 50 TO 2,999 KW SERVICE CLASSIFICATION~Retail Transmission Rate - Line and Transformation Connection Service Rate","GENERAL SERVICE 3,000 TO 4,999 KW SERVICE CLASSIFICATION~Retail Transmission Rate - Network Service Rate","GENERAL SERVICE 3,000 TO 4,999 KW SERVICE CLASSIFICATION~Retail Transmission Rate - Line and Transformation Connection Service Rate","UNMETERED SCATTERED LOAD SERVICE CLASSIFICATION~Retail Transmission Rate - Network Service Rate","UNMETERED SCATTERED LOAD SERVICE CLASSIFICATION~Retail Transmission Rate - Line and Transformation Connection Service Rate","SENTINEL LIGHTING SERVICE CLASSIFICATION~Retail Transmission Rate - Network Service Rate","SENTINEL LIGHTING SERVICE CLASSIFICATION~Retail Transmission Rate - Line and Transformation Connection Service Rate","STREET LIGHTING SERVICE CLASSIFICATION~Retail Transmission Rate - Network Service Rate","STREET LIGHTING SERVICE CLASSIFICATION~Retail Transmission Rate - Line and Transformation Connection Service Rate"]
["Canadian Niagara Power Inc.","RESIDENTIAL SERVICE CLASSIFICATION~Retail Transmission Rate - Network Service Rate","RESIDENTIAL SERVICE CLASSIFICATION~Retail Transmission Rate - Line and Transformation Connection Service Rate","GENERAL SERVICE LESS THAN 50 KW SERVICE CLASSIFICATION~Retail Transmission Rate - Network Service Rate","GENERAL SERVICE LESS THAN 50 KW SERVICE CLASSIFICATION~Retail Transmission Rate - Line and Transformation Connection Service Rate","GENERAL SERVICE 50 to 4,999 kW SERVICE CLASSIFICATION~Retail Transmission Rate - Network Service Rate","GENERAL SERVICE 50 to 4,999 kW SERVICE CLASSIFICATION~Retail Transmission Rate - Line and Transformation Connection Service Rate","EMBEDDED DISTRIBUTOR SERVICE CLASSIFICATION~Retail Transmission Rate - Network Service Rate","EMBEDDED DISTRIBUTOR SERVICE CLASSIFICATION~Retail Transmission Rate - Line and Transformation Connection Service Rate","UNMETERED SCATTERED LOAD SERVICE CLASSIFICATION~Retail Transmission Rate - Network Service Rate","UNMETERED SCATTERED LOAD SERVICE CLASSIFICATION~Retail Transmission Rate - Line and Transformation Connection Service Rate","SENTINEL LIGHTING SERVICE CLASSIFICATION~Retail Transmission Rate - Network Service Rate","SENTINEL LIGHTING SERVICE CLASSIFICATION~Retail Transmission Rate - Line and Transformation Connection Service Rate","STREET LIGHTING SERVICE CLASSIFICATION~Retail Transmission Rate - Network Service Rate","STREET LIGHTING SERVICE CLASSIFICATION~Retail Transmission Rate - Line and Transformation Connection Service Rate"]
["Entegrus Powerlines Inc.","RESIDENTIAL SERVICE CLASSIFICATION~Retail Transmission Rate - Network Service Rate","RESIDENTIAL SERVICE CLASSIFICATION~Retail Transmission Rate - Line and Transformation Connection Service Rate","GENERAL SERVICE LESS THAN 50 KW SERVICE CLASSIFICATION~Retail Transmission Rate - Network Service Rate","GENERAL SERVICE LESS THAN 50 KW SERVICE CLASSIFICATION~Retail Transmission Rate - Line and Transformation Connection Service Rate","GENERAL SERVICE 50 to 4,999 kW SERVICE CLASSIFICATION~Retail Transmission Rate - Network Service Rate","GENERAL SERVICE 50 to 4,999 kW SERVICE CLASSIFICATION~Retail Transmission Rate - Line and Transformation Connection Service Rate (see Note 1)","LARGE USE SERVICE CLASSIFICATION~Retail Transmission Rate - Network Service Rate","LARGE USE SERVICE CLASSIFICATION~Retail Transmission Rate - Line and Transformation Connection Service Rate (see Note 1)","UNMETERED SCATTERED LOAD SERVICE CLASSIFICATION~Retail Transmission Rate - Network Service Rate","UNMETERED SCATTERED LOAD SERVICE CLASSIFICATION~Retail Transmission Rate - Line and Transformation Connection Service Rate","SENTINEL LIGHTING SERVICE CLASSIFICATION~Retail Transmission Rate - Network Service Rate","SENTINEL LIGHTING SERVICE CLASSIFICATION~Retail Transmission Rate - Line and Transformation Connection Service Rate","STREET LIGHTING SERVICE CLASSIFICATION~Retail Transmission Rate - Network Service Rate","STREET LIGHTING SERVICE CLASSIFICATION~Retail Transmission Rate - Line and Transformation Connection Service Rate","EMBEDDED DISTRIBUTOR SERVICE CLASSIFICATION~Retail Transmission Rate - Network Service Rate","EMBEDDED DISTRIBUTOR SERVICE CLASSIFICATION~Retail Transmission Rate - Line and Transformation Connection Service Rate"]
["Entegrus Powerlines Inc.-For Former St. Thomas Energy Rate Zone","RESIDENTIAL SERVICE CLASSIFICATION~Retail Transmission Rate - Network Service Rate","RESIDENTIAL SERVICE CLASSIFICATION~Retail Transmission Rate - Line and Transformation Connection Service Rate","GENERAL SERVICE LESS THAN 50 KW SERVICE CLASSIFICATION~Retail Transmission Rate - Network Service Rate","GENERAL SERVICE LESS THAN 50 KW SERVICE CLASSIFICATION~Retail Transmission Rate - Line and Transformation Connection Service Rate","GENERAL SERVICE 50 to 4,999 kW SERVICE CLASSIFICATION~Retail Transmission Rate - Network Service Rate","GENERAL SERVICE 50 to 4,999 kW SERVICE CLASSIFICATION~Retail Transmission Rate - Line and Transformation Connection Service Rate","SENTINEL LIGHTING SERVICE CLASSIFICATION~Retail Transmission Rate - Network Service Rate","SENTINEL LIGHTING SERVICE CLASSIFICATION~Retail Transmission Rate - Line and Transformation Connection Service Rate","STREET LIGHTING SERVICE CLASSIFICATION~Retail Transmission Rate - Network Service Rate","STREET LIGHTING SERVICE CLASSIFICATION~Retail Transmission Rate - Line and Transformation Connection Service Rate"]
["Festival Hydro Inc.","RESIDENTIAL SERVICE CLASSIFICATION~Retail Transmission Rate - Network Service Rate","RESIDENTIAL SERVICE CLASSIFICATION~Retail Transmission Rate - Line and Transformation Connection Service Rate","GENERAL SERVICE LESS THAN 50 KW SERVICE CLASSIFICATION~Retail Transmission Rate - Network Service Rate","GENERAL SERVICE LESS THAN 50 KW SERVICE CLASSIFICATION~Retail Transmission Rate - Line and Transformation Connection Service Rate","GENERAL SERVICE 50 to 4,999 kW SERVICE CLASSIFICATION~Retail Transmission Rate - Network Service Rate","GENERAL SERVICE 50 to 4,999 kW SERVICE CLASSIFICATION~Retail Transmission Rate - Line and Transformation Connection Service Rate","GENERAL SERVICE 50 to 4,999 kW SERVICE CLASSIFICATION~Retail Transmission Rate - Network Service Rate - Interval Metered","GENERAL SERVICE 50 to 4,999 kW SERVICE CLASSIFICATION~Retail Transmission Rate - Line and Transformation Connection Service Rate - Interval Metered","LARGE USE SERVICE CLASSIFICATION~Retail Transmission Rate - Network Service Rate - Interval Metered","LARGE USE SERVICE CLASSIFICATION~Retail Transmission Rate - Line and Transformation Connection Service Rate - Interval Metered","UNMETERED SCATTERED LOAD SERVICE CLASSIFICATION~Retail Transmission Rate - Network Service Rate","UNMETERED SCATTERED LOAD SERVICE CLASSIFICATION~Retail Transmission Rate - Line and Transformation Connection Service Rate","SENTINEL LIGHTING SERVICE CLASSIFICATION~Retail Transmission Rate - Network Service Rate","SENTINEL LIGHTING SERVICE CLASSIFICATION~Retail Transmission Rate - Line and Transformation Connection Service Rate","STREET LIGHTING SERVICE CLASSIFICATION~Retail Transmission Rate - Network Service Rate","STREET LIGHTING SERVICE CLASSIFICATION~Retail Transmission Rate - Line and Transformation Connection Service Rate"]
["Grimsby Power Incorporated","RESIDENTIAL SERVICE CLASSIFICATION~Retail Transmission Rate - Network Service Rate","RESIDENTIAL SERVICE CLASSIFICATION~Retail Transmission Rate - Line and Transformation Connection Service Rate","GENERAL SERVICE LESS THAN 50 KW SERVICE CLASSIFICATION~Retail Transmission Rate - Network Service Rate","GENERAL SERVICE LESS THAN 50 KW SERVICE CLASSIFICATION~Retail Transmission Rate - Line and Transformation Connection Service Rate","GENERAL SERVICE 50 to 4,999 kW SERVICE CLASSIFICATION~Retail Transmission Rate - Network Service Rate","GENERAL SERVICE 50 to 4,999 kW SERVICE CLASSIFICATION~Retail Transmission Rate - Line and Transformation Connection Service Rate","GENERAL SERVICE 50 to 4,999 kW SERVICE CLASSIFICATION~Retail Transmission Rate - Network Service Rate - Interval Metered","GENERAL SERVICE 50 to 4,999 kW SERVICE CLASSIFICATION~Retail Transmission Rate - Line and Transformation Connection Service Rate - Interval Metered","UNMETERED SCATTERED LOAD SERVICE CLASSIFICATION~Retail Transmission Rate - Network Service Rate","UNMETERED SCATTERED LOAD SERVICE CLASSIFICATION~Retail Transmission Rate - Line and Transformation Connection Service Rate","STREET LIGHTING SERVICE CLASSIFICATION~Retail Transmission Rate - Network Service Rate","STREET LIGHTING SERVICE CLASSIFICATION~Retail Transmission Rate - Line and Transformation Connection Service Rate","EMBEDDED DISTRIBUTOR SERVICE CLASSIFICATION~Retail Transmission Rate - Network Service Rate","EMBEDDED DISTRIBUTOR SERVICE CLASSIFICATION~Retail Transmission Rate - Line and Transformation Connection Service Rate"]
["Alectra Utilities Corporation-Guelph Rate Zone","RESIDENTIAL SERVICE CLASSIFICATION~Retail Transmission Rate - Network Service Rate","RESIDENTIAL SERVICE CLASSIFICATION~Retail Transmission Rate - Line and Transformation Connection Service Rate","GENERAL SERVICE LESS THAN 50 KW SERVICE CLASSIFICATION~Retail Transmission Rate - Network Service Rate","GENERAL SERVICE LESS THAN 50 KW SERVICE CLASSIFICATION~Retail Transmission Rate - Line and Transformation Connection Service Rate","GENERAL SERVICE 50 TO 999 KW SERVICE CLASSIFICATION~Retail Transmission Rate - Network Service Rate","GENERAL SERVICE 50 TO 999 KW SERVICE CLASSIFICATION~Retail Transmission Rate - Network Service Rate - Interval Metered","GENERAL SERVICE 50 TO 999 KW SERVICE CLASSIFICATION~Retail Transmission Rate - Line and Transformation Connection Service Rate","GENERAL SERVICE 50 TO 999 KW SERVICE CLASSIFICATION~Retail Transmission Rate - Line and Transformation Connection Service Rate - Interval Metered","GENERAL SERVICE 1,000 TO 4,999 KW SERVICE CLASSIFICATION~Retail Transmission Rate - Network Service Rate - Interval Metered","GENERAL SERVICE 1,000 TO 4,999 KW SERVICE CLASSIFICATION~Retail Transmission Rate - Line and Transformation Connection Service Rate - Interval Metered","LARGE USE SERVICE CLASSIFICATION~Retail Transmission Rate - Network Service Rate - Interval Metered","LARGE USE SERVICE CLASSIFICATION~Retail Transmission Rate - Line and Transformation Connection Service Rate - Interval Metered","UNMETERED SCATTERED LOAD SERVICE CLASSIFICATION~Retail Transmission Rate - Network Service Rate","UNMETERED SCATTERED LOAD SERVICE CLASSIFICATION~Retail Transmission Rate - Line and Transformation Connection Service Rate","SENTINEL LIGHTING SERVICE CLASSIFICATION~Retail Transmission Rate - Network Service Rate","SENTINEL LIGHTING SERVICE CLASSIFICATION~Retail Transmission Rate - Line and Transformation Connection Service Rate","STREET LIGHTING SERVICE CLASSIFICATION~Retail Transmission Rate - Network Service Rate","STREET LIGHTING SERVICE CLASSIFICATION~Retail Transmission Rate - Line and Transformation Connection Service Rate"]
["Hydro Hawkesbury Inc.","RESIDENTIAL SERVICE CLASSIFICATION~Retail Transmission Rate - Network Service Rate","RESIDENTIAL SERVICE CLASSIFICATION~Retail Transmission Rate - Line and Transformation Connection Service Rate","GENERAL SERVICE LESS THAN 50 KW SERVICE CLASSIFICATION~Retail Transmission Rate - Network Service Rate","GENERAL SERVICE LESS THAN 50 KW SERVICE CLASSIFICATION~Retail Transmission Rate - Line and Transformation Connection Service Rate","GENERAL SERVICE 50 to 4,999 kW SERVICE CLASSIFICATION~Retail Transmission Rate - Network Service Rate","GENERAL SERVICE 50 to 4,999 kW SERVICE CLASSIFICATION~Retail Transmission Rate - Line and Transformation Connection Service Rate","UNMETERED SCATTERED LOAD SERVICE CLASSIFICATION~Retail Transmission Rate - Network Service Rate","UNMETERED SCATTERED LOAD SERVICE CLASSIFICATION~Retail Transmission Rate - Line and Transformation Connection Service Rate","SENTINEL LIGHTING SERVICE CLASSIFICATION~Retail Transmission Rate - Network Service Rate","SENTINEL LIGHTING SERVICE CLASSIFICATION~Retail Transmission Rate - Line and Transformation Connection Service Rate","STREET LIGHTING SERVICE CLASSIFICATION~Retail Transmission Rate - Network Service Rate","STREET LIGHTING SERVICE CLASSIFICATION~Retail Transmission Rate - Line and Transformation Connection Service Rate"]
["Hydro Ottawa Limited","RESIDENTIAL SERVICE CLASSIFICATION~Retail Transmission Rate - Network Service Rate","RESIDENTIAL SERVICE CLASSIFICATION~Retail Transmission Rate - Line and Transformation Connection Service Rate","GENERAL SERVICE LESS THAN 50 KW SERVICE CLASSIFICATION~Retail Transmission Rate - Network Service Rate","GENERAL SERVICE LESS THAN 50 KW SERVICE CLASSIFICATION~Retail Transmission Rate - Line and Transformation Connection Service Rate","GENERAL SERVICE 50 TO 1,499 KW SERVICE CLASSIFICATION~Retail Transmission Rate - Network Service Rate","GENERAL SERVICE 50 TO 1,499 KW SERVICE CLASSIFICATION~Retail Transmission Rate - Line and Transformation Connection Service Rate","GENERAL SERVICE 1,500 TO 4,999 KW SERVICE CLASSIFICATION~Retail Transmission Rate - Network Service Rate","GENERAL SERVICE 1,500 TO 4,999 KW SERVICE CLASSIFICATION~Retail Transmission Rate - Line and Transformation Connection Service Rate","LARGE USE SERVICE CLASSIFICATION~Retail Transmission Rate - Network Service Rate","LARGE USE SERVICE CLASSIFICATION~Retail Transmission Rate - Line and Transformation Connection Service Rate","UNMETERED SCATTERED LOAD SERVICE CLASSIFICATION~Retail Transmission Rate - Network Service Rate","UNMETERED SCATTERED LOAD SERVICE CLASSIFICATION~Retail Transmission Rate - Line and Transformation Connection Service Rate","SENTINEL LIGHTING SERVICE CLASSIFICATION~Retail Transmission Rate - Network Service Rate","SENTINEL LIGHTING SERVICE CLASSIFICATION~Retail Transmission Rate - Line and Transformation Connection Service Rate","STREET LIGHTING SERVICE CLASSIFICATION~Retail Transmission Rate - Network Service Rate","STREET LIGHTING SERVICE CLASSIFICATION~Retail Transmission Rate - Line and Transformation Connection Service Rate"]
["InnPower Corporation","RESIDENTIAL SERVICE CLASSIFICATION~Retail Transmission Rate - Network Service Rate","RESIDENTIAL SERVICE CLASSIFICATION~Retail Transmission Rate - Line and Transformation Connection Service Rate","GENERAL SERVICE LESS THAN 50 KW SERVICE CLASSIFICATION~Retail Transmission Rate - Network Service Rate","GENERAL SERVICE LESS THAN 50 KW SERVICE CLASSIFICATION~Retail Transmission Rate - Line and Transformation Connection Service Rate","GENERAL SERVICE 50 to 4,999 kW SERVICE CLASSIFICATION~Retail Transmission Rate - Network Service Rate","GENERAL SERVICE 50 to 4,999 kW SERVICE CLASSIFICATION~Retail Transmission Rate - Line and Transformation Connection Service Rate ","GENERAL SERVICE 50 to 4,999 kW SERVICE CLASSIFICATION~Retail Transmission Rate - Network Service Rate - Interval Metered","GENERAL SERVICE 50 to 4,999 kW SERVICE CLASSIFICATION~Retail Transmission Rate - Line and Transformation Connection Service Rate - Interval Metered ","UNMETERED SCATTERED LOAD SERVICE CLASSIFICATION~Retail Transmission Rate - Network Service Rate","UNMETERED SCATTERED LOAD SERVICE CLASSIFICATION~Retail Transmission Rate - Line and Transformation Connection Service Rate","SENTINEL LIGHTING SERVICE CLASSIFICATION~Retail Transmission Rate - Network Service Rate","SENTINEL LIGHTING SERVICE CLASSIFICATION~Retail Transmission Rate - Line and Transformation Connection Service Rate","STREET LIGHTING SERVICE CLASSIFICATION~Retail Transmission Rate - Network Service Rate","STREET LIGHTING SERVICE CLASSIFICATION~Retail Transmission Rate - Line and Transformation Connection Service Rate"]
["Kingston Hydro Corporation","RESIDENTIAL SERVICE CLASSIFICATION~Retail Transmission Rate - Network Service Rate","RESIDENTIAL SERVICE CLASSIFICATION~Retail Transmission Rate - Line and Transformation Connection Service Rate","GENERAL SERVICE LESS THAN 50 KW SERVICE CLASSIFICATION~Retail Transmission Rate - Network Service Rate","GENERAL SERVICE LESS THAN 50 KW SERVICE CLASSIFICATION~Retail Transmission Rate - Line and Transformation Connection Service Rate","GENERAL SERVICE 50 to 4,999 kW SERVICE CLASSIFICATION~Retail Transmission Rate - Network Service Rate","GENERAL SERVICE 50 to 4,999 kW SERVICE CLASSIFICATION~Retail Transmission Rate - Line and Transformation Connection Service Rate","LARGE USE SERVICE CLASSIFICATION~Retail Transmission Rate - Network Service Rate","LARGE USE SERVICE CLASSIFICATION~Retail Transmission Rate - Line and Transformation Connection Service Rate","UNMETERED SCATTERED LOAD SERVICE CLASSIFICATION~Retail Transmission Rate - Network Service Rate","UNMETERED SCATTERED LOAD SERVICE CLASSIFICATION~Retail Transmission Rate - Line and Transformation Connection Service Rate","STREET LIGHTING SERVICE CLASSIFICATION~Retail Transmission Rate - Network Service Rate","STREET LIGHTING SERVICE CLASSIFICATION~Retail Transmission Rate - Line and Transformation Connection Service Rate"]
["Kitchener-Wilmot Hydro Inc.","RESIDENTIAL SERVICE CLASSIFICATION~Retail Transmission Rate - Network Service Rate","RESIDENTIAL SERVICE CLASSIFICATION~Retail Transmission Rate - Line and Transformation Connection Service Rate","GENERAL SERVICE LESS THAN 50 KW SERVICE CLASSIFICATION~Retail Transmission Rate - Network Service Rate","GENERAL SERVICE LESS THAN 50 KW SERVICE CLASSIFICATION~Retail Transmission Rate - Line and Transformation Connection Service Rate","GENERAL SERVICE 50 to 4,999 kW SERVICE CLASSIFICATION~Retail Transmission Rate - Network Service Rate","GENERAL SERVICE 50 to 4,999 kW SERVICE CLASSIFICATION~Retail Transmission Rate - Line and Transformation Connection Service Rate","LARGE USE SERVICE CLASSIFICATION~Retail Transmission Rate - Network Service Rate - Interval Metered","LARGE USE SERVICE CLASSIFICATION~Retail Transmission Rate - Line and Transformation Connection Service Rate - Interval Metered","UNMETERED SCATTERED LOAD SERVICE CLASSIFICATION~Retail Transmission Rate - Network Service Rate","UNMETERED SCATTERED LOAD SERVICE CLASSIFICATION~Retail Transmission Rate - Line and Transformation Connection Service Rate","STREET LIGHTING SERVICE CLASSIFICATION~Retail Transmission Rate - Network Service Rate","STREET LIGHTING SERVICE CLASSIFICATION~Retail Transmission Rate - Line and Transformation Connection Service Rate","EMBEDDED DISTRIBUTOR SERVICE CLASSIFICATION~Retail Transmission Rate - Network Service Rate","EMBEDDED DISTRIBUTOR SERVICE CLASSIFICATION~Retail Transmission Rate - Line and Transformation Connection Service Rate"]
["Renfrew Hydro Inc.","RESIDENTIAL SERVICE CLASSIFICATION~Retail Transmission Rate - Network Service Rate","RESIDENTIAL SERVICE CLASSIFICATION~Retail Transmission Rate - Line and Transformation Connection Service Rate","GENERAL SERVICE LESS THAN 50 KW SERVICE CLASSIFICATION~Retail Transmission Rate - Network Service Rate","GENERAL SERVICE LESS THAN 50 KW SERVICE CLASSIFICATION~Retail Transmission Rate - Line and Transformation Connection Service Rate","GENERAL SERVICE 50 to 4,999 kW SERVICE CLASSIFICATION~Retail Transmission Rate - Network Service Rate","GENERAL SERVICE 50 to 4,999 kW SERVICE CLASSIFICATION~Retail Transmission Rate - Line and Transformation Connection Service Rate","UNMETERED SCATTERED LOAD SERVICE CLASSIFICATION~Retail Transmission Rate - Network Service Rate","UNMETERED SCATTERED LOAD SERVICE CLASSIFICATION~Retail Transmission Rate - Line and Transformation Connection Service Rate","STREET LIGHTING SERVICE CLASSIFICATION~Retail Transmission Rate - Network Service Rate","STREET LIGHTING SERVICE CLASSIFICATION~Retail Transmission Rate - Line and Transformation Connection Service Rate"]
["Cooperative Hydro Embrun Inc.","RESIDENTIAL SERVICE CLASSIFICATION~Retail Transmission Rate - Network Service Rate","RESIDENTIAL SERVICE CLASSIFICATION~Retail Transmission Rate - Line and Transformation Connection Service Rate","GENERAL SERVICE LESS THAN 50 KW SERVICE CLASSIFICATION~Retail Transmission Rate - Network Service Rate","GENERAL SERVICE LESS THAN 50 KW SERVICE CLASSIFICATION~Retail Transmission Rate - Line and Transformation Connection Service Rate","GENERAL SERVICE 50 to 4,999 kW SERVICE CLASSIFICATION~Retail Transmission Rate - Network Service Rate","GENERAL SERVICE 50 to 4,999 kW SERVICE CLASSIFICATION~Retail Transmission Rate - Line and Transformation Connection Service Rate","UNMETERED SCATTERED LOAD SERVICE CLASSIFICATION~Retail Transmission Rate - Network Service Rate","UNMETERED SCATTERED LOAD SERVICE CLASSIFICATION~Retail Transmission Rate - Line and Transformation Connection Service Rate","STREET LIGHTING SERVICE CLASSIFICATION~Retail Transmission Rate - Network Service Rate","STREET LIGHTING SERVICE CLASSIFICATION~Retail Transmission Rate - Line and Transformation Connection Service Rate"]
["Lakefront Utilities Inc.","RESIDENTIAL SERVICE CLASSIFICATION~Retail Transmission Rate - Network Service Rate","RESIDENTIAL SERVICE CLASSIFICATION~Retail Transmission Rate - Line and Transformation Connection Service Rate","GENERAL SERVICE LESS THAN 50 KW SERVICE CLASSIFICATION~Retail Transmission Rate - Network Service Rate","GENERAL SERVICE LESS THAN 50 KW SERVICE CLASSIFICATION~Retail Transmission Rate - Line and Transformation Connection Service Rate","GENERAL SERVICE 50 TO 2,999 KW SERVICE CLASSIFICATION~Retail Transmission Rate - Network Service Rate","GENERAL SERVICE 50 TO 2,999 KW SERVICE CLASSIFICATION~Retail Transmission Rate - Line and Transformation Connection Service Rate","GENERAL SERVICE 3,000 TO 4,999 KW SERVICE CLASSIFICATION~Retail Transmission Rate - Network Service Rate","GENERAL SERVICE 3,000 TO 4,999 KW SERVICE CLASSIFICATION~Retail Transmission Rate - Line and Transformation Connection Service Rate","UNMETERED SCATTERED LOAD SERVICE CLASSIFICATION~Retail Transmission Rate - Network Service Rate","UNMETERED SCATTERED LOAD SERVICE CLASSIFICATION~Retail Transmission Rate - Line and Transformation Connection Service Rate","SENTINEL LIGHTING SERVICE CLASSIFICATION~Retail Transmission Rate - Network Service Rate","SENTINEL LIGHTING SERVICE CLASSIFICATION~Retail Transmission Rate - Line and Transformation Connection Service Rate","STREET LIGHTING SERVICE CLASSIFICATION~Retail Transmission Rate - Network Service Rate","STREET LIGHTING SERVICE CLASSIFICATION~Retail Transmission Rate - Line and Transformation Connection Service Rate"]
["Toronto Hydro-Electric System Limited","RESIDENTIAL SERVICE CLASSIFICATION~Retail Transmission Rate - Network Service Rate","RESIDENTIAL SERVICE CLASSIFICATION~Retail Transmission Rate - Line and Transformation Connection Service Rate","COMPETITIVE SECTOR MULTI-UNIT RESIDENTIAL SERVICE CLASSIFICATION~Retail Transmission Rate - Network Service Rate","COMPETITIVE SECTOR MULTI-UNIT RESIDENTIAL SERVICE CLASSIFICATION~Retail Transmission Rate - Line and Transformation Connection Service Rate","GENERAL SERVICE LESS THAN 50 KW SERVICE CLASSIFICATION~Retail Transmission Rate - Network Service Rate","GENERAL SERVICE LESS THAN 50 KW SERVICE CLASSIFICATION~Retail Transmission Rate - Line and Transformation Connection Service Rate","GENERAL SERVICE 50 TO 999 KW SERVICE CLASSIFICATION~Retail Transmission Rate - Network Service Rate","GENERAL SERVICE 50 TO 999 KW SERVICE CLASSIFICATION~Retail Transmission Rate - Line and Transformation Connection Service Rate","GENERAL SERVICE 1,000 TO 4,999 KW SERVICE CLASSIFICATION~Retail Transmission Rate - Network Service Rate","GENERAL SERVICE 1,000 TO 4,999 KW SERVICE CLASSIFICATION~Retail Transmission Rate - Line and Transformation Connection Service Rate","LARGE USE SERVICE CLASSIFICATION~Retail Transmission Rate - Network Service Rate","LARGE USE SERVICE CLASSIFICATION~Retail Transmission Rate - Line and Transformation Connection Service Rate","UNMETERED SCATTERED LOAD SERVICE CLASSIFICATION~Retail Transmission Rate - Network Service Rate","UNMETERED SCATTERED LOAD SERVICE CLASSIFICATION~Retail Transmission Rate - Line and Transformation Connection Service Rate","STREET LIGHTING SERVICE CLASSIFICATION~Retail Transmission Rate - Network Service Rate","STREET LIGHTING SERVICE CLASSIFICATION~Retail Transmission Rate - Line and Transformation Connection Service Rate"]
["Waterloo North Hydro Inc.","RESIDENTIAL SERVICE CLASSIFICATION~Retail Transmission Rate - Network Service Rate","RESIDENTIAL SERVICE CLASSIFICATION~Retail Transmission Rate - Line and Transformation Connection Service Rate","GENERAL SERVICE LESS THAN 50 KW SERVICE CLASSIFICATION~Retail Transmission Rate - Network Service Rate","GENERAL SERVICE LESS THAN 50 KW SERVICE CLASSIFICATION~Retail Transmission Rate - Line and Transformation Connection Service Rate","GENERAL SERVICE 50 to 4,999 kW SERVICE CLASSIFICATION~Retail Transmission Rate - Network Service Rate - (less than 1,000 kW)","GENERAL SERVICE 50 to 4,999 kW SERVICE CLASSIFICATION~Retail Transmission Rate - Network Service Rate - Interval Metered (less than 1,000 kW)","GENERAL SERVICE 50 to 4,999 kW SERVICE CLASSIFICATION~Retail Transmission Rate - Network Service Rate - Interval Metered (1,000 to 4,999 kW)","GENERAL SERVICE 50 to 4,999 kW SERVICE CLASSIFICATION~Retail Transmission Rate - Line and Transformation Connection Service Rate - (less than 1,000 kW)","GENERAL SERVICE 50 to 4,999 kW SERVICE CLASSIFICATION~Retail Transmission Rate - Line and Trans. Connection Service Rate - Interval Metered (less than 1,000 kW)","GENERAL SERVICE 50 to 4,999 kW SERVICE CLASSIFICATION~Retail Transmission Rate - Line and Trans. Connection Service Rate - Interval Metered (1,000 to 4,999 kW)","LARGE USE SERVICE CLASSIFICATION~Retail Transmission Rate - Network Service Rate - Interval Metered","LARGE USE SERVICE CLASSIFICATION~Retail Transmission Rate - Line and Transformation Connection Service Rate - Interval Metered","UNMETERED SCATTERED LOAD SERVICE CLASSIFICATION~Retail Transmission Rate - Network Service Rate","UNMETERED SCATTERED LOAD SERVICE CLASSIFICATION~Retail Transmission Rate - Line and Transformation Connection Service Rate","STREET LIGHTING SERVICE CLASSIFICATION~Retail Transmission Rate - Network Service Rate","STREET LIGHTING SERVICE CLASSIFICATION~Retail Transmission Rate - Line and Transformation Connection Service Rate"]
["Westario Power Inc.","RESIDENTIAL SERVICE CLASSIFICATION~Retail Transmission Rate - Network Service Rate","RESIDENTIAL SERVICE CLASSIFICATION~Retail Transmission Rate - Line and Transformation Connection Service Rate","GENERAL SERVICE LESS THAN 50 KW SERVICE CLASSIFICATION~Retail Transmission Rate - Network Service Rate","GENERAL SERVICE LESS THAN 50 KW SERVICE CLASSIFICATION~Retail Transmission Rate - Line and Transformation Connection Service Rate","GENERAL SERVICE 50 to 4,999 kW SERVICE CLASSIFICATION~Retail Transmission Rate - Network Service Rate","GENERAL SERVICE 50 to 4,999 kW SERVICE CLASSIFICATION~Retail Transmission Rate - Line and Transformation Connection Service Rate","UNMETERED SCATTERED LOAD SERVICE CLASSIFICATION~Retail Transmission Rate - Network Service Rate","UNMETERED SCATTERED LOAD SERVICE CLASSIFICATION~Retail Transmission Rate - Line and Transformation Connection Service Rate","SENTINEL LIGHTING SERVICE CLASSIFICATION~Retail Transmission Rate - Network Service Rate","SENTINEL LIGHTING SERVICE CLASSIFICATION~Retail Transmission Rate - Line and Transformation Connection Service Rate","STREET LIGHTING SERVICE CLASSIFICATION~Retail Transmission Rate - Network Service Rate","STREET LIGHTING SERVICE CLASSIFICATION~Retail Transmission Rate - Line and Transformation Connection Service Rate"]
["Elexicon Energy Inc.-Whitby Rate Zone","RESIDENTIAL SERVICE CLASSIFICATION~Retail Transmission Rate - Network Service Rate","RESIDENTIAL SERVICE CLASSIFICATION~Retail Transmission Rate - Line and Transformation Connection Service Rate","GENERAL SERVICE LESS THAN 50 KW SERVICE CLASSIFICATION~Retail Transmission Rate - Network Service Rate","GENERAL SERVICE LESS THAN 50 KW SERVICE CLASSIFICATION~Retail Transmission Rate - Line and Transformation Connection Service Rate","GENERAL SERVICE 50 to 4,999 kW SERVICE CLASSIFICATION~Retail Transmission Rate - Network Service Rate","GENERAL SERVICE 50 to 4,999 kW SERVICE CLASSIFICATION~Retail Transmission Rate - Line and Transformation Connection Service Rate","UNMETERED SCATTERED LOAD SERVICE CLASSIFICATION~Retail Transmission Rate - Network Service Rate","UNMETERED SCATTERED LOAD SERVICE CLASSIFICATION~Retail Transmission Rate - Line and Transformation Connection Service Rate","SENTINEL LIGHTING SERVICE CLASSIFICATION~Retail Transmission Rate - Network Service Rate","SENTINEL LIGHTING SERVICE CLASSIFICATION~Retail Transmission Rate - Line and Transformation Connection Service Rate","STREET LIGHTING SERVICE CLASSIFICATION~Retail Transmission Rate - Network Service Rate","STREET LIGHTING SERVICE CLASSIFICATION~Retail Transmission Rate - Line and Transformation Connection Service Rate"]
["Erie Thames Powerlines Corporation","RESIDENTIAL SERVICE CLASSIFICATION~Retail Transmission Rate - Network Service Rate","RESIDENTIAL SERVICE CLASSIFICATION~Retail Transmission Rate - Line and Transformation Connection Service Rate","GENERAL SERVICE LESS THAN 50 KW SERVICE CLASSIFICATION~Retail Transmission Rate - Network Service Rate","GENERAL SERVICE LESS THAN 50 KW SERVICE CLASSIFICATION~Retail Transmission Rate - Line and Transformation Connection Service Rate","GENERAL SERVICE 50 TO 999 KW SERVICE CLASSIFICATION~Retail Transmission Rate - Network Service Rate","GENERAL SERVICE 50 TO 999 KW SERVICE CLASSIFICATION~Retail Transmission Rate - Line and Transformation Connection Service Rate","GENERAL SERVICE 1,000 TO 4,999 KW SERVICE CLASSIFICATION~Retail Transmission Rate - Network Service Rate","GENERAL SERVICE 1,000 TO 4,999 KW SERVICE CLASSIFICATION~Retail Transmission Rate - Line and Transformation Connection Service Rate","LARGE USE SERVICE CLASSIFICATION~Retail Transmission Rate - Network Service Rate","LARGE USE SERVICE CLASSIFICATION~Retail Transmission Rate - Line and Transformation Connection Service Rate","UNMETERED SCATTERED LOAD SERVICE CLASSIFICATION~Retail Transmission Rate - Network Service Rate","UNMETERED SCATTERED LOAD SERVICE CLASSIFICATION~Retail Transmission Rate - Line and Transformation Connection Service Rate","SENTINEL LIGHTING SERVICE CLASSIFICATION~Retail Transmission Rate - Network Service Rate","SENTINEL LIGHTING SERVICE CLASSIFICATION~Retail Transmission Rate - Line and Transformation Connection Service Rate","STREET LIGHTING SERVICE CLASSIFICATION~Retail Transmission Rate - Network Service Rate","STREET LIGHTING SERVICE CLASSIFICATION~Retail Transmission Rate - Line and Transformation Connection Service Rate","EMBEDDED DISTRIBUTOR SERVICE CLASSIFICATION~Retail Transmission Rate - Network Service Rate","EMBEDDED DISTRIBUTOR SERVICE CLASSIFICATION~Retail Transmission Rate - Line and Transformation Connection Service Rate"]
["Entegrus Powerlines Inc.-For Entegrus-Main Rate Zone","RESIDENTIAL SERVICE CLASSIFICATION~Retail Transmission Rate - Network Service Rate","RESIDENTIAL SERVICE CLASSIFICATION~Retail Transmission Rate - Line and Transformation Connection Service Rate","GENERAL SERVICE LESS THAN 50 KW SERVICE CLASSIFICATION~Retail Transmission Rate - Network Service Rate","GENERAL SERVICE LESS THAN 50 KW SERVICE CLASSIFICATION~Retail Transmission Rate - Line and Transformation Connection Service Rate","GENERAL SERVICE 50 to 4,999 kW SERVICE CLASSIFICATION~Retail Transmission Rate - Network Service Rate","GENERAL SERVICE 50 to 4,999 kW SERVICE CLASSIFICATION~Retail Transmission Rate - Line and Transformation Connection Service Rate (see Note 1)","LARGE USE SERVICE CLASSIFICATION~Retail Transmission Rate - Network Service Rate","LARGE USE SERVICE CLASSIFICATION~Retail Transmission Rate - Line and Transformation Connection Service Rate (see Note 1)","UNMETERED SCATTERED LOAD SERVICE CLASSIFICATION~Retail Transmission Rate - Network Service Rate","UNMETERED SCATTERED LOAD SERVICE CLASSIFICATION~Retail Transmission Rate - Line and Transformation Connection Service Rate","SENTINEL LIGHTING SERVICE CLASSIFICATION~Retail Transmission Rate - Network Service Rate","SENTINEL LIGHTING SERVICE CLASSIFICATION~Retail Transmission Rate - Line and Transformation Connection Service Rate","STREET LIGHTING SERVICE CLASSIFICATION~Retail Transmission Rate - Network Service Rate","STREET LIGHTING SERVICE CLASSIFICATION~Retail Transmission Rate - Line and Transformation Connection Service Rate","EMBEDDED DISTRIBUTOR SERVICE CLASSIFICATION~Retail Transmission Rate - Network Service Rate","EMBEDDED DISTRIBUTOR SERVICE CLASSIFICATION~Retail Transmission Rate - Line and Transformation Connection Service Rate"]
["Lakeland Power Distribution Ltd.-Parry Sound Service Area","RESIDENTIAL SERVICE CLASSIFICATION~Retail Transmission Rate - Network Service Rate","RESIDENTIAL SERVICE CLASSIFICATION~Retail Transmission Rate - Line and Transformation Connection Service Rate","GENERAL SERVICE LESS THAN 50 KW SERVICE CLASSIFICATION~Retail Transmission Rate - Network Service Rate","GENERAL SERVICE LESS THAN 50 KW SERVICE CLASSIFICATION~Retail Transmission Rate - Line and Transformation Connection Service Rate","GENERAL SERVICE 50 to 4,999 kW SERVICE CLASSIFICATION~Retail Transmission Rate - Network Service Rate","GENERAL SERVICE 50 to 4,999 kW SERVICE CLASSIFICATION~Retail Transmission Rate - Line and Transformation Connection Service Rate","UNMETERED SCATTERED LOAD SERVICE CLASSIFICATION~Retail Transmission Rate - Network Service Rate","UNMETERED SCATTERED LOAD SERVICE CLASSIFICATION~Retail Transmission Rate - Line and Transformation Connection Service Rate","SENTINEL LIGHTING SERVICE CLASSIFICATION~Retail Transmission Rate - Network Service Rate","SENTINEL LIGHTING SERVICE CLASSIFICATION~Retail Transmission Rate - Line and Transformation Connection Service Rate","STREET LIGHTING SERVICE CLASSIFICATION~Retail Transmission Rate - Network Service Rate","STREET LIGHTING SERVICE CLASSIFICATION~Retail Transmission Rate - Line and Transformation Connection Service Rate"]
["Lakeland Power Distribution Ltd.","RESIDENTIAL SERVICE CLASSIFICATION~Retail Transmission Rate - Network Service Rate","RESIDENTIAL SERVICE CLASSIFICATION~Retail Transmission Rate - Line and Transformation Connection Service Rate","GENERAL SERVICE LESS THAN 50 KW SERVICE CLASSIFICATION~Retail Transmission Rate - Network Service Rate","GENERAL SERVICE LESS THAN 50 KW SERVICE CLASSIFICATION~Retail Transmission Rate - Line and Transformation Connection Service Rate","GENERAL SERVICE 50 to 4,999 kW SERVICE CLASSIFICATION~Retail Transmission Rate - Network Service Rate","GENERAL SERVICE 50 to 4,999 kW SERVICE CLASSIFICATION~Retail Transmission Rate - Line and Transformation Connection Service Rate","UNMETERED SCATTERED LOAD SERVICE CLASSIFICATION~Retail Transmission Rate - Network Service Rate","UNMETERED SCATTERED LOAD SERVICE CLASSIFICATION~Retail Transmission Rate - Line and Transformation Connection Service Rate","SENTINEL LIGHTING SERVICE CLASSIFICATION~Retail Transmission Rate - Network Service Rate","SENTINEL LIGHTING SERVICE CLASSIFICATION~Retail Transmission Rate - Line and Transformation Connection Service Rate","STREET LIGHTING SERVICE CLASSIFICATION~Retail Transmission Rate - Network Service Rate","STREET LIGHTING SERVICE CLASSIFICATION~Retail Transmission Rate - Line and Transformation Connection Service Rate"]
["Newmarket-Tay Power Distribution Ltd.-For Former Midland Power Utility Rate Zone","RESIDENTIAL SERVICE CLASSIFICATION~Retail Transmission Rate - Network Service Rate","RESIDENTIAL SERVICE CLASSIFICATION~Retail Transmission Rate - Line and Transformation Connection Service Rate","GENERAL SERVICE LESS THAN 50 KW SERVICE CLASSIFICATION~Retail Transmission Rate - Network Service Rate","GENERAL SERVICE LESS THAN 50 KW SERVICE CLASSIFICATION~Retail Transmission Rate - Line and Transformation Connection Service Rate","GENERAL SERVICE 50 to 4,999 kW SERVICE CLASSIFICATION~Retail Transmission Rate - Network Service Rate","GENERAL SERVICE 50 to 4,999 kW SERVICE CLASSIFICATION~Retail Transmission Rate - Line and Transformation Connection Service Rate ","UNMETERED SCATTERED LOAD SERVICE CLASSIFICATION~Retail Transmission Rate - Network Service Rate","UNMETERED SCATTERED LOAD SERVICE CLASSIFICATION~Retail Transmission Rate - Line and Transformation Connection Service Rate","STREET LIGHTING SERVICE CLASSIFICATION~Retail Transmission Rate - Network Service Rate","STREET LIGHTING SERVICE CLASSIFICATION~Retail Transmission Rate - Line and Transformation Connection Service Rate"]
["Newmarket-Tay Power Distribution Ltd.-For Newmarket-Tay Power Main Rate Zone","RESIDENTIAL SERVICE CLASSIFICATION~Retail Transmission Rate - Network Service Rate","RESIDENTIAL SERVICE CLASSIFICATION~Retail Transmission Rate - Line and Transformation Connection Service Rate","GENERAL SERVICE LESS THAN 50 KW SERVICE CLASSIFICATION~Retail Transmission Rate - Network Service Rate","GENERAL SERVICE LESS THAN 50 KW SERVICE CLASSIFICATION~Retail Transmission Rate - Line and Transformation Connection Service Rate","GENERAL SERVICE 50 to 4,999 kW SERVICE CLASSIFICATION~Retail Transmission Rate - Network Service Rate","GENERAL SERVICE 50 to 4,999 kW SERVICE CLASSIFICATION~Retail Transmission Rate - Line and Transformation Connection Service Rate","UNMETERED SCATTERED LOAD SERVICE CLASSIFICATION~Retail Transmission Rate - Network Service Rate","UNMETERED SCATTERED LOAD SERVICE CLASSIFICATION~Retail Transmission Rate - Line and Transformation Connection Service Rate","SENTINEL LIGHTING SERVICE CLASSIFICATION~Retail Transmission Rate - Network Service Rate","SENTINEL LIGHTING SERVICE CLASSIFICATION~Retail Transmission Rate - Line and Transformation Connection Service Rate","STREET LIGHTING SERVICE CLASSIFICATION~Retail Transmission Rate - Network Service Rate","STREET LIGHTING SERVICE CLASSIFICATION~Retail Transmission Rate - Line and Transformation Connection Service Rate"]
["Bluewater Power Distribution Corporation","RESIDENTIAL SERVICE CLASSIFICATION~Retail Transmission Rate - Network Service Rate","RESIDENTIAL SERVICE CLASSIFICATION~Retail Transmission Rate - Line and Transformation Connection Service Rate","GENERAL SERVICE LESS THAN 50 KW SERVICE CLASSIFICATION~Retail Transmission Rate - Network Service Rate","GENERAL SERVICE LESS THAN 50 KW SERVICE CLASSIFICATION~Retail Transmission Rate - Line and Transformation Connection Service Rate","GENERAL SERVICE 50 TO 999 KW SERVICE CLASSIFICATION~Retail Transmission Rate - Network Service Rate","GENERAL SERVICE 50 TO 999 KW SERVICE CLASSIFICATION~Retail Transmission Rate - Line and Transformation Connection Service Rate","GENERAL SERVICE 1,000 TO 4,999 KW SERVICE CLASSIFICATION~Retail Transmission Rate - Network Service Rate","GENERAL SERVICE 1,000 TO 4,999 KW SERVICE CLASSIFICATION~Retail Transmission Rate - Line and Transformation Connection Service Rate","LARGE USE SERVICE CLASSIFICATION~Retail Transmission Rate - Network Service Rate - Interval Metered","LARGE USE SERVICE CLASSIFICATION~Retail Transmission Rate - Line and Transformation Connection Service Rate - Interval Metered","UNMETERED SCATTERED LOAD SERVICE CLASSIFICATION~Retail Transmission Rate - Network Service Rate","UNMETERED SCATTERED LOAD SERVICE CLASSIFICATION~Retail Transmission Rate - Line and Transformation Connection Service Rate","SENTINEL LIGHTING SERVICE CLASSIFICATION~Retail Transmission Rate - Network Service Rate","SENTINEL LIGHTING SERVICE CLASSIFICATION~Retail Transmission Rate - Line and Transformation Connection Service Rate","STREET LIGHTING SERVICE CLASSIFICATION~Retail Transmission Rate - Network Service Rate","STREET LIGHTING SERVICE CLASSIFICATION~Retail Transmission Rate - Line and Transformation Connection Service Rate"]
["Atikokan Hydro Inc.","RESIDENTIAL SERVICE CLASSIFICATION~Retail Transmission Rate - Network Service Rate","RESIDENTIAL SERVICE CLASSIFICATION~Retail Transmission Rate - Transformation Connection Service Rate","GENERAL SERVICE LESS THAN 50 KW SERVICE CLASSIFICATION~Retail Transmission Rate - Network Service Rate","GENERAL SERVICE LESS THAN 50 KW SERVICE CLASSIFICATION~Retail Transmission Rate - Transformation Connection Service Rate","GENERAL SERVICE 50 to 4,999 kW SERVICE CLASSIFICATION~Retail Transmission Rate - Network Service Rate","GENERAL SERVICE 50 to 4,999 kW SERVICE CLASSIFICATION~Retail Transmission Rate - Line and Transformation Connection Service Rate","GENERAL SERVICE 50 to 4,999 kW SERVICE CLASSIFICATION~Retail Transmission Rate - Network Service Rate - Interval Metered","GENERAL SERVICE 50 to 4,999 kW SERVICE CLASSIFICATION~Retail Transmission Rate - Line and Transformation Connection Service Rate - Interval Metered","STREET LIGHTING SERVICE CLASSIFICATION~Retail Transmission Rate - Network Service Rate","STREET LIGHTING SERVICE CLASSIFICATION~Retail Transmission Rate - Line and Transformation Connection Service Rate"]
["Burlington Hydro Inc.","RESIDENTIAL SERVICE CLASSIFICATION~Retail Transmission Rate - Network Service Rate","RESIDENTIAL SERVICE CLASSIFICATION~Retail Transmission Rate - Line and Transformation Connection Service Rate","GENERAL SERVICE LESS THAN 50 KW SERVICE CLASSIFICATION~Retail Transmission Rate - Network Service Rate","GENERAL SERVICE LESS THAN 50 KW SERVICE CLASSIFICATION~Retail Transmission Rate - Line and Transformation Connection Service Rate","GENERAL SERVICE 50 to 4,999 kW SERVICE CLASSIFICATION~Retail Transmission Rate - Network Service Rate - Interval Metered","GENERAL SERVICE 50 to 4,999 kW SERVICE CLASSIFICATION~Retail Transmission Rate - Line and Transformation Connection Service Rate - Interval Metered ","UNMETERED SCATTERED LOAD SERVICE CLASSIFICATION~Retail Transmission Rate - Network Service Rate","UNMETERED SCATTERED LOAD SERVICE CLASSIFICATION~Retail Transmission Rate - Line and Transformation Connection Service Rate","STREET LIGHTING SERVICE CLASSIFICATION~Retail Transmission Rate - Network Service Rate","STREET LIGHTING SERVICE CLASSIFICATION~Retail Transmission Rate - Line Connection Service Rate"]
["E.L.K. Energy Inc.","RESIDENTIAL SERVICE CLASSIFICATION~Retail Transmission Rate - Network Service Rate","RESIDENTIAL SERVICE CLASSIFICATION~Retail Transmission Rate - Line and Transformation Connection Service Rate","GENERAL SERVICE LESS THAN 50 KW SERVICE CLASSIFICATION~Retail Transmission Rate - Network Service Rate","GENERAL SERVICE LESS THAN 50 KW SERVICE CLASSIFICATION~Retail Transmission Rate - Line and Transformation Connection Service Rate","GENERAL SERVICE 50 to 4,999 kW SERVICE CLASSIFICATION~Retail Transmission Rate - Network Service Rate","GENERAL SERVICE 50 to 4,999 kW SERVICE CLASSIFICATION~Retail Transmission Rate - Line and Transformation Connection Service Rate ","UNMETERED SCATTERED LOAD SERVICE CLASSIFICATION~Retail Transmission Rate - Network Service Rate","UNMETERED SCATTERED LOAD SERVICE CLASSIFICATION~Retail Transmission Rate - Line and Transformation Connection Service Rate","SENTINEL LIGHTING SERVICE CLASSIFICATION~Retail Transmission Rate - Network Service Rate","SENTINEL LIGHTING SERVICE CLASSIFICATION~Retail Transmission Rate - Line and Transformation Connection Service Rate","STREET LIGHTING SERVICE CLASSIFICATION~Retail Transmission Rate - Network Service Rate","STREET LIGHTING SERVICE CLASSIFICATION~Retail Transmission Rate - Line and Transformation Connection Service Rate","EMBEDDED DISTRIBUTOR SERVICE CLASSIFICATION~Retail Transmission Rate - Network Service Rate","EMBEDDED DISTRIBUTOR SERVICE CLASSIFICATION~Retail Transmission Rate - Line and Transformation Connection Service Rate"]
["EPCOR Electricity Distribution Ontario Inc.","RESIDENTIAL SERVICE CLASSIFICATION~Retail Transmission Rate - Network Service Rate","RESIDENTIAL SERVICE CLASSIFICATION~Retail Transmission Rate - Line and Transformation Connection Service Rate","GENERAL SERVICE LESS THAN 50 KW SERVICE CLASSIFICATION~Retail Transmission Rate - Network Service Rate","GENERAL SERVICE LESS THAN 50 KW SERVICE CLASSIFICATION~Retail Transmission Rate - Line and Transformation Connection Service Rate","GENERAL SERVICE 50 to 4,999 kW SERVICE CLASSIFICATION~Retail Transmission Rate - Network Service Rate","GENERAL SERVICE 50 to 4,999 kW SERVICE CLASSIFICATION~Retail Transmission Rate - Line and Transformation Connection Service Rate ","UNMETERED SCATTERED LOAD SERVICE CLASSIFICATION~Retail Transmission Rate - Network Service Rate","UNMETERED SCATTERED LOAD SERVICE CLASSIFICATION~Retail Transmission Rate - Line and Transformation Connection Service Rate","STREET LIGHTING SERVICE CLASSIFICATION~Retail Transmission Rate - Network Service Rate","STREET LIGHTING SERVICE CLASSIFICATION~Retail Transmission Rate - Line and Transformation Connection Service Rate"]
["Essex Powerlines Corporation","RESIDENTIAL SERVICE CLASSIFICATION~Retail Transmission Rate - Network Service Rate","RESIDENTIAL SERVICE CLASSIFICATION~Retail Transmission Rate - Line and Transformation Connection Service Rate","GENERAL SERVICE LESS THAN 50 KW SERVICE CLASSIFICATION~Retail Transmission Rate - Network Service Rate","GENERAL SERVICE LESS THAN 50 KW SERVICE CLASSIFICATION~Retail Transmission Rate - Line and Transformation Connection Service Rate","GENERAL SERVICE 50 to 4,999 kW SERVICE CLASSIFICATION~Retail Transmission Rate - Network Service Rate","GENERAL SERVICE 50 to 4,999 kW SERVICE CLASSIFICATION~Retail Transmission Rate - Line and Transformation Connection Service Rate","GENERAL SERVICE 50 to 4,999 kW SERVICE CLASSIFICATION~Retail Transmission Rate - Network Service Rate - Interval Metered","GENERAL SERVICE 50 to 4,999 kW SERVICE CLASSIFICATION~Retail Transmission Rate - Line and Transformation Connection Service Rate - Interval Metered","UNMETERED SCATTERED LOAD SERVICE CLASSIFICATION~Retail Transmission Rate - Network Service Rate","UNMETERED SCATTERED LOAD SERVICE CLASSIFICATION~Retail Transmission Rate - Line and Transformation Connection Service Rate","SENTINEL LIGHTING SERVICE CLASSIFICATION~Retail Transmission Rate - Network Service Rate","SENTINEL LIGHTING SERVICE CLASSIFICATION~Retail Transmission Rate - Line and Transformation Connection Service Rate","STREET LIGHTING SERVICE CLASSIFICATION~Retail Transmission Rate - Network Service Rate","STREET LIGHTING SERVICE CLASSIFICATION~Retail Transmission Rate - Line and Transformation Connection Service Rate"]
["Fort Frances Power Corporation","RESIDENTIAL SERVICE CLASSIFICATION~Retail Transmission Rate - Network Service Rate","RESIDENTIAL SERVICE CLASSIFICATION~Retail Transmission Rate - Line and Transformation Connection Service Rate","GENERAL SERVICE LESS THAN 50 KW SERVICE CLASSIFICATION~Retail Transmission Rate - Network Service Rate","GENERAL SERVICE LESS THAN 50 KW SERVICE CLASSIFICATION~Retail Transmission Rate - Line and Transformation Connection Service Rate","GENERAL SERVICE 50 to 4,999 kW SERVICE CLASSIFICATION~Retail Transmission Rate - Network Service Rate","GENERAL SERVICE 50 to 4,999 kW SERVICE CLASSIFICATION~Retail Transmission Rate - Line and Transformation Connection Service Rate","UNMETERED SCATTERED LOAD SERVICE CLASSIFICATION~Retail Transmission Rate - Network Service Rate","UNMETERED SCATTERED LOAD SERVICE CLASSIFICATION~Retail Transmission Rate - Line and Transformation Connection Service Rate","STREET LIGHTING SERVICE CLASSIFICATION~Retail Transmission Rate - Network Service Rate","STREET LIGHTING SERVICE CLASSIFICATION~Retail Transmission Rate - Line and Transformation Connection Service Rate"]
["Greater Sudbury Hydro Inc.","RESIDENTIAL SERVICE CLASSIFICATION~Retail Transmission Rate - Network Service Rate","RESIDENTIAL SERVICE CLASSIFICATION~Retail Transmission Rate - Line and Transformation Connection Service Rate","GENERAL SERVICE LESS THAN 50 KW SERVICE CLASSIFICATION~Retail Transmission Rate - Network Service Rate","GENERAL SERVICE LESS THAN 50 KW SERVICE CLASSIFICATION~Retail Transmission Rate - Line and Transformation Connection Service Rate","GENERAL SERVICE 50 to 4,999 kW SERVICE CLASSIFICATION~Retail Transmission Rate - Network Service Rate","GENERAL SERVICE 50 to 4,999 kW SERVICE CLASSIFICATION~Retail Transmission Rate - Line and Transformation Connection Service Rate","UNMETERED SCATTERED LOAD SERVICE CLASSIFICATION~Retail Transmission Rate - Network Service Rate","UNMETERED SCATTERED LOAD SERVICE CLASSIFICATION~Retail Transmission Rate - Line and Transformation Connection Service Rate","SENTINEL LIGHTING SERVICE CLASSIFICATION~Retail Transmission Rate - Network Service Rate","SENTINEL LIGHTING SERVICE CLASSIFICATION~Retail Transmission Rate - Line and Transformation Connection Service Rate","STREET LIGHTING SERVICE CLASSIFICATION~Retail Transmission Rate - Network Service Rate","STREET LIGHTING SERVICE CLASSIFICATION~Retail Transmission Rate - Line and Transformation Connection Service Rate"]
["Halton Hills Hydro Inc.","RESIDENTIAL SERVICE CLASSIFICATION~Retail Transmission Rate - Network Service Rate","RESIDENTIAL SERVICE CLASSIFICATION~Retail Transmission Rate - Line and Transformation Connection Service Rate","GENERAL SERVICE LESS THAN 50 KW SERVICE CLASSIFICATION~Retail Transmission Rate - Network Service Rate","GENERAL SERVICE LESS THAN 50 KW SERVICE CLASSIFICATION~Retail Transmission Rate - Line and Transformation Connection Service Rate","GENERAL SERVICE 50 TO 999 KW SERVICE CLASSIFICATION~Retail Transmission Rate - Network Service Rate","GENERAL SERVICE 50 TO 999 KW SERVICE CLASSIFICATION~Retail Transmission Rate - Line and Transformation Connection Service Rate","GENERAL SERVICE 1,000 TO 4,999 KW SERVICE CLASSIFICATION~Retail Transmission Rate - Network Service Rate","GENERAL SERVICE 1,000 TO 4,999 KW SERVICE CLASSIFICATION~Retail Transmission Rate - Line and Transformation Connection Service Rate","UNMETERED SCATTERED LOAD SERVICE CLASSIFICATION~Retail Transmission Rate - Network Service Rate","UNMETERED SCATTERED LOAD SERVICE CLASSIFICATION~Retail Transmission Rate - Line and Transformation Connection Service Rate","SENTINEL LIGHTING SERVICE CLASSIFICATION~Retail Transmission Rate - Network Service Rate","SENTINEL LIGHTING SERVICE CLASSIFICATION~Retail Transmission Rate - Line and Transformation Connection Service Rate","STREET LIGHTING SERVICE CLASSIFICATION~Retail Transmission Rate - Network Service Rate","STREET LIGHTING SERVICE CLASSIFICATION~Retail Transmission Rate - Line and Transformation Connection Service Rate"]
["Hydro One Networks Inc.-Former Haldimand County Hydro Inc. Service Area","RESIDENTIAL SERVICE CLASSIFICATION~Retail Transmission Rate - Network Service Rate","RESIDENTIAL SERVICE CLASSIFICATION~Retail Transmission Rate - Line and Transformation Connection Service Rate","GENERAL SERVICE LESS THAN 50 KW SERVICE CLASSIFICATION~Retail Transmission Rate - Network Service Rate","GENERAL SERVICE LESS THAN 50 KW SERVICE CLASSIFICATION~Retail Transmission Rate - Line and Transformation Connection Service Rate","GENERAL SERVICE 50 to 4,999 kW SERVICE CLASSIFICATION~Retail Transmission Rate - Network Service Rate","GENERAL SERVICE 50 to 4,999 kW SERVICE CLASSIFICATION~Retail Transmission Rate - Line and Transformation Connection Service Rate","UNMETERED SCATTERED LOAD SERVICE CLASSIFICATION~Retail Transmission Rate - Network Service Rate","UNMETERED SCATTERED LOAD SERVICE CLASSIFICATION~Retail Transmission Rate - Line and Transformation Connection Service Rate","SENTINEL LIGHTING SERVICE CLASSIFICATION~Retail Transmission Rate - Network Service Rate","SENTINEL LIGHTING SERVICE CLASSIFICATION~Retail Transmission Rate - Line and Transformation Connection Service Rate","STREET LIGHTING SERVICE CLASSIFICATION~Retail Transmission Rate - Network Service Rate","STREET LIGHTING SERVICE CLASSIFICATION~Retail Transmission Rate - Line and Transformation Connection Service Rate","EMBEDDED DISTRIBUTOR SERVICE CLASSIFICATION FOR HYDRO ONE NETWORKS INC.~Retail Transmission Rate - Network Service Rate","EMBEDDED DISTRIBUTOR SERVICE CLASSIFICATION FOR HYDRO ONE NETWORKS INC.~Retail Transmission Rate - Line and Transformation Connection Service Rate"]
["Hydro One Networks Inc.-Former Norfolk Power Distribution Inc. Service Area","RESIDENTIAL SERVICE CLASSIFICATION~Retail Transmission Rate - Network Service Rate","RESIDENTIAL SERVICE CLASSIFICATION~Retail Transmission Rate - Line and Transformation Connection Service Rate","GENERAL SERVICE LESS THAN 50 KW SERVICE CLASSIFICATION~Retail Transmission Rate - Network Service Rate","GENERAL SERVICE LESS THAN 50 KW SERVICE CLASSIFICATION~Retail Transmission Rate - Line and Transformation Connection Service Rate","GENERAL SERVICE 50 to 4,999 kW SERVICE CLASSIFICATION~Retail Transmission Rate - Network Service Rate","GENERAL SERVICE 50 to 4,999 kW SERVICE CLASSIFICATION~Retail Transmission Rate - Line and Transformation Connection Service Rate","UNMETERED SCATTERED LOAD SERVICE CLASSIFICATION~Retail Transmission Rate - Network Service Rate","UNMETERED SCATTERED LOAD SERVICE CLASSIFICATION~Retail Transmission Rate - Line and Transformation Connection Service Rate","SENTINEL LIGHTING SERVICE CLASSIFICATION~Retail Transmission Rate - Network Service Rate","SENTINEL LIGHTING SERVICE CLASSIFICATION~Retail Transmission Rate - Line and Transformation Connection Service Rate","STREET LIGHTING SERVICE CLASSIFICATION~Retail Transmission Rate - Network Service Rate","STREET LIGHTING SERVICE CLASSIFICATION~Retail Transmission Rate - Line and Transformation Connection Service Rate"]
["Hydro One Networks Inc.-Former Woodstock Hydro Services Inc. Service Area","RESIDENTIAL SERVICE CLASSIFICATION~Retail Transmission Rate - Network Service Rate","RESIDENTIAL SERVICE CLASSIFICATION~Retail Transmission Rate - Line and Transformation Connection Service Rate","GENERAL SERVICE LESS THAN 50 KW SERVICE CLASSIFICATION~Retail Transmission Rate - Network Service Rate","GENERAL SERVICE LESS THAN 50 KW SERVICE CLASSIFICATION~Retail Transmission Rate - Line and Transformation Connection Service Rate","GENERAL SERVICE 50 TO 999 KW SERVICE CLASSIFICATION~Retail Transmission Rate - Network Service Rate","GENERAL SERVICE 50 TO 999 KW SERVICE CLASSIFICATION~Retail Transmission Rate - Line and Transformation Connection Service Rate","GENERAL SERVICE GREATER THAN 1,000 KW SERVICE CLASSIFICATION~Retail Transmission Rate - Network Service Rate","GENERAL SERVICE GREATER THAN 1,000 KW SERVICE CLASSIFICATION~Retail Transmission Rate - Line and Transformation Connection Service Rate","UNMETERED SCATTERED LOAD SERVICE CLASSIFICATION~Retail Transmission Rate - Network Service Rate","UNMETERED SCATTERED LOAD SERVICE CLASSIFICATION~Retail Transmission Rate - Line and Transformation Connection Service Rate","STREET LIGHTING SERVICE CLASSIFICATION~Retail Transmission Rate - Network Service Rate","STREET LIGHTING SERVICE CLASSIFICATION~Retail Transmission Rate - Line and Transformation Connection Service Rate"]
["Synergy North Corporation-Kenora Rate Zone","RESIDENTIAL SERVICE CLASSIFICATION~Retail Transmission Rate - Network Service Rate","RESIDENTIAL SERVICE CLASSIFICATION~Retail Transmission Rate - Line and Transformation Connection Service Rate","GENERAL SERVICE LESS THAN 50 KW SERVICE CLASSIFICATION~Retail Transmission Rate - Network Service Rate","GENERAL SERVICE LESS THAN 50 KW SERVICE CLASSIFICATION~Retail Transmission Rate - Line and Transformation Connection Service Rate","GENERAL SERVICE 50 to 4,999 kW SERVICE CLASSIFICATION~Retail Transmission Rate - Network Service Rate","GENERAL SERVICE 50 to 4,999 kW SERVICE CLASSIFICATION~Retail Transmission Rate - Line and Transformation Connection Service Rate","UNMETERED SCATTERED LOAD SERVICE CLASSIFICATION~Retail Transmission Rate - Network Service Rate","UNMETERED SCATTERED LOAD SERVICE CLASSIFICATION~Retail Transmission Rate - Line and Transformation Connection Service Rate","STREET LIGHTING SERVICE CLASSIFICATION~Retail Transmission Rate - Network Service Rate","STREET LIGHTING SERVICE CLASSIFICATION~Retail Transmission Rate - Line and Transformation Connection Service Rate"]
["London Hydro Inc.","RESIDENTIAL SERVICE CLASSIFICATION~Retail Transmission Rate - Network Service Rate","RESIDENTIAL SERVICE CLASSIFICATION~Retail Transmission Rate - Line and Transformation Connection Service Rate","GENERAL SERVICE LESS THAN 50 KW SERVICE CLASSIFICATION~Retail Transmission Rate - Network Service Rate","GENERAL SERVICE LESS THAN 50 KW SERVICE CLASSIFICATION~Retail Transmission Rate - Line and Transformation Connection Service Rate ","GENERAL SERVICE 50 to 4,999 kW SERVICE CLASSIFICATION~Retail Transmission Rate - Network Service Rate","GENERAL SERVICE 50 to 4,999 kW SERVICE CLASSIFICATION~Retail Transmission Rate - Line and Transformation Connection Service Rate ","GENERAL SERVICE 50 to 4,999 kW SERVICE CLASSIFICATION~Retail Transmission Rate - Network Service Rate - Interval Metered","GENERAL SERVICE 50 to 4,999 kW SERVICE CLASSIFICATION~Retail Transmission Rate - Line and Transformation Connection Service Rate - Interval Metered ","GENERAL SERVICE 1,000 TO 4,999 KW (CO-GENERATION) SERVICE CLASSIFICATION~Retail Transmission Rate - Network Service Rate","GENERAL SERVICE 1,000 TO 4,999 KW (CO-GENERATION) SERVICE CLASSIFICATION~Retail Transmission Rate - Line and Transformation Connection Service Rate ","LARGE USE SERVICE CLASSIFICATION~Retail Transmission Rate - Network Service Rate - Interval Metered","LARGE USE SERVICE CLASSIFICATION~Retail Transmission Rate - Line and Transformation Connection Service Rate - Interval Metered ","STREET LIGHTING SERVICE CLASSIFICATION~Retail Transmission Rate - Network Service Rate","STREET LIGHTING SERVICE CLASSIFICATION~Retail Transmission Rate - Line and Transformation Connection Service Rate ","SENTINEL LIGHTING SERVICE CLASSIFICATION~Retail Transmission Rate - Network Service Rate","SENTINEL LIGHTING SERVICE CLASSIFICATION~Retail Transmission Rate - Line and Transformation Connection Service Rate","UNMETERED SCATTERED LOAD SERVICE CLASSIFICATION~Retail Transmission Rate - Network Service Rate","UNMETERED SCATTERED LOAD SERVICE CLASSIFICATION~Retail Transmission Rate - Line and Transformation Connection Service Rate"]
["Milton Hydro Distribution Inc.","RESIDENTIAL SERVICE CLASSIFICATION~Retail Transmission Rate - Network Service Rate","RESIDENTIAL SERVICE CLASSIFICATION~Retail Transmission Rate - Line and Transformation Connection Service Rate","GENERAL SERVICE LESS THAN 50 KW SERVICE CLASSIFICATION~Retail Transmission Rate - Network Service Rate","GENERAL SERVICE LESS THAN 50 KW SERVICE CLASSIFICATION~Retail Transmission Rate - Line and Transformation Connection Service Rate","GENERAL SERVICE 50 TO 999 KW SERVICE CLASSIFICATION~Retail Transmission Rate - Network Service Rate","GENERAL SERVICE 50 TO 999 KW SERVICE CLASSIFICATION~Retail Transmission Rate - Line and Transformation Connection Service Rate","GENERAL SERVICE 1,000 TO 4,999 KW SERVICE CLASSIFICATION~Retail Transmission Rate - Network Service Rate","GENERAL SERVICE 1,000 TO 4,999 KW SERVICE CLASSIFICATION~Retail Transmission Rate - Line and Transformation Connection Service Rate","LARGE USE SERVICE CLASSIFICATION~Retail Transmission Rate - Network Service Rate - Interval Metered","LARGE USE SERVICE CLASSIFICATION~Retail Transmission Rate - Line and Transformation Connection Service Rate - Interval Metered","UNMETERED SCATTERED LOAD SERVICE CLASSIFICATION~Retail Transmission Rate - Network Service Rate","UNMETERED SCATTERED LOAD SERVICE CLASSIFICATION~Retail Transmission Rate - Line and Transformation Connection Service Rate","SENTINEL LIGHTING SERVICE CLASSIFICATION~Retail Transmission Rate - Network Service Rate","SENTINEL LIGHTING SERVICE CLASSIFICATION~Retail Transmission Rate - Line and Transformation Connection Service Rate","STREET LIGHTING SERVICE CLASSIFICATION~Retail Transmission Rate - Network Service Rate","STREET LIGHTING SERVICE CLASSIFICATION~Retail Transmission Rate - Line and Transformation Connection Service Rate"]
["North Bay Hydro Distribution Limited","RESIDENTIAL SERVICE CLASSIFICATION~Retail Transmission Rate - Network Service Rate","RESIDENTIAL SERVICE CLASSIFICATION~Retail Transmission Rate - Line and Transformation Connection Service Rate","GENERAL SERVICE LESS THAN 50 KW SERVICE CLASSIFICATION~Retail Transmission Rate - Network Service Rate","GENERAL SERVICE LESS THAN 50 KW SERVICE CLASSIFICATION~Retail Transmission Rate - Line and Transformation Connection Service Rate","GENERAL SERVICE 50 TO 2,999 KW SERVICE CLASSIFICATION~Retail Transmission Rate - Network Service Rate","GENERAL SERVICE 50 TO 2,999 KW SERVICE CLASSIFICATION~Retail Transmission Rate - Line and Transformation Connection Service Rate","GENERAL SERVICE 3,000 TO 4,999 KW SERVICE CLASSIFICATION~Retail Transmission Rate - Network Service Rate - Interval Metered","GENERAL SERVICE 3,000 TO 4,999 KW SERVICE CLASSIFICATION~Retail Transmission Rate - Line and Transformation Connection Service Rate - Interval Metered","UNMETERED SCATTERED LOAD SERVICE CLASSIFICATION~Retail Transmission Rate - Network Service Rate","UNMETERED SCATTERED LOAD SERVICE CLASSIFICATION~Retail Transmission Rate - Line and Transformation Connection Service Rate","SENTINEL LIGHTING SERVICE CLASSIFICATION~Retail Transmission Rate - Network Service Rate","SENTINEL LIGHTING SERVICE CLASSIFICATION~Retail Transmission Rate - Line and Transformation Connection Service Rate","STREET LIGHTING SERVICE CLASSIFICATION~Retail Transmission Rate - Network Service Rate","STREET LIGHTING SERVICE CLASSIFICATION~Retail Transmission Rate - Line and Transformation Connection Service Rate"]
["Northern Ontario Wires Inc.","RESIDENTIAL SERVICE CLASSIFICATION~Retail Transmission Rate - Network Service Rate","RESIDENTIAL SERVICE CLASSIFICATION~Retail Transmission Rate - Line and Transformation Connection Service Rate","GENERAL SERVICE LESS THAN 50 KW SERVICE CLASSIFICATION~Retail Transmission Rate - Network Service Rate","GENERAL SERVICE LESS THAN 50 KW SERVICE CLASSIFICATION~Retail Transmission Rate - Line and Transformation Connection Service Rate","GENERAL SERVICE 50 to 4,999 kW SERVICE CLASSIFICATION~Retail Transmission Rate - Network Service Rate","GENERAL SERVICE 50 to 4,999 kW SERVICE CLASSIFICATION~Retail Transmission Rate - Line and Transformation Connection Service Rate ","UNMETERED SCATTERED LOAD SERVICE CLASSIFICATION~Retail Transmission Rate - Network Service Rate","UNMETERED SCATTERED LOAD SERVICE CLASSIFICATION~Retail Transmission Rate - Line and Transformation Connection Service Rate","STREET LIGHTING SERVICE CLASSIFICATION~Retail Transmission Rate - Network Service Rate","STREET LIGHTING SERVICE CLASSIFICATION~Retail Transmission Rate - Line and Transformation Connection Service Rate"]
["Niagara Peninsula Energy Inc.","RESIDENTIAL SERVICE CLASSIFICATION~Retail Transmission Rate - Network Service Rate","RESIDENTIAL SERVICE CLASSIFICATION~Retail Transmission Rate - Line and Transformation Connection Service Rate","GENERAL SERVICE LESS THAN 50 KW SERVICE CLASSIFICATION~Retail Transmission Rate - Network Service Rate","GENERAL SERVICE LESS THAN 50 KW SERVICE CLASSIFICATION~Retail Transmission Rate - Line and Transformation Connection Service Rate","GENERAL SERVICE 50 to 4,999 kW SERVICE CLASSIFICATION~Retail Transmission Rate - Network Service Rate","GENERAL SERVICE 50 to 4,999 kW SERVICE CLASSIFICATION~Retail Transmission Rate - Line and Transformation Connection Service Rate ","UNMETERED SCATTERED LOAD SERVICE CLASSIFICATION~Retail Transmission Rate - Network Service Rate","UNMETERED SCATTERED LOAD SERVICE CLASSIFICATION~Retail Transmission Rate - Line and Transformation Connection Service Rate","SENTINEL LIGHTING SERVICE CLASSIFICATION~Retail Transmission Rate - Network Service Rate","SENTINEL LIGHTING SERVICE CLASSIFICATION~Retail Transmission Rate - Line and Transformation Connection Service Rate","STREET LIGHTING SERVICE CLASSIFICATION~Retail Transmission Rate - Network Service Rate","STREET LIGHTING SERVICE CLASSIFICATION~Retail Transmission Rate - Line and Transformation Connection Service Rate"]
["Orangeville Hydro Limited","RESIDENTIAL SERVICE CLASSIFICATION~Retail Transmission Rate - Network Service Rate","RESIDENTIAL SERVICE CLASSIFICATION~Retail Transmission Rate - Line and Transformation Connection Service Rate","GENERAL SERVICE LESS THAN 50 KW SERVICE CLASSIFICATION~Retail Transmission Rate - Network Service Rate","GENERAL SERVICE LESS THAN 50 KW SERVICE CLASSIFICATION~Retail Transmission Rate - Line and Transformation Connection Service Rate","GENERAL SERVICE 50 to 4,999 kW SERVICE CLASSIFICATION~Retail Transmission Rate - Network Service Rate","GENERAL SERVICE 50 to 4,999 kW SERVICE CLASSIFICATION~Retail Transmission Rate - Line and Transformation Connection Service Rate","SENTINEL LIGHTING SERVICE CLASSIFICATION~Retail Transmission Rate - Network Service Rate","SENTINEL LIGHTING SERVICE CLASSIFICATION~Retail Transmission Rate - Line and Transformation Connection Service Rate","STREET LIGHTING SERVICE CLASSIFICATION~Retail Transmission Rate - Network Service Rate","STREET LIGHTING SERVICE CLASSIFICATION~Retail Transmission Rate - Line and Transformation Connection Service Rate","UNMETERED SCATTERED LOAD SERVICE CLASSIFICATION~Retail Transmission Rate - Network Service Rate","UNMETERED SCATTERED LOAD SERVICE CLASSIFICATION~Retail Transmission Rate - Line and Transformation Connection Service Rate"]
["Orillia Power Distribution Corporation","RESIDENTIAL SERVICE CLASSIFICATION~Retail Transmission Rate - Network Service Rate","RESIDENTIAL SERVICE CLASSIFICATION~Retail Transmission Rate - Line and Transformation Connection Service Rate","GENERAL SERVICE LESS THAN 50 KW SERVICE CLASSIFICATION~Retail Transmission Rate - Network Service Rate","GENERAL SERVICE LESS THAN 50 KW SERVICE CLASSIFICATION~Retail Transmission Rate - Line and Transformation Connection Service Rate","GENERAL SERVICE 50 to 4,999 kW SERVICE CLASSIFICATION~Retail Transmission Rate - Network Service Rate","GENERAL SERVICE 50 to 4,999 kW SERVICE CLASSIFICATION~Retail Transmission Rate - Line and Transformation Connection Service Rate","UNMETERED SCATTERED LOAD SERVICE CLASSIFICATION~Retail Transmission Rate - Network Service Rate","UNMETERED SCATTERED LOAD SERVICE CLASSIFICATION~Retail Transmission Rate - Line and Transformation Connection Service Rate","SENTINEL LIGHTING SERVICE CLASSIFICATION~Retail Transmission Rate - Network Service Rate","SENTINEL LIGHTING SERVICE CLASSIFICATION~Retail Transmission Rate - Line and Transformation Connection Service Rate","STREET LIGHTING SERVICE CLASSIFICATION~Retail Transmission Rate - Network Service Rate","STREET LIGHTING SERVICE CLASSIFICATION~Retail Transmission Rate - Line and Transformation Connection Service Rate"]
["Ottawa River Power Corporation","RESIDENTIAL SERVICE CLASSIFICATION~Retail Transmission Rate - Network Service Rate","RESIDENTIAL SERVICE CLASSIFICATION~Retail Transmission Rate - Line and Transformation Connection Service Rate","GENERAL SERVICE LESS THAN 50 KW SERVICE CLASSIFICATION~Retail Transmission Rate - Network Service Rate","GENERAL SERVICE LESS THAN 50 KW SERVICE CLASSIFICATION~Retail Transmission Rate - Line and Transformation Connection Service Rate","GENERAL SERVICE 50 to 4,999 kW SERVICE CLASSIFICATION~Retail Transmission Rate - Network Service Rate","GENERAL SERVICE 50 to 4,999 kW SERVICE CLASSIFICATION~Retail Transmission Rate - Line and Transformation Connection Service Rate","SENTINEL LIGHTING SERVICE CLASSIFICATION~Retail Transmission Rate - Network Service Rate","SENTINEL LIGHTING SERVICE CLASSIFICATION~Retail Transmission Rate - Line and Transformation Connection Service Rate","STREET LIGHTING SERVICE CLASSIFICATION~Retail Transmission Rate - Network Service Rate","STREET LIGHTING SERVICE CLASSIFICATION~Retail Transmission Rate - Line and Transformation Connection Service Rate","UNMETERED SCATTERED LOAD SERVICE CLASSIFICATION~Retail Transmission Rate - Network Service Rate","UNMETERED SCATTERED LOAD SERVICE CLASSIFICATION~Retail Transmission Rate - Line and Transformation Connection Service Rate"]
["Peterborough Distribution Incorporated","RESIDENTIAL SERVICE CLASSIFICATION~Retail Transmission Rate - Network Service Rate","RESIDENTIAL SERVICE CLASSIFICATION~Retail Transmission Rate - Line and Transformation Connection Service Rate","GENERAL SERVICE LESS THAN 50 KW SERVICE CLASSIFICATION~Retail Transmission Rate - Network Service Rate","GENERAL SERVICE LESS THAN 50 KW SERVICE CLASSIFICATION~Retail Transmission Rate - Line and Transformation Connection Service Rate","GENERAL SERVICE 50 to 4,999 kW SERVICE CLASSIFICATION~Retail Transmission Rate - Network Service Rate","GENERAL SERVICE 50 to 4,999 kW SERVICE CLASSIFICATION~Retail Transmission Rate - Line and Transformation Connection Service Rate","LARGE USE SERVICE CLASSIFICATION~Retail Transmission Rate - Network Service Rate","LARGE USE SERVICE CLASSIFICATION~Retail Transmission Rate - Line and Transformation Connection Service Rate","UNMETERED SCATTERED LOAD SERVICE CLASSIFICATION~Retail Transmission Rate - Network Service Rate","UNMETERED SCATTERED LOAD SERVICE CLASSIFICATION~Retail Transmission Rate - Line and Transformation Connection Service Rate","SENTINEL LIGHTING SERVICE CLASSIFICATION~Retail Transmission Rate - Network Service Rate","SENTINEL LIGHTING SERVICE CLASSIFICATION~Retail Transmission Rate - Line and Transformation Connection Service Rate","STREET LIGHTING SERVICE CLASSIFICATION~Retail Transmission Rate - Network Service Rate","STREET LIGHTING SERVICE CLASSIFICATION~Retail Transmission Rate - Line and Transformation Connection Service Rate"]
["Rideau St. Lawrence Distribution Inc.","RESIDENTIAL SERVICE CLASSIFICATION~Retail Transmission Rate - Network Service Rate ","RESIDENTIAL SERVICE CLASSIFICATION~Retail Transmission Rate - Line and Transformation Connection Service Rate ","GENERAL SERVICE LESS THAN 50 KW SERVICE CLASSIFICATION~Retail Transmission Rate - Network Service Rate ","GENERAL SERVICE LESS THAN 50 KW SERVICE CLASSIFICATION~Retail Transmission Rate - Line and Transformation Connection Service Rate ","GENERAL SERVICE 50 to 4,999 kW SERVICE CLASSIFICATION~Retail Transmission Rate - Network Service Rate ","GENERAL SERVICE 50 to 4,999 kW SERVICE CLASSIFICATION~Retail Transmission Rate - Line and Transformation Connection Service Rate","GENERAL SERVICE 50 to 4,999 kW SERVICE CLASSIFICATION~Retail Transmission Rate - Network Service Rate - Interval Metered ","GENERAL SERVICE 50 to 4,999 kW SERVICE CLASSIFICATION~Retail Transmission Rate - Line and Transformation Connection Service Rate - Interval Metered","UNMETERED SCATTERED LOAD SERVICE CLASSIFICATION~Retail Transmission Rate - Network Service Rate ","UNMETERED SCATTERED LOAD SERVICE CLASSIFICATION~Retail Transmission Rate - Line and Transformation Connection Service Rate ","SENTINEL LIGHTING SERVICE CLASSIFICATION~Retail Transmission Rate - Network Service Rate","SENTINEL LIGHTING SERVICE CLASSIFICATION~Retail Transmission Rate - Line and Transformation Connection Service Rate ","STREET LIGHTING SERVICE CLASSIFICATION~Retail Transmission Rate - Network Service Rate ","STREET LIGHTING SERVICE CLASSIFICATION~Retail Transmission Rate - Line and Transformation Connection Service Rate "]
["Sioux Lookout Hydro Inc.","RESIDENTIAL SERVICE CLASSIFICATION~Retail Transmission Rate - Network Service Rate","RESIDENTIAL SERVICE CLASSIFICATION~Retail Transmission Rate - Line and Transformation Connection Service Rate","GENERAL SERVICE LESS THAN 50 KW SERVICE CLASSIFICATION~Retail Transmission Rate - Network Service Rate","GENERAL SERVICE LESS THAN 50 KW SERVICE CLASSIFICATION~Retail Transmission Rate - Line and Transformation Connection Service Rate","GENERAL SERVICE 50 to 4,999 kW SERVICE CLASSIFICATION~Retail Transmission Rate - Network Service Rate","GENERAL SERVICE 50 to 4,999 kW SERVICE CLASSIFICATION~Retail Transmission Rate - Line and Transformation Connection Service Rate","GENERAL SERVICE 50 to 4,999 kW SERVICE CLASSIFICATION~Retail Transmission Rate - Network Service Rate - Interval Metered > 1,000 kW","GENERAL SERVICE 50 to 4,999 kW SERVICE CLASSIFICATION~Retail Transmission Rate - Line and Transformation Connection Service Rate - Interval Metered > 1,000 kW","STREET LIGHTING SERVICE CLASSIFICATION~Retail Transmission Rate - Network Service Rate","STREET LIGHTING SERVICE CLASSIFICATION~Retail Transmission Rate - Line and Transformation Connection Service Rate"]
["Synergy North Corporation-Thunder Bay Rate Zone","RESIDENTIAL SERVICE CLASSIFICATION~Retail Transmission Rate - Network Service Rate","RESIDENTIAL SERVICE CLASSIFICATION~Retail Transmission Rate - Line and Transformation Connection Service Rate","GENERAL SERVICE LESS THAN 50 KW SERVICE CLASSIFICATION~Retail Transmission Rate - Network Service Rate","GENERAL SERVICE LESS THAN 50 KW SERVICE CLASSIFICATION~Retail Transmission Rate - Line and Transformation Connection Service Rate","GENERAL SERVICE 50 TO 999 KW SERVICE CLASSIFICATION~Retail Transmission Rate - Network Service Rate","GENERAL SERVICE 50 TO 999 KW SERVICE CLASSIFICATION~Retail Transmission Rate - Line and Transformation Connection Service Rate ","GENERAL SERVICE 50 TO 999 KW SERVICE CLASSIFICATION~Retail Transmission Rate - Network Service Rate - Interval Metered","GENERAL SERVICE 50 TO 999 KW SERVICE CLASSIFICATION~Retail Transmission Rate - Line and Transformation Connection Service Rate - Interval Metered ","GENERAL SERVICE 1,000 KW OR GREATER SERVICE CLASSIFICATION~Retail Transmission Rate - Network Service Rate","GENERAL SERVICE 1,000 KW OR GREATER SERVICE CLASSIFICATION~Retail Transmission Rate - Line and Transformation Connection Service Rate ","UNMETERED SCATTERED LOAD SERVICE CLASSIFICATION~Retail Transmission Rate - Network Service Rate","UNMETERED SCATTERED LOAD SERVICE CLASSIFICATION~Retail Transmission Rate - Line and Transformation Connection Service Rate ","SENTINEL LIGHTING SERVICE CLASSIFICATION~Retail Transmission Rate - Network Service Rate","SENTINEL LIGHTING SERVICE CLASSIFICATION~Retail Transmission Rate - Line and Transformation Connection Service Rate ","STREET LIGHTING SERVICE CLASSIFICATION~Retail Transmission Rate - Network Service Rate","STREET LIGHTING SERVICE CLASSIFICATION~Retail Transmission Rate - Line and Transformation Connection Service Rate"]
["ENWIN Utilities Ltd.","RESIDENTIAL SERVICE CLASSIFICATION~Retail Transmission Rate - Network Service Rate","RESIDENTIAL SERVICE CLASSIFICATION~Retail Transmission Rate - Line and Transformation Connection Service Rate","GENERAL SERVICE LESS THAN 50 KW SERVICE CLASSIFICATION~Retail Transmission Rate - Network Service Rate","GENERAL SERVICE LESS THAN 50 KW SERVICE CLASSIFICATION~Retail Transmission Rate - Line and Transformation Connection Service Rate","GENERAL SERVICE 50 to 4,999 kW SERVICE CLASSIFICATION~Retail Transmission Rate - Network Service Rate","GENERAL SERVICE 50 to 4,999 kW SERVICE CLASSIFICATION~Retail Transmission Rate - Line and Transformation Connection Service Rate","GENERAL SERVICE 3,000 TO 4,999 KW - INTERMEDIATE USE SERVICE CLASSIFICATION~Retail Transmission Rate - Network Service Rate","GENERAL SERVICE 3,000 TO 4,999 KW - INTERMEDIATE USE SERVICE CLASSIFICATION~Retail Transmission Rate - Line and Transformation Connection Service Rate","LARGE USE - REGULAR SERVICE CLASSIFICATION~Retail Transmission Rate - Network Service Rate","LARGE USE - REGULAR SERVICE CLASSIFICATION~Retail Transmission Rate - Line Connection Service Rate","LARGE USE - REGULAR SERVICE CLASSIFICATION~Retail Transmission Rate - Transformation Connection Service Rate","LARGE USE - 3TS SERVICE CLASSIFICATION~Retail Transmission Rate - Network Service Rate","LARGE USE - 3TS SERVICE CLASSIFICATION~Retail Transmission Rate - Line Connection Service Rate","LARGE USE - FORD ANNEX SERVICE CLASSIFICATION~Retail Transmission Rate - Network Service Rate","LARGE USE - FORD ANNEX SERVICE CLASSIFICATION~Retail Transmission Rate - Line Connection Service Rate ","UNMETERED SCATTERED LOAD SERVICE CLASSIFICATION~Retail Transmission Rate - Network Service Rate","UNMETERED SCATTERED LOAD SERVICE CLASSIFICATION~Retail Transmission Rate - Line and Transformation Connection Service Rate","SENTINEL LIGHTING SERVICE CLASSIFICATION~Retail Transmission Rate - Network Service Rate","SENTINEL LIGHTING SERVICE CLASSIFICATION~Retail Transmission Rate - Line and Transformation Connection Service Rate","STREET LIGHTING SERVICE CLASSIFICATION~Retail Transmission Rate - Network Service Rate","STREET LIGHTING SERVICE CLASSIFICATION~Retail Transmission Rate - Line and Transformation Connection Service Rate"]
["Hearst Power Distribution Co. Ltd.","RESIDENTIAL SERVICE CLASSIFICATION~Retail Transmission Rate - Network Service Rate","RESIDENTIAL SERVICE CLASSIFICATION~Retail Transmission Rate - Line and Transformation Connection Service Rate","GENERAL SERVICE LESS THAN 50 KW SERVICE CLASSIFICATION~Retail Transmission Rate - Network Service Rate","GENERAL SERVICE LESS THAN 50 KW SERVICE CLASSIFICATION~Retail Transmission Rate - Line and Transformation Connection Service Rate","GENERAL SERVICE 50 TO 1,499 KW SERVICE CLASSIFICATION~Retail Transmission Rate - Network Service Rate","GENERAL SERVICE 50 TO 1,499 KW SERVICE CLASSIFICATION~Retail Transmission Rate - Line and Transformation Connection Service Rate ","INTERMEDIATE USER SERVICE CLASSIFICATION~Retail Transmission Rate - Network Service Rate","INTERMEDIATE USER SERVICE CLASSIFICATION~Retail Transmission Rate - Line and Transformation Connection Service Rate","SENTINEL LIGHTING SERVICE CLASSIFICATION~Retail Transmission Rate - Network Service Rate","SENTINEL LIGHTING SERVICE CLASSIFICATION~Retail Transmission Rate - Line and Transformation Connection Service Rate","STREET LIGHTING SERVICE CLASSIFICATION~Retail Transmission Rate - Network Service Rate","STREET LIGHTING SERVICE CLASSIFICATION~Retail Transmission Rate - Line and Transformation Connection Service Rate"]
["ERTH Power Corporation-ERTH Power Main Rate Zone","RESIDENTIAL SERVICE CLASSIFICATION~Retail Transmission Rate - Network Service Rate","RESIDENTIAL SERVICE CLASSIFICATION~Retail Transmission Rate - Line and Transformation Connection Service Rate","GENERAL SERVICE LESS THAN 50 KW SERVICE CLASSIFICATION~Retail Transmission Rate - Network Service Rate","GENERAL SERVICE LESS THAN 50 KW SERVICE CLASSIFICATION~Retail Transmission Rate - Line and Transformation Connection Service Rate","GENERAL SERVICE 50 TO 999 KW SERVICE CLASSIFICATION~Retail Transmission Rate - Network Service Rate","GENERAL SERVICE 50 TO 999 KW SERVICE CLASSIFICATION~Retail Transmission Rate - Line and Transformation Connection Service Rate","GENERAL SERVICE 1,000 TO 4,999 KW SERVICE CLASSIFICATION~Retail Transmission Rate - Network Service Rate","GENERAL SERVICE 1,000 TO 4,999 KW SERVICE CLASSIFICATION~Retail Transmission Rate - Line and Transformation Connection Service Rate","LARGE USE SERVICE CLASSIFICATION~Retail Transmission Rate - Network Service Rate","LARGE USE SERVICE CLASSIFICATION~Retail Transmission Rate - Line and Transformation Connection Service Rate","UNMETERED SCATTERED LOAD SERVICE CLASSIFICATION~Retail Transmission Rate - Network Service Rate","UNMETERED SCATTERED LOAD SERVICE CLASSIFICATION~Retail Transmission Rate - Line and Transformation Connection Service Rate","SENTINEL LIGHTING SERVICE CLASSIFICATION~Retail Transmission Rate - Network Service Rate","SENTINEL LIGHTING SERVICE CLASSIFICATION~Retail Transmission Rate - Line and Transformation Connection Service Rate","STREET LIGHTING SERVICE CLASSIFICATION~Retail Transmission Rate - Network Service Rate","STREET LIGHTING SERVICE CLASSIFICATION~Retail Transmission Rate - Line and Transformation Connection Service Rate","EMBEDDED DISTRIBUTOR SERVICE CLASSIFICATION~Retail Transmission Rate - Network Service Rate","EMBEDDED DISTRIBUTOR SERVICE CLASSIFICATION~Retail Transmission Rate - Line and Transformation Connection Service Rate"]
["Welland Hydro-Electric System Corp.","RESIDENTIAL SERVICE CLASSIFICATION~Retail Transmission Rate - Network Service Rate","RESIDENTIAL SERVICE CLASSIFICATION~Retail Transmission Rate - Line and Transformation Connection Service Rate","GENERAL SERVICE LESS THAN 50 KW SERVICE CLASSIFICATION~Retail Transmission Rate - Network Service Rate","GENERAL SERVICE LESS THAN 50 KW SERVICE CLASSIFICATION~Retail Transmission Rate - Line and Transformation Connection Service Rate","GENERAL SERVICE 50 to 4,999 kW SERVICE CLASSIFICATION~Retail Transmission Rate - Network Service Rate","GENERAL SERVICE 50 to 4,999 kW SERVICE CLASSIFICATION~Retail Transmission Rate - Line and Transformation Connection Service Rate ","UNMETERED SCATTERED LOAD SERVICE CLASSIFICATION~Retail Transmission Rate - Network Service Rate","UNMETERED SCATTERED LOAD SERVICE CLASSIFICATION~Retail Transmission Rate - Line and Transformation Connection Service Rate","SENTINEL LIGHTING SERVICE CLASSIFICATION~Retail Transmission Rate - Network Service Rate","SENTINEL LIGHTING SERVICE CLASSIFICATION~Retail Transmission Rate - Line and Transformation Connection Service Rate","STREET LIGHTING SERVICE CLASSIFICATION~Retail Transmission Rate - Network Service Rate","STREET LIGHTING SERVICE CLASSIFICATION~Retail Transmission Rate - Line and Transformation Connection Service Rate"]
["Wellington North Power Inc.","RESIDENTIAL SERVICE CLASSIFICATION~Retail Transmission Rate - Network Service Rate","RESIDENTIAL SERVICE CLASSIFICATION~Retail Transmission Rate - Line and Transformation Connection Service Rate","GENERAL SERVICE LESS THAN 50 KW SERVICE CLASSIFICATION~Retail Transmission Rate - Network Service Rate","GENERAL SERVICE LESS THAN 50 KW SERVICE CLASSIFICATION~Retail Transmission Rate - Line and Transformation Connection Service Rate","GENERAL SERVICE 50 TO 999 KW SERVICE CLASSIFICATION~Retail Transmission Rate - Network Service Rate","GENERAL SERVICE 50 TO 999 KW SERVICE CLASSIFICATION~Retail Transmission Rate - Line and Transformation Connection Service Rate","GENERAL SERVICE 1,000 TO 4,999 KW SERVICE CLASSIFICATION~Retail Transmission Rate - Network Service Rate","GENERAL SERVICE 1,000 TO 4,999 KW SERVICE CLASSIFICATION~Retail Transmission Rate - Line and Transformation Connection Service Rate","UNMETERED SCATTERED LOAD SERVICE CLASSIFICATION~Retail Transmission Rate - Network Service Rate","UNMETERED SCATTERED LOAD SERVICE CLASSIFICATION~Retail Transmission Rate - Line and Transformation Connection Service Rate","SENTINEL LIGHTING SERVICE CLASSIFICATION~Retail Transmission Rate - Network Service Rate","SENTINEL LIGHTING SERVICE CLASSIFICATION~Retail Transmission Rate - Line and Transformation Connection Service Rate","STREET LIGHTING SERVICE CLASSIFICATION~Retail Transmission Rate - Network Service Rate","STREET LIGHTING SERVICE CLASSIFICATION~Retail Transmission Rate - Line and Transformation Connection Service Rate"]
["Tillsonburg Hydro Inc.","RESIDENTIAL SERVICE CLASSIFICATION~Retail Transmission Rate - Network Service Rate","RESIDENTIAL SERVICE CLASSIFICATION~Retail Transmission Rate - Line and Transformation Connection Service Rate","GENERAL SERVICE LESS THAN 50 KW SERVICE CLASSIFICATION~Retail Transmission Rate - Network Service Rate","GENERAL SERVICE LESS THAN 50 KW SERVICE CLASSIFICATION~Retail Transmission Rate - Line and Transformation Connection Service Rate","GENERAL SERVICE 50 TO 499 KW SERVICE CLASSIFICATION~Retail Transmission Rate - Network Service Rate","GENERAL SERVICE 50 TO 499 KW SERVICE CLASSIFICATION~Retail Transmission Rate - Line and Transformation Connection Service Rate","GENERAL SERVICE 500 TO 1,499 KW SERVICE CLASSIFICATION~Retail Transmission Rate - Network Service Rate - Interval Metered","GENERAL SERVICE 500 TO 1,499 KW SERVICE CLASSIFICATION~Retail Transmission Rate - Line and Transformation Connection Service Rate - Interval Metered","GENERAL SERVICE EQUAL TO OR GREATER THAN 1,500 KW SERVICE CLASSIFICATION~Retail Transmission Rate - Network Service Rate - Interval Metered","GENERAL SERVICE EQUAL TO OR GREATER THAN 1,500 KW SERVICE CLASSIFICATION~Retail Transmission Rate - Line and Transformation Connection Service Rate - Interval Metered","UNMETERED SCATTERED LOAD SERVICE CLASSIFICATION~Retail Transmission Rate - Network Service Rate","UNMETERED SCATTERED LOAD SERVICE CLASSIFICATION~Retail Transmission Rate - Line and Transformation Connection Service Rate","SENTINEL LIGHTING SERVICE CLASSIFICATION~Retail Transmission Rate - Network Service Rate","SENTINEL LIGHTING SERVICE CLASSIFICATION~Retail Transmission Rate - Line and Transformation Connection Service Rate","STREET LIGHTING SERVICE CLASSIFICATION~Retail Transmission Rate - Network Service Rate","STREET LIGHTING SERVICE CLASSIFICATION~Retail Transmission Rate - Line and Transformation Connection Service Rate"]
["Elexicon Energy Inc.-Veridian Rate Zone","RESIDENTIAL SERVICE CLASSIFICATION~Retail Transmission Rate - Network Service Rate","RESIDENTIAL SERVICE CLASSIFICATION~Retail Transmission Rate - Line and Transformation Connection Service Rate","SEASONAL RESIDENTIAL SERVICE CLASSIFICATION~Retail Transmission Rate - Network Service Rate","SEASONAL RESIDENTIAL SERVICE CLASSIFICATION~Retail Transmission Rate - Line and Transformation Connection Service Rate","GENERAL SERVICE LESS THAN 50 KW SERVICE CLASSIFICATION~Retail Transmission Rate - Network Service Rate","GENERAL SERVICE LESS THAN 50 KW SERVICE CLASSIFICATION~Retail Transmission Rate - Line and Transformation Connection Service Rate","GENERAL SERVICE 50 TO 2,999 KW SERVICE CLASSIFICATION~Retail Transmission Rate - Network Service Rate","GENERAL SERVICE 50 TO 2,999 KW SERVICE CLASSIFICATION~Retail Transmission Rate - Line and Transformation Connection Service Rate","GENERAL SERVICE 3,000 TO 4,999 KW SERVICE CLASSIFICATION~Retail Transmission Rate - Network Service Rate","GENERAL SERVICE 3,000 TO 4,999 KW SERVICE CLASSIFICATION~Retail Transmission Rate - Line and Transformation Connection Service Rate ","LARGE USE SERVICE CLASSIFICATION~Retail Transmission Rate - Network Service Rate","LARGE USE SERVICE CLASSIFICATION~Retail Transmission Rate - Line and Transformation Connection Service Rate ","UNMETERED SCATTERED LOAD SERVICE CLASSIFICATION~Retail Transmission Rate - Network Service Rate","UNMETERED SCATTERED LOAD SERVICE CLASSIFICATION~Retail Transmission Rate - Line and Transformation Connection Service Rate","SENTINEL LIGHTING SERVICE CLASSIFICATION~Retail Transmission Rate - Network Service Rate","SENTINEL LIGHTING SERVICE CLASSIFICATION~Retail Transmission Rate - Line and Transformation Connection Service Rate","STREET LIGHTING SERVICE CLASSIFICATION~Retail Transmission Rate - Network Service Rate","STREET LIGHTING SERVICE CLASSIFICATION~Retail Transmission Rate - Line and Transformation Connection Service Rate"]
["Wasaga Distribution Inc.","RESIDENTIAL SERVICE CLASSIFICATION~Retail Transmission Rate - Network Service Rate","RESIDENTIAL SERVICE CLASSIFICATION~Retail Transmission Rate - Line and Transformation Connection Service Rate","GENERAL SERVICE LESS THAN 50 KW SERVICE CLASSIFICATION~Retail Transmission Rate - Network Service Rate","GENERAL SERVICE LESS THAN 50 KW SERVICE CLASSIFICATION~Retail Transmission Rate - Line and Transformation Connection Service Rate","GENERAL SERVICE 50 to 4,999 kW SERVICE CLASSIFICATION~Retail Transmission Rate - Network Service Rate","GENERAL SERVICE 50 to 4,999 kW SERVICE CLASSIFICATION~Retail Transmission Rate - Line and Transformation Connection Service Rate","UNMETERED SCATTERED LOAD SERVICE CLASSIFICATION~Retail Transmission Rate - Network Service Rate","UNMETERED SCATTERED LOAD SERVICE CLASSIFICATION~Retail Transmission Rate - Line and Transformation Connection Service Rate","STREET LIGHTING SERVICE CLASSIFICATION~Retail Transmission Rate - Network Service Rate","STREET LIGHTING SERVICE CLASSIFICATION~Retail Transmission Rate - Line and Transformation Connection Service Rate"]
["ERTH Power Corporation – Goderich Rate Zone","RESIDENTIAL SERVICE CLASSIFICATION~Retail Transmission Rate - Network Service Rate","RESIDENTIAL SERVICE CLASSIFICATION~Retail Transmission Rate - Line and Transformation Connection Service Rate","GENERAL SERVICE LESS THAN 50 KW SERVICE CLASSIFICATION~Retail Transmission Rate - Network Service Rate","GENERAL SERVICE LESS THAN 50 KW SERVICE CLASSIFICATION~Retail Transmission Rate - Line and Transformation Connection Service Rate","GENERAL SERVICE 50 TO 499 KW SERVICE CLASSIFICATION~Retail Transmission Rate - Network Service Rate","GENERAL SERVICE 50 TO 499 KW SERVICE CLASSIFICATION~Retail Transmission Rate - Line and Transformation Connection Service Rate","GENERAL SERVICE 500 TO 4,999 KW SERVICE CLASSIFICATION~Retail Transmission Rate - Network Service Rate","GENERAL SERVICE 500 TO 4,999 KW SERVICE CLASSIFICATION~Retail Transmission Rate - Line and Transformation Connection Service Rate","LARGE USE SERVICE CLASSIFICATION~Retail Transmission Rate - Network Service Rate","LARGE USE SERVICE CLASSIFICATION~Retail Transmission Rate - Line and Transformation Connection Service Rate","UNMETERED SCATTERED LOAD SERVICE CLASSIFICATION~Retail Transmission Rate - Network Service Rate","UNMETERED SCATTERED LOAD SERVICE CLASSIFICATION~Retail Transmission Rate - Line and Transformation Connection Service Rate","SENTINEL LIGHTING SERVICE CLASSIFICATION~Retail Transmission Rate - Network Service Rate","SENTINEL LIGHTING SERVICE CLASSIFICATION~Retail Transmission Rate - Line and Transformation Connection Service Rate","STREET LIGHTING SERVICE CLASSIFICATION~Retail Transmission Rate - Network Service Rate","STREET LIGHTING SERVICE CLASSIFICATION~Retail Transmission Rate - Line and Transformation Connection Service Rate"]
["Oshawa PUC Networks Inc.","RESIDENTIAL SERVICE CLASSIFICATION~Retail Transmission Rate - Network Service Rate","RESIDENTIAL SERVICE CLASSIFICATION~Retail Transmission Rate - Line and Transformation Connection Service Rate","GENERAL SERVICE LESS THAN 50 KW SERVICE CLASSIFICATION~Retail Transmission Rate - Network Service Rate","GENERAL SERVICE LESS THAN 50 KW SERVICE CLASSIFICATION~Retail Transmission Rate - Line and Transformation Connection Service Rate","GENERAL SERVICE 50 TO 999 KW SERVICE CLASSIFICATION~Retail Transmission Rate - Network Service Rate","GENERAL SERVICE 50 TO 999 KW SERVICE CLASSIFICATION~Retail Transmission Rate - Line and Transformation Connection Service Rate","GENERAL SERVICE 50 TO 999 KW SERVICE CLASSIFICATION~Retail Transmission Rate - Network Service Rate - Interval Metered","GENERAL SERVICE 50 TO 999 KW SERVICE CLASSIFICATION~Retail Transmission Rate - Line and Transformation Connection Service Rate - Interval Metered","GENERAL SERVICE 1,000 TO 4,999 KW SERVICE CLASSIFICATION~Retail Transmission Rate - Network Service Rate - Interval Metered","GENERAL SERVICE 1,000 TO 4,999 KW SERVICE CLASSIFICATION~Retail Transmission Rate - Line and Transformation Connection Service Rate - Interval Metered","LARGE USE SERVICE CLASSIFICATION~Retail Transmission Rate - Network Service Rate - Interval Metered","LARGE USE SERVICE CLASSIFICATION~Retail Transmission Rate - Line and Transformation Connection Service Rate - Interval Metered","UNMETERED SCATTERED LOAD SERVICE CLASSIFICATION~Retail Transmission Rate - Network Service Rate","UNMETERED SCATTERED LOAD SERVICE CLASSIFICATION~Retail Transmission Rate - Line and Transformation Connection Service Rate","SENTINEL LIGHTING SERVICE CLASSIFICATION~Retail Transmission Rate - Network Service Rate","SENTINEL LIGHTING SERVICE CLASSIFICATION~Retail Transmission Rate - Line and Transformation Connection Service Rate","STREET LIGHTING SERVICE CLASSIFICATION~Retail Transmission Rate - Network Service Rate","STREET LIGHTING SERVICE CLASSIFICATION~Retail Transmission Rate - Line and Transformation Connection Service Rate"]
["Brantford Power Inc.","RESIDENTIAL SERVICE CLASSIFICATION~Retail Transmission Rate - Network Service Rate","RESIDENTIAL SERVICE CLASSIFICATION~Retail Transmission Rate - Line and Transformation Connection Service Rate","GENERAL SERVICE LESS THAN 50 KW SERVICE CLASSIFICATION~Retail Transmission Rate - Network Service Rate","GENERAL SERVICE LESS THAN 50 KW SERVICE CLASSIFICATION~Retail Transmission Rate - Line and Transformation Connection Service Rate","GENERAL SERVICE 50 to 4,999 kW SERVICE CLASSIFICATION~Retail Transmission Rate - Network Service Rate","GENERAL SERVICE 50 to 4,999 kW SERVICE CLASSIFICATION~Retail Transmission Rate - Line and Transformation Connection Service Rate","EMBEDDED DISTRIBUTOR SERVICE CLASSIFICATION~Retail Transmission Rate - Network Service Rate","EMBEDDED DISTRIBUTOR SERVICE CLASSIFICATION~Retail Transmission Rate - Line and Transformation Connection Service Rate","SENTINEL LIGHTING SERVICE CLASSIFICATION~Retail Transmission Rate - Network Service Rate","SENTINEL LIGHTING SERVICE CLASSIFICATION~Retail Transmission Rate - Line and Transformation Connection Service Rate","STREET LIGHTING SERVICE CLASSIFICATION~Retail Transmission Rate - Network Service Rate","STREET LIGHTING SERVICE CLASSIFICATION~Retail Transmission Rate - Line and Transformation Connection Service Rate","UNMETERED SCATTERED LOAD SERVICE CLASSIFICATION~Retail Transmission Rate - Network Service Rate","UNMETERED SCATTERED LOAD SERVICE CLASSIFICATION~Retail Transmission Rate - Line and Transformation Connection Service Rate"]
["Oakville Hydro Electricity Distribution Inc.","RESIDENTIAL SERVICE CLASSIFICATION~Retail Transmission Rate - Network Service Rate","RESIDENTIAL SERVICE CLASSIFICATION~Retail Transmission Rate - Line and Transformation Connection Service Rate","GENERAL SERVICE LESS THAN 50 KW SERVICE CLASSIFICATION~Retail Transmission Rate - Network Service Rate","GENERAL SERVICE LESS THAN 50 KW SERVICE CLASSIFICATION~Retail Transmission Rate - Line and Transformation Connection Service Rate","GENERAL SERVICE 50 TO 999 KW SERVICE CLASSIFICATION~Retail Transmission Rate - Network Service Rate","GENERAL SERVICE 50 TO 999 KW SERVICE CLASSIFICATION~Retail Transmission Rate - Network Service Rate - Interval Metered","GENERAL SERVICE 50 TO 999 KW SERVICE CLASSIFICATION~Retail Transmission Rate - Line and Transformation Connection Service Rate","GENERAL SERVICE 50 TO 999 KW SERVICE CLASSIFICATION~Retail Transmission Rate - Line and Transformation Connection Service Rate - Interval Metered","GENERAL SERVICE 1,000 KW AND GREATER SERVICE CLASSIFICATION~Retail Transmission Rate - Network Service Rate - Interval Metered","GENERAL SERVICE 1,000 KW AND GREATER SERVICE CLASSIFICATION~Retail Transmission Rate - Line and Transformation Connection Service Rate - Interval Metered","UNMETERED SCATTERED LOAD SERVICE CLASSIFICATION~Retail Transmission Rate - Network Service Rate","UNMETERED SCATTERED LOAD SERVICE CLASSIFICATION~Retail Transmission Rate - Line and Transformation Connection Service Rate","SENTINEL LIGHTING SERVICE CLASSIFICATION~Retail Transmission Rate - Network Service Rate","SENTINEL LIGHTING SERVICE CLASSIFICATION~Retail Transmission Rate - Line and Transformation Connection Service Rate","STREET LIGHTING SERVICE CLASSIFICATION~Retail Transmission Rate - Network Service Rate","STREET LIGHTING SERVICE CLASSIFICATION~Retail Transmission Rate - Line and Transformation Connection Service Rate","EMBEDDED DISTRIBUTOR SERVICE CLASSIFICATION~Retail Transmission Rate - Network Service Rate","EMBEDDED DISTRIBUTOR SERVICE CLASSIFICATION~Retail Transmission Rate - Line and Transformation Connection Service Rate"]
["Chapleau Public Utilities Corporation","RESIDENTIAL SERVICE CLASSIFICATION~Retail Transmission Rate - Network Service Rate","RESIDENTIAL SERVICE CLASSIFICATION~Retail Transmission Rate - Line and Transformation Connection Service Rate","GENERAL SERVICE LESS THAN 50 kW SERVICE CLASSIFICATION~Retail Transmission Rate - Network Service Rate","GENERAL SERVICE LESS THAN 50 kW SERVICE CLASSIFICATION~Retail Transmission Rate - Line and Transformation Connection Service Rate","GENERAL SERVICE 50 TO 4,999 KW SERVICE CLASSIFICATION~Retail Transmission Rate - Network Service Rate","GENERAL SERVICE 50 TO 4,999 KW SERVICE CLASSIFICATION~Retail Transmission Rate - Line and Transformation Connection Service Rate","UNMETERED SCATTERED LOAD SERVICE CLASSIFICATION~Retail Transmission Rate - Network Service Rate","UNMETERED SCATTERED LOAD SERVICE CLASSIFICATION~Retail Transmission Rate - Line and Transformation Connection Service Rate","SENTINEL LIGHTING SERVICE CLASSIFICATION~Retail Transmission Rate - Network Service Rate","SENTINEL LIGHTING SERVICE CLASSIFICATION~Retail Transmission Rate - Line and Transformation Connection Service Rate","STREET LIGHTING SERVICE CLASSIFICATION~Retail Transmission Rate - Network Service Rate","STREET LIGHTING SERVICE CLASSIFICATION~Retail Transmission Rate - Line and Transformation Connection Service Rate"]
["Espanola Regional Hydro Distribution Corporation","RESIDENTIAL SERVICE CLASSIFICATION~Retail Transmission Rate - Network Service Rate","RESIDENTIAL SERVICE CLASSIFICATION~Retail Transmission Rate - Line and Transformation Connection Service Rate","GENERAL SERVICE LESS THAN 50 kW SERVICE CLASSIFICATION~Retail Transmission Rate - Network Service Rate","GENERAL SERVICE LESS THAN 50 kW SERVICE CLASSIFICATION~Retail Transmission Rate - Line and Transformation Connection Service Rate","GENERAL SERVICE 50 TO 4,999 KW SERVICE CLASSIFICATION~Retail Transmission Rate - Network Service Rate","GENERAL SERVICE 50 TO 4,999 KW SERVICE CLASSIFICATION~Retail Transmission Rate - Line and Transformation Connection Service Rate","GENERAL SERVICE 50 TO 4,999 KW SERVICE CLASSIFICATION~Retail Transmission Rate - Network Service Rate - Interval Metered","GENERAL SERVICE 50 TO 4,999 KW SERVICE CLASSIFICATION~Retail Transmission Rate - Line and Transformation Connection Service Rate - Interval Metered","UNMETERED SCATTERED LOAD SERVICE CLASSIFICATION~Retail Transmission Rate - Network Service Rate","UNMETERED SCATTERED LOAD SERVICE CLASSIFICATION~Retail Transmission Rate - Line and Transformation Connection Service Rate","SENTINEL LIGHTING SERVICE CLASSIFICATION~Retail Transmission Rate - Network Service Rate","SENTINEL LIGHTING SERVICE CLASSIFICATION~Retail Transmission Rate - Line and Transformation Connection Service Rate","STREET LIGHTING SERVICE CLASSIFICATION~Retail Transmission Rate - Network Service Rate","STREET LIGHTING SERVICE CLASSIFICATION~Retail Transmission Rate - Line and Transformation Connection Service Rate"]
["Energy+ Inc.-For Former Brant County Power Service Area","RESIDENTIAL SERVICE CLASSIFICATION~Retail Transmission Rate - Network Service Rate","RESIDENTIAL SERVICE CLASSIFICATION~Retail Transmission Rate - Line and Transformation Connection Service Rate","GENERAL SERVICE LESS THAN 50 KW SERVICE CLASSIFICATION~Retail Transmission Rate - Network Service Rate","GENERAL SERVICE LESS THAN 50 KW SERVICE CLASSIFICATION~Retail Transmission Rate - Line and Transformation Connection Service Rate","GENERAL SERVICE 50 to 4,999 kW SERVICE CLASSIFICATION~Retail Transmission Rate - Network Service Rate","GENERAL SERVICE 50 to 4,999 kW SERVICE CLASSIFICATION~Retail Transmission Rate - Line and Transformation Connection Service Rate","GENERAL SERVICE 50 to 4,999 kW SERVICE CLASSIFICATION~Retail Transmission Rate - Network Service Rate - Interval Metered < 1,000 kW","GENERAL SERVICE 50 to 4,999 kW SERVICE CLASSIFICATION~Retail Transmission Rate - Line and Transformation Connection Service Rate - Interval Metered < 1,000 kW","GENERAL SERVICE 50 to 4,999 kW SERVICE CLASSIFICATION~Retail Transmission Rate - Network Service Rate - Interval Metered > 1,000 kW","GENERAL SERVICE 50 to 4,999 kW SERVICE CLASSIFICATION~Retail Transmission Rate - Line and Transformation Connection Service Rate - Interval Metered > 1,000 kW","UNMETERED SCATTERED LOAD SERVICE CLASSIFICATION~Retail Transmission Rate - Network Service Rate","UNMETERED SCATTERED LOAD SERVICE CLASSIFICATION~Retail Transmission Rate - Line and Transformation Connection Service Rate","SENTINEL LIGHTING SERVICE CLASSIFICATION~Retail Transmission Rate - Network Service Rate","SENTINEL LIGHTING SERVICE CLASSIFICATION~Retail Transmission Rate - Line and Transformation Connection Service Rate","STREET LIGHTING SERVICE CLASSIFICATION~Retail Transmission Rate - Network Service Rate","STREET LIGHTING SERVICE CLASSIFICATION~Retail Transmission Rate - Line and Transformation Connection Service Rate"]
["Energy+ Inc.-For Former Cambridge and North Dumfries Hydro Service Area","RESIDENTIAL SERVICE CLASSIFICATION~Retail Transmission Rate - Network Service Rate","RESIDENTIAL SERVICE CLASSIFICATION~Retail Transmission Rate - Line and Transformation Connection Service Rate","GENERAL SERVICE LESS THAN 50 KW SERVICE CLASSIFICATION~Retail Transmission Rate - Network Service Rate","GENERAL SERVICE LESS THAN 50 KW SERVICE CLASSIFICATION~Retail Transmission Rate - Line and Transformation Connection Service Rate","GENERAL SERVICE 50 TO 999 KW SERVICE CLASSIFICATION~Retail Transmission Rate - Network Service Rate","GENERAL SERVICE 50 TO 999 KW SERVICE CLASSIFICATION~Retail Transmission Rate - Line and Transformation Connection Service Rate","GENERAL SERVICE 1,000 TO 4,999 KW SERVICE CLASSIFICATION~Retail Transmission Rate - Network Service Rate","GENERAL SERVICE 1,000 TO 4,999 KW SERVICE CLASSIFICATION~Retail Transmission Rate - Line and Transformation Connection Service Rate","LARGE USE SERVICE CLASSIFICATION~Retail Transmission Rate - Network Service Rate","LARGE USE SERVICE CLASSIFICATION~Retail Transmission Rate - Line and Transformation Connection Service Rate","UNMETERED SCATTERED LOAD SERVICE CLASSIFICATION~Retail Transmission Rate - Network Service Rate","UNMETERED SCATTERED LOAD SERVICE CLASSIFICATION~Retail Transmission Rate - Line and Transformation Connection Service Rate","STREET LIGHTING SERVICE CLASSIFICATION~Retail Transmission Rate - Network Service Rate","STREET LIGHTING SERVICE CLASSIFICATION~Retail Transmission Rate - Line and Transformation Connection Service Rate","EMBEDDED DISTRIBUTOR SERVICE CLASSIFICATION~Retail Transmission Rate - Network Service Rate","EMBEDDED DISTRIBUTOR SERVICE CLASSIFICATION~Retail Transmission Rate - Line and Transformation Connection Service Rate"]
["Hydro 2000 Inc.","RESIDENTIAL SERVICE CLASSIFICATION~Retail Transmission Rate - Network Service Rate","RESIDENTIAL SERVICE CLASSIFICATION~Retail Transmission Rate - Line and Transformation Connection Service Rate","GENERAL SERVICE LESS THAN 50 kW SERVICE CLASSIFICATION~Retail Transmission Rate - Network Service Rate","GENERAL SERVICE LESS THAN 50 kW SERVICE CLASSIFICATION~Retail Transmission Rate - Line and Transformation Connection Service Rate","GENERAL SERVICE 50 TO 4,999 KW SERVICE CLASSIFICATION~Retail Transmission Rate - Network Service Rate","GENERAL SERVICE 50 TO 4,999 KW SERVICE CLASSIFICATION~Retail Transmission Rate - Line and Transformation Connection Service Rate","STREET LIGHTING SERVICE CLASSIFICATION~Retail Transmission Rate - Network Service Rate","STREET LIGHTING SERVICE CLASSIFICATION~Retail Transmission Rate - Line and Transformation Connection Service Rate","UNMETERED SCATTERED LOAD SERVICE CLASSIFICATION~Retail Transmission Rate - Network Service Rate","UNMETERED SCATTERED LOAD SERVICE CLASSIFICATION~Retail Transmission Rate - Line and Transformation Connection Service Rate"]
["Niagara-on-the-Lake Hydro Inc.","RESIDENTIAL SERVICE CLASSIFICATION~Retail Transmission Rate - Network Service Rate","RESIDENTIAL SERVICE CLASSIFICATION~Retail Transmission Rate - Line and Transformation Connection Service Rate","GENERAL SERVICE LESS THAN 50 KW SERVICE CLASSIFICATION~Retail Transmission Rate - Network Service Rate","GENERAL SERVICE LESS THAN 50 KW SERVICE CLASSIFICATION~Retail Transmission Rate - Line and Transformation Connection Service Rate","GENERAL SERVICE 50 to 4,999 kW SERVICE CLASSIFICATION~Retail Transmission Rate - Network Service Rate","GENERAL SERVICE 50 to 4,999 kW SERVICE CLASSIFICATION~Retail Transmission Rate - Line and Transformation Connection Service Rate","GENERAL SERVICE 50 to 4,999 kW SERVICE CLASSIFICATION~Retail Transmission Rate - Network Service Rate - Interval Metered","GENERAL SERVICE 50 to 4,999 kW SERVICE CLASSIFICATION~Retail Transmission Rate - Line and Transformation Connection Service Rate - Interval Metered","UNMETERED SCATTERED LOAD SERVICE CLASSIFICATION~Retail Transmission Rate - Network Service Rate","UNMETERED SCATTERED LOAD SERVICE CLASSIFICATION~Retail Transmission Rate - Line and Transformation Connection Service Rate","STREET LIGHTING SERVICE CLASSIFICATION~Retail Transmission Rate - Network Service Rate","STREET LIGHTING SERVICE CLASSIFICATION~Retail Transmission Rate - Line and Transformation Connection Service Rate"]
["PUC Distribution Inc.","RESIDENTIAL SERVICE CLASSIFICATION~Retail Transmission Rate - Network Service Rate","GENERAL SERVICE LESS THAN 50 KW SERVICE CLASSIFICATION~Retail Transmission Rate - Network Service Rate","GENERAL SERVICE 50 to 4,999 kW SERVICE CLASSIFICATION~Retail Transmission Rate - Network Service Rate","GENERAL SERVICE 50 to 4,999 kW SERVICE CLASSIFICATION~Retail Transmission Rate - Network Service Rate - Interval Metered","UNMETERED SCATTERED LOAD SERVICE CLASSIFICATION~Retail Transmission Rate - Network Service Rate","SENTINEL LIGHTING SERVICE CLASSIFICATION~Retail Transmission Rate - Network Service Rate","STREET LIGHTING SERVICE CLASSIFICATION~Retail Transmission Rate - Network Service Rate"]
["Hydro One Networks Inc.","YEAR-ROUND URBAN DENSITY - UR SERVICE CLASSIFICATION~Retail Transmission Rate - Network Service Rate","YEAR-ROUND URBAN DENSITY - UR SERVICE CLASSIFICATION~Retail Transmission Rate - Line and Transformation Connection Service Rate","YEAR-ROUND MEDIUM DENSITY - R1 SERVICE CLASSIFICATION~Retail Transmission Rate - Network Service Rate","YEAR-ROUND MEDIUM DENSITY - R1 SERVICE CLASSIFICATION~Retail Transmission Rate - Line and Transformation Connection Service Rate","YEAR-ROUND LOW DENSITY - R2 SERVICE CLASSIFICATION~Retail Transmission Rate - Network Service Rate","YEAR-ROUND LOW DENSITY - R2 SERVICE CLASSIFICATION~Retail Transmission Rate - Line and Transformation Connection Service Rate","SEASONAL SERVICE CLASSIFICATION~Retail Transmission Rate - Network Service Rate","SEASONAL SERVICE CLASSIFICATION~Retail Transmission Rate - Line and Transformation Connection Service Rate","URBAN GENERAL SERVICE ENERGY BILLED - UGe SERVICE CLASSIFICATION~Retail Transmission Rate - Network Service Rate","URBAN GENERAL SERVICE ENERGY BILLED - UGe SERVICE CLASSIFICATION~Retail Transmission Rate - Line and Transformation Connection Service Rate","GENERAL SERVICE ENERGY BILLED - GSe SERVICE CLASSIFICATION~Retail Transmission Rate - Network Service Rate","GENERAL SERVICE ENERGY BILLED - GSe SERVICE CLASSIFICATION~Retail Transmission Rate - Line and Transformation Connection Service Rate","URBAN GENERAL SERVICE DEMAND BILLED - UGd SERVICE CLASSIFICATION~Retail Transmission Rate - Network Service Rate","URBAN GENERAL SERVICE DEMAND BILLED - UGd SERVICE CLASSIFICATION~Retail Transmission Rate - Line and Transformation Connection Service Rate","GENERAL SERVICE DEMAND BILLED - GSd SERVICE CLASSIFICATION~Retail Transmission Rate - Network Service Rate","GENERAL SERVICE DEMAND BILLED - GSd SERVICE CLASSIFICATION~Retail Transmission Rate - Line and Transformation Connection Service Rate","DISTRIBUTED GENERATION - DGen SERVICE CLASSIFICATION~Retail Transmission Rate - Network Service Rate","DISTRIBUTED GENERATION - DGen SERVICE CLASSIFICATION~Retail Transmission Rate - Line and Transformation Connection Service Rate","SUB TRANSMISSION - ST SERVICE CLASSIFICATION~Retail Transmission Rate - Network Service Rate","SUB TRANSMISSION - ST SERVICE CLASSIFICATION~Retail Transmission Rate - Line Connection Service Rate","SUB TRANSMISSION - ST SERVICE CLASSIFICATION~Retail Transmission Rate - Transformation Connection Service Rate","UNMETERED SCATTERED LOAD SERVICE CLASSIFICATION~Retail Transmission Rate - Network Service Rate","UNMETERED SCATTERED LOAD SERVICE CLASSIFICATION~Retail Transmission Rate - Line and Transformation Connection Service Rate","SENTINEL LIGHTING SERVICE CLASSIFICATION~Retail Transmission Rate - Network Service Rate","SENTINEL LIGHTING SERVICE CLASSIFICATION~Retail Transmission Rate - Line and Transformation Connection Service Rate","STREET LIGHTING SERVICE CLASSIFICATION~Retail Transmission Rate - Network Service Rate","STREET LIGHTING SERVICE CLASSIFICATION~Retail Transmission Rate - Line and Transformation Connection Service Rate"]

{"sheet":"DELETE 3. Rate Classes","index":12,"n_rows":100,"n_cols":23,"rows_kept":100,"cut":false,"hidden":true,"merged":[[12,2,12,8]]}
[]
[]
[]
[]
[]
[]
[]
[]
[]
[]
[]
[]
[null,null,"1.  Select the appropriate rate classes that appear on your most recent OEB-Approved Tariff of Rates and Charges.\n2.  Enter the RTSR Network and Connection Rate as it appears on the Tariff of Rates and Charges"]
[]
[null,null,"Rate Class",null,"Unit",null,"RTSR-Network",null,"RTSR-Connection"]
[]
[null,null,null,null,null,null,null,null,null,null,null,{"$f":"IF(OR(ISBLANK(C17), ISERROR(FIND(\"Choose\", C17))=FALSE), 0, 1)","v":0},{"$f":"\"C\" & ROW(C17)","v":"C17"},{"$f":"IF(OR(C17=\"General Service Intermediate Rate Class 1,000 To 4,999 kW (formerly General Service > 50 kW Customers)\", C17=\"General Service Intermediate Rate Class 1,000 To 4,999 kW (formerly Large Use Customers)\"), \"x\", \"\")","v":""},null,null,null,null,null,null,null,null,"Choose Rate Class"]
[null,null,null,null,null,null,null,null,null,null,null,0,"C18",{"$f":"IF(OR(C18=\"General Service Intermediate Rate Class 1,000 To 4,999 kW (formerly General Service > 50 kW Customers)\", C18=\"General Service Intermediate Rate Class 1,000 To 4,999 kW (formerly Large Use Customers)\"), \"x\", \"\")","v":""},null,null,null,null,null,null,null,null,"Residential"]
[null,null,null,null,null,null,null,null,null,null,null,0,"C19","",null,null,null,null,null,null,null,null,"Residential Regular"]
[null,null,null,null,null,null,null,null,null,null,null,0,"C20","",null,null,null,null,null,null,null,null,"Residential Urban"]
[null,null,null,null,null,null,null,null,null,null,null,0,"C21","",null,null,null,null,null,null,null,null,"Residential Urban Year-Round"]
[null,null,null,null,null,null,null,null,null,null,null,{"$f":"IF(OR(ISBLANK(C22), ISERROR(FIND(\"Choose\", C22))=FALSE), 0, 1)","v":0},"C22","",null,null,null,null,null,null,null,null,"Residential Suburban"]
[null,null,null,null,null,null,null,null,null,null,null,0,"C23","",null,null,null,null,null,null,null,null,"Residential Suburban Seasonal"]
[null,null,null,null,null,null,null,null,null,null,null,0,"C24","",null,null,null,null,null,null,null,null,"Residential Suburban Year Round"]
[null,null,null,null,null,null,null,null,null,null,null,0,"C25","",null,null,null,null,null,null,null,null,"Residential - Time of Use"]
[null,null,null,null,null,null,null,null,null,null,null,0,"C26","",null,null,null,null,null,null,null,null,"Residential - Hensall"]
[null,null,null,null,null,null,null,null,null,null,null,0,"C27","",null,null,null,null,null,null,null,null,"Residential – High Density [R1]"]
[null,null,null,null,null,null,null,null,null,null,null,0,"C28","",null,null,null,null,null,null,null,null,"Residential – Normal Density [R2]"]
[null,null,null,null,null,null,null,null,null,null,null,0,"C29","",null,null,null,null,null,null,null,null,"Seasonal Residential – High Density [R3]"]
[null,null,null,null,null,null,null,null,null,null,null,0,"C30","",null,null,null,null,null,null,null,null,"Seasonal Residential – Normal Density [R4]"]
[null,null,null,null,null,null,null,null,null,null,null,0,"C31","",null,null,null,null,null,null,null,null,"Residential – Urban [UR]"]
[null,null,null,null,null,null,null,null,null,null,null,0,"C32","",null,null,null,null,null,null,null,null,"General Service Less Than 50 kW"]
[null,null,null,null,null,null,null,null,null,null,null,0,"C33","",null,null,null,null,null,null,null,null,"General Service Less Than 50 kW – Single Phase energy-billed [G1]"]
[null,null,null,null,null,null,null,null,null,null,null,0,"C34","",null,null,null,null,null,null,null,null,"General Service Less Than 50 kW – Three Phase energy-billed [G3]"]
[null,null,null,null,null,null,null,null,null,null,null,0,"C35","",null,null,null,null,null,null,null,null,"General Service Less Than 50 kW – Transmission Class energy-billed [T]"]
[null,null,null,null,null,null,null,null,null,null,null,0,"C36","",null,null,null,null,null,null,null,null,"General Service Less Than 50 kW – Urban energy-billed [UG]"]
[null,null,null,null,null,null,null,null,null,null,null,0,"C37","",null,null,null,null,null,null,null,null,"Westport Sewage Treatment Plant"]
[null,null,null,null,null,null,null,null,null,null,null,0,"C38","",null,null,null,null,null,null,null,null,"Small Commercial and USL - per meter"]
[null,null,null,null,null,null,null,null,null,null,null,null,null,{"$f":"COUNTIF(N17:N38, \"x\")","v":0},null,null,null,null,null,null,null,null,"Small Commercial and USL - per connection"]
[null,null,null,null,null,null,null,null,null,null,null,null,null,null,null,null,null,null,null,null,null,null,"Farms – Single Phase energy-billed [F1]"]
[null,null,null,null,null,null,null,null,null,null,null,null,null,null,null,null,null,null,null,null,null,null,"General Service 50 to 499 kW"]
[null,null,null,null,null,null,null,null,null,null,null,null,null,null,null,null,null,null,null,null,null,null,"General Service 50 to 699 kW"]
[null,null,null,null,null,null,null,null,null,null,null,null,null,null,null,null,null,null,null,null,null,null,"General Service 50 to 999 kW"]
[null,null,null,null,null,null,null,null,null,null,null,null,null,null,null,null,null,null,null,null,null,null,"General Service 50 to 999 kW - Interval Metered"]
[null,null,null,null,null,null,null,null,null,null,null,null,null,null,null,null,null,null,null,null,null,null,"General Service 50 to 1,000 kW"]
[null,null,null,null,null,null,null,null,null,null,null,null,null,null,null,null,null,null,null,null,null,null,"General Service 50 to 1,000 kW - Interval Meters"]
[null,null,null,null,null,null,null,null,null,null,null,null,null,null,null,null,null,null,null,null,null,null,"General Service 50 to 1,000 kW - Non Interval Meters"]
[null,null,null,null,null,null,null,null,null,null,null,null,null,null,null,null,null,null,null,null,null,null,"General Service 50 to 1,499 kW"]
[null,null,null,null,null,null,null,null,null,null,null,null,null,null,null,null,null,null,null,null,null,null,"General Service 50 to 1,499 kW - Interval Metered"]
[null,null,null,null,null,null,null,null,null,null,null,null,null,null,null,null,null,null,null,null,null,null,"General Service  50 to 2,499 kW"]
[null,null,null,null,null,null,null,null,null,null,null,null,null,null,null,null,null,null,null,null,null,null,"General Service 50 to 2,999 kW"]
[null,null,null,null,null,null,null,null,null,null,null,null,null,null,null,null,null,null,null,null,null,null,"General Service 50 to 2,999 kW - Time of Use"]
[null,null,null,null,null,null,null,null,null,null,null,null,null,null,null,null,null,null,null,null,null,null,"General Service 50 to 4,999 kW"]
[null,null,null,null,null,null,null,null,null,null,null,null,null,null,null,null,null,null,null,null,null,null,"General Service 50 to 4,999 kW – Interval Metered"]
[null,null,null,null,null,null,null,null,null,null,null,null,null,null,null,null,null,null,null,null,null,null,"General Service 50 to 4,999 kW - Time of Use"]
[null,null,null,null,null,null,null,null,null,null,null,null,null,null,null,null,null,null,null,null,null,null,"General Service 50 to 4,999 kW (CoGeneration)"]
[null,null,null,null,null,null,null,null,null,null,null,null,null,null,null,null,null,null,null,null,null,null,"General Service 50 to 4,999 kW (formerly Time of Use)"]
[null,null,null,null,null,null,null,null,null,null,null,null,null,null,null,null,null,null,null,null,null,null,"General Service 500 to 4,999 kW"]
[null,null,null,null,null,null,null,null,null,null,null,null,null,null,null,null,null,null,null,null,null,null,"General Service 700 to 4,999 kW"]
[null,null,null,null,null,null,null,null,null,null,null,null,null,null,null,null,null,null,null,null,null,null,"General Service 1,000 to 2,999 kW"]
[null,null,null,null,null,null,null,null,null,null,null,null,null,null,null,null,null,null,null,null,null,null,"General Service 1,000 to 4,999 kW"]
[null,null,null,null,null,null,null,null,null,null,null,null,null,null,null,null,null,null,null,null,null,null,"General Service 1,000 to 4,999 kW - Interval Meters"]
[null,null,null,null,null,null,null,null,null,null,null,null,null,null,null,null,null,null,null,null,null,null,"General Service 1,000 To 4,999 kW (co-generation)"]
[null,null,null,null,null,null,null,null,null,null,null,null,null,null,null,null,null,null,null,null,null,null,"General Service Greater Than 1,000 kW"]
[null,null,null,null,null,null,null,null,null,null,null,null,null,null,null,null,null,null,null,null,null,null,"General Service Intermediate Rate Class 1,000 To 4,999 kW (formerly Large Use Customers)"]
[null,null,null,null,null,null,null,null,null,null,null,null,null,null,null,null,null,null,null,null,null,null,"General Service Intermediate Rate Class 1,000 To 4,999 kW (formerly General Service > 50 kW Customers)"]
[null,null,null,null,null,null,null,null,null,null,null,null,null,null,null,null,null,null,null,null,null,null,"General Service 1,500 to 4,999 kW"]
[null,null,null,null,null,null,null,null,null,null,null,null,null,null,null,null,null,null,null,null,null,null,"General Service Equal To Or Greater Than 1,500 kW"]
[null,null,null,null,null,null,null,null,null,null,null,null,null,null,null,null,null,null,null,null,null,null,"General Service Equal To Or Greater Than 1,500 kW - Interval Metered"]
[null,null,null,null,null,null,null,null,null,null,null,null,null,null,null,null,null,null,null,null,null,null,"General Service Intermediate 1,000 To 4,999 kW"]
[null,null,null,null,null,null,null,null,null,null,null,null,null,null,null,null,null,null,null,null,null,null,"General Service 2,500 to 4,999 kW"]
[null,null,null,null,null,null,null,null,null,null,null,null,null,null,null,null,null,null,null,null,null,null,"General Service 3,000 to 4,999 kW"]
[null,null,null,null,null,null,null,null,null,null,null,null,null,null,null,null,null,null,null,null,null,null,"General Service 3,000 to 4,999 kW - Interval Metered"]
[null,null,null,null,null,null,null,null,null,null,null,null,null,null,null,null,null,null,null,null,null,null,"General Service 3,000 to 4,999 kW - Intermediate Use"]
[null,null,null,null,null,null,null,null,null,null,null,null,null,null,null,null,null,null,null,null,null,null,"General Service 3,000 to 4,999 kW - Time of Use"]
[null,null,null,null,null,null,null,null,null,null,null,null,null,null,null,null,null,null,null,null,null,null,"Intermediate With Self Generation"]
[null,null,null,null,null,null,null,null,null,null,null,null,null,null,null,null,null,null,null,null,null,null,"General Service - Commercial"]
[null,null,null,null,null,null,null,null,null,null,null,null,null,null,null,null,null,null,null,null,null,null,"General Service - Institutional"]
[null,null,null,null,null,null,null,null,null,null,null,null,null,null,null,null,null,null,null,null,null,null,"Farms – Three Phase energy-billed [F3]"]
[null,null,null,null,null,null,null,null,null,null,null,null,null,null,null,null,null,null,null,null,null,null,"Large Use"]
[null,null,null,null,null,null,null,null,null,null,null,null,null,null,null,null,null,null,null,null,null,null,"Large Use - Regular"]
[null,null,null,null,null,null,null,null,null,null,null,null,null,null,null,null,null,null,null,null,null,null,"Large Use > 5000 kW"]
[null,null,null,null,null,null,null,null,null,null,null,null,null,null,null,null,null,null,null,null,null,null,"Large Use - 3TS"]
[null,null,null,null,null,null,null,null,null,null,null,null,null,null,null,null,null,null,null,null,null,null,"Large Use - Ford Annex"]
[null,null,null,null,null,null,null,null,null,null,null,null,null,null,null,null,null,null,null,null,null,null,"Unmetered Scattered Load"]
[null,null,null,null,null,null,null,null,null,null,null,null,null,null,null,null,null,null,null,null,null,null,"Sentinel Lighting"]
[null,null,null,null,null,null,null,null,null,null,null,null,null,null,null,null,null,null,null,null,null,null,"Street Lighting"]
[null,null,null,null,null,null,null,null,null,null,null,null,null,null,null,null,null,null,null,null,null,null,"Embedded Distributor"]
[null,null,null,null,null,null,null,null,null,null,null,null,null,null,null,null,null,null,null,null,null,null,"Low Voltage Wheeling Charge Rate"]
[null,null,null,null,null,null,null,null,null,null,null,null,null,null,null,null,null,null,null,null,null,null,"Stand-By"]
[null,null,null,null,null,null,null,null,null,null,null,null,null,null,null,null,null,null,null,null,null,null,"Standby Power"]
[null,null,null,null,null,null,null,null,null,null,null,null,null,null,null,null,null,null,null,null,null,null,"Standby Power – INTERIM APPROVAL"]
[null,null,null,null,null,null,null,null,null,null,null,null,null,null,null,null,null,null,null,null,null,null,"Standby Power - APPROVED ON AN INTERIM BASIS"]
[null,null,null,null,null,null,null,null,null,null,null,null,null,null,null,null,null,null,null,null,null,null,"Standby - General Service 50 - 1,000 kW"]
[null,null,null,null,null,null,null,null,null,null,null,null,null,null,null,null,null,null,null,null,null,null,"Standby Power General Service 50 to 1,499 kW"]
[null,null,null,null,null,null,null,null,null,null,null,null,null,null,null,null,null,null,null,null,null,null,"Standby - General Service 1,000 - 5,000 kW"]
[null,null,null,null,null,null,null,null,null,null,null,null,null,null,null,null,null,null,null,null,null,null,"Standby Power General Service 1,500 to 4,999 kW"]
[null,null,null,null,null,null,null,null,null,null,null,null,null,null,null,null,null,null,null,null,null,null,"Standby - Large Use"]
[null,null,null,null,null,null,null,null,null,null,null,null,null,null,null,null,null,null,null,null,null,null,"Standby Power General Service Large Use"]
[null,null,null,null,null,null,null,null,null,null,null,null,null,null,null,null,null,null,null,null,null,null,"Standby Distribution Service"]

{"sheet":"2 1 5 TotalConsumptionData_Dist","index":13,"n_rows":536,"n_cols":23,"rows_kept":536,"cut":false,"hidden":true,"merged":[[0,0,0,3],[1,0,1,3]]}
["2.1.5 TotalConsumptionData_Dist_Ret_Total_Combined_2021_v2"]
[]
[""]
["Filing_Year","Company_Name","Rate_Class","Rate_Class_Detail","Company_DetailClass","Ret_Metered_consumption_in_kWhs","Ret_Metered_consumption_in_kWs","Dist_RPPMeterCustkWh","Dist_RPPMeterCustkW","Dist_NonRPPMeterCustkWh","Dist_NonRPPMeterCustkW","IESOMeterCustkWh","IESOMeterCustKW","Class_A_Consumption_kWhs","Class_A_Consumption_kWs","TotConsmptionforDistCustkWh","TotConsmptionforDistCustkW","Calculated_TOTAL_KWH","Calculated_TOTAL_KW"]
["2022","ALECTRA UTILITIES CORPORATION","EMBEDDED DISTRIBUTOR(S)","HYDRO ONE BRAMPTON_EMBEDDED DISTRIBUTOR","ALECTRA UTILITIES CORPORATION_BRAMPTON RATE ZONE_EMBEDDED DISTRIBUTOR SERVICE CLASSIFICATION",0,0,0,0,20220547,0,0,0,0,0,20220547,0,20220547,0]
["2022","ALECTRA UTILITIES CORPORATION","GENERAL SERVICE EQUAL TO OR GREATER THAN 50 KW","ENERSOURCE_GENERAL SERVICE 50 TO 499 KW","ALECTRA UTILITIES CORPORATION_ENERSOURCE RATE ZONE_GENERAL SERVICE 50 TO 499 KW SERVICE CLASSIFICATION",289262258,820680,300851980,849854,1212785712,3436456,0,0,0,0,1513637692,4286310,1802899950,5106990]
["2022","ALECTRA UTILITIES CORPORATION","GENERAL SERVICE EQUAL TO OR GREATER THAN 50 KW","ENERSOURCE_GENERAL SERVICE 500 TO 4,999 KW","ALECTRA UTILITIES CORPORATION_ENERSOURCE RATE ZONE_GENERAL SERVICE 500 TO 4,999 KW SERVICE CLASSIFICATION",402276806,902506,148393826,343858,1343905319,3031483,13424240,26761,0,0,1505723385,3402102,1908000191,4304608]
["2022","ALECTRA UTILITIES CORPORATION","GENERAL SERVICE EQUAL TO OR GREATER THAN 50 KW","GENERAL SERVICE 1,000 TO 4,999 KW - GUELPH HYDRO","ALECTRA UTILITIES CORPORATION_GUELPH RATE ZONE_GENERAL SERVICE 1,000 TO 4,999 KW SERVICE CLASSIFICATION",21379279,38630,0,0,448528602,1011014,0,0,0,0,448528602,1011014,469907881,1049644]
["2022","ALECTRA UTILITIES CORPORATION","GENERAL SERVICE EQUAL TO OR GREATER THAN 50 KW","GENERAL SERVICE 50 TO 999 KW - GUELPH HYDRO","ALECTRA UTILITIES CORPORATION_GUELPH RATE ZONE_GENERAL SERVICE 50 TO 999 KW SERVICE CLASSIFICATION",64235347,182634,55909003,153025,241058708,641125,5800993,12313,0,0,302768704,806463,367004051,989097]
["2022","ALECTRA UTILITIES CORPORATION","GENERAL SERVICE EQUAL TO OR GREATER THAN 50 KW","HORIZON_GENERAL SERVICE 50 TO 4,999 KW","ALECTRA UTILITIES CORPORATION_HORIZON UTILITIES RATE ZONE_GENERAL SERVICE 50 TO 4,999 KW SERVICE CLASSIFICATION",221515501,587619,206806160,558625,1336925859,3611307,9190320,17032,0,0,1552922339,4186964,1774437840,4774583]
["2022","ALECTRA UTILITIES CORPORATION","GENERAL SERVICE EQUAL TO OR GREATER THAN 50 KW","HYDRO ONE BRAMPTON_ENERGY FROM WASTE","ALECTRA UTILITIES CORPORATION_BRAMPTON RATE ZONE_ENERGY FROM WASTE SERVICE CLASSIFICATION",0,0,0,0,0,0,0,0,0,0,0,0,0,0]
["2022","ALECTRA UTILITIES CORPORATION","GENERAL SERVICE EQUAL TO OR GREATER THAN 50 KW","HYDRO ONE BRAMPTON_GENERAL SERVICE 50 TO 699 KW","ALECTRA UTILITIES CORPORATION_BRAMPTON RATE ZONE_GENERAL SERVICE 50 TO 699 KW SERVICE CLASSIFICATION",155014415,433778,136720774,396646,798049983,2315256,6734048,26103,0,0,941504805,2738005,1096519220,3171783]
["2022","ALECTRA UTILITIES CORPORATION","GENERAL SERVICE EQUAL TO OR GREATER THAN 50 KW","HYDRO ONE BRAMPTON_GENERAL SERVICE 700 TO 4,999 KW","ALECTRA UTILITIES CORPORATION_BRAMPTON RATE ZONE_GENERAL SERVICE 700 TO 4,999 KW SERVICE CLASSIFICATION",157363818,398185,2335412,5549,615629402,1462743,70175016,116743,0,0,688139827,1585035,845503645,1983220]
["2022","ALECTRA UTILITIES CORPORATION","GENERAL SERVICE EQUAL TO OR GREATER THAN 50 KW","POWERSTREAM_GENERAL SERVICE 50 TO 4,999 KW","ALECTRA UTILITIES CORPORATION_POWERSTREAM RATE ZONE_GENERAL SERVICE 50 TO 4,999 KW SERVICE CLASSIFICATION",487133657,1400533,386586546,1006097,3620872363,9423370,26811784,63965,0,0,4034270693,10493432,4521404350,11893965]
["2022","ALECTRA UTILITIES CORPORATION","GENERAL SERVICE LESS THAN 50 KW","ENERSOURCE_GENERAL SERVICE LESS THAN 50 KW","ALECTRA UTILITIES CORPORATION_ENERSOURCE RATE ZONE_GENERAL SERVICE LESS THAN 50 KW SERVICE CLASSIFICATION",85822500,0,564200341,0,0,0,0,0,0,0,564200341,0,650022841,0]
["2022","ALECTRA UTILITIES CORPORATION","GENERAL SERVICE LESS THAN 50 KW","GENERAL SERVICE LESS THAN 50 KW - GUELPH HYDRO","ALECTRA UTILITIES CORPORATION_GUELPH RATE ZONE_GENERAL SERVICE LESS THAN 50 KW SERVICE CLASSIFICATION",23324481,0,107703536,0,0,0,0,0,0,0,107703536,0,131028017,0]
["2022","ALECTRA UTILITIES CORPORATION",0,0,0,0,0,0,{"$f":"C17-G17","v":0},0,0,0,0,0,0,459502025,0,539961163,0,null,{"$f":"E17-G17-L17","v":0},0,{"$f":"U17/T24","v":{"$error":"#DIV/0!"}}]
["2022","ALECTRA UTILITIES CORPORATION",0,0,0,0,0,0,0,0,0,0,0,0,0,287811,0,287811,0,null,0,0,{"$f":"U18/T24","v":{"$error":"#DIV/0!"}}]
["2022","ALECTRA UTILITIES CORPORATION",0,0,0,0,0,0,0,0,0,0,0,0,0,265628312,0,320581842,0,null,0,0,{"$f":"U19/T24","v":{"$error":"#DIV/0!"}}]
["2022","ALECTRA UTILITIES CORPORATION",0,0,0,0,0,0,0,0,0,0,0,0,0,817448211,0,941632610,0,null,0,0,{"$f":"U20/T24","v":{"$error":"#DIV/0!"}}]
["2022","ALECTRA UTILITIES CORPORATION",0,0,0,0,0,0,0,0,1406281,0,0,0,0,821319790,1406281,960912688,1654975,null,0,0,{"$f":"U21/T24","v":{"$error":"#DIV/0!"}}]
["2022","ALECTRA UTILITIES CORPORATION",0,0,0,0,0,0,0,0,239971,0,0,0,0,128092717,239971,158661784,312972,null,0,0,{"$f":"U22/T24","v":{"$error":"#DIV/0!"}}]
["2022","ALECTRA UTILITIES CORPORATION",0,0,0,0,0,0,0,0,594003,732956288,1240850,0,0,978057608,1834853,978057608,1834853,null,-732956288,-1240850,{"$f":"U23/T24","v":{"$error":"#DIV/0!"}}]
["2022","ALECTRA UTILITIES CORPORATION","LARGE USER","HYDRO ONE BRAMPTON_LARGE USE","ALECTRA UTILITIES CORPORATION_BRAMPTON RATE ZONE_LARGE USE SERVICE CLASSIFICATION",35554251,61804,0,0,283036633,548516,0,0,0,0,283036633,548516,318590884,610320]
["2022","ALECTRA UTILITIES CORPORATION","LARGE USER","LARGE USE - GUELPH HYDRO","ALECTRA UTILITIES CORPORATION_GUELPH RATE ZONE_LARGE USE SERVICE CLASSIFICATION",0,0,0,0,204838574,421555,0,0,0,0,204838574,421555,204838574,421555]
["2022","ALECTRA UTILITIES CORPORATION","LARGE USER","POWERSTREAM_LARGE USE","ALECTRA UTILITIES CORPORATION_POWERSTREAM RATE ZONE_LARGE USE SERVICE CLASSIFICATION",0,0,0,0,91936942,163835,0,0,0,0,91936942,163835,91936942,163835]
["2022","ALECTRA UTILITIES CORPORATION","NO RATE CLASS","NO RATE CLASS","ALECTRA UTILITIES CORPORATION_NO RATE CLASS SERVICE CLASSIFICATION",0,0,0,0,0,0,0,0,6262667264,12967616,0,0,0,0]
["2022","ALECTRA UTILITIES CORPORATION","RESIDENTIAL","ENERSOURCE_RESIDENTIAL","ALECTRA UTILITIES CORPORATION_ENERSOURCE RATE ZONE_RESIDENTIAL SERVICE CLASSIFICATION",25339025,0,1534667377,0,0,0,0,0,0,0,1534667377,0,1560006402,0]
["2022","ALECTRA UTILITIES CORPORATION","RESIDENTIAL","HORIZON_RESIDENTIAL","ALECTRA UTILITIES CORPORATION_HORIZON UTILITIES RATE ZONE_RESIDENTIAL SERVICE CLASSIFICATION",31905907,0,1718995765,0,0,0,0,0,0,0,1718995765,0,1750901672,0]
["2022","ALECTRA UTILITIES CORPORATION","RESIDENTIAL","HYDRO ONE BRAMPTON_RESIDENTIAL","ALECTRA UTILITIES CORPORATION_BRAMPTON RATE ZONE_RESIDENTIAL SERVICE CLASSIFICATION",26777103,0,1452747837,0,0,0,0,0,0,0,1452747837,0,1479524940,0]
["2022","ALECTRA UTILITIES CORPORATION","RESIDENTIAL","POWERSTREAM_RESIDENTIAL","ALECTRA UTILITIES CORPORATION_POWERSTREAM RATE ZONE_RESIDENTIAL SERVICE CLASSIFICATION",38754318,0,2924027528,0,0,0,0,0,0,0,2924027528,0,2962781846,0]
["2022","ALECTRA UTILITIES CORPORATION","RESIDENTIAL","RESIDENTIAL - GUELPH HYDRO","ALECTRA UTILITIES CORPORATION_GUELPH RATE ZONE_RESIDENTIAL SERVICE CLASSIFICATION",6043056,0,388373403,0,0,0,0,0,0,0,388373403,0,394416459,0]
["2022","ALECTRA UTILITIES CORPORATION","SENTINEL LIGHTING CONNECTIONS","HORIZON_SENTINEL LIGHTING","ALECTRA UTILITIES CORPORATION_HORIZON UTILITIES RATE ZONE_SENTINEL LIGHTING SERVICE CLASSIFICATION",5222,14,352340,951,18984,51,0,0,0,0,371324,1002,376546,1016]
["2022","ALECTRA UTILITIES CORPORATION","SENTINEL LIGHTING CONNECTIONS","POWERSTREAM_SENTINEL LIGHTING","ALECTRA UTILITIES CORPORATION_POWERSTREAM RATE ZONE_SENTINEL LIGHTING SERVICE CLASSIFICATION",4032,11,245931,675,12093,33,0,0,0,0,258024,708,262056,719]
["2022","ALECTRA UTILITIES CORPORATION","SENTINEL LIGHTING CONNECTIONS","SENTINEL LIGHTING - GUELPH HYDRO","ALECTRA UTILITIES CORPORATION_GUELPH RATE ZONE_SENTINEL LIGHTING SERVICE CLASSIFICATION",0,0,8890,25,0,0,0,0,0,0,8890,25,8890,25]
["2022","ALECTRA UTILITIES CORPORATION","STREET LIGHTING CONNECTIONS","ENERSOURCE_STREET LIGHTING","ALECTRA UTILITIES CORPORATION_ENERSOURCE RATE ZONE_STREET LIGHTING SERVICE CLASSIFICATION",0,0,0,0,14888780,41559,0,0,0,0,14888780,41559,14888780,41559]
["2022","ALECTRA UTILITIES CORPORATION","STREET LIGHTING CONNECTIONS","HORIZON_STREET LIGHTING","ALECTRA UTILITIES CORPORATION_HORIZON UTILITIES RATE ZONE_STREET LIGHTING SERVICE CLASSIFICATION",0,0,225613,641,16609797,47173,0,0,0,0,16835410,47814,16835410,47814]
["2022","ALECTRA UTILITIES CORPORATION","STREET LIGHTING CONNECTIONS","HYDRO ONE BRAMPTON_STREET LIGHTING","ALECTRA UTILITIES CORPORATION_BRAMPTON RATE ZONE_STREET LIGHTING SERVICE CLASSIFICATION",0,0,0,0,22576207,63704,0,0,0,0,22576207,63704,22576207,63704]
["2022","ALECTRA UTILITIES CORPORATION","STREET LIGHTING CONNECTIONS","POWERSTREAM_STREET LIGHTING","ALECTRA UTILITIES CORPORATION_POWERSTREAM RATE ZONE_STREET LIGHTING SERVICE CLASSIFICATION",294287,828,597908,1683,46749974,131579,0,0,0,0,47347882,133262,47642169,134090]
["2022","ALECTRA UTILITIES CORPORATION","STREET LIGHTING CONNECTIONS","STREET LIGHTING - GUELPH HYDRO","ALECTRA UTILITIES CORPORATION_GUELPH RATE ZONE_STREET LIGHTING SERVICE CLASSIFICATION",135835,390,0,0,3355117,9758,0,0,0,0,3355117,9758,3490952,10148]
["2022","ALECTRA UTILITIES CORPORATION","UNMETERED SCATTERED LOAD CONNECTIONS","ENERSOURCE_UNMETERED SCATTERED LOAD","ALECTRA UTILITIES CORPORATION_ENERSOURCE RATE ZONE_UNMETERED SCATTERED LOAD SERVICE CLASSIFICATION",463471,0,11339301,0,0,0,0,0,0,0,11339301,0,11802772,0]
["2022","ALECTRA UTILITIES CORPORATION","UNMETERED SCATTERED LOAD CONNECTIONS","HORIZON_UNMETERED SCATTERED LOAD","ALECTRA UTILITIES CORPORATION_HORIZON UTILITIES RATE ZONE_UNMETERED SCATTERED LOAD SERVICE CLASSIFICATION",1373933,0,9439275,0,0,0,0,0,0,0,9439275,0,10813208,0]
["2022","ALECTRA UTILITIES CORPORATION","UNMETERED SCATTERED LOAD CONNECTIONS","HYDRO ONE BRAMPTON_UNMETERED SCATTERED LOAD","ALECTRA UTILITIES CORPORATION_BRAMPTON RATE ZONE_UNMETERED SCATTERED LOAD SERVICE CLASSIFICATION",454905,0,5517651,0,0,0,0,0,0,0,5517651,0,5972556,0]
["2022","ALECTRA UTILITIES CORPORATION","UNMETERED SCATTERED LOAD CONNECTIONS","POWERSTREAM_UNMETERED SCATTERED LOAD","ALECTRA UTILITIES CORPORATION_POWERSTREAM RATE ZONE_UNMETERED SCATTERED LOAD SERVICE CLASSIFICATION",105394,0,13862943,0,0,0,0,0,0,0,13862943,0,13968337,0]
["2022","ALECTRA UTILITIES CORPORATION","UNMETERED SCATTERED LOAD CONNECTIONS","UNMETERED SCATTERED LOAD - GUELPH HYDRO","ALECTRA UTILITIES CORPORATION_GUELPH RATE ZONE_UNMETERED SCATTERED LOAD SERVICE CLASSIFICATION",401775,0,1693140,0,0,0,0,0,0,0,1693140,0,2094915,0]
["2022","ALGOMA POWER INC.","GENERAL SERVICE EQUAL TO OR GREATER THAN 50 KW","RESIDENTIAL - R2","ALGOMA POWER INC._RESIDENTIAL – R2 SERVICE CLASSIFICATION",716118.4,1968,4893838.7300000004,15987.67,111935000.3,233776.06,0,0,0,0,116828839.03,249763.73,117544957.43000001,251732.03]
["2022","ALGOMA POWER INC.","NO RATE CLASS","NO RATE CLASS","ALGOMA POWER INC._NO RATE CLASS SERVICE CLASSIFICATION",0,0,0,0,0,0,0,0,93431048,175025.40625,0,0,0,0]
["2022","ALGOMA POWER INC.","RESIDENTIAL","RESIDENTIAL - R1","ALGOMA POWER INC._RESIDENTIAL – R1 SERVICE CLASSIFICATION",4130734.71,0,115620328.02,0,0,0,0,0,0,0,115620328.02,0,119751062.73,0]
["2022","ALGOMA POWER INC.","RESIDENTIAL","RESIDENTIAL - SEASONAL","ALGOMA POWER INC._RESIDENTIAL - SEASONAL SERVICE CLASSIFICATION",14220.43,0,6409947.0999999996,0,0,0,0,0,0,0,6409947.0999999996,0,6424167.5300000003,0]
["2022","ALGOMA POWER INC.","STREET LIGHTING CONNECTIONS","STREET LIGHTING","ALGOMA POWER INC._STREET LIGHTING SERVICE CLASSIFICATION",126430.2,0,0,0,467725.9,1593.23,0,0,0,0,467725.9,1593.23,594156.1,1593.23]
["2022","ATIKOKAN HYDRO INC.","GENERAL SERVICE EQUAL TO OR GREATER THAN 50 KW","GENERAL SERVICE 50 TO 4,999 KW","ATIKOKAN HYDRO INC._GENERAL SERVICE 50 TO 4,999 KW SERVICE CLASSIFICATION",1014348.8,2244,0,0,16466891.75,47182.1,0,0,0,0,16466891.75,47182.1,17481240.550000001,49426.26]
["2022","ATIKOKAN HYDRO INC.","GENERAL SERVICE LESS THAN 50 KW","GENERAL SERVICE LESS THAN 50 KW","ATIKOKAN HYDRO INC._GENERAL SERVICE LESS THAN 50 KW SERVICE CLASSIFICATION",49450.06,0,4312268.5999999996,0,0,0,0,0,0,0,4312268.5999999996,0,4361718.66,0]
["2022","ATIKOKAN HYDRO INC.","NO RATE CLASS","NO RATE CLASS","ATIKOKAN HYDRO INC._NO RATE CLASS SERVICE CLASSIFICATION",0,0,0,0,0,0,0,0,11678536,33100.94140625,0,0,0,0]
["2022","ATIKOKAN HYDRO INC.","RESIDENTIAL","RESIDENTIAL","ATIKOKAN HYDRO INC._RESIDENTIAL SERVICE CLASSIFICATION",14714,0,9425508.7799999993,0,0,0,0,0,0,0,9425508.7799999993,0,9440222.7799999993,0]
["2022","ATIKOKAN HYDRO INC.","STREET LIGHTING CONNECTIONS","STREET LIGHTING","ATIKOKAN HYDRO INC._STREET LIGHTING SERVICE CLASSIFICATION",0,0,0,0,404182.8,1253.28,0,0,0,0,404182.8,1253.28,404182.8,1253.28]
["2022","BLUEWATER POWER DISTRIBUTION CORPORATION","GENERAL SERVICE EQUAL TO OR GREATER THAN 50 KW","GENERAL SERVICE 1,000 TO 4,999 KW","BLUEWATER POWER DISTRIBUTION CORPORATION_GENERAL SERVICE 1,000 TO 4,999 KW SERVICE CLASSIFICATION",0,0,0,0,126088597,245050,0,0,0,0,126088597,245050,126088597,245050]
["2022","BLUEWATER POWER DISTRIBUTION CORPORATION","GENERAL SERVICE EQUAL TO OR GREATER THAN 50 KW","GENERAL SERVICE 50 TO 999 KW","BLUEWATER POWER DISTRIBUTION CORPORATION_GENERAL SERVICE 50 TO 999 KW SERVICE CLASSIFICATION",30564259,99483,36807919,110478,113751690,306368,4128117,7856,0,0,154687726,424702,185251985,524185]
["2022","BLUEWATER POWER DISTRIBUTION CORPORATION","GENERAL SERVICE LESS THAN 50 KW","GENERAL SERVICE LESS THAN 50 KW","BLUEWATER POWER DISTRIBUTION CORPORATION_GENERAL SERVICE LESS THAN 50 KW SERVICE CLASSIFICATION",16754697,0,82092657,0,96173,0,0,0,0,0,82188830,0,98943527,0]
["2022","BLUEWATER POWER DISTRIBUTION CORPORATION","LARGE USER","LARGE USE","BLUEWATER POWER DISTRIBUTION CORPORATION_LARGE USE SERVICE CLASSIFICATION",0,0,0,0,165077012,285688,101144928,185627,0,0,266221943,471315,266221943,471315]
["2022","BLUEWATER POWER DISTRIBUTION CORPORATION","NO RATE CLASS","NO RATE CLASS","BLUEWATER POWER DISTRIBUTION CORPORATION_NO RATE CLASS SERVICE CLASSIFICATION",0,0,0,0,0,0,0,0,294521888,537420,0,0,0,0]
["2022","BLUEWATER POWER DISTRIBUTION CORPORATION","RESIDENTIAL","RESIDENTIAL","BLUEWATER POWER DISTRIBUTION CORPORATION_RESIDENTIAL SERVICE CLASSIFICATION",5467033,0,270008805,0,0,0,0,0,0,0,270008805,0,275475838,0]
["2022","BLUEWATER POWER DISTRIBUTION CORPORATION","SENTINEL LIGHTING CONNECTIONS","SENTINEL LIGHTING","BLUEWATER POWER DISTRIBUTION CORPORATION_SENTINEL LIGHTING SERVICE CLASSIFICATION",27570,74,405598,1113,0,0,0,0,0,0,405598,1113,433168,1187]
["2022","BLUEWATER POWER DISTRIBUTION CORPORATION","STREET LIGHTING CONNECTIONS","STREET LIGHTING","BLUEWATER POWER DISTRIBUTION CORPORATION_STREET LIGHTING SERVICE CLASSIFICATION",0,0,0,0,3351425,9338,0,0,0,0,3351425,9338,3351425,9338]
["2022","BLUEWATER POWER DISTRIBUTION CORPORATION","UNMETERED SCATTERED LOAD CONNECTIONS","UNMETERED SCATTERED LOAD","BLUEWATER POWER DISTRIBUTION CORPORATION_UNMETERED SCATTERED LOAD SERVICE CLASSIFICATION",330660,0,1850771,0,0,0,0,0,0,0,1850771,0,2181431,0]
["2022","BRANTFORD POWER INC.","EMBEDDED DISTRIBUTOR(S)","EMBEDDED DISTRIBUTOR","BRANTFORD POWER INC._EMBEDDED DISTRIBUTOR SERVICE CLASSIFICATION",0,0,0,0,0,0,44423696,104833.2890625,0,0,44423696.729999997,104833.29,44423696.729999997,104833.29]
["2022","BRANTFORD POWER INC.","GENERAL SERVICE EQUAL TO OR GREATER THAN 50 KW","GENERAL SERVICE 50 TO 4,999 KW","BRANTFORD POWER INC._GENERAL SERVICE 50 TO 4,999 KW SERVICE CLASSIFICATION",71619249.879999995,225949,25931258.289999999,77868.13,450030508.56999999,1398487.94,6016238.5,11616.3798828125,0,0,481978005.49000001,1487972.45,553597255.37,1713921.63]
["2022","BRANTFORD POWER INC.","GENERAL SERVICE LESS THAN 50 KW","GENERAL SERVICE LESS THAN 50 KW","BRANTFORD POWER INC._GENERAL SERVICE LESS THAN 50 KW SERVICE CLASSIFICATION",14196610.25,0,72651337.939999998,0,349135.63,0,0,0,0,0,73000473.569999993,0,87197083.819999993,0]
["2022","BRANTFORD POWER INC.","NO RATE CLASS","NO RATE CLASS","BRANTFORD POWER INC._NO RATE CLASS SERVICE CLASSIFICATION",0,0,0,0,0,0,0,0,228008880,576700.125,0,0,0,0]
["2022","BRANTFORD POWER INC.","RESIDENTIAL","RESIDENTIAL","BRANTFORD POWER INC._RESIDENTIAL SERVICE CLASSIFICATION",5852208.3399999999,0,308573776.45999998,0,0,0,0,0,0,0,308573776.45999998,0,314425984.80000001,0]
["2022","BRANTFORD POWER INC.","SENTINEL LIGHTING CONNECTIONS","SENTINEL LIGHTING","BRANTFORD POWER INC._SENTINEL LIGHTING SERVICE CLASSIFICATION",5728.59,14,181554.41,568.15,0,14.4,0,0,0,0,181554.41,582.54999999999995,187283,596.95000000000005]
["2022","BRANTFORD POWER INC.","STREET LIGHTING CONNECTIONS","STREET LIGHTING","BRANTFORD POWER INC._STREET LIGHTING SERVICE CLASSIFICATION",0,0,0,0,5545435.5499999998,16658.03,0,0,0,0,5545435.5499999998,16658.03,5545435.5499999998,16658.03]
["2022","BRANTFORD POWER INC.","UNMETERED SCATTERED LOAD CONNECTIONS","UNMETERED SCATTERED LOAD","BRANTFORD POWER INC._UNMETERED SCATTERED LOAD SERVICE CLASSIFICATION",0,0,1544932.07,0,0,0,0,0,0,0,1544932.07,0,1544932.07,0]
["2022","BURLINGTON HYDRO INC.","GENERAL SERVICE EQUAL TO OR GREATER THAN 50 KW","GENERAL SERVICE 50 TO 4,999 KW","BURLINGTON HYDRO INC._GENERAL SERVICE 50 TO 4,999 KW SERVICE CLASSIFICATION",115798358,315320,120474627,336001,561095563,1508991,0,0,0,0,681570190,1844992,797368548,2160312]
["2022","BURLINGTON HYDRO INC.","GENERAL SERVICE LESS THAN 50 KW","GENERAL SERVICE LESS THAN 50 KW","BURLINGTON HYDRO INC._GENERAL SERVICE LESS THAN 50 KW SERVICE CLASSIFICATION",21967898,0,134789058,0,160909,0,0,0,0,0,134949967,0,156917865,0]
["2022","BURLINGTON HYDRO INC.","NO RATE CLASS","NO RATE CLASS","BURLINGTON HYDRO INC._NO RATE CLASS SERVICE CLASSIFICATION",0,0,0,0,0,0,0,0,210380848,498047,0,0,0,0]
["2022","BURLINGTON HYDRO INC.","RESIDENTIAL","RESIDENTIAL","BURLINGTON HYDRO INC._RESIDENTIAL SERVICE CLASSIFICATION",5115698,0,545762387,0,0,0,0,0,0,0,545762387,0,550878085,0]
["2022","BURLINGTON HYDRO INC.","STREET LIGHTING CONNECTIONS","STREET LIGHTING","BURLINGTON HYDRO INC._STREET LIGHTING SERVICE CLASSIFICATION",0,0,46998,131,5496829,15325,0,0,0,0,5543827,15456,5543827,15456]
["2022","BURLINGTON HYDRO INC.","UNMETERED SCATTERED LOAD CONNECTIONS","UNMETERED SCATTERED LOAD","BURLINGTON HYDRO INC._UNMETERED SCATTERED LOAD SERVICE CLASSIFICATION",0,0,3135180,0,0,0,0,0,0,0,3135180,0,3135180,0]
["2022","CANADIAN NIAGARA POWER INC.","EMBEDDED DISTRIBUTOR(S)","EMBEDDED DISTRIBUTOR","CANADIAN NIAGARA POWER INC._EMBEDDED DISTRIBUTOR SERVICE CLASSIFICATION",0,0,0,0,5543931.4199999999,14862.9,0,0,0,0,5543931.4199999999,14862.9,5543931.4199999999,14862.9]
["2022","CANADIAN NIAGARA POWER INC.","GENERAL SERVICE EQUAL TO OR GREATER THAN 50 KW","GENERAL SERVICE 50 TO 4,999 KW","CANADIAN NIAGARA POWER INC._GENERAL SERVICE 50 TO 4,999 KW SERVICE CLASSIFICATION",9423241.7799999993,43242,16451074.449999999,48526.720000000001,147937983.34,468762.66,0,0,0,0,164389057.78999999,517289.38,173812299.56999999,560531.96]
["2022","CANADIAN NIAGARA POWER INC.","GENERAL SERVICE LESS THAN 50 KW","GENERAL SERVICE LESS THAN 50 KW","CANADIAN NIAGARA POWER INC._GENERAL SERVICE LESS THAN 50 KW SERVICE CLASSIFICATION",9492281.4299999997,0,53600838.520000003,0,0,0,0,0,0,0,53600838.520000003,0,63093119.950000003,0]
["2022","CANADIAN NIAGARA POWER INC.","NO RATE CLASS","NO RATE CLASS","CANADIAN NIAGARA POWER INC._NO RATE CLASS SERVICE CLASSIFICATION",0,0,0,0,0,0,0,0,73900656,240048.375,0,0,0,0]
["2022","CANADIAN NIAGARA POWER INC.","RESIDENTIAL","RESIDENTIAL","CANADIAN NIAGARA POWER INC._RESIDENTIAL SERVICE CLASSIFICATION",3373187.05,0,219813303.00999999,0,0,0,0,0,0,0,219813303.00999999,0,223186490.06,0]
["2022","CANADIAN NIAGARA POWER INC.","SENTINEL LIGHTING CONNECTIONS","SENTINEL LIGHTING","CANADIAN NIAGARA POWER INC._SENTINEL LIGHTING SERVICE CLASSIFICATION",394.36,1,509341.34,1674.56,0,0,0,0,0,0,509341.34,1674.56,509735.7,1675.86]
["2022","CANADIAN NIAGARA POWER INC.","STREET LIGHTING CONNECTIONS","STREET LIGHTING","CANADIAN NIAGARA POWER INC._STREET LIGHTING SERVICE CLASSIFICATION",0,0,78598.02,259.22000000000003,1345215.52,4093.2,0,0,0,0,1423813.54,4352.42,1423813.54,4352.42]
["2022","CANADIAN NIAGARA POWER INC.","UNMETERED SCATTERED LOAD CONNECTIONS","UNMETERED SCATTERED LOAD","CANADIAN NIAGARA POWER INC._UNMETERED SCATTERED LOAD SERVICE CLASSIFICATION",883032,0,405630.62,0,0,0,0,0,0,0,405630.62,0,1288662.6200000001,0]
["2022","CENTRE WELLINGTON HYDRO LTD.","GENERAL SERVICE EQUAL TO OR GREATER THAN 50 KW","GENERAL SERVICE 3,000 TO 4,999 KW","CENTRE WELLINGTON HYDRO LTD._GENERAL SERVICE 3,000 TO 4,999 KW SERVICE CLASSIFICATION",0,0,0,0,15601730.4,36793.03,0,0,0,0,15601730.4,36793.03,15601730.4,36793.03]
["2022","CENTRE WELLINGTON HYDRO LTD.","GENERAL SERVICE EQUAL TO OR GREATER THAN 50 KW","GENERAL SERVICE 50 TO 2,999 KW","CENTRE WELLINGTON HYDRO LTD._GENERAL SERVICE 50 TO 2,999 KW SERVICE CLASSIFICATION",12402434,34034,1608765,4806.1400000000003,38994999.289999999,109387.66,2711389.5,4997.830078125,0,0,43315153.899999999,119191.63,55717587.899999999,153225.65]
["2022","CENTRE WELLINGTON HYDRO LTD.","GENERAL SERVICE LESS THAN 50 KW","GENERAL SERVICE LESS THAN 50 KW","CENTRE WELLINGTON HYDRO LTD._GENERAL SERVICE LESS THAN 50 KW SERVICE CLASSIFICATION",4514581,0,19320861,0,0,0,0,0,0,0,19320861,0,23835442,0]
["2022","CENTRE WELLINGTON HYDRO LTD.","NO RATE CLASS","NO RATE CLASS","CENTRE WELLINGTON HYDRO LTD._NO RATE CLASS SERVICE CLASSIFICATION",0,0,0,0,0,0,0,0,21350194,51795.48046875,0,0,0,0]
["2022","CENTRE WELLINGTON HYDRO LTD.","RESIDENTIAL","RESIDENTIAL","CENTRE WELLINGTON HYDRO LTD._RESIDENTIAL SERVICE CLASSIFICATION",583850,0,49353574,0,0,0,0,0,0,0,49353574,0,49937424,0]
["2022","CENTRE WELLINGTON HYDRO LTD.","SENTINEL LIGHTING CONNECTIONS","SENTINEL LIGHTING","CENTRE WELLINGTON HYDRO LTD._SENTINEL LIGHTING SERVICE CLASSIFICATION",12921,35,22564,62.68,0,0,0,0,0,0,22564,62.68,35485,98.57]
["2022","CENTRE WELLINGTON HYDRO LTD.","STREET LIGHTING CONNECTIONS","STREET LIGHTING","CENTRE WELLINGTON HYDRO LTD._STREET LIGHTING SERVICE CLASSIFICATION",0,0,0,0,594930.56000000006,1647.32,0,0,0,0,594930.56000000006,1647.32,594930.56000000006,1647.32]
["2022","CENTRE WELLINGTON HYDRO LTD.","UNMETERED SCATTERED LOAD CONNECTIONS","UNMETERED SCATTERED LOAD","CENTRE WELLINGTON HYDRO LTD._UNMETERED SCATTERED LOAD SERVICE CLASSIFICATION",105888,0,513507,0,0,0,0,0,0,0,513507,0,619395,0]
["2022","CHAPLEAU PUBLIC UTILITIES CORPORATION","GENERAL SERVICE EQUAL TO OR GREATER THAN 50 KW","GENERAL SERVICE 50 TO 4,999 KW","CHAPLEAU PUBLIC UTILITIES CORPORATION_GENERAL SERVICE 50 TO 4,999 KW SERVICE CLASSIFICATION",459640,1639,0,0,4230779,11803,0,0,0,0,4230779,11803,4690419,13442.2]
["2022","CHAPLEAU PUBLIC UTILITIES CORPORATION","GENERAL SERVICE LESS THAN 50 KW","GENERAL SERVICE LESS THAN 50 KW","CHAPLEAU PUBLIC UTILITIES CORPORATION_GENERAL SERVICE LESS THAN 50 KW SERVICE CLASSIFICATION",534978,0,3662447,0,0,0,0,0,0,0,3662447,0,4197425,0]
["2022","CHAPLEAU PUBLIC UTILITIES CORPORATION","NO RATE CLASS","NO RATE CLASS","CHAPLEAU PUBLIC UTILITIES CORPORATION_NO RATE CLASS SERVICE CLASSIFICATION",0,0,0,0,0,0,0,0,0,0,0,0,0,0]
["2022","CHAPLEAU PUBLIC UTILITIES CORPORATION","RESIDENTIAL","RESIDENTIAL","CHAPLEAU PUBLIC UTILITIES CORPORATION_RESIDENTIAL SERVICE CLASSIFICATION",24232,0,13584483,0,0,0,0,0,0,0,13584483,0,13608715,0]
["2022","CHAPLEAU PUBLIC UTILITIES CORPORATION","SENTINEL LIGHTING CONNECTIONS","SENTINEL LIGHTING","CHAPLEAU PUBLIC UTILITIES CORPORATION_SENTINEL LIGHTING SERVICE CLASSIFICATION",1346,3,18360,51,0,0,0,0,0,0,18360,51,19706,54.68]
["2022","CHAPLEAU PUBLIC UTILITIES CORPORATION","STREET LIGHTING CONNECTIONS","STREET LIGHTING","CHAPLEAU PUBLIC UTILITIES CORPORATION_STREET LIGHTING SERVICE CLASSIFICATION",0,0,198386,562,0,0,0,0,0,0,198386,562,198386,562]
["2022","CHAPLEAU PUBLIC UTILITIES CORPORATION","UNMETERED SCATTERED LOAD CONNECTIONS","UNMETERED SCATTERED LOAD","CHAPLEAU PUBLIC UTILITIES CORPORATION_UNMETERED SCATTERED LOAD SERVICE CLASSIFICATION",0,0,2892,0,0,0,0,0,0,0,2892,0,2892,0]
["2022","COOPERATIVE HYDRO EMBRUN INC.","GENERAL SERVICE EQUAL TO OR GREATER THAN 50 KW","GENERAL SERVICE 50 TO 4,999 KW","COOPERATIVE HYDRO EMBRUN INC._GENERAL SERVICE 50 TO 4,999 KW SERVICE CLASSIFICATION",0,0,773111,0,3186127,9235,0,0,0,0,3959238,9235,3959238,9235]
["2022","COOPERATIVE HYDRO EMBRUN INC.","GENERAL SERVICE LESS THAN 50 KW","GENERAL SERVICE LESS THAN 50 KW","COOPERATIVE HYDRO EMBRUN INC._GENERAL SERVICE LESS THAN 50 KW SERVICE CLASSIFICATION",1042739,0,3307991,0,0,0,0,0,0,0,3307991,0,4350730,0]
["2022","COOPERATIVE HYDRO EMBRUN INC.","NO RATE CLASS","NO RATE CLASS","COOPERATIVE HYDRO EMBRUN INC._NO RATE CLASS SERVICE CLASSIFICATION",0,0,0,0,0,0,0,0,0,0,0,0,0,0]
["2022","COOPERATIVE HYDRO EMBRUN INC.","RESIDENTIAL","RESIDENTIAL","COOPERATIVE HYDRO EMBRUN INC._RESIDENTIAL SERVICE CLASSIFICATION",112037,0,21542962,0,0,0,0,0,0,0,21542962,0,21654999,0]
["2022","COOPERATIVE HYDRO EMBRUN INC.","STREET LIGHTING CONNECTIONS","STREET LIGHTING","COOPERATIVE HYDRO EMBRUN INC._STREET LIGHTING SERVICE CLASSIFICATION",0,0,0,0,214544,598,0,0,0,0,214544,598,214544,598]
["2022","COOPERATIVE HYDRO EMBRUN INC.","UNMETERED SCATTERED LOAD CONNECTIONS","UNMETERED SCATTERED LOAD","COOPERATIVE HYDRO EMBRUN INC._UNMETERED SCATTERED LOAD SERVICE CLASSIFICATION",0,0,93084,0,0,0,0,0,0,0,93084,0,93084,0]
["2022","CORNWALL STREET RAILWAY LIGHT AND POWER COMPANY LIMITED","NO RATE CLASS","NO RATE CLASS","CORNWALL STREET RAILWAY LIGHT AND POWER COMPANY LIMITED_NO RATE CLASS SERVICE CLASSIFICATION",0,0,0,0,0,0,0,0,null,null,0,0,0,0]
["2022","ELEXICON ENERGY INC.","GENERAL SERVICE EQUAL TO OR GREATER THAN 50 KW","GENERAL SERVICE 3,000 TO 4,999 KW - VERIDIAN","ELEXICON ENERGY INC._VERIDIAN RATE ZONE_GENERAL SERVICE 3,000 TO 4,999 KW SERVICE CLASSIFICATION",0,0,0,0,105997891,233934,0,0,0,0,105997891,233934,105997891,233934]
["2022","ELEXICON ENERGY INC.","GENERAL SERVICE EQUAL TO OR GREATER THAN 50 KW","GENERAL SERVICE 50 TO 2,999 KW - VERIDIAN","ELEXICON ENERGY INC._VERIDIAN RATE ZONE_GENERAL SERVICE 50 TO 2,999 KW SERVICE CLASSIFICATION",114505118,300238,100429722,263353,677010179,1628985,34299372,58543,0,0,811739273,1950881,926244391,2251119]
["2022","ELEXICON ENERGY INC.","GENERAL SERVICE EQUAL TO OR GREATER THAN 50 KW","GENERAL SERVICE 50 TO 4,999 KW - WHITBY","ELEXICON ENERGY INC._FOR THE WHITBY RATE ZONE_GENERAL SERVICE 50 TO 4,999 KW SERVICE CLASSIFICATION",62027523,151580,42589200,110153,283944582,646266,3987457,7641,0,0,330521239,764060,392548762,915640]
["2022","ELEXICON ENERGY INC.","GENERAL SERVICE LESS THAN 50 KW","GENERAL SERVICE < 50 KW - VERIDIAN","ELEXICON ENERGY INC._VERIDIAN RATE ZONE_GENERAL SERVICE LESS THAN 50 KW SERVICE CLASSIFICATION",43537251,0,235064395,0,274894,0,0,0,0,0,235339289,0,278876540,0]
["2022","ELEXICON ENERGY INC.","GENERAL SERVICE LESS THAN 50 KW","GENERAL SERVICE < 50 KW - WHITBY","ELEXICON ENERGY INC._FOR THE WHITBY RATE ZONE_GENERAL SERVICE LESS THAN 50 KW SERVICE CLASSIFICATION",13282265,0,69984058,0,0,0,0,0,0,0,69984058,0,83266323,0]
["2022","ELEXICON ENERGY INC.","LARGE USER","LARGE USE - VERIDIAN","ELEXICON ENERGY INC._VERIDIAN RATE ZONE_LARGE USE SERVICE CLASSIFICATION",0,0,0,0,271237266,481567,0,0,0,0,271237266,481567,271237266,481567]
["2022","ELEXICON ENERGY INC.","NO RATE CLASS","NO RATE CLASS","ELEXICON ENERGY INC._NO RATE CLASS SERVICE CLASSIFICATION",0,0,0,0,0,0,0,0,760889856,1467361,0,0,0,0]
["2022","ELEXICON ENERGY INC.","RESIDENTIAL","RESIDENTIAL - VERIDIAN","ELEXICON ENERGY INC._VERIDIAN RATE ZONE_RESIDENTIAL SERVICE CLASSIFICATION",22439510,0,1006882056,0,0,0,0,0,0,0,1006882056,0,1029321566,0]
["2022","ELEXICON ENERGY INC.","RESIDENTIAL","RESIDENTIAL - WHITBY","ELEXICON ENERGY INC._FOR THE WHITBY RATE ZONE_RESIDENTIAL SERVICE CLASSIFICATION",4268262,0,390424478,0,0,0,0,0,0,0,390424478,0,394692740,0]
["2022","ELEXICON ENERGY INC.","RESIDENTIAL","RESIDENTIAL SEASONAL - VERIDIAN","ELEXICON ENERGY INC._VERIDIAN RATE ZONE_SEASONAL RESIDENTIAL SERVICE CLASSIFICATION",75163,0,12472545,0,0,0,0,0,0,0,12472545,0,12547708,0]
["2022","ELEXICON ENERGY INC.","SENTINEL LIGHTING CONNECTIONS","SENTINEL LIGHTING - VERIDIAN","ELEXICON ENERGY INC._VERIDIAN RATE ZONE_SENTINEL LIGHTING SERVICE CLASSIFICATION",74351,207,153034,425,0,0,0,0,0,0,153034,425,227385,632]
["2022","ELEXICON ENERGY INC.","SENTINEL LIGHTING CONNECTIONS","SENTINEL LIGHTING - WHITBY","ELEXICON ENERGY INC._FOR THE WHITBY RATE ZONE_SENTINEL LIGHTING SERVICE CLASSIFICATION",63,0,27735,71,0,0,0,0,0,0,27735,71,27798,71]
["2022","ELEXICON ENERGY INC.","STREET LIGHTING CONNECTIONS","STREET LIGHTING - VERIDIAN","ELEXICON ENERGY INC._VERIDIAN RATE ZONE_STREET LIGHTING SERVICE CLASSIFICATION",2612264,7316,0,0,8543203,23824,0,0,0,0,8543203,23824,11155467,31140]
["2022","ELEXICON ENERGY INC.","STREET LIGHTING CONNECTIONS","STREET LIGHTING - WHITBY","ELEXICON ENERGY INC._FOR THE WHITBY RATE ZONE_STREET LIGHTING SERVICE CLASSIFICATION",0,0,0,0,3085782,9363,0,0,0,0,3085782,9363,3085782,9363]
["2022","ELEXICON ENERGY INC.","UNMETERED SCATTERED LOAD CONNECTIONS","UNMETERED SCATTERED LOAD - VERIDIAN","ELEXICON ENERGY INC._VERIDIAN RATE ZONE_UNMETERED SCATTERED LOAD SERVICE CLASSIFICATION",222559,0,4355614,0,0,0,0,0,0,0,4355614,0,4578173,0]
["2022","ELEXICON ENERGY INC.","UNMETERED SCATTERED LOAD CONNECTIONS","UNMETERED SCATTERED LOAD - WHITBY","ELEXICON ENERGY INC._FOR THE WHITBY RATE ZONE_UNMETERED SCATTERED LOAD SERVICE CLASSIFICATION",0,0,1852550,0,0,0,0,0,0,0,1852550,0,1852550,0]
["2022","ENERGY+ INC.","EMBEDDED DISTRIBUTOR(S)","EMBEDDED DISTRIBUTOR - HYDRO ONE #1","ENERGY+ INC._EMBEDDED DISTRIBUTOR SERVICE CLASSIFICATION - HYDRO ONE #1",0,0,0,0,14208286.26,29703.09,0,0,0,0,14208286.26,29703.09,14208286.26,29703.09]
["2022","ENERGY+ INC.","EMBEDDED DISTRIBUTOR(S)","EMBEDDED DISTRIBUTOR - HYDRO ONE #2","ENERGY+ INC._EMBEDDED DISTRIBUTOR SERVICE CLASSIFICATION - HYDRO ONE #2",0,0,0,0,60949372.859999999,164300.76999999999,0,0,0,0,60949372.859999999,164300.76999999999,60949372.859999999,164300.76999999999]
["2022","ENERGY+ INC.","EMBEDDED DISTRIBUTOR(S)","EMBEDDED DISTRIBUTOR - BRANTFORD","ENERGY+ INC._EMBEDDED DISTRIBUTOR SERVICE CLASSIFICATION - BRANTFORD",0,0,0,0,289051.28999999998,868.29,0,0,0,0,289051.28999999998,868.29,289051.28999999998,868.29]
["2022","ENERGY+ INC.","EMBEDDED DISTRIBUTOR(S)","EMBEDDED DISTRIBUTOR - HYDRO ONE CND","ENERGY+ INC._EMBEDDED DISTRIBUTOR SERVICE CLASSIFICATION - HYDRO ONE CND",0,0,0,0,13957219.640000001,28236.7,0,0,0,0,13957219.640000001,28236.7,13957219.640000001,28236.7]
["2022","ENERGY+ INC.","EMBEDDED DISTRIBUTOR(S)","EMBEDDED DISTRIBUTOR - WATERLOO NORTH HYDRO","ENERGY+ INC._EMBEDDED DISTRIBUTOR SERVICE CLASSIFICATION - WATERLOO NORTH HYDRO",0,0,0,0,0,0,72461768,138675.0625,0,0,72461766.790000007,138675.07,72461766.790000007,138675.07]
["2022","ENERGY+ INC.","GENERAL SERVICE EQUAL TO OR GREATER THAN 50 KW","GENERAL SERVICE 1,000 TO 4,999 KW","ENERGY+ INC._GENERAL SERVICE 1,000 TO 4,999 KW SERVICE CLASSIFICATION",63923242.409999996,145853,0,0,150538873.68000001,371636.64,26090756,43805.76171875,0,0,176629629.66999999,415442.4,240552872.08000001,561296.12]
["2022","ENERGY+ INC.","GENERAL SERVICE EQUAL TO OR GREATER THAN 50 KW","GENERAL SERVICE 50 TO 999 KW","ENERGY+ INC._GENERAL SERVICE 50 TO 999 KW SERVICE CLASSIFICATION",84362296.450000003,271805,51531646.200000003,182960.02,320001039.01999998,981845.98,8860517,17062.029296875,0,0,380393201.95999998,1181868.03,464755498.41000003,1453673.1]
["2022","ENERGY+ INC.","GENERAL SERVICE LESS THAN 50 KW","GENERAL SERVICE LESS THAN 50 KW","ENERGY+ INC._GENERAL SERVICE LESS THAN 50 KW SERVICE CLASSIFICATION",25867599.890000001,0,176511499.94999999,0,262830.11,3879.74,0,0,0,0,176774330.06,3879.74,202641929.94999999,3879.74]
["2022","ENERGY+ INC.","LARGE USER","LARGE USER","ENERGY+ INC._LARGE USER SERVICE CLASSIFICATION",0,0,0,0,144867973.15000001,352232.27,0,0,0,0,144867973.15000001,352232.27,144867973.15000001,352232.27]
["2022","ENERGY+ INC.","NO RATE CLASS","NO RATE CLASS","ENERGY+ INC._NO RATE CLASS SERVICE CLASSIFICATION",0,0,0,0,0,0,0,0,355125120,912764,0,0,0,0]
["2022","ENERGY+ INC.","RESIDENTIAL","RESIDENTIAL","ENERGY+ INC._RESIDENTIAL SERVICE CLASSIFICATION",6803349.3600000003,0,517312533.99000001,0,0,0,0,0,0,0,517312533.99000001,0,524115883.35000002,0]
["2022","ENERGY+ INC.","SENTINEL LIGHTING CONNECTIONS","SENTINEL LIGHTING","ENERGY+ INC._SENTINEL LIGHTING SERVICE CLASSIFICATION",0,0,10035.36,241.92,0,0,0,0,0,0,10035.36,241.92,10035.36,241.92]
["2022","ENERGY+ INC.","STREET LIGHTING CONNECTIONS","STREET LIGHTING","ENERGY+ INC._STREET LIGHTING SERVICE CLASSIFICATION",721325.11,2015,462059.04,1292.58,4729664.6100000003,13201.54,0,0,0,0,5191723.6500000004,14494.12,5913048.7599999998,16509.95]
["2022","ENERGY+ INC.","UNMETERED SCATTERED LOAD CONNECTIONS","UNMETERED SCATTERED LOAD","ENERGY+ INC._UNMETERED SCATTERED LOAD SERVICE CLASSIFICATION",209748,0,1966594.36,0,0,0,0,0,0,0,1966594.36,0,2176342.36,0]
["2022","ENTEGRUS POWERLINES INC.","EMBEDDED DISTRIBUTOR(S)","EMBEDDED DISTRIBUTOR - MAIN","ENTEGRUS POWERLINES INC._FOR ENTEGRUS-MAIN RATE ZONE_EMBEDDED DISTRIBUTOR SERVICE CLASSIFICATION",0,0,0,0,1688560,11728,0,0,0,0,1688560,11728,1688560,11728]
["2022","ENTEGRUS POWERLINES INC.","GENERAL SERVICE EQUAL TO OR GREATER THAN 50 KW","GENERAL SERVICE 50 TO 4,999 KW - MAIN","ENTEGRUS POWERLINES INC._FOR ENTEGRUS-MAIN RATE ZONE_GENERAL SERVICE 50 TO 4,999 KW SERVICE CLASSIFICATION",118679706,306474,26617636,133785,294984052,699609,4415184,13709,0,0,326016872,847103,444696578,1153577]
["2022","ENTEGRUS POWERLINES INC.","GENERAL SERVICE EQUAL TO OR GREATER THAN 50 KW","GENERAL SERVICE 50 TO 4,999 KW - ST. THOMAS ENERGY","ENTEGRUS POWERLINES INC._FOR FORMER ST. THOMAS ENERGY RATE ZONE_GENERAL SERVICE 50 TO 4,999 KW SERVICE CLASSIFICATION",18484282,45126,9061161,31126,87730785,234413,3253305,6475,0,0,100045251,272014,118529533,317140]
["2022","ENTEGRUS POWERLINES INC.","GENERAL SERVICE LESS THAN 50 KW","GENERAL SERVICE LESS THAN 50 KW - MAIN","ENTEGRUS POWERLINES INC._FOR ENTEGRUS-MAIN RATE ZONE_GENERAL SERVICE LESS THAN 50 KW SERVICE CLASSIFICATION",18944979,0,94615061,0,0,0,0,0,0,0,94615061,0,113560040,0]
["2022","ENTEGRUS POWERLINES INC.","GENERAL SERVICE LESS THAN 50 KW","GENERAL SERVICE LESS THAN 50 KW - ST. THOMAS ENERGY","ENTEGRUS POWERLINES INC._FOR FORMER ST. THOMAS ENERGY RATE ZONE_GENERAL SERVICE LESS THAN 50 KW SERVICE CLASSIFICATION",6753483,0,33285777,0,0,0,0,0,0,0,33285777,0,40039260,0]
["2022","ENTEGRUS POWERLINES INC.","LARGE USER","LARGE USE - MAIN","ENTEGRUS POWERLINES INC._FOR ENTEGRUS-MAIN RATE ZONE_LARGE USE SERVICE CLASSIFICATION",0,0,0,0,39779688,108012,0,0,0,0,39779688,108012,39779688,108012]
["2022","ENTEGRUS POWERLINES INC.","NO RATE CLASS","NO RATE CLASS","ENTEGRUS POWERLINES INC._NO RATE CLASS SERVICE CLASSIFICATION",0,0,0,0,0,0,0,0,283324896,599672,0,0,0,0]
["2022","ENTEGRUS POWERLINES INC.","RESIDENTIAL","RESIDENTIAL - MAIN","ENTEGRUS POWERLINES INC._FOR ENTEGRUS-MAIN RATE ZONE_RESIDENTIAL SERVICE CLASSIFICATION",6957466,0,305730917,0,0,0,0,0,0,0,305730917,0,312688383,0]
["2022","ENTEGRUS POWERLINES INC.","RESIDENTIAL","RESIDENTIAL - ST. THOMAS ENERGY","ENTEGRUS POWERLINES INC._FOR FORMER ST. THOMAS ENERGY RATE ZONE_RESIDENTIAL SERVICE CLASSIFICATION",5851504,0,129266402,0,0,0,0,0,0,0,129266402,0,135117906,0]
["2022","ENTEGRUS POWERLINES INC.","SENTINEL LIGHTING CONNECTIONS","SENTINEL LIGHTING - MAIN","ENTEGRUS POWERLINES INC._FOR ENTEGRUS-MAIN RATE ZONE_SENTINEL LIGHTING SERVICE CLASSIFICATION",52390,150,188462,524,64431,179,0,0,0,0,252893,703,305283,853]
["2022","ENTEGRUS POWERLINES INC.","SENTINEL LIGHTING CONNECTIONS","SENTINEL LIGHTING - ST. THOMAS ENERGY","ENTEGRUS POWERLINES INC._FOR FORMER ST. THOMAS ENERGY RATE ZONE_SENTINEL LIGHTING SERVICE CLASSIFICATION",2665,7,49400,0,0,0,0,0,0,0,49400,0,52065,7]
["2022","ENTEGRUS POWERLINES INC.","STREET LIGHTING CONNECTIONS","STREET LIGHTING - MAIN","ENTEGRUS POWERLINES INC._FOR ENTEGRUS-MAIN RATE ZONE_STREET LIGHTING SERVICE CLASSIFICATION",0,0,0,0,3553053,10494,0,0,0,0,3553053,10494,3553053,10494]
["2022","ENTEGRUS POWERLINES INC.","STREET LIGHTING CONNECTIONS","STREET LIGHTING - ST. THOMAS ENERGY","ENTEGRUS POWERLINES INC._FOR FORMER ST. THOMAS ENERGY RATE ZONE_STREET LIGHTING SERVICE CLASSIFICATION",0,0,0,0,1807168,5039,0,0,0,0,1807168,5039,1807168,5039]
["2022","ENTEGRUS POWERLINES INC.","UNMETERED SCATTERED LOAD CONNECTIONS","UNMETERED SCATTERED LOAD - MAIN","ENTEGRUS POWERLINES INC._FOR ENTEGRUS-MAIN RATE ZONE_UNMETERED SCATTERED LOAD SERVICE CLASSIFICATION",717852,0,529200,0,0,0,0,0,0,0,529200,0,1247052,0]
["2022","ENWIN UTILITIES LTD.","GENERAL SERVICE EQUAL TO OR GREATER THAN 50 KW","GENERAL SERVICE 3,000 TO 4,999 KW - INTERMEDIATE USE","ENWIN UTILITIES LTD._GENERAL SERVICE 3,000 TO 4,999 KW - INTERMEDIATE USE SERVICE CLASSIFICATION",0,0,0,0,0,0,0,0,0,0,0,0,0,0]
["2022","ENWIN UTILITIES LTD.","GENERAL SERVICE EQUAL TO OR GREATER THAN 50 KW","GENERAL SERVICE 50 TO 4,999 KW","ENWIN UTILITIES LTD._GENERAL SERVICE 50 TO 4,999 KW SERVICE CLASSIFICATION",98748790.209999993,260216,148014120.94,367506.87,596332761.79999995,1527385.43,10244929,19480.66015625,0,0,754591811.38,1914372.96,853340601.59000003,2174589.58]
["2022","ENWIN UTILITIES LTD.","GENERAL SERVICE LESS THAN 50 KW","GENERAL SERVICE LESS THAN 50 KW","ENWIN UTILITIES LTD._GENERAL SERVICE LESS THAN 50 KW SERVICE CLASSIFICATION",27769604.699999999,0,176252125.43000001,0,0,0,0,0,0,0,176252125.43000001,0,204021730.13,0]
["2022","ENWIN UTILITIES LTD.","LARGE USER","LARGE USE - 3TS","ENWIN UTILITIES LTD._LARGE USE - 3TS SERVICE CLASSIFICATION",0,0,0,0,105674753,249863.26,73120840,130416.8515625,0,0,178795591.75,380280.11,178795591.75,380280.11]
["2022","ENWIN UTILITIES LTD.","LARGE USER","LARGE USE - FORD ANNEX","ENWIN UTILITIES LTD._LARGE USE - FORD ANNEX SERVICE CLASSIFICATION",0,0,0,0,0,0,0,0,0,0,0,0,0,0]
["2022","ENWIN UTILITIES LTD.","LARGE USER","LARGE USE - REGULAR","ENWIN UTILITIES LTD._LARGE USE - REGULAR SERVICE CLASSIFICATION",0,0,0,0,79402949.640000001,245919.94,96198960,172724.125,0,0,175601913.13999999,418644.06,175601913.13999999,418644.06]
["2022","ENWIN UTILITIES LTD.","NO RATE CLASS","NO RATE CLASS","ENWIN UTILITIES LTD._NO RATE CLASS SERVICE CLASSIFICATION",0,0,0,0,0,0,0,0,413053216,1019198,0,0,0,0]
["2022","ENWIN UTILITIES LTD.","RESIDENTIAL","RESIDENTIAL","ENWIN UTILITIES LTD._RESIDENTIAL SERVICE CLASSIFICATION",10519421.619999999,0,652332460.02999997,0,0,0,0,0,0,0,652332460.02999997,0,662851881.64999998,0]
["2022","ENWIN UTILITIES LTD.","SENTINEL LIGHTING CONNECTIONS","SENTINEL LIGHTING","ENWIN UTILITIES LTD._SENTINEL LIGHTING SERVICE CLASSIFICATION",54234.89,152,661827.80000000005,1839.81,0,0,0,0,0,0,661827.80000000005,1839.81,716062.69,1992.57]
["2022","ENWIN UTILITIES LTD.","STREET LIGHTING CONNECTIONS","STREET LIGHTING","ENWIN UTILITIES LTD._STREET LIGHTING SERVICE CLASSIFICATION",0,0,18383.740000000002,53.04,6580995.6299999999,18969.759999999998,0,0,0,0,6599379.3700000001,19022.8,6599379.3700000001,19022.8]
["2022","ENWIN UTILITIES LTD.","UNMETERED SCATTERED LOAD CONNECTIONS","UNMETERED SCATTERED LOAD","ENWIN UTILITIES LTD._UNMETERED SCATTERED LOAD SERVICE CLASSIFICATION",0,0,138289.81,0,2171556.75,0,0,0,0,0,2309846.56,0,2309846.56,0]
["2022","EPCOR ELECTRICITY DISTRIBUTION ONTARIO INC.","GENERAL SERVICE EQUAL TO OR GREATER THAN 50 KW","GENERAL SERVICE 50 TO 4,999 KW","EPCOR ELECTRICITY DISTRIBUTION ONTARIO INC._GENERAL SERVICE 50 TO 4,999 KW SERVICE CLASSIFICATION",19457267.34,44035,13765324.039999999,41896.28,85964296.709999993,206660.81,2389303.75,4662.93994140625,0,0,102118924.45,253220.03,121576191.79000001,297255.05]
["2022","EPCOR ELECTRICITY DISTRIBUTION ONTARIO INC.","GENERAL SERVICE LESS THAN 50 KW","GENERAL SERVICE LESS THAN 50 KW","EPCOR ELECTRICITY DISTRIBUTION ONTARIO INC._GENERAL SERVICE LESS THAN 50 KW SERVICE CLASSIFICATION",6545898.0899999999,0,37626918.829999998,0,374166.19,0,0,0,0,0,38001085.020000003,0,44546983.109999999,0]
["2022","EPCOR ELECTRICITY DISTRIBUTION ONTARIO INC.","NO RATE CLASS","NO RATE CLASS","EPCOR ELECTRICITY DISTRIBUTION ONTARIO INC._NO RATE CLASS SERVICE CLASSIFICATION",0,0,0,0,0,0,0,0,50868804,113630.9921875,0,0,0,0]
["2022","EPCOR ELECTRICITY DISTRIBUTION ONTARIO INC.","RESIDENTIAL","RESIDENTIAL","EPCOR ELECTRICITY DISTRIBUTION ONTARIO INC._RESIDENTIAL SERVICE CLASSIFICATION",2069000.01,0,134916040.78999999,0,0,0,0,0,0,0,134916040.78999999,0,136985040.80000001,0]
["2022","EPCOR ELECTRICITY DISTRIBUTION ONTARIO INC.","STREET LIGHTING CONNECTIONS","STREET LIGHTING","EPCOR ELECTRICITY DISTRIBUTION ONTARIO INC._STREET LIGHTING SERVICE CLASSIFICATION",0,0,0,0,1221028.9099999999,3430.2,0,0,0,0,1221028.9099999999,3430.2,1221028.9099999999,3430.2]
["2022","EPCOR ELECTRICITY DISTRIBUTION ONTARIO INC.","UNMETERED SCATTERED LOAD CONNECTIONS","UNMETERED SCATTERED LOAD","EPCOR ELECTRICITY DISTRIBUTION ONTARIO INC._UNMETERED SCATTERED LOAD SERVICE CLASSIFICATION",336.02,0,395897.25,0,0,0,0,0,0,0,395897.25,0,396233.27,0]
["2022","ERTH POWER CORPORATION","EMBEDDED DISTRIBUTOR(S)","EMBEDDED DISTRIBUTOR - MAIN","ERTH POWER CORPORATION_MAIN RATE ZONE_EMBEDDED DISTRIBUTOR SERVICE CLASSIFICATION",0,0,0,0,16786736,38092,0,0,0,0,16786736,38092,16786736,38092]
["2022","ERTH POWER CORPORATION","GENERAL SERVICE EQUAL TO OR GREATER THAN 50 KW","GENERAL SERVICE 1,000 TO 4,999 KW - MAIN","ERTH POWER CORPORATION_MAIN RATE ZONE_GENERAL SERVICE 1,000 TO 4,999 KW SERVICE CLASSIFICATION",10530360,21471,0,0,71869263,142132,0,0,0,0,71869263,142132,82399623,163603]
["2022","ERTH POWER CORPORATION","GENERAL SERVICE EQUAL TO OR GREATER THAN 50 KW","GENERAL SERVICE 50 TO 499 KW - GODERICH","ERTH POWER CORPORATION_GODERICH RATE ZONE_GENERAL SERVICE 50 TO 499 KW SERVICE CLASSIFICATION",0,0,3288945,6151,10750517,39156,2543704,12427,0,0,16583166,57734,16583166,57734]
["2022","ERTH POWER CORPORATION","GENERAL SERVICE EQUAL TO OR GREATER THAN 50 KW","GENERAL SERVICE 50 TO 999 KW - MAIN","ERTH POWER CORPORATION_MAIN RATE ZONE_GENERAL SERVICE 50 TO 999 KW SERVICE CLASSIFICATION",46194381,103028,5531439,28328,48735674,135526,0,0,0,0,54267113,163854,100461494,266882]
["2022","ERTH POWER CORPORATION","GENERAL SERVICE EQUAL TO OR GREATER THAN 50 KW","GENERAL SERVICE 500 TO 4,999 KW - GODERICH","ERTH POWER CORPORATION_GODERICH RATE ZONE_GENERAL SERVICE 500 TO 4,999 KW SERVICE CLASSIFICATION",0,0,0,0,13301023,31432,0,0,0,0,13301023,31432,13301023,31432]
["2022","ERTH POWER CORPORATION","GENERAL SERVICE LESS THAN 50 KW","GENERAL SERVICE LESS THAN 50 KW - GODERICH","ERTH POWER CORPORATION_GODERICH RATE ZONE_GENERAL SERVICE LESS THAN 50 KW SERVICE CLASSIFICATION",0,0,10432876,0,0,0,0,0,0,0,10432876,0,10432876,0]
["2022","ERTH POWER CORPORATION","GENERAL SERVICE LESS THAN 50 KW","GENERAL SERVICE LESS THAN 50 KW - MAIN","ERTH POWER CORPORATION_MAIN RATE ZONE_GENERAL SERVICE LESS THAN 50 KW SERVICE CLASSIFICATION",11686580,0,38678173,0,149107,0,0,0,0,0,38827280,0,50513860,0]
["2022","ERTH POWER CORPORATION","LARGE USER","LARGE USE - GODERICH","ERTH POWER CORPORATION_GODERICH RATE ZONE_LARGE USE SERVICE CLASSIFICATION",0,0,0,0,0,0,72019856,174624,0,0,72019858,174624,72019858,174624]
["2022","ERTH POWER CORPORATION","LARGE USER","LARGE USE- MAIN","ERTH POWER CORPORATION_MAIN RATE ZONE_LARGE USE SERVICE CLASSIFICATION",0,0,0,0,97230798,191731,0,0,0,0,97230798,191731,97230798,191731]
["2022","ERTH POWER CORPORATION","NO RATE CLASS","NO RATE CLASS","ERTH POWER CORPORATION_NO RATE CLASS SERVICE CLASSIFICATION",0,0,0,0,0,0,0,0,205760592,422337,0,0,0,0]
["2022","ERTH POWER CORPORATION","RESIDENTIAL","RESIDENTIAL - GODERICH","ERTH POWER CORPORATION_GODERICH RATE ZONE_RESIDENTIAL SERVICE CLASSIFICATION",0,0,25814517,0,0,0,0,0,0,0,25814517,0,25814517,0]
["2022","ERTH POWER CORPORATION","RESIDENTIAL","RESIDENTIAL - MAIN","ERTH POWER CORPORATION_MAIN RATE ZONE_RESIDENTIAL SERVICE CLASSIFICATION",5622808,0,146150908,0,30804,0,0,0,0,0,146181712,0,151804520,0]
["2022","ERTH POWER CORPORATION","SENTINEL LIGHTING CONNECTIONS","SENTINEL LIGHTING - GODERICH","ERTH POWER CORPORATION_GODERICH RATE ZONE_SENTINEL LIGHTING SERVICE CLASSIFICATION",0,0,1932,0,0,0,0,0,0,0,1932,0,1932,0]
["2022","ERTH POWER CORPORATION","SENTINEL LIGHTING CONNECTIONS","SENTINEL LIGHTING - MAIN","ERTH POWER CORPORATION_MAIN RATE ZONE_SENTINEL LIGHTING ERVICE CLASSIFICATION",27997,0,182057,0,0,0,0,0,0,0,182057,0,210054,0]
["2022","ERTH POWER CORPORATION","STREET LIGHTING CONNECTIONS","STREET LIGHTING - GODERICH","ERTH POWER CORPORATION_GODERICH RATE ZONE_STREET LIGHTING SERVICE CLASSIFICATION",0,0,77588,8,0,0,0,0,0,0,77588,8,77588,8]
["2022","ERTH POWER CORPORATION","STREET LIGHTING CONNECTIONS","STREET LIGHTING - MAIN","ERTH POWER CORPORATION_MAIN RATE ZONE_STREET LIGHTING SERVICE CLASSIFICATION",637205,1998,665892,1872,829977,2259,0,0,0,0,1495869,4131,2133074,6129]
["2022","ERTH POWER CORPORATION","UNMETERED SCATTERED LOAD CONNECTIONS","UNMETERED SCATTERED LOAD - GODERICH","ERTH POWER CORPORATION_GODERICH RATE ZONE_UNMETERED SCATTERED LOAD SERVICE CLASSIFICATION",0,0,83100,0,0,0,0,0,0,0,83100,0,83100,0]
["2022","ERTH POWER CORPORATION","UNMETERED SCATTERED LOAD CONNECTIONS","UNMETERED SCATTERED LOAD - MAIN","ERTH POWER CORPORATION_MAIN RATE ZONE_UNMETERED SCATTERED LOAD SERVICE CLASSIFICATION",51696,0,376169,0,0,0,0,0,0,0,376169,0,427865,0]
["2022","ESPANOLA REGIONAL HYDRO DISTRIBUTION CORPORATION","GENERAL SERVICE EQUAL TO OR GREATER THAN 50 KW","GENERAL SERVICE 50 TO 4,999 KW","ESPANOLA REGIONAL HYDRO DISTRIBUTION CORPORATION_GENERAL SERVICE 50 TO 4,999 KW SERVICE CLASSIFICATION",5248392,12865,1381240,4109.74,7300915,18315.47,0,0,0,0,8682155,22425.21,13930547,35290.25]
["2022","ESPANOLA REGIONAL HYDRO DISTRIBUTION CORPORATION","GENERAL SERVICE LESS THAN 50 KW","GENERAL SERVICE LESS THAN 50 KW","ESPANOLA REGIONAL HYDRO DISTRIBUTION CORPORATION_GENERAL SERVICE LESS THAN 50 KW SERVICE CLASSIFICATION",1277614.93,0,8234773.4400000004,0,0,0,0,0,0,0,8234773.4400000004,0,9512388.3699999992,0]
["2022","ESPANOLA REGIONAL HYDRO DISTRIBUTION CORPORATION","NO RATE CLASS","NO RATE CLASS","ESPANOLA REGIONAL HYDRO DISTRIBUTION CORPORATION_NO RATE CLASS SERVICE CLASSIFICATION",0,0,0,0,0,0,0,0,null,null,0,0,0,0]
["2022","ESPANOLA REGIONAL HYDRO DISTRIBUTION CORPORATION","RESIDENTIAL","RESIDENTIAL","ESPANOLA REGIONAL HYDRO DISTRIBUTION CORPORATION_RESIDENTIAL SERVICE CLASSIFICATION",422979.32,0,30589518.329999998,0,0,0,0,0,0,0,30589518.329999998,0,31012497.649999999,0]
["2022","ESPANOLA REGIONAL HYDRO DISTRIBUTION CORPORATION","SENTINEL LIGHTING CONNECTIONS","SENTINEL LIGHTING","ESPANOLA REGIONAL HYDRO DISTRIBUTION CORPORATION_SENTINEL LIGHTING SERVICE CLASSIFICATION",0,0,22647.599999999999,64.8,0,0,0,0,0,0,22647.599999999999,64.8,22647.599999999999,64.8]
["2022","ESPANOLA REGIONAL HYDRO DISTRIBUTION CORPORATION","STREET LIGHTING CONNECTIONS","STREET LIGHTING","ESPANOLA REGIONAL HYDRO DISTRIBUTION CORPORATION_STREET LIGHTING SERVICE CLASSIFICATION",168203.2,543,0,0,53117,200.2,0,0,0,0,53117,200.2,221320.2,743.6]
["2022","ESPANOLA REGIONAL HYDRO DISTRIBUTION CORPORATION","UNMETERED SCATTERED LOAD CONNECTIONS","UNMETERED SCATTERED LOAD","ESPANOLA REGIONAL HYDRO DISTRIBUTION CORPORATION_UNMETERED SCATTERED LOAD SERVICE CLASSIFICATION",10764,0,112420,0,0,0,0,0,0,0,112420,0,123184,0]
["2022","FESTIVAL HYDRO INC.","GENERAL SERVICE EQUAL TO OR GREATER THAN 50 KW","GENERAL SERVICE 50 TO 4,999 KW","FESTIVAL HYDRO INC._GENERAL SERVICE 50 TO 4,999 KW SERVICE CLASSIFICATION",59063635.119999997,176444,15923233.960000001,44340.23,262278261.31,657587.53,2664877.75,4791.60986328125,0,0,280866373.12,706719.37,339930008.24000001,883163.99]
["2022","FESTIVAL HYDRO INC.","GENERAL SERVICE LESS THAN 50 KW","GENERAL SERVICE LESS THAN 50 KW","FESTIVAL HYDRO INC._GENERAL SERVICE LESS THAN 50 KW SERVICE CLASSIFICATION",14237195.35,0,58332302.399999999,0,0,0,0,0,0,0,58332302.399999999,0,72569497.75,0]
["2022","FESTIVAL HYDRO INC.","LARGE USER","LARGE USE","FESTIVAL HYDRO INC._LARGE USE SERVICE CLASSIFICATION",0,0,0,0,28340498.600000001,41848.720000000001,546707.1875,23848.890625,0,0,28887205.780000001,65697.61,28887205.780000001,65697.61]
["2022","FESTIVAL HYDRO INC.","NO RATE CLASS","NO RATE CLASS","FESTIVAL HYDRO INC._NO RATE CLASS SERVICE CLASSIFICATION",0,0,0,0,0,0,0,0,254642112,569224.8125,0,0,0,0]
["2022","FESTIVAL HYDRO INC.","RESIDENTIAL","RESIDENTIAL","FESTIVAL HYDRO INC._RESIDENTIAL SERVICE CLASSIFICATION",3480252.9,0,152372933.22,0,0,0,0,0,0,0,152372933.22,0,155853186.12,0]
["2022","FESTIVAL HYDRO INC.","SENTINEL LIGHTING CONNECTIONS","SENTINEL LIGHTING","FESTIVAL HYDRO INC._SENTINEL LIGHTING SERVICE CLASSIFICATION",75,0,95916.94,266.64,0,0,0,0,0,0,95916.94,266.64,95991.94,266.64]
["2022","FESTIVAL HYDRO INC.","STREET LIGHTING CONNECTIONS","STREET LIGHTING","FESTIVAL HYDRO INC._STREET LIGHTING SERVICE CLASSIFICATION",2218500.0299999998,5996,110292.46,229.31,0,0,0,0,0,0,110292.46,229.31,2328792.4900000002,6225.79]
["2022","FESTIVAL HYDRO INC.","UNMETERED SCATTERED LOAD CONNECTIONS","UNMETERED SCATTERED LOAD","FESTIVAL HYDRO INC._UNMETERED SCATTERED LOAD SERVICE CLASSIFICATION",62420.02,0,334527.44,0,754860.92,0,0,0,0,0,1089388.3600000001,0,1151808.3799999999,0]
["2022","FORT FRANCES POWER CORPORATION","GENERAL SERVICE EQUAL TO OR GREATER THAN 50 KW","GENERAL SERVICE 50 TO 4,999 KW","FORT FRANCES POWER CORPORATION_GENERAL SERVICE 50 TO 4,999 KW SERVICE CLASSIFICATION",0,0,3897520,0,15394512,41861,0,0,0,0,19292032,41861,19292032,41861]
["2022","FORT FRANCES POWER CORPORATION","GENERAL SERVICE LESS THAN 50 KW","GENERAL SERVICE LESS THAN 50 KW","FORT FRANCES POWER CORPORATION_GENERAL SERVICE LESS THAN 50 KW SERVICE CLASSIFICATION",159964.23000000001,0,13917229,0,0,0,0,0,0,0,13917229,0,14077193.23,0]
["2022","FORT FRANCES POWER CORPORATION","NO RATE CLASS","NO RATE CLASS","FORT FRANCES POWER CORPORATION_NO RATE CLASS SERVICE CLASSIFICATION",0,0,0,0,0,0,0,0,null,null,0,0,0,0]
["2022","FORT FRANCES POWER CORPORATION","RESIDENTIAL","RESIDENTIAL","FORT FRANCES POWER CORPORATION_RESIDENTIAL SERVICE CLASSIFICATION",52351.12,0,36571594,0,0,0,0,0,0,0,36571594,0,36623945.119999997,0]
["2022","FORT FRANCES POWER CORPORATION","STREET LIGHTING CONNECTIONS","STREET LIGHTING","FORT FRANCES POWER CORPORATION_STREET LIGHTING SERVICE CLASSIFICATION",0,0,0,0,432172,1159,0,0,0,0,432172,1159,432172,1159]
["2022","FORT FRANCES POWER CORPORATION","UNMETERED SCATTERED LOAD CONNECTIONS","UNMETERED SCATTERED LOAD","FORT FRANCES POWER CORPORATION_UNMETERED SCATTERED LOAD SERVICE CLASSIFICATION",0,0,62628,0,0,0,0,0,0,0,62628,0,62628,0]
["2022","GREATER SUDBURY HYDRO INC.","GENERAL SERVICE EQUAL TO OR GREATER THAN 50 KW","GENERAL SERVICE 50 TO 4,999 KW","GREATER SUDBURY HYDRO INC._GENERAL SERVICE 50 TO 4,999 KW SERVICE CLASSIFICATION",53210907.880000003,139704,54011602.240000002,142464.01999999999,206521063.19999999,488125.83,3311424.75,5923.56005859375,0,0,263844090.15000001,636513.41,317054998.02999997,776217.71]
["2022","GREATER SUDBURY HYDRO INC.","GENERAL SERVICE LESS THAN 50 KW","GENERAL SERVICE LESS THAN 50 KW","GREATER SUDBURY HYDRO INC._GENERAL SERVICE LESS THAN 50 KW SERVICE CLASSIFICATION",21726639.52,0,105850667.87,0,364896.25,0,0,0,0,0,106215564.12,0,127942203.64,0]
["2022","GREATER SUDBURY HYDRO INC.","NO RATE CLASS","NO RATE CLASS","GREATER SUDBURY HYDRO INC._NO RATE CLASS SERVICE CLASSIFICATION",0,0,0,0,0,0,0,0,59690568,121155.859375,0,0,0,0]
["2022","GREATER SUDBURY HYDRO INC.","RESIDENTIAL","RESIDENTIAL","GREATER SUDBURY HYDRO INC._RESIDENTIAL SERVICE CLASSIFICATION",4921400.03,0,369647966.68000001,0,0,0,0,0,0,0,369647966.68000001,0,374569366.70999998,0]
["2022","GREATER SUDBURY HYDRO INC.","SENTINEL LIGHTING CONNECTIONS","SENTINEL LIGHTING","GREATER SUDBURY HYDRO INC._SENTINEL LIGHTING SERVICE CLASSIFICATION",32164.86,95,328167.05,871.59,0,0,0,0,0,0,328167.05,871.59,360331.91,967.29]
["2022","GREATER SUDBURY HYDRO INC.","STREET LIGHTING CONNECTIONS","STREET LIGHTING","GREATER SUDBURY HYDRO INC._STREET LIGHTING SERVICE CLASSIFICATION",0,0,0,0,3586468.23,10103.25,0,0,0,0,3586468.23,10103.25,3586468.23,10103.25]
["2022","GREATER SUDBURY HYDRO INC.","UNMETERED SCATTERED LOAD CONNECTIONS","UNMETERED SCATTERED LOAD","GREATER SUDBURY HYDRO INC._UNMETERED SCATTERED LOAD SERVICE CLASSIFICATION",3936,0,983904,0,0,0,0,0,0,0,983904,0,987840,0]
["2022","GRIMSBY POWER INCORPORATED","EMBEDDED DISTRIBUTOR(S)","EMBEDDED DISTRIBUTOR","GRIMSBY POWER INCORPORATED_EMBEDDED DISTRIBUTOR SERVICE CLASSIFICATION",0,0,0,0,65940210.829999998,164986.13,0,0,0,0,65940210.829999998,164986.13,65940210.829999998,164986.13]
["2022","GRIMSBY POWER INCORPORATED","GENERAL SERVICE EQUAL TO OR GREATER THAN 50 KW","GENERAL SERVICE 50 TO 4,999 KW","GRIMSBY POWER INCORPORATED_GENERAL SERVICE 50 TO 4,999 KW SERVICE CLASSIFICATION",13343840.539999999,31843,4156819.05,14187.4,56204735.899999999,155187.25,3223620,6138.669921875,0,0,63585175.030000001,175513.32,76929015.569999993,207356.45]
["2022","GRIMSBY POWER INCORPORATED","GENERAL SERVICE LESS THAN 50 KW","GENERAL SERVICE LESS THAN 50 KW","GRIMSBY POWER INCORPORATED_GENERAL SERVICE LESS THAN 50 KW SERVICE CLASSIFICATION",3594069.81,0,15994426.550000001,0,0,0,0,0,0,0,15994426.550000001,0,19588496.359999999,0]
["2022","GRIMSBY POWER INCORPORATED","NO RATE CLASS","NO RATE CLASS","GRIMSBY POWER INCORPORATED_NO RATE CLASS SERVICE CLASSIFICATION",0,0,0,0,0,0,0,0,13708886,32163.349609375,0,0,0,0]
["2022","GRIMSBY POWER INCORPORATED","RESIDENTIAL","RESIDENTIAL","GRIMSBY POWER INCORPORATED_RESIDENTIAL SERVICE CLASSIFICATION",1338262.42,0,101463646.66,0,0,0,0,0,0,0,101463646.66,0,102801909.08,0]
["2022","GRIMSBY POWER INCORPORATED","STREET LIGHTING CONNECTIONS","STREET LIGHTING","GRIMSBY POWER INCORPORATED_STREET LIGHTING SERVICE CLASSIFICATION",732358.4,1866,0,0,5431.3,184.44,0,0,0,0,5431.3,184.44,737789.7,2050.6999999999998]
["2022","GRIMSBY POWER INCORPORATED","UNMETERED SCATTERED LOAD CONNECTIONS","UNMETERED SCATTERED LOAD","GRIMSBY POWER INCORPORATED_UNMETERED SCATTERED LOAD SERVICE CLASSIFICATION",1352.75,0,323208.33,0,0,0,0,0,0,0,323208.33,0,324561.08,0]
["2022","HALTON HILLS HYDRO INC.","GENERAL SERVICE EQUAL TO OR GREATER THAN 50 KW","GENERAL SERVICE 1,000 TO 4,999 KW","HALTON HILLS HYDRO INC._GENERAL SERVICE 1,000 TO 4,999 KW SERVICE CLASSIFICATION",25744543,51907,0,0,63514670,154380,0,0,0,0,63514670,154380,89259213,206287]
["2022","HALTON HILLS HYDRO INC.","GENERAL SERVICE EQUAL TO OR GREATER THAN 50 KW","GENERAL SERVICE 50 TO 999 KW","HALTON HILLS HYDRO INC._GENERAL SERVICE 50 TO 999 KW SERVICE CLASSIFICATION",17120553,49553,10386039,29621,113324140,303655,3450785,7008,0,0,127160964,340284,144281517,389837]
["2022","HALTON HILLS HYDRO INC.","GENERAL SERVICE LESS THAN 50 KW","GENERAL SERVICE LESS THAN 50 KW","HALTON HILLS HYDRO INC._GENERAL SERVICE LESS THAN 50 KW SERVICE CLASSIFICATION",6239534,0,40680152,0,0,0,0,0,0,0,40680152,0,46919686,0]
["2022","HALTON HILLS HYDRO INC.","NO RATE CLASS","NO RATE CLASS","HALTON HILLS HYDRO INC._NO RATE CLASS SERVICE CLASSIFICATION",0,0,0,0,0,0,0,0,78785744,168243,0,0,0,0]
["2022","HALTON HILLS HYDRO INC.","RESIDENTIAL","RESIDENTIAL","HALTON HILLS HYDRO INC._RESIDENTIAL SERVICE CLASSIFICATION",2567384,0,214030150,0,0,0,0,0,0,0,214030150,0,216597534,0]
["2022","HALTON HILLS HYDRO INC.","SENTINEL LIGHTING CONNECTIONS","SENTINEL LIGHTING","HALTON HILLS HYDRO INC._SENTINEL LIGHTING SERVICE CLASSIFICATION",27857,77,219399,592,0,0,0,0,0,0,219399,592,247256,669]
["2022","HALTON HILLS HYDRO INC.","STREET LIGHTING CONNECTIONS","STREET LIGHTING","HALTON HILLS HYDRO INC._STREET LIGHTING SERVICE CLASSIFICATION",0,0,0,0,1150098,3205,0,0,0,0,1150098,3205,1150098,3205]
["2022","HALTON HILLS HYDRO INC.","UNMETERED SCATTERED LOAD CONNECTIONS","UNMETERED SCATTERED LOAD","HALTON HILLS HYDRO INC._UNMETERED SCATTERED LOAD SERVICE CLASSIFICATION",0,0,958895,0,0,0,0,0,0,0,958895,0,958895,0]
["2022","HEARST POWER DISTRIBUTION CO. LTD.","GENERAL SERVICE EQUAL TO OR GREATER THAN 50 KW","GENERAL SERVICE 50 TO 1,499 KW","HEARST POWER DISTRIBUTION CO. LTD._GENERAL SERVICE 50 TO 1,499 KW SERVICE CLASSIFICATION",924080,2416,2409160,7788,19018181,59436,0,0,0,0,21427341,67224,22351421,69640.960000000006]
["2022","HEARST POWER DISTRIBUTION CO. LTD.","GENERAL SERVICE EQUAL TO OR GREATER THAN 50 KW","INTERMEDIATE USER","HEARST POWER DISTRIBUTION CO. LTD._INTERMEDIATE USER SERVICE CLASSIFICATION",0,0,0,0,19867195,64798,0,0,0,0,19867195,64798,19867195,64798]
["2022","HEARST POWER DISTRIBUTION CO. LTD.","GENERAL SERVICE LESS THAN 50 KW","GENERAL SERVICE LESS THAN 50 KW","HEARST POWER DISTRIBUTION CO. LTD._GENERAL SERVICE LESS THAN 50 KW SERVICE CLASSIFICATION",564430.30000000005,0,9220679,0,72,0,0,0,0,0,9220751,0,9785181.3000000007,0]
["2022","HEARST POWER DISTRIBUTION CO. LTD.","NO RATE CLASS","NO RATE CLASS","HEARST POWER DISTRIBUTION CO. LTD._NO RATE CLASS SERVICE CLASSIFICATION",0,0,0,0,0,0,0,0,27390320,88486.15625,0,0,0,0]
["2022","HEARST POWER DISTRIBUTION CO. LTD.","RESIDENTIAL","RESIDENTIAL","HEARST POWER DISTRIBUTION CO. LTD._RESIDENTIAL SERVICE CLASSIFICATION",29533.62,0,21556404,0,0,0,0,0,0,0,21556404,0,21585937.620000001,0]
["2022","HEARST POWER DISTRIBUTION CO. LTD.","SENTINEL LIGHTING CONNECTIONS","SENTINEL LIGHTING","HEARST POWER DISTRIBUTION CO. LTD._SENTINEL LIGHTING SERVICE CLASSIFICATION",0,0,9455,34,0,0,0,0,0,0,9455,34,9455,34]
["2022","HEARST POWER DISTRIBUTION CO. LTD.","STREET LIGHTING CONNECTIONS","STREET LIGHTING","HEARST POWER DISTRIBUTION CO. LTD._STREET LIGHTING SERVICE CLASSIFICATION",434431.38,1338,0,0,14612,20,0,0,0,0,14612,20,449043.38,1358.6]
["2022","HYDRO 2000 INC.","GENERAL SERVICE EQUAL TO OR GREATER THAN 50 KW","GENERAL SERVICE 50 TO 4,999 KW","HYDRO 2000 INC._GENERAL SERVICE 50 TO 4,999 KW SERVICE CLASSIFICATION",473808,0,195080,0,2872536,8923.7999999999993,0,0,0,0,3067616,8923.7999999999993,3541424,8923.7999999999993]
["2022","HYDRO 2000 INC.","GENERAL SERVICE LESS THAN 50 KW","GENERAL SERVICE LESS THAN 50 KW","HYDRO 2000 INC._GENERAL SERVICE LESS THAN 50 KW SERVICE CLASSIFICATION",435577,0,3208043,0,0,0,0,0,0,0,3208043,0,3643620,0]
["2022","HYDRO 2000 INC.","NO RATE CLASS","NO RATE CLASS","HYDRO 2000 INC._NO RATE CLASS SERVICE CLASSIFICATION",0,0,0,0,0,0,0,0,0,0,0,0,0,0]
["2022","HYDRO 2000 INC.","RESIDENTIAL","RESIDENTIAL","HYDRO 2000 INC._RESIDENTIAL SERVICE CLASSIFICATION",87540,0,12456291,0,0,0,0,0,0,0,12456291,0,12543831,0]
["2022","HYDRO 2000 INC.","STREET LIGHTING CONNECTIONS","STREET LIGHTING","HYDRO 2000 INC._STREET LIGHTING SERVICE CLASSIFICATION",0,0,0,0,152161,424.8,0,0,0,0,152161,424.8,152161,424.8]
["2022","HYDRO 2000 INC.","UNMETERED SCATTERED LOAD CONNECTIONS","UNMETERED SCATTERED LOAD","HYDRO 2000 INC._UNMETERED SCATTERED LOAD SERVICE CLASSIFICATION",0,0,17787,0,0,0,0,0,0,0,17787,0,17787,0]
["2022","HYDRO HAWKESBURY INC.","GENERAL SERVICE EQUAL TO OR GREATER THAN 50 KW","GENERAL SERVICE 50 TO 4,999 KW","HYDRO HAWKESBURY INC._GENERAL SERVICE 50 TO 4,999 KW SERVICE CLASSIFICATION",11283154.560000001,23815,0,0,60443899,152949,0,0,0,0,60443899,152949,71727053.560000002,176764.4]
["2022","HYDRO HAWKESBURY INC.","GENERAL SERVICE LESS THAN 50 KW","GENERAL SERVICE LESS THAN 50 KW","HYDRO HAWKESBURY INC._GENERAL SERVICE LESS THAN 50 KW SERVICE CLASSIFICATION",3160063,0,13018934,0,0,0,0,0,0,0,13018934,0,16178997,0]
["2022","HYDRO HAWKESBURY INC.","NO RATE CLASS","NO RATE CLASS","HYDRO HAWKESBURY INC._NO RATE CLASS SERVICE CLASSIFICATION",0,0,0,0,0,0,0,0,17887986,36913.73046875,0,0,0,0]
["2022","HYDRO HAWKESBURY INC.","RESIDENTIAL","RESIDENTIAL","HYDRO HAWKESBURY INC._RESIDENTIAL SERVICE CLASSIFICATION",336817,0,49149279,0,0,0,0,0,0,0,49149279,0,49486096,0]
["2022","HYDRO HAWKESBURY INC.","SENTINEL LIGHTING CONNECTIONS","SENTINEL LIGHTING","HYDRO HAWKESBURY INC._SENTINEL LIGHTING SERVICE CLASSIFICATION",0,0,44262,129,0,0,0,0,0,0,44262,129,44262,129]
["2022","HYDRO HAWKESBURY INC.","STREET LIGHTING CONNECTIONS","STREET LIGHTING","HYDRO HAWKESBURY INC._STREET LIGHTING SERVICE CLASSIFICATION",0,0,0,0,510011,1415,0,0,0,0,510011,1415,510011,1415]
["2022","HYDRO HAWKESBURY INC.","UNMETERED SCATTERED LOAD CONNECTIONS","UNMETERED SCATTERED LOAD","HYDRO HAWKESBURY INC._UNMETERED SCATTERED LOAD SERVICE CLASSIFICATION",199824,0,131874,0,0,0,0,0,0,0,131874,0,331698,0]
["2022","HYDRO ONE NETWORKS INC.","EMBEDDED DISTRIBUTOR(S)","EMBEDDED DISTRIBUTOR (HALDIMAND COUNTY) - HYDRO ONE","HYDRO ONE NETWORKS INC._FORMER HALDIMAND COUNTY HYDRO INC. SERVICE AREA_EMBEDDED DISTRIBUTOR SERVICE CLASSIFICATION FOR HYDRO ONE NETWORKS INC.",0,0,0,0,0,0,0,0,0,0,0,0,0,0]
["2022","HYDRO ONE NETWORKS INC.","EMBEDDED DISTRIBUTOR(S)","EMBEDDED DISTRIBUTOR – NORFOLK POWER","HYDRO ONE NETWORKS INC._FORMER NORFOLK POWER DISTRIBUTION INC. SERVICE AREA_EMBEDDED DISTRIBUTOR SERVICE CLASSIFICATION",0,0,0,0,0,0,0,0,0,0,0,0,0,0]
["2022","HYDRO ONE NETWORKS INC.","EMBEDDED DISTRIBUTOR(S)","SUB TRANSMISSION – EMBEDDED DISTRIBUTOR - HYDRO ONE NETWORKS","HYDRO ONE NETWORKS INC._SUB TRANSMISSION – EMBEDDED DISTRIBUTOR - HYDRO ONE NETWORKS SERVICE CLASSIFICATION",0,0,0,0,1344572170.0699999,5037363.03,8807243776,17270036,0,0,10151816406.33,22307399.399999999,10151816406.33,22307399.399999999]
["2022","HYDRO ONE NETWORKS INC.","GENERAL SERVICE EQUAL TO OR GREATER THAN 50 KW","DISTRIBUTED GENERATION - DGEN - HYDRO ONE NETWORKS","HYDRO ONE NETWORKS INC._DISTRIBUTED GENERATION - DGEN SERVICE CLASSIFICATION",306086.77,1942,30565.24,820.97,30759050.280000001,189801.88,207039.125,5767.9501953125,0,0,30996654.649999999,196390.8,31302741.420000002,198333.06]
["2022","HYDRO ONE NETWORKS INC.","GENERAL SERVICE EQUAL TO OR GREATER THAN 50 KW","GENERAL SERVICE 50 TO 4,999 KW - HALDIMAND COUNTY","HYDRO ONE NETWORKS INC._FORMER HALDIMAND COUNTY HYDRO INC. SERVICE AREA_GENERAL SERVICE 50 to 4,999 kW SERVICE CLASSIFICATION",42262398.640000001,92346,8716515.8399999999,25708.61,97712430.879999995,267696.75,2559474.5,5011.2900390625,0,0,108988421.2,298416.65000000002,151250819.84,390762.73]
["2022","HYDRO ONE NETWORKS INC.","GENERAL SERVICE EQUAL TO OR GREATER THAN 50 KW","GENERAL SERVICE 50 TO 4,999 KW - NORFOLK POWER","HYDRO ONE NETWORKS INC._FORMER NORFOLK POWER DISTRIBUTION INC. SERVICE AREA_GENERAL SERVICE 50 to 4,999 kW SERVICE CLASSIFICATION",44052906.399999999,111044,4436977.5199999996,16324.7,79363380.480000004,185684.39,3160621.5,6054.009765625,0,0,86960979.530000001,208063.1,131013885.93000001,319107.89]
["2022","HYDRO ONE NETWORKS INC.","GENERAL SERVICE EQUAL TO OR GREATER THAN 50 KW","GENERAL SERVICE 50 TO 4,999 KW - ORILLIA","HYDRO ONE NETWORKS INC._FORMER ORILLIA POWER DISTRIBUTION CORPORATION SERVICE AREA_GENERAL SERVICE 50 to 4,999 kW SERVICE CLASSIFICATION",21951359.899999999,59145,14554973.73,48619.93,107971910.88,262254.68,2131450.5,5441.47998046875,0,0,124658335.23,316316.09000000003,146609695.13,375461.97]
["2022","HYDRO ONE NETWORKS INC.","GENERAL SERVICE EQUAL TO OR GREATER THAN 50 KW","GENERAL SERVICE 50 TO 4,999 KW - PETERBOROUGH","HYDRO ONE NETWORKS INC._FORMER PETERBOROUGH DISTRIBUTION INC. SERVICE AREA_GENERAL SERVICE 50 to 4,999 kW SERVICE CLASSIFICATION",66605774.310000002,142075,52963183.170000002,128322.8,202864095.46000001,485818.73,1778246.125,5311.3701171875,0,0,257605524.75,619452.9,324211299.06,761528.07]
["2022","HYDRO ONE NETWORKS INC.","GENERAL SERVICE EQUAL TO OR GREATER THAN 50 KW","GENERAL SERVICE 50 TO 999 KW - WOODSTOCK HYDRO","HYDRO ONE NETWORKS INC._FORMER WOODSTOCK HYDRO SERVICES INC. SERVICE AREA_GENERAL SERVICE 50 TO 999 KW SERVICE CLASSIFICATION",25645309.100000001,69500,12591931.26,34098.339999999997,100218042.27,265810.93,2928254,5487.14990234375,0,0,115738227.42,305396.42,141383536.52000001,374896.93]
["2022","HYDRO ONE NETWORKS INC.","GENERAL SERVICE EQUAL TO OR GREATER THAN 50 KW","GENERAL SERVICE DEMAND BILLED (50 KW AND ABOVE) - GSD - HYDRO ONE NETWORKS","HYDRO ONE NETWORKS INC._GENERAL SERVICE DEMAND BILLED (50 KW AND ABOVE) - GSD - HYDRO ONE NETWORKS SERVICE CLASSIFICATION",535158447.74000001,1703471,305136804.75999999,1134770.8700000001,1600329343.75,4621788.8099999996,7850475,14602.7998046875,0,0,1913316623.73,5771162.4800000004,2448475071.4699998,7474633.5300000003]
["2022","HYDRO ONE NETWORKS INC.","GENERAL SERVICE EQUAL TO OR GREATER THAN 50 KW","GENERAL SERVICE GREATER THAN 1,000 KW - WOODSTOCK HYDRO","HYDRO ONE NETWORKS INC._FORMER WOODSTOCK HYDRO SERVICES INC. SERVICE AREA_GENERAL SERVICE GREATER THAN 1,000 KW SERVICE CLASSIFICATION",16703964.960000001,61709,0,0,39426423.159999996,109407.53,0,0,0,0,39426423.159999996,109407.53,56130388.119999997,171117.07]
["2022","HYDRO ONE NETWORKS INC.","GENERAL SERVICE EQUAL TO OR GREATER THAN 50 KW","URBAN GENERAL SERVICE DEMAND BILLED (50 KW AND ABOVE) - UGD - HYDRO ONE NETWORKS","HYDRO ONE NETWORKS INC._URBAN GENERAL SERVICE DEMAND BILLED (50 KW AND ABOVE) - UGD - HYDRO ONE NETWORKS SERVICE CLASSIFICATION",171755737.86000001,455874,130394371.92,352671.25,649310355.45000005,1655472.5,2334856.75,4358.5400390625,0,0,782039584.20000005,2012502.29,953795322.05999994,2468376.73]
["2022","HYDRO ONE NETWORKS INC.","GENERAL SERVICE LESS THAN 50 KW","GENERAL SERVICE ENERGY BILLED (LESS THAN 50 KW) - GSE METERED - HYDRO ONE NETWORKS","HYDRO ONE NETWORKS INC._GENERAL SERVICE ENERGY BILLED (LESS THAN 50 KW) - GSE METERED - HYDRO ONE NETWORKS SERVICE CLASSIFICATION",417238828.82999998,0,1856339246.48,0,41089956.549999997,0,0,0,0,0,1897429203.03,0,2314668031.8600001,0]
["2022","HYDRO ONE NETWORKS INC.","GENERAL SERVICE LESS THAN 50 KW","GENERAL SERVICE LESS THAN 50 KW - HALDIMAND COUNTY","HYDRO ONE NETWORKS INC._FORMER HALDIMAND COUNTY HYDRO INC. SERVICE AREA_GENERAL SERVICE LESS THAN 50 KW SERVICE CLASSIFICATION",11174326.890000001,0,46285445.880000003,0,243125.28,0,0,0,0,0,46528571.159999996,0,57702898.049999997,0]
["2022","HYDRO ONE NETWORKS INC.","GENERAL SERVICE LESS THAN 50 KW","GENERAL SERVICE LESS THAN 50 KW - NORFOLK POWER","HYDRO ONE NETWORKS INC._FORMER NORFOLK POWER DISTRIBUTION INC. SERVICE AREA_GENERAL SERVICE LESS THAN 50 KW SERVICE CLASSIFICATION",13778758.73,0,41921336.07,0,5401114.21,0,0,0,0,0,47322450.280000001,0,61101209.009999998,0]
["2022","HYDRO ONE NETWORKS INC.","GENERAL SERVICE LESS THAN 50 KW","GENERAL SERVICE LESS THAN 50 KW - ORILLIA","HYDRO ONE NETWORKS INC._FORMER ORILLIA POWER DISTRIBUTION CORPORATION SERVICE AREA_GENERAL SERVICE LESS THAN 50 KW SERVICE CLASSIFICATION",8951142.0199999996,0,34759725.810000002,0,198727.92,0,0,0,0,0,34958453.729999997,0,43909595.75,0]
["2022","HYDRO ONE NETWORKS INC.","GENERAL SERVICE LESS THAN 50 KW","GENERAL SERVICE LESS THAN 50 KW - PETERBOROUGH","HYDRO ONE NETWORKS INC._FORMER PETERBOROUGH DISTRIBUTION INC. SERVICE AREA_GENERAL SERVICE LESS THAN 50 KW SERVICE CLASSIFICATION",14154268.289999999,0,89136756.480000004,0,437591.01,0,0,0,0,0,89574347.489999995,0,103728615.78,0]
["2022","HYDRO ONE NETWORKS INC.","GENERAL SERVICE LESS THAN 50 KW","GENERAL SERVICE LESS THAN 50 KW - WOODSTOCK HYDRO","HYDRO ONE NETWORKS INC._FORMER WOODSTOCK HYDRO SERVICES INC. SERVICE AREA_GENERAL SERVICE LESS THAN 50 KW SERVICE CLASSIFICATION",6544444.2400000002,0,35499694.18,0,1819117.88,0,0,0,0,0,37318812.060000002,0,43863256.299999997,0]
["2022","HYDRO ONE NETWORKS INC.","GENERAL SERVICE LESS THAN 50 KW","URBAN GENERAL SERVICE ENERGY BILLED (LESS THAN 50 KW) - UGE - HYDRO ONE NETWORKS","HYDRO ONE NETWORKS INC._URBAN GENERAL SERVICE ENERGY BILLED (LESS THAN 50 KW) - UGE - HYDRO ONE NETWORKS SERVICE CLASSIFICATION",107591250.56999999,0,459875642.25999999,0,10211402.949999999,0,0,0,0,0,470087045.20999998,0,577678295.77999997,0]
["2022","HYDRO ONE NETWORKS INC.","LARGE USER","LARGE USE - PETERBOROUGH","HYDRO ONE NETWORKS INC._FORMER PETERBOROUGH DISTRIBUTION INC. SERVICE AREA_LARGE USE SERVICE CLASSIFICATION",25691657.59,49126,0,0,2307163.21,5343.66,0,0,0,0,2307163.21,5343.66,27998820.800000001,54469.66]
["2022","HYDRO ONE NETWORKS INC.","NO RATE CLASS","NO RATE CLASS","HYDRO ONE NETWORKS INC._NO RATE CLASS SERVICE CLASSIFICATION",0,0,0,0,0,0,0,0,4946699776,11569221,0,0,0,0]
["2022","HYDRO ONE NETWORKS INC.","RESIDENTIAL","RESIDENTIAL - HALDIMAND COUNTY","HYDRO ONE NETWORKS INC._FORMER HALDIMAND COUNTY HYDRO INC. SERVICE AREA_RESIDENTIAL SERVICE CLASSIFICATION",6540625.3499999996,0,190753553.31999999,0,0,0,0,0,0,0,190753553.31999999,0,197294178.66999999,0]
["2022","HYDRO ONE NETWORKS INC.","RESIDENTIAL","RESIDENTIAL - LOW DENSITY (R2) - HYDRO ONE NETWORKS","HYDRO ONE NETWORKS INC._RESIDENTIAL - LOW DENSITY (R2) - HYDRO ONE NETWORKS SERVICE CLASSIFICATION",207568459.78999999,0,4837693181.8299999,0,1921612.83,0,0,0,0,0,4839614794.6599998,0,5047183254.4499998,0]
["2022","HYDRO ONE NETWORKS INC.","RESIDENTIAL","RESIDENTIAL - MEDIUM DENSITY (R1) - HYDRO ONE NETWORKS","HYDRO ONE NETWORKS INC._RESIDENTIAL - MEDIUM DENSITY (R1) - HYDRO ONE NETWORKS SERVICE CLASSIFICATION",89710153.269999996,0,5224777804.0900002,0,594099.30000000005,0,0,0,0,0,5225371903.3900003,0,5315082056.6599998,0]
["2022","HYDRO ONE NETWORKS INC.","RESIDENTIAL","RESIDENTIAL - NORFOLK POWER","HYDRO ONE NETWORKS INC._FORMER NORFOLK POWER DISTRIBUTION INC. SERVICE AREA_RESIDENTIAL SERVICE CLASSIFICATION",3873814.26,0,158487722.88999999,0,0,0,0,0,0,0,158487722.88999999,0,162361537.15000001,0]
["2022","HYDRO ONE NETWORKS INC.","RESIDENTIAL","RESIDENTIAL - ORILLIA","HYDRO ONE NETWORKS INC._FORMER ORILLIA POWER DISTRIBUTION CORPORATION SERVICE AREA_RESIDENTIAL SERVICE CLASSIFICATION",1450967.32,0,111298933.33,0,0,0,0,0,0,0,111298933.33,0,112749900.65000001,0]
["2022","HYDRO ONE NETWORKS INC.","RESIDENTIAL","RESIDENTIAL - PETERBOROUGH","HYDRO ONE NETWORKS INC._FORMER PETERBOROUGH DISTRIBUTION INC. SERVICE AREA_RESIDENTIAL SERVICE CLASSIFICATION",3095365.16,0,300917780.06999999,0,0,0,0,0,0,0,300917780.06999999,0,304013145.23000002,0]
["2022","HYDRO ONE NETWORKS INC.","RESIDENTIAL","RESIDENTIAL - SEASONAL - HYDRO ONE NETWORKS","HYDRO ONE NETWORKS INC._RESIDENTIAL - SEASONAL - HYDRO ONE NETWORKS SERVICE CLASSIFICATION",2954580.87,0,708761305.48000002,0,37593.86,0,0,0,0,0,708798899.34000003,0,711753480.21000004,0]
["2022","HYDRO ONE NETWORKS INC.","RESIDENTIAL","RESIDENTIAL - URBAN (UR) - HYDRO ONE NETWORKS","HYDRO ONE NETWORKS INC._RESIDENTIAL - URBAN (UR) - HYDRO ONE NETWORKS SERVICE CLASSIFICATION",42508236.530000001,0,2071055021.76,0,30520.77,0,0,0,0,0,2071085542.53,0,2113593779.0599999,0]
["2022","HYDRO ONE NETWORKS INC.","RESIDENTIAL","RESIDENTIAL - WOODSTOCK HYDRO","HYDRO ONE NETWORKS INC._FORMER WOODSTOCK HYDRO SERVICES INC. SERVICE AREA_RESIDENTIAL SERVICE CLASSIFICATION",2627788.16,0,121851183.8,0,0,0,0,0,0,0,121851183.8,0,124478971.95999999,0]
["2022","HYDRO ONE NETWORKS INC.","SENTINEL LIGHTING CONNECTIONS","SENTINEL LIGHTING - HALDIMAND COUNTY","HYDRO ONE NETWORKS INC._FORMER HALDIMAND COUNTY HYDRO INC. SERVICE AREA_SENTINEL LIGHTING SERVICE CLASSIFICATION",27450.2,78,139263.60999999999,510.97,0,0,0,0,0,0,139263.60999999999,510.97,166713.81,589.34]
["2022","HYDRO ONE NETWORKS INC.","SENTINEL LIGHTING CONNECTIONS","SENTINEL LIGHTING - HYDRO ONE NETWORKS","HYDRO ONE NETWORKS INC._SENTINEL LIGHTING - HYDRO ONE NETWORKS SERVICE CLASSIFICATION",560568.79,0,10617770.02,0,255406.65,0,0,0,0,0,10873176.67,0,11433745.460000001,0]
["2022","HYDRO ONE NETWORKS INC.","SENTINEL LIGHTING CONNECTIONS","SENTINEL LIGHTING - NORFOLK POWER","HYDRO ONE NETWORKS INC._FORMER NORFOLK POWER DISTRIBUTION INC. SERVICE AREA_SENTINEL LIGHTING SERVICE CLASSIFICATION",2564.87,7,129685.63,894.78,0,0,0,0,0,0,129685.63,894.78,132250.5,901.87]
["2022","HYDRO ONE NETWORKS INC.","SENTINEL LIGHTING CONNECTIONS","SENTINEL LIGHTING - ORILLIA","HYDRO ONE NETWORKS INC._FORMER ORILLIA POWER DISTRIBUTION CORPORATION SERVICE AREA_SENTINEL LIGHTING SERVICE CLASSIFICATION",0,0,0,0,0,0,0,0,0,0,0,0,0,0]
["2022","HYDRO ONE NETWORKS INC.","SENTINEL LIGHTING CONNECTIONS","SENTINEL LIGHTING - PETERBOROUGH","HYDRO ONE NETWORKS INC._FORMER PETERBOROUGH DISTRIBUTION INC. SERVICE AREA_SENTINEL LIGHTING SERVICE CLASSIFICATION",117084.39,310,359301.97,1002.04,0,0,0,0,0,0,359301.97,1002.04,476386.36,1312.6]
["2022","HYDRO ONE NETWORKS INC.","STREET LIGHTING CONNECTIONS","STREET LIGHTING - HALDIMAND COUNTY","HYDRO ONE NETWORKS INC._FORMER HALDIMAND COUNTY HYDRO INC. SERVICE AREA_STREET LIGHTING SERVICE CLASSIFICATION",1475757.86,4043,3207.74,27.9,31554.6,168.66,0,0,0,0,34762.339999999997,196.56,1510520.2,4239.75]
["2022","HYDRO ONE NETWORKS INC.","STREET LIGHTING CONNECTIONS","STREET LIGHTING - HYDRO ONE NETWORKS","HYDRO ONE NETWORKS INC._STREET LIGHTING - HYDRO ONE NETWORKS SERVICE CLASSIFICATION",21544111.120000001,0,40633791.390000001,0,11578232.640000001,0,0,0,0,0,52212024.030000001,0,73756135.150000006,0]
["2022","HYDRO ONE NETWORKS INC.","STREET LIGHTING CONNECTIONS","STREET LIGHTING - NORFOLK POWER","HYDRO ONE NETWORKS INC._FORMER NORFOLK POWER DISTRIBUTION INC. SERVICE AREA_STREET LIGHTING SERVICE CLASSIFICATION",0,0,31855,86.14,1733045.21,6062.24,0,0,0,0,1764900.21,6148.38,1764900.21,6148.38]
["2022","HYDRO ONE NETWORKS INC.","STREET LIGHTING CONNECTIONS","STREET LIGHTING - ORILLIA","HYDRO ONE NETWORKS INC._FORMER ORILLIA POWER DISTRIBUTION CORPORATION SERVICE AREA_STREET LIGHTING SERVICE CLASSIFICATION",859217.79,3523,12050.01,15.99,0,0,0,0,0,0,12050.01,15.99,871267.8,3539.59]
["2022","HYDRO ONE NETWORKS INC.","STREET LIGHTING CONNECTIONS","STREET LIGHTING - PETERBOROUGH","HYDRO ONE NETWORKS INC._FORMER PETERBOROUGH DISTRIBUTION INC. SERVICE AREA_STREET LIGHTING SERVICE CLASSIFICATION",3030900.09,7770,0,0,169816.66,479.34,0,0,0,0,169816.66,479.34,3200716.75,8249.93]
["2022","HYDRO ONE NETWORKS INC.","STREET LIGHTING CONNECTIONS","STREET LIGHTING - WOODSTOCK HYDRO","HYDRO ONE NETWORKS INC._FORMER WOODSTOCK HYDRO SERVICES INC. SERVICE AREA_STREET LIGHTING SERVICE CLASSIFICATION",9823.31,33,54815.99,158.66,2622907.56,7340.58,0,0,0,0,2677723.5499999998,7499.24,2687546.86,7532.42]
["2022","HYDRO ONE NETWORKS INC.","SUB TRANSMISSION CUSTOMERS","SUB TRANSMISSION – END USE CUSTOMER - HYDRO ONE NETWORKS","HYDRO ONE NETWORKS INC._SUB TRANSMISSION – END USE CUSTOMER - HYDRO ONE NETWORKS SERVICE CLASSIFICATION",414957797.01999998,1027834,0,0,4372384006.2700005,11062673.869999999,866911040,2005819.875,0,0,5239295016.4899998,13068493.75,5654252813.5100002,14096328.140000001]
["2022","HYDRO ONE NETWORKS INC.","UNMETERED SCATTERED LOAD CONNECTIONS","GENERAL SERVICE ENERGY BILLED (LESS THAN 50 KW) - GSE UNMETERED - HYDRO ONE NETWORKS","HYDRO ONE NETWORKS INC._GENERAL SERVICE ENERGY BILLED (LESS THAN 50 KW) - GSE UNMETERED - HYDRO ONE NETWORKS SERVICE CLASSIFICATION",2268089.39,0,28623166.780000001,0,61853.2,0,0,0,0,0,28685019.98,0,30953109.370000001,0]
["2022","HYDRO ONE NETWORKS INC.","UNMETERED SCATTERED LOAD CONNECTIONS","UNMETERED SCATTERED LOAD - HALDIMAND COUNTY","HYDRO ONE NETWORKS INC._FORMER HALDIMAND COUNTY HYDRO INC. SERVICE AREA_UNMETERED SCATTERED LOAD SERVICE CLASSIFICATION",56290.21,0,247945.35,0,0,0,0,0,0,0,247945.35,0,304235.56,0]
["2022","HYDRO ONE NETWORKS INC.","UNMETERED SCATTERED LOAD CONNECTIONS","UNMETERED SCATTERED LOAD - NORFOLK POWER","HYDRO ONE NETWORKS INC._FORMER NORFOLK POWER DISTRIBUTION INC. SERVICE AREA_UNMETERED SCATTERED LOAD SERVICE CLASSIFICATION",130936.21,0,340842.96,0,0,0,0,0,0,0,340842.96,0,471779.17,0]
["2022","HYDRO ONE NETWORKS INC.","UNMETERED SCATTERED LOAD CONNECTIONS","UNMETERED SCATTERED LOAD - ORILLIA","HYDRO ONE NETWORKS INC._FORMER ORILLIA POWER DISTRIBUTION CORPORATION SERVICE AREA_UNMETERED SCATTERED LOAD SERVICE CLASSIFICATION",9540.35,0,646032.59,0,0,0,0,0,0,0,646032.59,0,655572.93999999994,0]
["2022","HYDRO ONE NETWORKS INC.","UNMETERED SCATTERED LOAD CONNECTIONS","UNMETERED SCATTERED LOAD - PETERBOROUGH","HYDRO ONE NETWORKS INC._FORMER PETERBOROUGH DISTRIBUTION INC. SERVICE AREA_UNMETERED SCATTERED LOAD SERVICE CLASSIFICATION",1672651,0,113623.28,0,0,0,0,0,0,0,113623.28,0,1786274.28,0]
["2022","HYDRO ONE NETWORKS INC.","UNMETERED SCATTERED LOAD CONNECTIONS","UNMETERED SCATTERED LOAD - WOODSTOCK HYDRO","HYDRO ONE NETWORKS INC._FORMER WOODSTOCK HYDRO SERVICES INC. SERVICE AREA_UNMETERED SCATTERED LOAD SERVICE CLASSIFICATION",957.18,0,570307.99,0,0,0,0,0,0,0,570307.99,0,571265.17000000004,0]
["2022","HYDRO ONE REMOTE COMMUNITIES INC.","GENERAL SERVICE EQUAL TO OR GREATER THAN 50 KW","NON STANDARD A GENERAL SERVICE THREE PHASE - G3","HYDRO ONE REMOTE COMMUNITIES INC._NON STANDARD A GENERAL SERVICE THREE PHASE - G3 SERVICE CLASSIFICATION",0,0,0,0,0,0,0,0,0,0,0,0,0,0]
["2022","HYDRO ONE REMOTE COMMUNITIES INC.","GENERAL SERVICE LESS THAN 50 KW","NON STANDARD A GENERAL SERVICE SINGLE PHASE - G1","HYDRO ONE REMOTE COMMUNITIES INC._NON STANDARD A GENERAL SERVICE SINGLE PHASE - G1 SERVICE CLASSIFICATION",0,0,0,0,0,0,0,0,0,0,0,0,0,0]
["2022","HYDRO ONE REMOTE COMMUNITIES INC.","GENERAL SERVICE LESS THAN 50 KW","STANDARD A GENERAL SERVICE AIR ACCESS","HYDRO ONE REMOTE COMMUNITIES INC._STANDARD A GENERAL SERVICE AIR ACCESS SERVICE CLASSIFICATION",0,0,0,0,0,0,0,0,0,0,0,0,0,0]
["2022","HYDRO ONE REMOTE COMMUNITIES INC.","GENERAL SERVICE LESS THAN 50 KW","STANDARD A GENERAL SERVICE ROAD/RAIL ACCESS","HYDRO ONE REMOTE COMMUNITIES INC._STANDARD A GENERAL SERVICE ROAD/RAIL ACCESS SERVICE CLASSIFICATION",0,0,0,0,0,0,0,0,0,0,0,0,0,0]
["2022","HYDRO ONE REMOTE COMMUNITIES INC.","GENERAL SERVICE LESS THAN 50 KW","STANDARD A GRID CONNECTED","HYDRO ONE REMOTE COMMUNITIES INC._STANDARD A GRID CONNECTED SERVICE CLASSIFICATION",0,0,0,0,0,0,0,0,0,0,0,0,0,0]
["2022","HYDRO ONE REMOTE COMMUNITIES INC.","NO RATE CLASS","NO RATE CLASS","HYDRO ONE REMOTE COMMUNITIES INC._NO RATE CLASS SERVICE CLASSIFICATION",0,0,0,0,0,0,0,0,null,null,0,0,0,0]
["2022","HYDRO ONE REMOTE COMMUNITIES INC.","RESIDENTIAL","NON STANDARD A SEASONAL RESIDENTIAL - R4","HYDRO ONE REMOTE COMMUNITIES INC._NON STANDARD A SEASONAL RESIDENTIAL - R4 SERVICE CLASSIFICATION",0,0,0,0,0,0,0,0,0,0,0,0,0,0]
["2022","HYDRO ONE REMOTE COMMUNITIES INC.","RESIDENTIAL","NON STANDARD A YEAR ROUND RESIDENTIAL - R2","HYDRO ONE REMOTE COMMUNITIES INC._NON STANDARD A YEAR ROUND RESIDENTIAL - R2 SERVICE CLASSIFICATION",0,0,0,0,0,0,0,0,0,0,0,0,0,0]
["2022","HYDRO ONE REMOTE COMMUNITIES INC.","RESIDENTIAL","STANDARD A RESIDENTIAL AIR ACCESS","HYDRO ONE REMOTE COMMUNITIES INC._STANDARD A RESIDENTIAL AIR ACCESS SERVICE CLASSIFICATION",0,0,0,0,0,0,0,0,0,0,0,0,0,0]
["2022","HYDRO ONE REMOTE COMMUNITIES INC.","RESIDENTIAL","STANDARD A RESIDENTIAL ROAD/RAIL ACCESS","HYDRO ONE REMOTE COMMUNITIES INC._STANDARD A RESIDENTIAL ROAD/RAIL ACCESS SERVICE CLASSIFICATION",0,0,0,0,0,0,0,0,0,0,0,0,0,0]
["2022","HYDRO ONE REMOTE COMMUNITIES INC.","STREET LIGHTING CONNECTIONS","STREET LIGHTING","HYDRO ONE REMOTE COMMUNITIES INC._STREET LIGHTING SERVICE CLASSIFICATION",0,0,0,0,0,0,0,0,0,0,0,0,0,0]
["2022","INNPOWER CORPORATION","GENERAL SERVICE EQUAL TO OR GREATER THAN 50 KW","GENERAL SERVICE 50 TO 4,999 KW","INNPOWER CORPORATION_GENERAL SERVICE 50 TO 4,999 KW SERVICE CLASSIFICATION",3228385.36,14105,2902646,15866.53,51964839.210000001,127933.05,0,0,0,0,54867485.210000001,143799.57999999999,58095870.57,157905.39000000001]
["2022","INNPOWER CORPORATION","GENERAL SERVICE LESS THAN 50 KW","GENERAL SERVICE LESS THAN 50 KW","INNPOWER CORPORATION_GENERAL SERVICE LESS THAN 50 KW SERVICE CLASSIFICATION",5275046.7699999996,0,35212913.899999999,0,0,0,0,0,0,0,35212913.899999999,0,40487960.670000002,0]
["2022","INNPOWER CORPORATION","NO RATE CLASS","NO RATE CLASS","INNPOWER CORPORATION_NO RATE CLASS SERVICE CLASSIFICATION",0,0,0,0,0,0,0,0,8490540,20120.529296875,0,0,0,0]
["2022","INNPOWER CORPORATION","RESIDENTIAL","RESIDENTIAL","INNPOWER CORPORATION_RESIDENTIAL SERVICE CLASSIFICATION",2646672.5,0,175853036.69999999,0,0,0,0,0,0,0,175853036.69999999,0,178499709.19999999,0]
["2022","INNPOWER CORPORATION","SENTINEL LIGHTING CONNECTIONS","SENTINEL LIGHTING","INNPOWER CORPORATION_SENTINEL LIGHTING SERVICE CLASSIFICATION",10654.2,29,88551.48,245.98,0,0,0,0,0,0,88551.48,245.98,99205.68,275.57]
["2022","INNPOWER CORPORATION","STREET LIGHTING CONNECTIONS","STREET LIGHTING","INNPOWER CORPORATION_STREET LIGHTING SERVICE CLASSIFICATION",3963.5,12,0,0,747174.32,2267.91,0,0,0,0,747174.32,2267.91,751137.82,2279.91]
["2022","INNPOWER CORPORATION","UNMETERED SCATTERED LOAD CONNECTIONS","UNMETERED SCATTERED LOAD","INNPOWER CORPORATION_UNMETERED SCATTERED LOAD SERVICE CLASSIFICATION",29808,0,409440,0,0,0,0,0,0,0,409440,0,439248,0]
["2022","KINGSTON HYDRO CORPORATION","GENERAL SERVICE EQUAL TO OR GREATER THAN 50 KW","GENERAL SERVICE 50 TO 4,999 KW","KINGSTON HYDRO CORPORATION_GENERAL SERVICE 50 TO 4,999 KW SERVICE CLASSIFICATION",41600238.060000002,91269,37545404.140000001,85925.13,155126983.97,391017.31,3564987.75,6312.169921875,0,0,196237375.97999999,483254.61,237837614.03999999,574524.43000000005]
["2022","KINGSTON HYDRO CORPORATION","GENERAL SERVICE LESS THAN 50 KW","GENERAL SERVICE LESS THAN 50 KW","KINGSTON HYDRO CORPORATION_GENERAL SERVICE LESS THAN 50 KW SERVICE CLASSIFICATION",13453980.880000001,0,66932591.32,0,2113313.9300000002,0,0,0,0,0,69045905.25,0,82499886.129999995,0]
["2022","KINGSTON HYDRO CORPORATION","LARGE USER","LARGE USE","KINGSTON HYDRO CORPORATION_LARGE USE SERVICE CLASSIFICATION",49856159.75,89183,0,0,100536230.98,167478.42000000001,0,0,0,0,100536230.98,167478.42000000001,150392390.72999999,256662.03]
["2022","KINGSTON HYDRO CORPORATION","NO RATE CLASS","NO RATE CLASS","KINGSTON HYDRO CORPORATION_NO RATE CLASS SERVICE CLASSIFICATION",0,0,0,0,0,0,0,0,196721872,381432.59375,0,0,0,0]
["2022","KINGSTON HYDRO CORPORATION","RESIDENTIAL","RESIDENTIAL","KINGSTON HYDRO CORPORATION_RESIDENTIAL SERVICE CLASSIFICATION",1998716.45,0,185265142.63999999,0,0,0,0,0,0,0,185265142.63999999,0,187263859.09,0]
["2022","KINGSTON HYDRO CORPORATION","STREET LIGHTING CONNECTIONS","STREET LIGHTING","KINGSTON HYDRO CORPORATION_STREET LIGHTING SERVICE CLASSIFICATION",0,0,0,0,2006494.06,5616,0,0,0,0,2006494.06,5616,2006494.06,5616]
["2022","KINGSTON HYDRO CORPORATION","UNMETERED SCATTERED LOAD CONNECTIONS","UNMETERED SCATTERED LOAD","KINGSTON HYDRO CORPORATION_UNMETERED SCATTERED LOAD SERVICE CLASSIFICATION",13922.05,0,0,0,1152944.3700000001,0,0,0,0,0,1152944.3700000001,0,1166866.42,0]
["2022","KITCHENER-WILMOT HYDRO INC.","EMBEDDED DISTRIBUTOR(S)","EMBEDDED DISTRIBUTOR","KITCHENER-WILMOT HYDRO INC._EMBEDDED DISTRIBUTOR SERVICE CLASSIFICATION",0,0,0,0,0,0,20784288,49749.5390625,0,0,20784287.059999999,49749.54,20784287.059999999,49749.54]
["2022","KITCHENER-WILMOT HYDRO INC.","GENERAL SERVICE EQUAL TO OR GREATER THAN 50 KW","GENERAL SERVICE 50 TO 4,999 KW","KITCHENER-WILMOT HYDRO INC._GENERAL SERVICE 50 TO 4,999 KW SERVICE CLASSIFICATION",127198839.90000001,363813,135094161.74000001,0,523548072.75,1691251.53,15002230,39552.7109375,0,0,673644464.75,1730804.24,800843304.64999998,2094618.11]
["2022","KITCHENER-WILMOT HYDRO INC.","GENERAL SERVICE LESS THAN 50 KW","GENERAL SERVICE LESS THAN 50 KW","KITCHENER-WILMOT HYDRO INC._GENERAL SERVICE LESS THAN 50 KW SERVICE CLASSIFICATION",30903941.199999999,0,190036586.93000001,0,0,0,0,0,0,0,190036586.93000001,0,220940528.13,0]
["2022","KITCHENER-WILMOT HYDRO INC.","LARGE USER","LARGE USE","KITCHENER-WILMOT HYDRO INC._LARGE USE SERVICE CLASSIFICATION",0,0,0,0,30376122.379999999,64901.73,0,0,0,0,30376122.379999999,64901.73,30376122.379999999,64901.73]
["2022","KITCHENER-WILMOT HYDRO INC.","NO RATE CLASS","NO RATE CLASS","KITCHENER-WILMOT HYDRO INC._NO RATE CLASS SERVICE CLASSIFICATION",0,0,0,0,0,0,0,0,264006176,633655.8125,0,0,0,0]
["2022","KITCHENER-WILMOT HYDRO INC.","RESIDENTIAL","RESIDENTIAL","KITCHENER-WILMOT HYDRO INC._RESIDENTIAL SERVICE CLASSIFICATION",7938171.6600000001,0,710235310.57000005,0,0,0,0,0,0,0,710235310.57000005,0,718173482.23000002,0]
["2022","KITCHENER-WILMOT HYDRO INC.","STREET LIGHTING CONNECTIONS","STREET LIGHTING","KITCHENER-WILMOT HYDRO INC._STREET LIGHTING SERVICE CLASSIFICATION",0,0,549090.91,0,6469583.3700000001,19676.61,0,0,0,0,7018674.2800000003,19676.61,7018674.2800000003,19676.61]
["2022","KITCHENER-WILMOT HYDRO INC.","UNMETERED SCATTERED LOAD CONNECTIONS","UNMETERED SCATTERED LOAD","KITCHENER-WILMOT HYDRO INC._UNMETERED SCATTERED LOAD SERVICE CLASSIFICATION",0,0,3958325.2,0,0,0,0,0,0,0,3958325.2,0,3958325.2,0]
["2022","LAKEFRONT UTILITIES INC.","GENERAL SERVICE EQUAL TO OR GREATER THAN 50 KW","GENERAL SERVICE 3,000 TO 4,999 KW","LAKEFRONT UTILITIES INC._GENERAL SERVICE 3,000 TO 4,999 KW SERVICE CLASSIFICATION",0,0,0,0,20432047.5,42514.55,0,0,0,0,20432047.5,42514.55,20432047.5,42514.55]
["2022","LAKEFRONT UTILITIES INC.","GENERAL SERVICE EQUAL TO OR GREATER THAN 50 KW","GENERAL SERVICE 50 TO 2,999 KW","LAKEFRONT UTILITIES INC._GENERAL SERVICE 50 TO 2,999 KW SERVICE CLASSIFICATION",35388496.710000001,91683,6794387.0999999996,18074.54,65704361.149999999,166962.84,0,0,0,0,72498748.25,185037.38,107887244.95999999,276720.65999999997]
["2022","LAKEFRONT UTILITIES INC.","GENERAL SERVICE LESS THAN 50 KW","GENERAL SERVICE LESS THAN 50 KW","LAKEFRONT UTILITIES INC._GENERAL SERVICE LESS THAN 50 KW SERVICE CLASSIFICATION",4974470.68,0,28196535.420000002,0,0,0,0,0,0,0,28196535.420000002,0,33171006.100000001,0]
["2022","LAKEFRONT UTILITIES INC.","NO RATE CLASS","NO RATE CLASS","LAKEFRONT UTILITIES INC._NO RATE CLASS SERVICE CLASSIFICATION",0,0,0,0,0,0,0,0,62327692,138682.515625,0,0,0,0]
["2022","LAKEFRONT UTILITIES INC.","RESIDENTIAL","RESIDENTIAL","LAKEFRONT UTILITIES INC._RESIDENTIAL SERVICE CLASSIFICATION",1558086.95,0,77093510.510000005,0,0,0,0,0,0,0,77093510.510000005,0,78651597.459999993,0]
["2022","LAKEFRONT UTILITIES INC.","SENTINEL LIGHTING CONNECTIONS","SENTINEL LIGHTING","LAKEFRONT UTILITIES INC._SENTINEL LIGHTING SERVICE CLASSIFICATION",5644.14,15,38059.21,105.72,0,0,0,0,0,0,38059.21,105.72,43703.35,121.4]
["2022","LAKEFRONT UTILITIES INC.","STREET LIGHTING CONNECTIONS","STREET LIGHTING","LAKEFRONT UTILITIES INC._STREET LIGHTING SERVICE CLASSIFICATION",116048.83,314,0,0,961903.13,2608.77,0,0,0,0,961903.13,2608.77,1077951.96,2923.53]
["2022","LAKEFRONT UTILITIES INC.","UNMETERED SCATTERED LOAD CONNECTIONS","UNMETERED SCATTERED LOAD","LAKEFRONT UTILITIES INC._UNMETERED SCATTERED LOAD SERVICE CLASSIFICATION",38676,0,580894.36,0,0,0,0,0,0,0,580894.36,0,619570.36,0]
["2022","LAKELAND POWER DISTRIBUTION LTD.","GENERAL SERVICE EQUAL TO OR GREATER THAN 50 KW","GENERAL SERVICE 50 TO 4,999 KW","LAKELAND POWER DISTRIBUTION LTD._GENERAL SERVICE 50 TO 4,999 KW SERVICE CLASSIFICATION",8742063.0199999996,23170,1665370.14,4476.93,82560882.370000005,191668.1,0,0,0,0,84226252.510000005,196145.03,92968315.530000001,219315.93]
["2022","LAKELAND POWER DISTRIBUTION LTD.","GENERAL SERVICE EQUAL TO OR GREATER THAN 50 KW","PARRY SOUND_GENERAL SERVICE 50 TO 4,999 KW","LAKELAND POWER DISTRIBUTION LTD._PARRY SOUND_GENERAL SERVICE 50 TO 4,999 KW SERVICE CLASSIFICATION",8631088.1300000008,18432,4175682.04,11161.32,13857766.23,36522.620000000003,0,0,0,0,18033448.27,47683.94,26664536.399999999,66116.08]
["2022","LAKELAND POWER DISTRIBUTION LTD.","GENERAL SERVICE LESS THAN 50 KW","GENERAL SERVICE LESS THAN 50 KW","LAKELAND POWER DISTRIBUTION LTD._GENERAL SERVICE LESS THAN 50 KW SERVICE CLASSIFICATION",6783487.8200000003,0,32824246.079999998,0,0,0,0,0,0,0,32824246.079999998,0,39607733.899999999,0]
["2022","LAKELAND POWER DISTRIBUTION LTD.","GENERAL SERVICE LESS THAN 50 KW","PARRY SOUND_GENERAL SERVICE LESS THAN 50 KW","LAKELAND POWER DISTRIBUTION LTD._PARRY SOUND_GENERAL SERVICE LESS THAN 50 KW SERVICE CLASSIFICATION",2364710.0299999998,0,14455170.26,0,0,0,0,0,0,0,14455170.26,0,16819880.289999999,0]
["2022","LAKELAND POWER DISTRIBUTION LTD.","NO RATE CLASS","NO RATE CLASS","LAKELAND POWER DISTRIBUTION LTD._NO RATE CLASS SERVICE CLASSIFICATION",0,0,0,0,0,0,0,0,53117180,105877.8203125,0,0,0,0]
["2022","LAKELAND POWER DISTRIBUTION LTD.","RESIDENTIAL","PARRY SOUND_RESIDENTIAL","LAKELAND POWER DISTRIBUTION LTD._PARRY SOUND_RESIDENTIAL SERVICE CLASSIFICATION",313776.53000000003,0,29136669.350000001,0,0,0,0,0,0,0,29136669.350000001,0,29450445.879999999,0]
["2022","LAKELAND POWER DISTRIBUTION LTD.","RESIDENTIAL","RESIDENTIAL","LAKELAND POWER DISTRIBUTION LTD._RESIDENTIAL SERVICE CLASSIFICATION",1000680.27,0,82499603.640000001,0,0,0,0,0,0,0,82499603.640000001,0,83500283.909999996,0]
["2022","LAKELAND POWER DISTRIBUTION LTD.","SENTINEL LIGHTING CONNECTIONS","PARRY SOUND_SENTINEL LIGHTING","LAKELAND POWER DISTRIBUTION LTD._PARRY SOUND_SENTINEL LIGHTING SERVICE CLASSIFICATION",0,0,4298.5,11.94,0,0,0,0,0,0,4298.5,11.94,4298.5,11.94]
["2022","LAKELAND POWER DISTRIBUTION LTD.","SENTINEL LIGHTING CONNECTIONS","SENTINEL LIGHTING","LAKELAND POWER DISTRIBUTION LTD._SENTINEL LIGHTING SERVICE CLASSIFICATION",0,0,32751.99,90.98,0,0,0,0,0,0,32751.99,90.98,32751.99,90.98]
["2022","LAKELAND POWER DISTRIBUTION LTD.","STREET LIGHTING CONNECTIONS","PARRY SOUND_STREET LIGHTING","LAKELAND POWER DISTRIBUTION LTD._PARRY SOUND_STREET LIGHTING SERVICE CLASSIFICATION",0,0,0,0,292762.40000000002,1004.4,0,0,0,0,292762.40000000002,1004.4,292762.40000000002,1004.4]
["2022","LAKELAND POWER DISTRIBUTION LTD.","STREET LIGHTING CONNECTIONS","STREET LIGHTING","LAKELAND POWER DISTRIBUTION LTD._STREET LIGHTING SERVICE CLASSIFICATION",137609.97,373,628547.94999999995,1704.68,0,0,0,0,0,0,628547.94999999995,1704.68,766157.92,2077.88]
["2022","LAKELAND POWER DISTRIBUTION LTD.","UNMETERED SCATTERED LOAD CONNECTIONS","PARRY SOUND_UNMETERED SCATTERED LOAD","LAKELAND POWER DISTRIBUTION LTD._PARRY SOUND_UNMETERED SCATTERED LOAD SERVICE CLASSIFICATION",0,0,56183.54,0,0,0,0,0,0,0,56183.54,0,56183.54,0]
["2022","LAKELAND POWER DISTRIBUTION LTD.","UNMETERED SCATTERED LOAD CONNECTIONS","UNMETERED SCATTERED LOAD","LAKELAND POWER DISTRIBUTION LTD._UNMETERED SCATTERED LOAD SERVICE CLASSIFICATION",600.05999999999995,0,121577.60000000001,0,0,0,0,0,0,0,121577.60000000001,0,122177.66,0]
["2022","LONDON HYDRO INC.","GENERAL SERVICE EQUAL TO OR GREATER THAN 50 KW","GENERAL SERVICE 50 TO 4,999 KW","LONDON HYDRO INC._GENERAL SERVICE 50 TO 4,999 KW SERVICE CLASSIFICATION",138828764.36000001,447337,171525668.69999999,361246.94,1041707960.95,2810741.51,14037261,27859.140625,0,0,1227270890.3800001,3199847.59,1366099654.74,3647184.96]
["2022","LONDON HYDRO INC.","GENERAL SERVICE EQUAL TO OR GREATER THAN 50 KW","GENERAL SERVICE 1,000 TO 4,999 KW (CO-GENERATION)","LONDON HYDRO INC._GENERAL SERVICE 1,000 TO 4,999 KW (CO-GENERATION) SERVICE CLASSIFICATION",0,0,0,0,43580605.5,218296.46,1077771.375,25225.759765625,0,0,44658376.859999999,243522.22,44658376.859999999,243522.22]
["2022","LONDON HYDRO INC.","GENERAL SERVICE LESS THAN 50 KW","GENERAL SERVICE LESS THAN 50 KW","LONDON HYDRO INC._GENERAL SERVICE LESS THAN 50 KW SERVICE CLASSIFICATION",51335828.140000001,0,324447666.74000001,0,4924167.38,0,0,0,0,0,329371834.12,0,380707662.25999999,0]
["2022","LONDON HYDRO INC.","LARGE USER","LARGE USE","LONDON HYDRO INC._LARGE USE SERVICE CLASSIFICATION",0,0,0,0,106007109.75,194965.44,0,0,0,0,106007109.75,194965.44,106007109.75,194965.44]
["2022","LONDON HYDRO INC.","NO RATE CLASS","NO RATE CLASS","LONDON HYDRO INC._NO RATE CLASS SERVICE CLASSIFICATION",0,0,0,0,0,0,0,0,548017984,1301987.375,0,0,0,0]
["2022","LONDON HYDRO INC.","RESIDENTIAL","RESIDENTIAL","LONDON HYDRO INC._RESIDENTIAL SERVICE CLASSIFICATION",18630395.579999998,0,1163584894.75,0,115957.52,0,0,0,0,0,1163700852.27,0,1182331247.8499999,0]
["2022","LONDON HYDRO INC.","SENTINEL LIGHTING CONNECTIONS","SENTINEL LIGHTING","LONDON HYDRO INC._SENTINEL LIGHTING SERVICE CLASSIFICATION",4444.79,12,523178.2,1421.62,0,0,0,0,0,0,523178.2,1421.62,527622.99,1433.74]
["2022","LONDON HYDRO INC.","STREET LIGHTING CONNECTIONS","STREET LIGHTING","LONDON HYDRO INC._STREET LIGHTING SERVICE CLASSIFICATION",0,0,0,0,16882808.73,47347.97,0,0,0,0,16882808.73,47347.97,16882808.73,47347.97]
["2022","LONDON HYDRO INC.","UNMETERED SCATTERED LOAD CONNECTIONS","UNMETERED SCATTERED LOAD","LONDON HYDRO INC._UNMETERED SCATTERED LOAD SERVICE CLASSIFICATION",0,0,5430915.0999999996,0,0,0,0,0,0,0,5430915.0999999996,0,5430915.0999999996,0]
["2022","MILTON HYDRO DISTRIBUTION INC.","GENERAL SERVICE EQUAL TO OR GREATER THAN 50 KW","GENERAL SERVICE 1,000 TO 4,999 KW","MILTON HYDRO DISTRIBUTION INC._GENERAL SERVICE 1,000 TO 4,999 KW SERVICE CLASSIFICATION",10166366,20562,0,0,121597379,245693,0,0,0,0,121597379,245693,131763745,266255]
["2022","MILTON HYDRO DISTRIBUTION INC.","GENERAL SERVICE EQUAL TO OR GREATER THAN 50 KW","GENERAL SERVICE 50 TO 999 KW","MILTON HYDRO DISTRIBUTION INC._GENERAL SERVICE 50 TO 999 KW SERVICE CLASSIFICATION",19485788,56239,29897001,45354,164950620,466674,4238817,9208,0,0,199086438,521236,218572226,577475]
["2022","MILTON HYDRO DISTRIBUTION INC.","GENERAL SERVICE LESS THAN 50 KW","GENERAL SERVICE LESS THAN 50 KW","MILTON HYDRO DISTRIBUTION INC._GENERAL SERVICE LESS THAN 50 KW SERVICE CLASSIFICATION",12545402,0,72225364,0,581101,0,0,0,0,0,72806465,0,85351867,0]
["2022","MILTON HYDRO DISTRIBUTION INC.","LARGE USER","LARGE USE","MILTON HYDRO DISTRIBUTION INC._LARGE USE SERVICE CLASSIFICATION",0,0,0,0,137745508,279213,0,0,0,0,137745508,279213,137745508,279213]
["2022","MILTON HYDRO DISTRIBUTION INC.","NO RATE CLASS","NO RATE CLASS","MILTON HYDRO DISTRIBUTION INC._NO RATE CLASS SERVICE CLASSIFICATION",0,0,0,0,0,0,0,0,277190144,537910,0,0,0,0]
["2022","MILTON HYDRO DISTRIBUTION INC.","RESIDENTIAL","RESIDENTIAL","MILTON HYDRO DISTRIBUTION INC._RESIDENTIAL SERVICE CLASSIFICATION",4210924,0,355372839,0,17540,0,0,0,0,0,355390379,0,359601303,0]
["2022","MILTON HYDRO DISTRIBUTION INC.","SENTINEL LIGHTING CONNECTIONS","SENTINEL LIGHTING","MILTON HYDRO DISTRIBUTION INC._SENTINEL LIGHTING SERVICE CLASSIFICATION",0,0,142340,395,0,0,0,0,0,0,142340,395,142340,395]
["2022","MILTON HYDRO DISTRIBUTION INC.","STREET LIGHTING CONNECTIONS","STREET LIGHTING","MILTON HYDRO DISTRIBUTION INC._STREET LIGHTING SERVICE CLASSIFICATION",0,0,0,0,5029763,14019,0,0,0,0,5029763,14019,5029763,14019]
["2022","MILTON HYDRO DISTRIBUTION INC.","UNMETERED SCATTERED LOAD CONNECTIONS","UNMETERED SCATTERED LOAD","MILTON HYDRO DISTRIBUTION INC._UNMETERED SCATTERED LOAD SERVICE CLASSIFICATION",136080,0,900206,0,0,0,0,0,0,0,900206,0,1036286,0]
["2022","NEWMARKET-TAY POWER DISTRIBUTION LTD.","GENERAL SERVICE EQUAL TO OR GREATER THAN 50 KW","GENERAL SERVICE 50 TO 4,999 KW - INTERVAL METER - NEWMARKET-TAY POWER","NEWMARKET-TAY POWER DISTRIBUTION LTD._FOR NEWMARKET-TAY POWER MAIN RATE ZONE_GENERAL SERVICE 50 TO 4,999 KW - INTERVAL METER SERVICE CLASSIFICATION",43444545,100399,4359679,0,133161538,336184,8586462,47687,0,0,146107679,383871,189552224,484270]
["2022","NEWMARKET-TAY POWER DISTRIBUTION LTD.","GENERAL SERVICE EQUAL TO OR GREATER THAN 50 KW","GENERAL SERVICE 50 TO 4,999 KW - MIDLAND POWER","NEWMARKET-TAY POWER DISTRIBUTION LTD._FOR FORMER MIDLAND POWER UTILITY RATE ZONE_GENERAL SERVICE 50 TO 4,999 KW SERVICE CLASSIFICATION",20541235,65873,9958474,0,74310400,184022,3380610,6626,0,0,87649484,190648,108190719,256521]
["2022","NEWMARKET-TAY POWER DISTRIBUTION LTD.","GENERAL SERVICE EQUAL TO OR GREATER THAN 50 KW","GENERAL SERVICE 50 TO 4,999 KW - THERMAL METER - NEWMARKET-TAY POWER","NEWMARKET-TAY POWER DISTRIBUTION LTD._FOR NEWMARKET-TAY POWER MAIN RATE ZONE_GENERAL SERVICE 50 TO 4,999 KW - THERMAL METER SERVICE CLASSIFICATION",0,0,22548126,81255,57761337,195253,0,0,0,0,80309463,276508,80309463,276508]
["2022","NEWMARKET-TAY POWER DISTRIBUTION LTD.","GENERAL SERVICE LESS THAN 50 KW","GENERAL SERVICE LESS THAN 50 KW - MIDLAND POWER","NEWMARKET-TAY POWER DISTRIBUTION LTD._FOR FORMER MIDLAND POWER UTILITY RATE ZONE_GENERAL SERVICE LESS THAN 50 KW SERVICE CLASSIFICATION",3786117,0,18208728,0,0,46484,0,0,0,0,18208728,46484,21994845,46484]
["2022","NEWMARKET-TAY POWER DISTRIBUTION LTD.","GENERAL SERVICE LESS THAN 50 KW","GENERAL SERVICE LESS THAN 50 KW - NEWMARKET-TAY POWER","NEWMARKET-TAY POWER DISTRIBUTION LTD._FOR NEWMARKET-TAY POWER MAIN RATE ZONE_GENERAL SERVICE LESS THAN 50 KW SERVICE CLASSIFICATION",13653848,1523,67862711,0,132101,0,0,0,0,0,67994812,0,81648660,1523]
["2022","NEWMARKET-TAY POWER DISTRIBUTION LTD.","NO RATE CLASS","NO RATE CLASS","NEWMARKET-TAY POWER DISTRIBUTION LTD._NO RATE CLASS SERVICE CLASSIFICATION",0,0,0,0,0,0,0,0,97214000,272296,0,0,0,0]
["2022","NEWMARKET-TAY POWER DISTRIBUTION LTD.","RESIDENTIAL","RESIDENTIAL - MIDLAND POWER","NEWMARKET-TAY POWER DISTRIBUTION LTD._FOR FORMER MIDLAND POWER UTILITY RATE ZONE_RESIDENTIAL SERVICE CLASSIFICATION",1447986,0,54119765,0,0,0,0,0,0,0,54119765,0,55567751,0]
["2022","NEWMARKET-TAY POWER DISTRIBUTION LTD.","RESIDENTIAL","RESIDENTIAL - NEWMARKET-TAY POWER","NEWMARKET-TAY POWER DISTRIBUTION LTD._FOR NEWMARKET-TAY POWER MAIN RATE ZONE_RESIDENTIAL SERVICE CLASSIFICATION",4554920,0,285088536,0,0,0,0,0,0,0,285088536,0,289643456,0]
["2022","NEWMARKET-TAY POWER DISTRIBUTION LTD.","SENTINEL LIGHTING CONNECTIONS","SENTINEL LIGHTING - NEWMARKET-TAY POWER","NEWMARKET-TAY POWER DISTRIBUTION LTD._FOR NEWMARKET-TAY POWER MAIN RATE ZONE_SENTINEL LIGHTING SERVICE CLASSIFICATION",0,0,66891,253,0,0,0,0,0,0,66891,253,66891,253]
["2022","NEWMARKET-TAY POWER DISTRIBUTION LTD.","STREET LIGHTING CONNECTIONS","STREET LIGHTING - MIDLAND POWER","NEWMARKET-TAY POWER DISTRIBUTION LTD._FOR FORMER MIDLAND POWER UTILITY RATE ZONE_STREET LIGHTING SERVICE CLASSIFICATION",387363,1434,0,0,36509,100,0,0,0,0,36509,100,423872,1534]
["2022","NEWMARKET-TAY POWER DISTRIBUTION LTD.","STREET LIGHTING CONNECTIONS","STREET LIGHTING - NEWMARKET-TAY POWER","NEWMARKET-TAY POWER DISTRIBUTION LTD._FOR NEWMARKET-TAY POWER MAIN RATE ZONE_STREET LIGHTING SERVICE CLASSIFICATION",0,0,24603,0,2434160,0,0,0,0,0,2458763,0,2458763,0]
["2022","NEWMARKET-TAY POWER DISTRIBUTION LTD.","UNMETERED SCATTERED LOAD CONNECTIONS","UNMETERED SCATTERED LOAD - NEWMARKET-TAY POWER","NEWMARKET-TAY POWER DISTRIBUTION LTD._FOR NEWMARKET-TAY POWER MAIN RATE ZONE_UNMETERED SCATTERED LOAD SERVICE CLASSIFICATION",0,0,561861,0,0,0,0,0,0,0,561861,0,561861,0]
["2022","NEWMARKET-TAY POWER DISTRIBUTION LTD.","UNMETERED SCATTERED LOAD CONNECTIONS","UNMETERED SCATTERED LOAD - MIDLAND POWER","NEWMARKET-TAY POWER DISTRIBUTION LTD._FOR FORMER MIDLAND POWER UTILITY RATE ZONE_UNMETERED SCATTERED LOAD SERVICE CLASSIFICATION",78893,0,345330,0,0,0,0,0,0,0,345330,0,424223,0]
["2022","NIAGARA PENINSULA ENERGY INC.","EMBEDDED DISTRIBUTOR(S)","EMBEDDED DISTRIBUTOR","NIAGARA PENINSULA ENERGY INC._EMBEDDED DISTRIBUTOR SERVICE CLASSIFICATION",0,0,0,0,6483805,8006,0,0,0,0,6483805,8006,6483805,8006]
["2022","NIAGARA PENINSULA ENERGY INC.","GENERAL SERVICE EQUAL TO OR GREATER THAN 50 KW","GENERAL SERVICE 50 TO 4,999 KW","NIAGARA PENINSULA ENERGY INC._GENERAL SERVICE 50 TO 4,999 KW SERVICE CLASSIFICATION",49367460,129823,0,0,509692100,1338942,2771944,5566,0,0,512464044,1344508,561831504,1474331]
["2022","NIAGARA PENINSULA ENERGY INC.","GENERAL SERVICE LESS THAN 50 KW","GENERAL SERVICE LESS THAN 50 KW","NIAGARA PENINSULA ENERGY INC._GENERAL SERVICE LESS THAN 50 KW SERVICE CLASSIFICATION",15630895,0,84819605,0,23463881,0,0,0,0,0,108283486,0,123914381,0]
["2022","NIAGARA PENINSULA ENERGY INC.","NO RATE CLASS","NO RATE CLASS","NIAGARA PENINSULA ENERGY INC._NO RATE CLASS SERVICE CLASSIFICATION",0,0,0,0,0,0,0,0,156113152,379403.8125,0,0,0,0]
["2022","NIAGARA PENINSULA ENERGY INC.","RESIDENTIAL","RESIDENTIAL","NIAGARA PENINSULA ENERGY INC._RESIDENTIAL SERVICE CLASSIFICATION",9374605,0,466971816,0,10667,0,0,0,0,0,466982483,0,476357088,0]
["2022","NIAGARA PENINSULA ENERGY INC.","SENTINEL LIGHTING CONNECTIONS","SENTINEL LIGHTING","NIAGARA PENINSULA ENERGY INC._SENTINEL LIGHTING SERVICE CLASSIFICATION",12138,27,200783,588,0,0,0,0,0,0,200783,588,212921,615]
["2022","NIAGARA PENINSULA ENERGY INC.","STREET LIGHTING CONNECTIONS","STREET LIGHTING","NIAGARA PENINSULA ENERGY INC._STREET LIGHTING SERVICE CLASSIFICATION",0,0,0,0,4430642,12327,0,0,0,0,4430642,12327,4430642,12327]
["2022","NIAGARA PENINSULA ENERGY INC.","UNMETERED SCATTERED LOAD CONNECTIONS","UNMETERED SCATTERED LOAD","NIAGARA PENINSULA ENERGY INC._UNMETERED SCATTERED LOAD SERVICE CLASSIFICATION",0,0,1584895,0,0,0,0,0,0,0,1584895,0,1584895,0]
["2022","NIAGARA-ON-THE-LAKE HYDRO INC.","GENERAL SERVICE EQUAL TO OR GREATER THAN 50 KW","GENERAL SERVICE 50 TO 4,999 KW","NIAGARA-ON-THE-LAKE HYDRO INC._GENERAL SERVICE 50 TO 4,999 KW SERVICE CLASSIFICATION",14181437.029999999,38583,4104929.12,10021.200000000001,58636048.640000001,146743.64000000001,0,0,0,0,62740977.759999998,156764.84,76922414.790000007,195348.2]
["2022","NIAGARA-ON-THE-LAKE HYDRO INC.","GENERAL SERVICE LESS THAN 50 KW","GENERAL SERVICE LESS THAN 50 KW","NIAGARA-ON-THE-LAKE HYDRO INC._GENERAL SERVICE LESS THAN 50 KW SERVICE CLASSIFICATION",4303868.7699999996,0,37722521.520000003,0,0,0,0,0,0,0,37722521.520000003,0,42026390.289999999,0]
["2022","NIAGARA-ON-THE-LAKE HYDRO INC.","LARGE USER","LARGE USE","NIAGARA-ON-THE-LAKE HYDRO INC._LARGE USE SERVICE CLASSIFICATION",0,0,0,0,19135793.600000001,67379.199999999997,0,0,0,0,19135793.600000001,67379.199999999997,19135793.600000001,67379.199999999997]
["2022","NIAGARA-ON-THE-LAKE HYDRO INC.","NO RATE CLASS","NO RATE CLASS","NIAGARA-ON-THE-LAKE HYDRO INC._NO RATE CLASS SERVICE CLASSIFICATION",0,0,0,0,0,0,0,0,24120200,80623.203125,0,0,0,0]
["2022","NIAGARA-ON-THE-LAKE HYDRO INC.","RESIDENTIAL","RESIDENTIAL","NIAGARA-ON-THE-LAKE HYDRO INC._RESIDENTIAL SERVICE CLASSIFICATION",895231.46,0,77649163.010000005,0,0,0,0,0,0,0,77649163.010000005,0,78544394.469999999,0]
["2022","NIAGARA-ON-THE-LAKE HYDRO INC.","STREET LIGHTING CONNECTIONS","STREET LIGHTING","NIAGARA-ON-THE-LAKE HYDRO INC._STREET LIGHTING SERVICE CLASSIFICATION",0,0,70913.02,198,490987.83,1370.3,0,0,0,0,561900.85,1568.3,561900.85,1568.3]
["2022","NIAGARA-ON-THE-LAKE HYDRO INC.","UNMETERED SCATTERED LOAD CONNECTIONS","UNMETERED SCATTERED LOAD","NIAGARA-ON-THE-LAKE HYDRO INC._UNMETERED SCATTERED LOAD SERVICE CLASSIFICATION",117792,0,144973.23000000001,0,0,0,0,0,0,0,144973.23000000001,0,262765.23,0]
["2022","NORTH BAY HYDRO DISTRIBUTION LIMITED","GENERAL SERVICE EQUAL TO OR GREATER THAN 50 KW","GENERAL SERVICE 3,000 TO 4,999 KW","NORTH BAY HYDRO DISTRIBUTION LIMITED_GENERAL SERVICE 3,000 TO 4,999 KW SERVICE CLASSIFICATION",0,0,0,0,15885147.91,30552.12,0,0,0,0,15885147.91,30552.12,15885147.91,30552.12]
["2022","NORTH BAY HYDRO DISTRIBUTION LIMITED","GENERAL SERVICE EQUAL TO OR GREATER THAN 50 KW","GENERAL SERVICE 50 TO 2,999 KW","NORTH BAY HYDRO DISTRIBUTION LIMITED_GENERAL SERVICE 50 TO 2,999 KW SERVICE CLASSIFICATION",16365297.880000001,56274,14586158.82,49057.67,153434575.84,384915.24,0,0,0,0,168020734.66,433972.91,184386032.53999999,490247.01]
["2022","NORTH BAY HYDRO DISTRIBUTION LIMITED","GENERAL SERVICE LESS THAN 50 KW","GENERAL SERVICE LESS THAN 50 KW","NORTH BAY HYDRO DISTRIBUTION LIMITED_GENERAL SERVICE LESS THAN 50 KW SERVICE CLASSIFICATION",12097125.039999999,0,61577959.719999999,0,301997.24,0,0,0,0,0,61879956.960000001,0,73977082,0]
["2022","NORTH BAY HYDRO DISTRIBUTION LIMITED","NO RATE CLASS","NO RATE CLASS","NORTH BAY HYDRO DISTRIBUTION LIMITED_NO RATE CLASS SERVICE CLASSIFICATION",0,0,0,0,0,0,0,0,39723140,89386.640625,0,0,0,0]
["2022","NORTH BAY HYDRO DISTRIBUTION LIMITED","RESIDENTIAL","RESIDENTIAL","NORTH BAY HYDRO DISTRIBUTION LIMITED_RESIDENTIAL SERVICE CLASSIFICATION",3486623.63,0,195234128.94,0,0,0,0,0,0,0,195234128.94,0,198720752.56999999,0]
["2022","NORTH BAY HYDRO DISTRIBUTION LIMITED","SENTINEL LIGHTING CONNECTIONS","SENTINEL LIGHTING","NORTH BAY HYDRO DISTRIBUTION LIMITED_SENTINEL LIGHTING SERVICE CLASSIFICATION",10671.2,28,108856.79,274.92,0,0,0,0,0,0,108856.79,274.92,119527.99,303.23]
["2022","NORTH BAY HYDRO DISTRIBUTION LIMITED","STREET LIGHTING CONNECTIONS","STREET LIGHTING","NORTH BAY HYDRO DISTRIBUTION LIMITED_STREET LIGHTING SERVICE CLASSIFICATION",0,0,0,0,2036368.72,5690.28,0,0,0,0,2036368.72,5690.28,2036368.72,5690.28]
["2022","NORTH BAY HYDRO DISTRIBUTION LIMITED","UNMETERED SCATTERED LOAD CONNECTIONS","UNMETERED SCATTERED LOAD","NORTH BAY HYDRO DISTRIBUTION LIMITED_UNMETERED SCATTERED LOAD SERVICE CLASSIFICATION",0,0,39483.760000000002,0,0,0,0,0,0,0,39483.760000000002,0,39483.760000000002,0]
["2022","NORTHERN ONTARIO WIRES INC.","GENERAL SERVICE EQUAL TO OR GREATER THAN 50 KW","GENERAL SERVICE 50 TO 4,999 KW","NORTHERN ONTARIO WIRES INC._GENERAL SERVICE 50 TO 4,999 KW SERVICE CLASSIFICATION",10421170,28672,0,0,46888691,127555,0,0,0,0,46888691,127555,57309861,156227]
["2022","NORTHERN ONTARIO WIRES INC.","GENERAL SERVICE LESS THAN 50 KW","GENERAL SERVICE LESS THAN 50 KW","NORTHERN ONTARIO WIRES INC._GENERAL SERVICE LESS THAN 50 KW SERVICE CLASSIFICATION",3521885,0,13558321,0,0,0,0,0,0,0,13558321,0,17080206,0]
["2022","NORTHERN ONTARIO WIRES INC.","NO RATE CLASS","NO RATE CLASS","NORTHERN ONTARIO WIRES INC._NO RATE CLASS SERVICE CLASSIFICATION",0,0,0,0,0,0,0,0,25659304,73541,0,0,0,0]
["2022","NORTHERN ONTARIO WIRES INC.","RESIDENTIAL","RESIDENTIAL","NORTHERN ONTARIO WIRES INC._RESIDENTIAL SERVICE CLASSIFICATION",552983,0,38551558,0,0,0,0,0,0,0,38551558,0,39104541,0]
["2022","NORTHERN ONTARIO WIRES INC.","STREET LIGHTING CONNECTIONS","STREET LIGHTING","NORTHERN ONTARIO WIRES INC._STREET LIGHTING SERVICE CLASSIFICATION",524866,1513,0,0,6222,19,0,0,0,0,6222,19,531088,1532]
["2022","NORTHERN ONTARIO WIRES INC.","UNMETERED SCATTERED LOAD CONNECTIONS","UNMETERED SCATTERED LOAD","NORTHERN ONTARIO WIRES INC._UNMETERED SCATTERED LOAD SERVICE CLASSIFICATION",19637,0,144522,0,0,0,0,0,0,0,144522,0,164159,0]
["2022","OAKVILLE HYDRO ELECTRICITY DISTRIBUTION INC.","EMBEDDED DISTRIBUTOR(S)","EMBEDDED DISTRIBUTOR","OAKVILLE HYDRO ELECTRICITY DISTRIBUTION INC._EMBEDDED DISTRIBUTOR SERVICE CLASSIFICATION",0,0,0,0,26557403.18,89109.71,0,0,0,0,26557403.18,89109.71,26557403.18,89109.71]
["2022","OAKVILLE HYDRO ELECTRICITY DISTRIBUTION INC.","GENERAL SERVICE EQUAL TO OR GREATER THAN 50 KW","GENERAL SERVICE 1,000 KW AND GREATER","OAKVILLE HYDRO ELECTRICITY DISTRIBUTION INC._GENERAL SERVICE 1,000 KW AND GREATER SERVICE CLASSIFICATION",51112104.619999997,117358,0,0,154941204.40000001,351583.34,0,0,0,0,154941204.40000001,351583.34,206053309.02000001,468941.43]
["2022","OAKVILLE HYDRO ELECTRICITY DISTRIBUTION INC.","GENERAL SERVICE EQUAL TO OR GREATER THAN 50 KW","GENERAL SERVICE 50 TO 999 KW","OAKVILLE HYDRO ELECTRICITY DISTRIBUTION INC._GENERAL SERVICE 50 TO 999 KW SERVICE CLASSIFICATION",78840397.609999999,214723,80205294.859999999,219051.93,347051374.01999998,934500.34,3912171.75,7261.14013671875,0,0,431168840.74000001,1160813.4099999999,510009238.35000002,1375536.5]
["2022","OAKVILLE HYDRO ELECTRICITY DISTRIBUTION INC.","GENERAL SERVICE LESS THAN 50 KW","GENERAL SERVICE LESS THAN 50 KW","OAKVILLE HYDRO ELECTRICITY DISTRIBUTION INC._GENERAL SERVICE LESS THAN 50 KW SERVICE CLASSIFICATION",23604361.34,0,147256737.08000001,0,0,0,0,0,0,0,147256737.08000001,0,170861098.41999999,0]
["2022","OAKVILLE HYDRO ELECTRICITY DISTRIBUTION INC.","NO RATE CLASS","NO RATE CLASS","OAKVILLE HYDRO ELECTRICITY DISTRIBUTION INC._NO RATE CLASS SERVICE CLASSIFICATION",0,0,0,0,0,0,0,0,196664448,421576.375,0,0,0,0]
["2022","OAKVILLE HYDRO ELECTRICITY DISTRIBUTION INC.","RESIDENTIAL","RESIDENTIAL","OAKVILLE HYDRO ELECTRICITY DISTRIBUTION INC._RESIDENTIAL SERVICE CLASSIFICATION",4829533.1900000004,0,624804864.21000004,0,0,0,0,0,0,0,624804864.21000004,0,629634397.39999998,0]
["2022","OAKVILLE HYDRO ELECTRICITY DISTRIBUTION INC.","SENTINEL LIGHTING CONNECTIONS","SENTINEL LIGHTING","OAKVILLE HYDRO ELECTRICITY DISTRIBUTION INC._SENTINEL LIGHTING SERVICE CLASSIFICATION",0,0,97016.74,269.49,0,0,0,0,0,0,97016.74,269.49,97016.74,269.49]
["2022","OAKVILLE HYDRO ELECTRICITY DISTRIBUTION INC.","STREET LIGHTING CONNECTIONS","STREET LIGHTING","OAKVILLE HYDRO ELECTRICITY DISTRIBUTION INC._STREET LIGHTING SERVICE CLASSIFICATION",0,0,0,0,5737668.0800000001,16271.59,0,0,0,0,5737668.0800000001,16271.59,5737668.0800000001,16271.59]
["2022","OAKVILLE HYDRO ELECTRICITY DISTRIBUTION INC.","UNMETERED SCATTERED LOAD CONNECTIONS","UNMETERED SCATTERED LOAD","OAKVILLE HYDRO ELECTRICITY DISTRIBUTION INC._UNMETERED SCATTERED LOAD SERVICE CLASSIFICATION",0,0,5094204.09,0,0,0,0,0,0,0,5094204.09,0,5094204.09,0]
["2022","ORANGEVILLE HYDRO LIMITED","GENERAL SERVICE EQUAL TO OR GREATER THAN 50 KW","GENERAL SERVICE 50 TO 4,999 KW","ORANGEVILLE HYDRO LIMITED_GENERAL SERVICE 50 TO 4,999 KW SERVICE CLASSIFICATION",26478973.809999999,64679,8543155.8200000003,27291.16,91548790.349999994,200901.55,2570983.25,5452.740234375,0,0,102662929.47,233645.45,129141903.28,298325.05]
["2022","ORANGEVILLE HYDRO LIMITED","GENERAL SERVICE LESS THAN 50 KW","GENERAL SERVICE LESS THAN 50 KW","ORANGEVILLE HYDRO LIMITED_GENERAL SERVICE LESS THAN 50 KW SERVICE CLASSIFICATION",5719186.5199999996,0,27808131.030000001,0,0,0,0,0,0,0,27808131.030000001,0,33527317.550000001,0]
["2022","ORANGEVILLE HYDRO LIMITED","NO RATE CLASS","NO RATE CLASS","ORANGEVILLE HYDRO LIMITED_NO RATE CLASS SERVICE CLASSIFICATION",0,0,0,0,0,0,0,0,60822724,112268.359375,0,0,0,0]
["2022","ORANGEVILLE HYDRO LIMITED","RESIDENTIAL","RESIDENTIAL","ORANGEVILLE HYDRO LIMITED_RESIDENTIAL SERVICE CLASSIFICATION",1305778,0,93771985.129999995,0,0,0,0,0,0,0,93771985.129999995,0,95077763.129999995,0]
["2022","ORANGEVILLE HYDRO LIMITED","SENTINEL LIGHTING CONNECTIONS","SENTINEL LIGHTING","ORANGEVILLE HYDRO LIMITED_SENTINEL LIGHTING SERVICE CLASSIFICATION",0,0,102474.81,282,0,0,0,0,0,0,102474.81,282,102474.81,282]
["2022","ORANGEVILLE HYDRO LIMITED","STREET LIGHTING CONNECTIONS","STREET LIGHTING","ORANGEVILLE HYDRO LIMITED_STREET LIGHTING SERVICE CLASSIFICATION",0,0,149887.93,412.16,720229.9,2008.19,0,0,0,0,870117.83,2420.35,870117.83,2420.35]
["2022","ORANGEVILLE HYDRO LIMITED","UNMETERED SCATTERED LOAD CONNECTIONS","UNMETERED SCATTERED LOAD","ORANGEVILLE HYDRO LIMITED_UNMETERED SCATTERED LOAD SERVICE CLASSIFICATION",0,0,375339.19,0,0,0,0,0,0,0,375339.19,0,375339.19,0]
["2022","OSHAWA PUC NETWORKS INC.","GENERAL SERVICE EQUAL TO OR GREATER THAN 50 KW","GENERAL SERVICE 1,000 TO 4,999 KW","OSHAWA PUC NETWORKS INC._GENERAL SERVICE 1,000 TO 4,999 KW SERVICE CLASSIFICATION",0,0,0,0,69311783,170784,0,0,0,0,69311783,170784,69311783,170784]
["2022","OSHAWA PUC NETWORKS INC.","GENERAL SERVICE EQUAL TO OR GREATER THAN 50 KW","GENERAL SERVICE 50 TO 999 KW","OSHAWA PUC NETWORKS INC._GENERAL SERVICE 50 TO 999 KW SERVICE CLASSIFICATION",35635487,97117,106437437,269541,162907259,409091,6438736,12276,0,0,275783432,690908,311418919,788025]
["2022","OSHAWA PUC NETWORKS INC.","GENERAL SERVICE LESS THAN 50 KW","GENERAL SERVICE LESS THAN 50 KW","OSHAWA PUC NETWORKS INC._GENERAL SERVICE LESS THAN 50 KW SERVICE CLASSIFICATION",16704834,0,102540921,0,0,0,0,0,0,0,102540921,0,119245755,0]
["2022","OSHAWA PUC NETWORKS INC.","LARGE USER","LARGE USE","OSHAWA PUC NETWORKS INC._LARGE USE SERVICE CLASSIFICATION",0,0,0,0,36146632,73363,0,0,0,0,36146632,73363,36146632,73363]
["2022","OSHAWA PUC NETWORKS INC.","NO RATE CLASS","NO RATE CLASS","OSHAWA PUC NETWORKS INC._NO RATE CLASS SERVICE CLASSIFICATION",0,0,0,0,0,0,0,0,82987744,184841,0,0,0,0]
["2022","OSHAWA PUC NETWORKS INC.","RESIDENTIAL","RESIDENTIAL","OSHAWA PUC NETWORKS INC._RESIDENTIAL SERVICE CLASSIFICATION",8714908,0,503994083,0,0,0,0,0,0,0,503994083,0,512708991,0]
["2022","OSHAWA PUC NETWORKS INC.","SENTINEL LIGHTING CONNECTIONS","SENTINEL LIGHTING","OSHAWA PUC NETWORKS INC._SENTINEL LIGHTING SERVICE CLASSIFICATION",0,0,24360,81,0,0,0,0,0,0,24360,81,24360,81]
["2022","OSHAWA PUC NETWORKS INC.","STREET LIGHTING CONNECTIONS","STREET LIGHTING","OSHAWA PUC NETWORKS INC._STREET LIGHTING SERVICE CLASSIFICATION",0,0,0,0,4352367,22551,0,0,0,0,4352367,22551,4352367,22551]
["2022","OSHAWA PUC NETWORKS INC.","UNMETERED SCATTERED LOAD CONNECTIONS","UNMETERED SCATTERED LOAD","OSHAWA PUC NETWORKS INC._UNMETERED SCATTERED LOAD SERVICE CLASSIFICATION",0,0,844682,0,0,0,0,0,0,0,844682,0,844682,0]
["2022","OTTAWA RIVER POWER CORPORATION","GENERAL SERVICE EQUAL TO OR GREATER THAN 50 KW","GENERAL SERVICE 50 TO 4,999 KW","OTTAWA RIVER POWER CORPORATION_GENERAL SERVICE 50 TO 4,999 KW SERVICE CLASSIFICATION",14495807,43451,13006239,25741.040000000001,40458248,118860.32,0,0,0,0,53464487,144601.35999999999,67960294,188052.4]
["2022","OTTAWA RIVER POWER CORPORATION","GENERAL SERVICE LESS THAN 50 KW","GENERAL SERVICE LESS THAN 50 KW","OTTAWA RIVER POWER CORPORATION_GENERAL SERVICE LESS THAN 50 KW SERVICE CLASSIFICATION",5099228,0,21903811,0,0,0,0,0,0,0,21903811,0,27003039,0]
["2022","OTTAWA RIVER POWER CORPORATION","NO RATE CLASS","NO RATE CLASS","OTTAWA RIVER POWER CORPORATION_NO RATE CLASS SERVICE CLASSIFICATION",0,0,0,0,0,0,0,0,3244175.5,9970.5595703125,0,0,0,0]
["2022","OTTAWA RIVER POWER CORPORATION","RESIDENTIAL","RESIDENTIAL","OTTAWA RIVER POWER CORPORATION_RESIDENTIAL SERVICE CLASSIFICATION",994005,0,84339069,0,0,0,0,0,0,0,84339069,0,85333074,0]
["2022","OTTAWA RIVER POWER CORPORATION","SENTINEL LIGHTING CONNECTIONS","SENTINEL LIGHTING","OTTAWA RIVER POWER CORPORATION_SENTINEL LIGHTING SERVICE CLASSIFICATION",31458,0,158351,511.5,0,0,0,0,0,0,158351,511.5,189809,511.5]
["2022","OTTAWA RIVER POWER CORPORATION","STREET LIGHTING CONNECTIONS","STREET LIGHTING","OTTAWA RIVER POWER CORPORATION_STREET LIGHTING SERVICE CLASSIFICATION",197529,575,52836,147.78,762271,2099.16,0,0,0,0,815107,2246.94,1012636,2822.7]
["2022","OTTAWA RIVER POWER CORPORATION","UNMETERED SCATTERED LOAD CONNECTIONS","UNMETERED SCATTERED LOAD","OTTAWA RIVER POWER CORPORATION_UNMETERED SCATTERED LOAD SERVICE CLASSIFICATION",398242,0,215402,0,0,0,0,0,0,0,215402,0,613644,0]
["2022","PUC DISTRIBUTION INC.","GENERAL SERVICE EQUAL TO OR GREATER THAN 50 KW","GENERAL SERVICE 50 TO 4,999 KW","PUC DISTRIBUTION INC._GENERAL SERVICE 50 TO 4,999 KW SERVICE CLASSIFICATION",33295180.010000002,70064,40546844.299999997,118293.48,145873346.81999999,348348.67,0,0,0,0,186420191.12,466642.15,219715371.13,536707.06999999995]
["2022","PUC DISTRIBUTION INC.","GENERAL SERVICE LESS THAN 50 KW","GENERAL SERVICE LESS THAN 50 KW","PUC DISTRIBUTION INC._GENERAL SERVICE LESS THAN 50 KW SERVICE CLASSIFICATION",13512948.550000001,0,75049369.920000002,0,7114.97,0,0,0,0,0,75056484.890000001,0,88569433.439999998,0]
["2022","PUC DISTRIBUTION INC.","NO RATE CLASS","NO RATE CLASS","PUC DISTRIBUTION INC._NO RATE CLASS SERVICE CLASSIFICATION",0,0,0,0,0,0,0,0,37810244,88766.09375,0,0,0,0]
["2022","PUC DISTRIBUTION INC.","RESIDENTIAL","RESIDENTIAL","PUC DISTRIBUTION INC._RESIDENTIAL SERVICE CLASSIFICATION",3571784.94,0,288910705.58999997,0,9693.85,0,0,0,0,0,288920399.44,0,292492184.38,0]
["2022","PUC DISTRIBUTION INC.","SENTINEL LIGHTING CONNECTIONS","SENTINEL LIGHTING","PUC DISTRIBUTION INC._SENTINEL LIGHTING SERVICE CLASSIFICATION",0,0,203610.79,596.41,0,0,0,0,0,0,203610.79,596.41,203610.79,596.41]
["2022","PUC DISTRIBUTION INC.","STREET LIGHTING CONNECTIONS","STREET LIGHTING","PUC DISTRIBUTION INC._STREET LIGHTING SERVICE CLASSIFICATION",0,0,129712.98,379.8,2330281.5,6822,0,0,0,0,2459994.48,7201.8,2459994.48,7201.8]
["2022","PUC DISTRIBUTION INC.","UNMETERED SCATTERED LOAD CONNECTIONS","UNMETERED SCATTERED LOAD","PUC DISTRIBUTION INC._UNMETERED SCATTERED LOAD SERVICE CLASSIFICATION",0,0,877917.99,0,0,0,0,0,0,0,877917.99,0,877917.99,0]
["2022","RENFREW HYDRO INC.","GENERAL SERVICE EQUAL TO OR GREATER THAN 50 KW","GENERAL SERVICE 50 TO 4,999 KW","RENFREW HYDRO INC._GENERAL SERVICE 50 TO 4,999 KW SERVICE CLASSIFICATION",6020466,14188,4316070,0,31030962,85825,0,0,0,0,35347032,85825,41367498,100013]
["2022","RENFREW HYDRO INC.","GENERAL SERVICE LESS THAN 50 KW","GENERAL SERVICE LESS THAN 50 KW","RENFREW HYDRO INC._GENERAL SERVICE LESS THAN 50 KW SERVICE CLASSIFICATION",2482032,0,8558423,0,0,0,0,0,0,0,8558423,0,11040455,0]
["2022","RENFREW HYDRO INC.","NO RATE CLASS","NO RATE CLASS","RENFREW HYDRO INC._NO RATE CLASS SERVICE CLASSIFICATION",0,0,0,0,0,0,0,0,13224413,25027.640625,0,0,0,0]
["2022","RENFREW HYDRO INC.","RESIDENTIAL","RESIDENTIAL","RENFREW HYDRO INC._RESIDENTIAL SERVICE CLASSIFICATION",371014,0,30506210,0,3593,0,0,0,0,0,30509803,0,30880817,0]
["2022","RENFREW HYDRO INC.","STREET LIGHTING CONNECTIONS","STREET LIGHTING","RENFREW HYDRO INC._STREET LIGHTING SERVICE CLASSIFICATION",0,0,0,0,332567,951,0,0,0,0,332567,951,332567,951]
["2022","RENFREW HYDRO INC.","UNMETERED SCATTERED LOAD CONNECTIONS","UNMETERED SCATTERED LOAD","RENFREW HYDRO INC._UNMETERED SCATTERED LOAD SERVICE CLASSIFICATION",0,0,0,0,269519,0,0,0,0,0,269519,0,269519,0]
["2022","RIDEAU ST. LAWRENCE DISTRIBUTION INC.","GENERAL SERVICE EQUAL TO OR GREATER THAN 50 KW","GENERAL SERVICE 50 TO 4,999 KW","RIDEAU ST. LAWRENCE DISTRIBUTION INC._GENERAL SERVICE 50 TO 4,999 KW SERVICE CLASSIFICATION",3796422,13788,2550265,6198,31485881,90848,0,0,0,0,34036146,97046,37832568,110834.04]
["2022","RIDEAU ST. LAWRENCE DISTRIBUTION INC.","GENERAL SERVICE LESS THAN 50 KW","GENERAL SERVICE LESS THAN 50 KW","RIDEAU ST. LAWRENCE DISTRIBUTION INC._GENERAL SERVICE LESS THAN 50 KW SERVICE CLASSIFICATION",3026078,0,14713681,0,0,0,0,0,0,0,14713681,0,17739759,0]
["2022","RIDEAU ST. LAWRENCE DISTRIBUTION INC.","NO RATE CLASS","NO RATE CLASS","RIDEAU ST. LAWRENCE DISTRIBUTION INC._NO RATE CLASS SERVICE CLASSIFICATION",0,0,0,0,0,0,0,0,10169065,29658,0,0,0,0]
["2022","RIDEAU ST. LAWRENCE DISTRIBUTION INC.","RESIDENTIAL","RESIDENTIAL","RIDEAU ST. LAWRENCE DISTRIBUTION INC._RESIDENTIAL SERVICE CLASSIFICATION",367410,0,43245446,0,0,0,0,0,0,0,43245446,0,43612856,0]
["2022","RIDEAU ST. LAWRENCE DISTRIBUTION INC.","SENTINEL LIGHTING CONNECTIONS","SENTINEL LIGHTING","RIDEAU ST. LAWRENCE DISTRIBUTION INC._SENTINEL LIGHTING SERVICE CLASSIFICATION",5193,14,83414,232,0,0,0,0,0,0,83414,232,88607,246.42]
["2022","RIDEAU ST. LAWRENCE DISTRIBUTION INC.","STREET LIGHTING CONNECTIONS","STREET LIGHTING","RIDEAU ST. LAWRENCE DISTRIBUTION INC._STREET LIGHTING SERVICE CLASSIFICATION",71056,192,81668,221,490872,1331,0,0,0,0,572540,1552,643596,1744.72]
["2022","RIDEAU ST. LAWRENCE DISTRIBUTION INC.","UNMETERED SCATTERED LOAD CONNECTIONS","UNMETERED SCATTERED LOAD","RIDEAU ST. LAWRENCE DISTRIBUTION INC._UNMETERED SCATTERED LOAD SERVICE CLASSIFICATION",51612,0,503428,0,0,0,0,0,0,0,503428,0,555040,0]
["2022","SIOUX LOOKOUT HYDRO INC.","GENERAL SERVICE EQUAL TO OR GREATER THAN 50 KW","GENERAL SERVICE 50 TO 4,999 KW","SIOUX LOOKOUT HYDRO INC._GENERAL SERVICE 50 TO 4,999 KW SERVICE CLASSIFICATION",841675.85,2777,2429251.2400000002,7716.1,24135400.77,56731.49,0,0,0,0,26564652.010000002,64447.59,27406327.859999999,67224.649999999994]
["2022","SIOUX LOOKOUT HYDRO INC.","GENERAL SERVICE LESS THAN 50 KW","GENERAL SERVICE LESS THAN 50 KW","SIOUX LOOKOUT HYDRO INC._GENERAL SERVICE LESS THAN 50 KW SERVICE CLASSIFICATION",1015708.83,0,12343639.75,0,0,0,0,0,0,0,12343639.75,0,13359348.58,0]
["2022","SIOUX LOOKOUT HYDRO INC.","NO RATE CLASS","NO RATE CLASS","SIOUX LOOKOUT HYDRO INC._NO RATE CLASS SERVICE CLASSIFICATION",0,0,0,0,0,0,0,0,null,null,0,0,0,0]
["2022","SIOUX LOOKOUT HYDRO INC.","RESIDENTIAL","RESIDENTIAL","SIOUX LOOKOUT HYDRO INC._RESIDENTIAL SERVICE CLASSIFICATION",201195.69,0,37104372.469999999,0,0,0,0,0,0,0,37104372.469999999,0,37305568.159999996,0]
["2022","SIOUX LOOKOUT HYDRO INC.","STREET LIGHTING CONNECTIONS","STREET LIGHTING","SIOUX LOOKOUT HYDRO INC._STREET LIGHTING SERVICE CLASSIFICATION",0,0,9202.42,25.8,140336.54,393.22,0,0,0,0,149538.96,419.02,149538.96,419.02]
["2022","SYNERGY NORTH CORPORATION","GENERAL SERVICE EQUAL TO OR GREATER THAN 50 KW","GENERAL SERVICE 1,000 OR GREATER - THUNDER BAY","SYNERGY NORTH CORPORATION_THUNDER BAY RATE ZONE_GENERAL SERVICE 1,000 KW OR GREATER SERVICE CLASSIFICATION",18009852,38397,0,0,127445360,428313,0,0,0,0,127445360,428313,145455212,466710]
["2022","SYNERGY NORTH CORPORATION","GENERAL SERVICE EQUAL TO OR GREATER THAN 50 KW","GENERAL SERVICE 50 TO 999 KW - THUNDER BAY","SYNERGY NORTH CORPORATION_THUNDER BAY RATE ZONE_GENERAL SERVICE 50 TO 999 KW SERVICE CLASSIFICATION",9864927,28813,12690084,26346,208977208,520865,0,0,0,0,221667292,547211,231532219,576024]
["2022","SYNERGY NORTH CORPORATION","GENERAL SERVICE EQUAL TO OR GREATER THAN 50 KW","GENERAL SERVICE EQUAL TO OR GREATER THAN 50 KW - KENORA","SYNERGY NORTH CORPORATION_KENORA RATE ZONE_GENERAL SERVICE EQUAL TO OR GREATER THAN 50 KW SERVICE CLASSIFICATION",13779376,34516,4666517,11880,15250166,38168,0,0,0,0,19916683,50048,33696059,84564]
["2022","SYNERGY NORTH CORPORATION","GENERAL SERVICE LESS THAN 50 KW","GENERAL SERVICE < 50 KW - KENORA","SYNERGY NORTH CORPORATION_KENORA RATE ZONE_GENERAL SERVICE LESS THAN 50 KW SERVICE CLASSIFICATION",5042791,0,16484600,0,0,0,0,0,0,0,16484600,0,21527391,0]
["2022","SYNERGY NORTH CORPORATION","GENERAL SERVICE LESS THAN 50 KW","GENERAL SERVICE LESS THAN 50 KW - THUNDER BAY","SYNERGY NORTH CORPORATION_THUNDER BAY RATE ZONE_GENERAL SERVICE LESS THAN 50 KW SERVICE CLASSIFICATION",15965752,0,112804897,0,0,0,0,0,0,0,112804897,0,128770649,0]
["2022","SYNERGY NORTH CORPORATION","NO RATE CLASS","NO RATE CLASS","SYNERGY NORTH CORPORATION_NO RATE CLASS SERVICE CLASSIFICATION",0,0,0,0,0,0,0,0,125260224,349355,0,0,0,0]
["2022","SYNERGY NORTH CORPORATION","RESIDENTIAL","RESIDENTIAL - KENORA","SYNERGY NORTH CORPORATION_KENORA RATE ZONE_RESIDENTIAL SERVICE CLASSIFICATION",168948,0,38304168,0,0,0,0,0,0,0,38304168,0,38473116,0]
["2022","SYNERGY NORTH CORPORATION","RESIDENTIAL","RESIDENTIAL - THUNDER BAY","SYNERGY NORTH CORPORATION_THUNDER BAY RATE ZONE_RESIDENTIAL SERVICE CLASSIFICATION",1666441,0,334315694,0,0,0,0,0,0,0,334315694,0,335982135,0]
["2022","SYNERGY NORTH CORPORATION","SENTINEL LIGHTING CONNECTIONS","SENTINEL LIGHTING - THUNDER BAY","SYNERGY NORTH CORPORATION_THUNDER BAY RATE ZONE_SENTINEL LIGHTING SERVICE CLASSIFICATION",0,0,112347,335,0,0,0,0,0,0,112347,335,112347,335]
["2022","SYNERGY NORTH CORPORATION","STREET LIGHTING CONNECTIONS","STREET LIGHTING - THUNDER BAY","SYNERGY NORTH CORPORATION_THUNDER BAY RATE ZONE_STREET LIGHTING SERVICE CLASSIFICATION",0,0,68458,194,5252449,14802,0,0,0,0,5320907,14996,5320907,14996]
["2022","SYNERGY NORTH CORPORATION","STREET LIGHTING CONNECTIONS","STREET LIGHTING CONNECTIONS - KENORA","SYNERGY NORTH CORPORATION_KENORA RATE ZONE_STREET LIGHTING SERVICE CLASSIFICATION",375386,1164,0,0,0,0,0,0,0,0,0,0,375386,1164]
["2022","SYNERGY NORTH CORPORATION","UNMETERED SCATTERED LOAD CONNECTIONS","UNMETERED SCATTERED LOAD - THUNDER BAY","SYNERGY NORTH CORPORATION_THUNDER BAY RATE ZONE_UNMETERED SCATTERED LOAD SERVICE CLASSIFICATION",318816,0,1655992,0,0,0,0,0,0,0,1655992,0,1974808,0]
["2022","SYNERGY NORTH CORPORATION","UNMETERED SCATTERED LOAD CONNECTIONS","UNMETERED SCATTERED LOAD CONNECTIONS - KENORA","SYNERGY NORTH CORPORATION_KENORA RATE ZONE_UNMETERED SCATTERED LOAD SERVICE CLASSIFICATION",18291,0,147160,0,0,0,0,0,0,0,147160,0,165451,0]
["2022","TILLSONBURG HYDRO INC.","GENERAL SERVICE EQUAL TO OR GREATER THAN 50 KW","GENERAL SERVICE 50 TO 499 KW","TILLSONBURG HYDRO INC._GENERAL SERVICE 50 TO 499 KW SERVICE CLASSIFICATION",9298036.5700000003,26058,6977972.2599999998,19968.07,32681526.100000001,93550.59,0,0,0,0,39659498.359999999,113518.66,48957534.93,139576.74]
["2022","TILLSONBURG HYDRO INC.","GENERAL SERVICE EQUAL TO OR GREATER THAN 50 KW","GENERAL SERVICE 500 TO 1,499 KW","TILLSONBURG HYDRO INC._GENERAL SERVICE 500 TO 1,499 KW SERVICE CLASSIFICATION",0,0,0,0,26513570.559999999,76687.360000000001,0,0,0,0,26513570.559999999,76687.360000000001,26513570.559999999,76687.360000000001]
["2022","TILLSONBURG HYDRO INC.","GENERAL SERVICE EQUAL TO OR GREATER THAN 50 KW","GENERAL SERVICE EQUAL TO OR GREATER THAN 1,500 KW","TILLSONBURG HYDRO INC._GENERAL SERVICE EQUAL TO OR GREATER THAN 1,500 KW SERVICE CLASSIFICATION",0,0,0,0,19272133.149999999,50419.68,0,0,0,0,19272133.149999999,50419.68,19272133.149999999,50419.68]
["2022","TILLSONBURG HYDRO INC.","GENERAL SERVICE LESS THAN 50 KW","GENERAL SERVICE LESS THAN 50 KW","TILLSONBURG HYDRO INC._GENERAL SERVICE LESS THAN 50 KW SERVICE CLASSIFICATION",3530127.31,0,17930231.629999999,8568.7900000000009,0,0,0,0,0,0,17930231.629999999,8568.7900000000009,21460358.940000001,8568.7900000000009]
["2022","TILLSONBURG HYDRO INC.","NO RATE CLASS","NO RATE CLASS","TILLSONBURG HYDRO INC._NO RATE CLASS SERVICE CLASSIFICATION",0,0,0,0,0,0,0,0,39469348,112194.84375,0,0,0,0]
["2022","TILLSONBURG HYDRO INC.","RESIDENTIAL","RESIDENTIAL","TILLSONBURG HYDRO INC._RESIDENTIAL SERVICE CLASSIFICATION",878375.94,0,57686590.390000001,0,0,0,0,0,0,0,57686590.390000001,0,58564966.329999998,0]
["2022","TILLSONBURG HYDRO INC.","SENTINEL LIGHTING CONNECTIONS","SENTINEL LIGHTING","TILLSONBURG HYDRO INC._SENTINEL LIGHTING SERVICE CLASSIFICATION",0,0,21857.53,0,0,0,0,0,0,0,21857.53,0,21857.53,0]
["2022","TILLSONBURG HYDRO INC.","STREET LIGHTING CONNECTIONS","STREET LIGHTING","TILLSONBURG HYDRO INC._STREET LIGHTING SERVICE CLASSIFICATION",0,0,0,0,630185.12,1646.56,0,0,0,0,630185.12,1646.56,630185.12,1646.56]
["2022","TILLSONBURG HYDRO INC.","UNMETERED SCATTERED LOAD CONNECTIONS","UNMETERED SCATTERED LOAD","TILLSONBURG HYDRO INC._UNMETERED SCATTERED LOAD SERVICE CLASSIFICATION",0,0,350685.95,0,0,0,0,0,0,0,350685.95,0,350685.95,0]
["2022","TORONTO HYDRO-ELECTRIC SYSTEM LIMITED","GENERAL SERVICE EQUAL TO OR GREATER THAN 50 KW","GENERAL SERVICE 1,000 TO 4,999 KW","TORONTO HYDRO-ELECTRIC SYSTEM LIMITED_GENERAL SERVICE 1,000 TO 4,999 KW SERVICE CLASSIFICATION",532317882.94999999,1082159,109624041.33,224905.3,3427706513.52,7452995.2800000003,183331.734375,529.71002197265602,0,0,3537513886.5799999,7678430.29,4069831769.5300002,8760589.7899999991]
["2022","TORONTO HYDRO-ELECTRIC SYSTEM LIMITED","GENERAL SERVICE EQUAL TO OR GREATER THAN 50 KW","GENERAL SERVICE 50 TO 999 KW","TORONTO HYDRO-ELECTRIC SYSTEM LIMITED_GENERAL SERVICE 50 TO 999 KW SERVICE CLASSIFICATION",862828678.5,2450848,3003623703.79,7007150.9199999999,5472240996.5699997,13908593.77,50142008,100450.7265625,0,0,8526006707.2299995,21016195.420000002,9388835385.7299995,23467044.010000002]
["2022","TORONTO HYDRO-ELECTRIC SYSTEM LIMITED","GENERAL SERVICE LESS THAN 50 KW","GENERAL SERVICE LESS THAN 50 KW","TORONTO HYDRO-ELECTRIC SYSTEM LIMITED_GENERAL SERVICE LESS THAN 50 KW SERVICE CLASSIFICATION",318695836.30000001,0,1932691033.98,0,16448111.1,0,0,0,0,0,1949139145.0799999,0,2267834981.3800001,0]
["2022","TORONTO HYDRO-ELECTRIC SYSTEM LIMITED","LARGE USER","LARGE USE","TORONTO HYDRO-ELECTRIC SYSTEM LIMITED_LARGE USE SERVICE CLASSIFICATION",239607498.62,485090,0,0,1428619233.6400001,3243187.79,238426544,440999.5625,0,0,1667045784.6099999,3684187.36,1906653283.23,4169277.57]
["2022","TORONTO HYDRO-ELECTRIC SYSTEM LIMITED","NO RATE CLASS","NO RATE CLASS","TORONTO HYDRO-ELECTRIC SYSTEM LIMITED_NO RATE CLASS SERVICE CLASSIFICATION",0,0,0,0,0,0,0,0,5275228672,11176854,0,0,0,0]
["2022","TORONTO HYDRO-ELECTRIC SYSTEM LIMITED","RESIDENTIAL","RESIDENTIAL","TORONTO HYDRO-ELECTRIC SYSTEM LIMITED_RESIDENTIAL SERVICE CLASSIFICATION",67382447.730000004,0,4889515621.6499996,0,0,0,0,0,0,0,4889515621.6499996,0,4956898069.3800001,0]
["2022","TORONTO HYDRO-ELECTRIC SYSTEM LIMITED","RESIDENTIAL","RESIDENTIAL - COMPETITIVE SECTOR MULTI-UNIT","TORONTO HYDRO-ELECTRIC SYSTEM LIMITED_RESIDENTIAL - COMPETITIVE SECTOR MULTI-UNIT SERVICE CLASSIFICATION",471643.01,0,314208156.58999997,0,0,0,0,0,0,0,314208156.58999997,0,314679799.60000002,0]
["2022","TORONTO HYDRO-ELECTRIC SYSTEM LIMITED","STREET LIGHTING CONNECTIONS","STREET LIGHTING","TORONTO HYDRO-ELECTRIC SYSTEM LIMITED_STREET LIGHTING SERVICE CLASSIFICATION",0,0,0,0,113577732.78,330083.78999999998,0,0,0,0,113577732.78,330083.78999999998,113577732.78,330083.78999999998]
["2022","TORONTO HYDRO-ELECTRIC SYSTEM LIMITED","UNMETERED SCATTERED LOAD CONNECTIONS","UNMETERED SCATTERED LOAD","TORONTO HYDRO-ELECTRIC SYSTEM LIMITED_UNMETERED SCATTERED LOAD SERVICE CLASSIFICATION",29166.09,0,41359496.700000003,0,0,0,0,0,0,0,41359496.700000003,0,41388662.789999999,0]
["2022","WASAGA DISTRIBUTION INC.","GENERAL SERVICE EQUAL TO OR GREATER THAN 50 KW","GENERAL SERVICE 50 TO 4,999 KW","WASAGA DISTRIBUTION INC._GENERAL SERVICE 50 TO 4,999 KW SERVICE CLASSIFICATION",2694012,0,677659,1347.7,13695573,33348.5,2738840,5291.60009765625,0,0,17112072,39987.800000000003,19806084,39987.800000000003]
["2022","WASAGA DISTRIBUTION INC.","GENERAL SERVICE LESS THAN 50 KW","GENERAL SERVICE LESS THAN 50 KW","WASAGA DISTRIBUTION INC._GENERAL SERVICE LESS THAN 50 KW SERVICE CLASSIFICATION",1304778,0,16199813,0,0,0,0,0,0,0,16199813,0,17504591,0]
["2022","WASAGA DISTRIBUTION INC.","NO RATE CLASS","NO RATE CLASS","WASAGA DISTRIBUTION INC._NO RATE CLASS SERVICE CLASSIFICATION",0,0,0,0,0,0,0,0,null,null,0,0,0,0]
["2022","WASAGA DISTRIBUTION INC.","RESIDENTIAL","RESIDENTIAL","WASAGA DISTRIBUTION INC._RESIDENTIAL SERVICE CLASSIFICATION",681252,0,104164737,0,0,0,0,0,0,0,104164737,0,104845989,0]
["2022","WASAGA DISTRIBUTION INC.","STREET LIGHTING CONNECTIONS","STREET LIGHTING","WASAGA DISTRIBUTION INC._STREET LIGHTING SERVICE CLASSIFICATION",0,0,0,0,791018,2337.6,0,0,0,0,791018,2337.6,791018,2337.6]
["2022","WASAGA DISTRIBUTION INC.","UNMETERED SCATTERED LOAD CONNECTIONS","UNMETERED SCATTERED LOAD","WASAGA DISTRIBUTION INC._UNMETERED SCATTERED LOAD SERVICE CLASSIFICATION",0,0,155365,0,0,0,0,0,0,0,155365,0,155365,0]
["2022","WATERLOO NORTH HYDRO INC.","EMBEDDED DISTRIBUTOR(S)","EMBEDDED DISTRIBUTOR","WATERLOO NORTH HYDRO INC._EMBEDDED DISTRIBUTOR SERVICE CLASSIFICATION",0,0,0,0,40632140,92316,0,0,0,0,40632140,92316,40632140,92316]
["2022","WATERLOO NORTH HYDRO INC.","GENERAL SERVICE EQUAL TO OR GREATER THAN 50 KW","GENERAL SERVICE 50 TO 4,999 KW","WATERLOO NORTH HYDRO INC._GENERAL SERVICE 50 TO 4,999 KW SERVICE CLASSIFICATION",92610723,0,93191632,269242,464515221,1426398,7808857,15944,0,0,565515710,1711584,658126433,1711584]
["2022","WATERLOO NORTH HYDRO INC.","GENERAL SERVICE LESS THAN 50 KW","GENERAL SERVICE LESS THAN 50 KW","WATERLOO NORTH HYDRO INC._GENERAL SERVICE LESS THAN 50 KW SERVICE CLASSIFICATION",30029776,0,160265812,0,723191,0,0,0,0,0,160989003,0,191018779,0]
["2022","WATERLOO NORTH HYDRO INC.","LARGE USER","LARGE USE","WATERLOO NORTH HYDRO INC._LARGE USE SERVICE CLASSIFICATION",0,0,0,0,87081781,151120,0,0,0,0,87081781,151120,87081781,151120]
["2022","WATERLOO NORTH HYDRO INC.","NO RATE CLASS","NO RATE CLASS","WATERLOO NORTH HYDRO INC._NO RATE CLASS SERVICE CLASSIFICATION",0,0,0,0,0,0,0,0,269139776,null,0,0,0,0]
["2022","WATERLOO NORTH HYDRO INC.","RESIDENTIAL","RESIDENTIAL","WATERLOO NORTH HYDRO INC._RESIDENTIAL SERVICE CLASSIFICATION",5028525,0,429575821,0,0,0,0,0,0,0,429575821,0,434604346,0]
["2022","WATERLOO NORTH HYDRO INC.","STREET LIGHTING CONNECTIONS","STREET LIGHTING","WATERLOO NORTH HYDRO INC._STREET LIGHTING SERVICE CLASSIFICATION",0,0,0,0,3566727,9949,0,0,0,0,3566727,9949,3566727,9949]
["2022","WATERLOO NORTH HYDRO INC.","UNMETERED SCATTERED LOAD CONNECTIONS","UNMETERED SCATTERED LOAD","WATERLOO NORTH HYDRO INC._UNMETERED SCATTERED LOAD SERVICE CLASSIFICATION",0,0,3145674,0,0,0,0,0,0,0,3145674,0,3145674,0]
["2022","WELLAND HYDRO-ELECTRIC SYSTEM CORP.","GENERAL SERVICE EQUAL TO OR GREATER THAN 50 KW","GENERAL SERVICE 50 TO 4,999 KW","WELLAND HYDRO-ELECTRIC SYSTEM CORP._GENERAL SERVICE 50 TO 4,999 KW SERVICE CLASSIFICATION",20260160,49175,630512,1369,104913361,293705,2744430,4975,0,0,108288303,300049,128548463,349224]
["2022","WELLAND HYDRO-ELECTRIC SYSTEM CORP.","GENERAL SERVICE LESS THAN 50 KW","GENERAL SERVICE LESS THAN 50 KW","WELLAND HYDRO-ELECTRIC SYSTEM CORP._GENERAL SERVICE LESS THAN 50 KW SERVICE CLASSIFICATION",9783850,0,44446200,0,0,0,0,0,0,0,44446200,0,54230050,0]
["2022","WELLAND HYDRO-ELECTRIC SYSTEM CORP.","NO RATE CLASS","NO RATE CLASS","WELLAND HYDRO-ELECTRIC SYSTEM CORP._NO RATE CLASS SERVICE CLASSIFICATION",0,0,0,0,0,0,0,0,32820396,102607,0,0,0,0]
["2022","WELLAND HYDRO-ELECTRIC SYSTEM CORP.","RESIDENTIAL","RESIDENTIAL","WELLAND HYDRO-ELECTRIC SYSTEM CORP._RESIDENTIAL SERVICE CLASSIFICATION",2220847,0,180671535,0,0,0,0,0,0,0,180671535,0,182892382,0]
["2022","WELLAND HYDRO-ELECTRIC SYSTEM CORP.","SENTINEL LIGHTING CONNECTIONS","SENTINEL LIGHTING","WELLAND HYDRO-ELECTRIC SYSTEM CORP._SENTINEL LIGHTING SERVICE CLASSIFICATION",59064,161,422831,1167,0,0,0,0,0,0,422831,1167,481895,1328]
["2022","WELLAND HYDRO-ELECTRIC SYSTEM CORP.","STREET LIGHTING CONNECTIONS","STREET LIGHTING","WELLAND HYDRO-ELECTRIC SYSTEM CORP._STREET LIGHTING SERVICE CLASSIFICATION",0,0,0,0,1410628,3934,0,0,0,0,1410628,3934,1410628,3934]
["2022","WELLAND HYDRO-ELECTRIC SYSTEM CORP.","UNMETERED SCATTERED LOAD CONNECTIONS","UNMETERED SCATTERED LOAD","WELLAND HYDRO-ELECTRIC SYSTEM CORP._UNMETERED SCATTERED LOAD SERVICE CLASSIFICATION",5522,0,820894,0,92949,0,0,0,0,0,913843,0,919365,0]
["2022","WELLINGTON NORTH POWER INC.","GENERAL SERVICE EQUAL TO OR GREATER THAN 50 KW","GENERAL SERVICE 1,000 TO 4,999 KW","WELLINGTON NORTH POWER INC._GENERAL SERVICE 1,000 TO 4,999 KW SERVICE CLASSIFICATION",26633764.199999999,52914,0,0,14974564.390000001,50185.61,0,0,0,0,14974564.390000001,50185.61,41608328.590000004,103100.34]
["2022","WELLINGTON NORTH POWER INC.","GENERAL SERVICE EQUAL TO OR GREATER THAN 50 KW","GENERAL SERVICE 50 TO 999 KW","WELLINGTON NORTH POWER INC._GENERAL SERVICE 50 TO 999 KW SERVICE CLASSIFICATION",2528688.64,5927,0,0,16894143.370000001,50443.91,0,0,0,0,16894143.370000001,50443.91,19422832.010000002,56371.67]
["2022","WELLINGTON NORTH POWER INC.","GENERAL SERVICE LESS THAN 50 KW","GENERAL SERVICE LESS THAN 50 KW","WELLINGTON NORTH POWER INC._GENERAL SERVICE LESS THAN 50 KW SERVICE CLASSIFICATION",1560642.96,0,8927385.7100000009,0,0,0,0,0,0,0,8927385.7100000009,0,10488028.67,0]
["2022","WELLINGTON NORTH POWER INC.","NO RATE CLASS","NO RATE CLASS","WELLINGTON NORTH POWER INC._NO RATE CLASS SERVICE CLASSIFICATION",0,0,0,0,0,0,0,0,45094740,101140.3984375,0,0,0,0]
["2022","WELLINGTON NORTH POWER INC.","RESIDENTIAL","RESIDENTIAL","WELLINGTON NORTH POWER INC._RESIDENTIAL SERVICE CLASSIFICATION",543479.53,0,26557966.649999999,0,0,0,0,0,0,0,26557966.649999999,0,27101446.18,0]
["2022","WELLINGTON NORTH POWER INC.","SENTINEL LIGHTING CONNECTIONS","SENTINEL LIGHTING","WELLINGTON NORTH POWER INC._SENTINEL LIGHTING SERVICE CLASSIFICATION",0,0,18021.240000000002,53.06,0,0,0,0,0,0,18021.240000000002,53.06,18021.240000000002,53.06]
["2022","WELLINGTON NORTH POWER INC.","STREET LIGHTING CONNECTIONS","STREET LIGHTING","WELLINGTON NORTH POWER INC._STREET LIGHTING SERVICE CLASSIFICATION",11957.28,34,0,0,204453.8,561.87,0,0,0,0,204453.8,561.87,216411.08,596.42999999999995]
["2022","WELLINGTON NORTH POWER INC.","UNMETERED SCATTERED LOAD CONNECTIONS","UNMETERED SCATTERED LOAD","WELLINGTON NORTH POWER INC._UNMETERED SCATTERED LOAD SERVICE CLASSIFICATION",1068,0,5769.03,0,0,0,0,0,0,0,5769.03,0,6837.03,0]
["2022","WESTARIO POWER INC.","GENERAL SERVICE EQUAL TO OR GREATER THAN 50 KW","GENERAL SERVICE 50 TO 4,999 KW","WESTARIO POWER INC._GENERAL SERVICE 50 TO 4,999 KW SERVICE CLASSIFICATION",57521468,139299,5169720,14155,108524310,272696,1194366,3265,0,0,114888396,290116,172409864,429415]
["2022","WESTARIO POWER INC.","GENERAL SERVICE LESS THAN 50 KW","GENERAL SERVICE LESS THAN 50 KW","WESTARIO POWER INC._GENERAL SERVICE LESS THAN 50 KW SERVICE CLASSIFICATION",20171931,0,49389421,0,0,0,0,0,0,0,49389421,0,69561352,0]
["2022","WESTARIO POWER INC.","NO RATE CLASS","NO RATE CLASS","WESTARIO POWER INC._NO RATE CLASS SERVICE CLASSIFICATION",0,0,0,0,0,0,0,0,76428200,195578,0,0,0,0]
["2022","WESTARIO POWER INC.","RESIDENTIAL","RESIDENTIAL","WESTARIO POWER INC._RESIDENTIAL SERVICE CLASSIFICATION",3108374,0,192703890,0,0,0,0,0,0,0,192703890,0,195812264,0]
["2022","WESTARIO POWER INC.","SENTINEL LIGHTING CONNECTIONS","SENTINEL LIGHTING","WESTARIO POWER INC._SENTINEL LIGHTING SERVICE CLASSIFICATION",0,0,7576,21,0,0,0,0,0,0,7576,21,7576,21]
["2022","WESTARIO POWER INC.","STREET LIGHTING CONNECTIONS","STREET LIGHTING","WESTARIO POWER INC._STREET LIGHTING SERVICE CLASSIFICATION",1724479,4641,0,0,591062,1591,0,0,0,0,591062,1591,2315541,6232]
["2022","WESTARIO POWER INC.","UNMETERED SCATTERED LOAD CONNECTIONS","UNMETERED SCATTERED LOAD","WESTARIO POWER INC._UNMETERED SCATTERED LOAD SERVICE CLASSIFICATION",34292,0,188091,0,0,0,0,0,0,0,188091,0,222383,0]

{"sheet":"hidden1","index":14,"n_rows":22,"n_cols":2,"rows_kept":22,"cut":false,"hidden":true,"merged":[]}
[{"$f":"IF('DELETE 3. Rate Classes'!L17=1, 'DELETE 3. Rate Classes'!#REF!, \"\")","v":""},1]
[{"$f":"IF('DELETE 3. Rate Classes'!L18=1, 'DELETE 3. Rate Classes'!#REF!, \"\")","v":""},2]
[{"$f":"IF('DELETE 3. Rate Classes'!L19=1, 'DELETE 3. Rate Classes'!#REF!, \"\")","v":""},3]
[{"$f":"IF('DELETE 3. Rate Classes'!L20=1, 'DELETE 3. Rate Classes'!#REF!, \"\")","v":""},4]
[{"$f":"IF('DELETE 3. Rate Classes'!L21=1, 'DELETE 3. Rate Classes'!#REF!, \"\")","v":""},5]
[{"$f":"IF('DELETE 3. Rate Classes'!L22=1, 'DELETE 3. Rate Classes'!#REF!, \"\")","v":""},6]
[{"$f":"IF('DELETE 3. Rate Classes'!L23=1, 'DELETE 3. Rate Classes'!#REF!, \"\")","v":""},7]
[{"$f":"IF('DELETE 3. Rate Classes'!L24=1, 'DELETE 3. Rate Classes'!#REF!, \"\")","v":""},8]
[{"$f":"IF('DELETE 3. Rate Classes'!L25=1, 'DELETE 3. Rate Classes'!#REF!, \"\")","v":""},9]
[{"$f":"IF('DELETE 3. Rate Classes'!L26=1, 'DELETE 3. Rate Classes'!#REF!, \"\")","v":""},10]
[{"$f":"IF('DELETE 3. Rate Classes'!L27=1, 'DELETE 3. Rate Classes'!#REF!, \"\")","v":""},11]
[{"$f":"IF('DELETE 3. Rate Classes'!L28=1, 'DELETE 3. Rate Classes'!#REF!, \"\")","v":""},12]
[{"$f":"IF('DELETE 3. Rate Classes'!L29=1, 'DELETE 3. Rate Classes'!#REF!, \"\")","v":""},13]
[{"$f":"IF('DELETE 3. Rate Classes'!L30=1, 'DELETE 3. Rate Classes'!#REF!, \"\")","v":""},14]
[{"$f":"IF('DELETE 3. Rate Classes'!L31=1, 'DELETE 3. Rate Classes'!#REF!, \"\")","v":""},15]
[{"$f":"IF('DELETE 3. Rate Classes'!L32=1, 'DELETE 3. Rate Classes'!#REF!, \"\")","v":""},16]
[{"$f":"IF('DELETE 3. Rate Classes'!L33=1, 'DELETE 3. Rate Classes'!#REF!, \"\")","v":""},17]
[{"$f":"IF('DELETE 3. Rate Classes'!L34=1, 'DELETE 3. Rate Classes'!#REF!, \"\")","v":""},18]
[{"$f":"IF('DELETE 3. Rate Classes'!L35=1, 'DELETE 3. Rate Classes'!#REF!, \"\")","v":""},19]
[{"$f":"IF('DELETE 3. Rate Classes'!L36=1, 'DELETE 3. Rate Classes'!#REF!, \"\")","v":""},20]
[{"$f":"IF('DELETE 3. Rate Classes'!L37=1, 'DELETE 3. Rate Classes'!#REF!, \"\")","v":""},21]
[{"$f":"IF('DELETE 3. Rate Classes'!L38=1, 'DELETE 3. Rate Classes'!#REF!, \"\")","v":""},22]